Workbook

Sheet POSTS-MA (hidden)
B2: STRUCTURAL DETAILS FOR SIGNAL MAST ARM MOUNTED SIGNS
B3: HEIGHT | C3: LENGTH | D3: STIFFENER
B4: INCH | D4: QTY | E4: SPACING
B5: 24 | C5: 24 | D5: 2 | E5: =IF(D5="X","X",mastarmspace(C5,D5)) ->  | F5: =(C5-((D5-1)*E5))/2 ->  | J5: 2 | K5: =J5+1 -> 3 | L5: 4 | M5: 5 | N5: 6 | O5: 7 | P5: 8 | Q5: 9 | R5: 10 | S5: 11 | T5: 12 | U5: 13 | V5: 14
B6: 24 | C6: =C5+6 -> 30 | D6: 2 | I6: 2 | J6: =mastarmposts($I6*12,J$5*12,MAH,MAW,MAQ) ->  | K6: =mastarmposts($I6*12,K$5*12,MAH,MAW,MAQ) -> 
B7: 24 | C7: 36 | D7: 2 | I7: 3
B8: 24 | C8: 42 | D8: 2 | I8: 4
B9: 24 | C9: 48 | D9: 2 | I9: 5
B10: 24 | C10: 54 | D10: 3 | I10: 6
B11: 24 | C11: 60 | D11: 3 | I11: 7
B12: 24 | C12: 66 | D12: 3
B13: 24 | C13: 72 | D13: 3 | J13: 2 | K13: =J13+1 -> 3 | L13: 4 | M13: 5 | N13: 6 | O13: 7 | P13: 8 | Q13: 9 | R13: 10 | S13: 11 | T13: 12 | U13: 13 | V13: 14
B14: 24 | C14: 78 | D14: 3 | I14: 2 | J14: =mastarmposts($I14*12,J$5*12,MAH,MAW,MAS) -> 
B15: 24 | C15: 84 | D15: 3 | I15: 3
B16: 24 | C16: 90 | D16: 4 | I16: 4
B17: 24 | C17: 96 | D17: 4 | I17: 5
B18: 24 | C18: 102 | D18: 4 | I18: 6
B19: 24 | C19: 108 | D19: 4 | I19: 7
B20: 24 | C20: 114 | D20: 4
B21: 24 | C21: 120 | D21: 4
B22: 24 | C22: 126 | D22: 5
B23: 24 | C23: 132 | D23: 5
B24: 24 | C24: 138 | D24: 5
B25: 24 | C25: 144 | D25: 5
B26: 24 | C26: 150 | D26: 5
B27: 24 | C27: 156 | D27: 5
B28: 24 | C28: 162 | D28: 5
B29: 24 | C29: 168 | D29: 5
B30: 30 | C30: 24 | D30: 2
B31: 30 | C31: =C30+6 -> 30 | D31: 2
B32: 30 | C32: 36 | D32: 2
B33: 30 | C33: 42 | D33: 2
B34: 30 | C34: 48 | D34: 2
B35: 30 | C35: 54 | D35: 3
B36: 30 | C36: 60 | D36: 3
B37: 30 | C37: 66 | D37: 3
B38: 30 | C38: 72 | D38: 3
B39: 30 | C39: 78 | D39: 3
B40: 30 | C40: 84 | D40: 3
B41: 30 | C41: 90 | D41: 4
B42: 30 | C42: 96 | D42: 4
B43: 30 | C43: 102 | D43: 4
B44: 30 | C44: 108 | D44: 4
B45: 30 | C45: 114 | D45: 5
B46: 30 | C46: 120 | D46: 5
B47: 30 | C47: 126 | D47: 5
B48: 30 | C48: 132 | D48: 5
B49: 30 | C49: 138 | D49: 5
B50: 30 | C50: 144 | D50: 5
B51: 30 | C51: 150 | D51: 5
B52: 30 | C52: 156 | D52: 5
B53: 30 | C53: 162 | D53: 5
B54: 30 | C54: 168 | D54: 5
B55: 36 | C55: 24 | D55: 2
B56: 36 | C56: =C55+6 -> 30 | D56: 2
B57: 36 | C57: 36 | D57: 2
B58: 36 | C58: 42 | D58: 2
B59: 36 | C59: 48 | D59: 2
B60: 36 | C60: 54 | D60: 3
B61: 36 | C61: 60 | D61: 3
B62: 36 | C62: 66 | D62: 3
B63: 36 | C63: 72 | D63: 3
B64: 36 | C64: 78 | D64: 3
B65: 36 | C65: 84 | D65: 3
B66: 36 | C66: 90 | D66: 4
B67: 36 | C67: 96 | D67: 4
B68: 36 | C68: 102 | D68: 4
B69: 36 | C69: 108 | D69: 4 | E69: =IF(D69="X","X",mastarmspace(C69,D69)) ->  | F69: =(C69-((D69-1)*E69))/2 -> 
B70: 36 | C70: 114 | D70: 5
B71: 36 | C71: 120 | D71: 5
B72: 36 | C72: 126 | D72: 5
B73: 36 | C73: 132 | D73: 5
B74: 36 | C74: 138 | D74: 5
B75: 36 | C75: 144 | D75: 5
B76: 36 | C76: 150 | D76: 5
B77: 36 | C77: 156 | D77: 5
B78: 36 | C78: 162 | D78: 5
B79: 36 | C79: 168 | D79: 5
B80: 42 | C80: 24 | D80: 2
B81: 42 | C81: =C80+6 -> 30 | D81: 2
B82: 42 | C82: 36 | D82: 2
B83: 42 | C83: 42 | D83: 2
B84: 42 | C84: 48 | D84: 2
B85: 42 | C85: 54 | D85: 3
B86: 42 | C86: 60 | D86: 3
B87: 42 | C87: 66 | D87: 3
B88: 42 | C88: 72 | D88: 3
B89: 42 | C89: 78 | D89: 3
B90: 42 | C90: 84 | D90: 3
B91: 42 | C91: 90 | D91: 4
B92: 42 | C92: 96 | D92: 4
B93: 42 | C93: 102 | D93: 4
B94: 42 | C94: 108 | D94: 4
B95: 42 | C95: 114 | D95: 5
B96: 42 | C96: 120 | D96: 5
B97: 42 | C97: 126 | D97: 5
B98: 42 | C98: 132 | D98: 5
B99: 42 | C99: 138 | D99: 5
B100: 42 | C100: 144 | D100: 5
B101: 42 | C101: 150 | D101: 5
B102: 42 | C102: 156 | D102: 5
B103: 42 | C103: 162 | D103: 6
B104: 42 | C104: 168 | D104: 6
B105: 48 | C105: 24 | D105: 2
B106: 48 | C106: =C105+6 -> 30 | D106: 2
B107: 48 | C107: 36 | D107: 2
B108: 48 | C108: 42 | D108: 2
B109: 48 | C109: 48 | D109: 2
B110: 48 | C110: 54 | D110: 3
B111: 48 | C111: 60 | D111: 3
B112: 48 | C112: 66 | D112: 3
B113: 48 | C113: 72 | D113: 3
B114: 48 | C114: 78 | D114: 3
B115: 48 | C115: 84 | D115: 3
B116: 48 | C116: 90 | D116: 4
B117: 48 | C117: 96 | D117: 4
B118: 48 | C118: 102 | D118: 4
B119: 48 | C119: 108 | D119: 4
B120: 48 | C120: 114 | D120: 5
B121: 48 | C121: 120 | D121: 5
B122: 48 | C122: 126 | D122: 5
B123: 48 | C123: 132 | D123: 5
B124: 48 | C124: 138 | D124: 5
B125: 48 | C125: 144 | D125: 5
B126: 48 | C126: 150 | D126: 5
B127: 48 | C127: 156 | D127: 5
B128: 48 | C128: 162 | D128: 6
B129: 48 | C129: 168 | D129: 6
B130: 54 | C130: 24 | D130: 2
B131: 54 | C131: =C130+6 -> 30 | D131: 2
B132: 54 | C132: 36 | D132: 2
B133: 54 | C133: 42 | D133: 2 | E133: =IF(D133="X","X",mastarmspace(C133,D133)) ->  | F133: =(C133-((D133-1)*E133))/2 -> 
B134: 54 | C134: 48 | D134: 2
B135: 54 | C135: 54 | D135: 3
B136: 54 | C136: 60 | D136: 3
B137: 54 | C137: 66 | D137: 4
B138: 54 | C138: 72 | D138: 4
B139: 54 | C139: 78 | D139: 4
B140: 54 | C140: 84 | D140: 4
B141: 54 | C141: 90 | D141: 5
B142: 54 | C142: 96 | D142: 5
B143: 54 | C143: 102 | D143: 5
B144: 54 | C144: 108 | D144: 5
B145: 54 | C145: 114 | D145: 5
B146: 54 | C146: 120 | D146: 5
B147: 54 | C147: 126 | D147: 5
B148: 54 | C148: 132 | D148: 5
B149: 54 | C149: 138 | D149: 5
B150: 54 | C150: 144 | D150: 5
B151: 54 | C151: 150 | D151: 5
B152: 54 | C152: 156 | D152: 5
B153: 54 | C153: 162 | D153: 6
B154: 54 | C154: 168 | D154: 6
B155: 60 | C155: 24 | D155: 2
B156: 60 | C156: =C155+6 -> 30 | D156: 2
B157: 60 | C157: 36 | D157: 2
B158: 60 | C158: 42 | D158: 2
B159: 60 | C159: 48 | D159: 2
B160: 60 | C160: 54 | D160: 3
B161: 60 | C161: 60 | D161: 3
B162: 60 | C162: 66 | D162: 4
B163: 60 | C163: 72 | D163: 4
B164: 60 | C164: 78 | D164: 4
B165: 60 | C165: 84 | D165: 4
B166: 60 | C166: 90 | D166: 5
B167: 60 | C167: 96 | D167: 5
B168: 60 | C168: 102 | D168: 5
B169: 60 | C169: 108 | D169: 5
B170: 60 | C170: 114 | D170: 5
B171: 60 | C171: 120 | D171: 5
B172: 60 | C172: 126 | D172: 5
B173: 60 | C173: 132 | D173: 5
B174: 60 | C174: 138 | D174: 5
B175: 60 | C175: 144 | D175: 5
B176: 60 | C176: 150 | D176: 5
B177: 60 | C177: 156 | D177: 5
B178: 60 | C178: 162 | D178: 6
B179: 60 | C179: 168 | D179: 6
B180: 66 | C180: 24 | D180: X | E180: X
B181: 66 | C181: =C180+6 -> 30 | D181: X | E181: X
B182: 66 | C182: 36 | D182: X | E182: X
B183: 66 | C183: 42 | D183: 2
B184: 66 | C184: 48 | D184: 2
B185: 66 | C185: 54 | D185: 3
B186: 66 | C186: 60 | D186: 3
B187: 66 | C187: 66 | D187: 4
B188: 66 | C188: 72 | D188: 4
B189: 66 | C189: 78 | D189: 4
B190: 66 | C190: 84 | D190: 4
B191: 66 | C191: 90 | D191: 5
B192: 66 | C192: 96 | D192: 5
B193: 66 | C193: 102 | D193: 5
B194: 66 | C194: 108 | D194: 5
B195: 66 | C195: 114 | D195: 5
B196: 66 | C196: 120 | D196: 5
B197: 66 | C197: 126 | D197: 5 | E197: =IF(D197="X","X",mastarmspace(C197,D197)) ->  | F197: =(C197-((D197-1)*E197))/2 -> 
B198: 66 | C198: 132 | D198: 5
B199: 66 | C199: 138 | D199: 5
B200: 66 | C200: 144 | D200: 5
B201: 66 | C201: 150 | D201: 5
... 78 more rows

Sheet REV 12-15-20
C4: REVISED 12-15-2020

Sheet SEQ-PSTAB
B1: =IF(F1="X","Choose one---","") ->  | E1: =IF(F1="X","------->","") ->  | G1: STATEMENT OF ESTIMATED QUANTITIES | I1: <------- | J1: Use this chart title if you are preparing a complete state project plan set.
B2: =IF(F2="X","Choose one---","") -> Choose one--- | E2: =IF(F2="X","------->","") -> -------> | F2: x | G2: PERMANENT SIGNING TABULATION | I2: <------- | J2: Use this chart title if your plan sheet set is part of a larger state project.
B3: =IF(F3="X","Choose one---","") ->  | E3: =IF(F3="X","------->","") ->  | G3: Custom Title - Type Here | I3: <------- | J3: Use this chart title if your plan sheet set is part of a larger state project.
B5: =IF(F1<>"",G1,IF(F2<>"",G2,G3)) -> PERMANENT SIGNING TABULATION | J5: X | L5: Include
C6: SHEET NO | J6: TOTAL | L6: x
B7: TAB | D7: ITEM NO | G7: ITEM | I7: UNIT | J7: =IF(F1<>"","ESTIMATED",IF(F2<>"","SIGNING","SIGNING")) -> SIGNING | L7: x
J8: QUANTITIES | L8: x
B9: AA | D9: 2011.601 | G9: AS BUILT | I9: LUMP SUM | J9: 0 | L9: SIGNING
D10: 2021.501 | G10: MOBILIZATION | I10: LUMP SUM | L10: SIGNING
D11: 2104.502 | G11: REMOVE DELINEATOR / MARKER SIGN | I11: EACH | L11: SIGNING
D12: 2104.502 | G12: REMOVE DELINEATOR / MARKER PANEL | I12: EACH | L12: SIGNING
D13: 2104.502 | G13: REMOVE REFERENCE LOCATION SIGN | I13: EACH | L13: SIGNING
D14: 2104.502 | G14: REMOVE SIGN | I14: EACH | L14: SIGNING
D15: 2104.502 | G15: REMOVE SIGN TYPE A | I15: EACH | J15: =AREM!C2 -> 0 | L15: SIGNING
D16: 2104.502 | G16: REMOVE SIGN TYPE C | I16: EACH | J16: 17 | L16: SIGNING
D17: 2104.502 | G17: REMOVE SIGN TYPE D | I17: EACH | J17: =' D REM - REMOVE THIS TAB'!C15 -> 3 | L17: SIGNING
D18: 2104.502 | G18: REMOVE SIGN TYPE EA | I18: EACH | J18: =EAREM!C14 -> 0 | L18: SIGNING
D19: 2104.502 | G19: REMOVE SIGN TYPE EO | I19: EACH | J19: =EOREM!C14 -> 0 | L19: SIGNING
D20: 2104.502 | G20: REMOVE SIGN TYPE OH (BRIDGE MOUNTED) | I20: EACH | J20: ='OH REM'!F15 -> 0 | L20: SIGNING
D21: 2104.502 | G21: REMOVE SIGN TYPE OH | I21: EACH | J21: ='OH REM'!F14 -> 1 | L21: SIGNING
D22: 2104.502 | G22: REMOVE SIGN TYPE SPECIAL | I22: EACH | J22: 0 | L22: SIGNING
D23: 2104.502 | G23: REMOVE SIGN PANEL OVERLAY TYPE A | I23: EACH | J23: 0 | L23: SIGNING
D24: 2104.502 | G24: REMOVE SIGN PANEL OVERLAY TYPE EA | I24: EACH | J24: =EAOL!K15 -> 0 | L24: SIGNING
D25: 2104.502 | G25: REMOVE SIGN PANEL OVERLAY TYPE EO | I25: EACH | J25: =EOOL!K15 -> 0 | L25: SIGNING
D26: 2104.502 | G26: REMOVE SIGN PANEL OVERLAY TYPE OH | I26: EACH | J26: 0 | L26: SIGNING
D27: 2104.502 | G27: REMOVE SIGN LIGHTING SYSTEM | I27: EACH | J27: ='OH REM LT SYS'!C15 -> 1 | L27: SIGNING
D28: 2104.502 | G28: REMOVE SIGN PANEL TYPE A | I28: EACH | J28: 0 | L28: SIGNING
D29: 2104.502 | G29: REMOVE SIGN PANEL TYPE C | I29: EACH | J29: 0 | L29: SIGNING
D30: 2104.502 | G30: REMOVE SIGN PANEL TYPE D | I30: EACH | J30: ='D REM PANEL'!C15 -> 3 | L30: SIGNING
D31: 2104.502 | G31: REMOVE SIGN PANEL TYPE OH | I31: EACH | J31: ='OH REMPAN'!G14 -> 4 | L31: SIGNING
D32: 2104.502 | G32: REMOVE SIGN FOOTING - TYPE A | I32: EACH | J32: ='A REM FOOT'!C19 -> 2 | L32: SIGNING
D33: 2104.502 | G33: REMOVE SIGN FOOTING - TYPE OH | I33: EACH | J33: ='OH REM FOOT'!C15 -> 1 | L33: SIGNING
D34: 2104.502 | G34: SALVAGE DELINEATOR | I34: EACH | J34: =#REF! ->  | L34: SIGNING
D35: 2104.502 | G35: SALVAGE MARKER | I35: EACH | J35: =#REF! ->  | L35: SIGNING
D36: 2104.502 | G36: SALVAGE REFERENCE LOCATION SIGN | I36: EACH | J36: ='SAL REF SIGN'!#REF! ->  | L36: SIGNING
D37: 2104.502 | G37: SALVAGE SIGN PANEL TYPE A | I37: EACH | J37: 0 | L37: SIGNING
D38: 2104.502 | G38: SALVAGE SIGN PANEL TYPE C | I38: EACH | J38: 0 | L38: SIGNING
D39: 2104.502 | G39: SALVAGE SIGN PANEL TYPE D | I39: EACH | J39: 0 | L39: SIGNING
D40: 2104.502 | G40: SALVAGE SIGN PANEL TYPE SPECIAL | I40: EACH | J40: 0 | L40: SIGNING
D41: 2104.502 | G41: SALVAGE SIGN PANEL TYPE EA | I41: EACH | J41: 0 | L41: SIGNING
D42: 2104.502 | G42: SALVAGE SIGN PANEL TYPE EO | I42: EACH | J42: =ESALINS!C38 -> 0 | L42: SIGNING
D43: 2104.502 | G43: SALVAGE SIGN PANEL TYPE OH | I43: EACH | J43: 0 | L43: SIGNING
D44: 2104.502 | G44: SALVAGE SIGN | I44: EACH | J44: ='OH REM WKWY'!D8 -> 0 | L44: SIGNING
D45: 2104.502 | G45: SALVAGE SIGN TYPE A | I45: EACH | J45: 0 | L45: SIGNING
D46: 2104.502 | G46: SALVAGE SIGN TYPE C | I46: EACH | J46: =#REF!+#REF! ->  | L46: SIGNING
D47: 2104.502 | G47: SALVAGE SIGN TYPE D | I47: EACH | J47: =#REF! ->  | L47: SIGNING
D48: 2104.502 | G48: SALVAGE SIGN TYPE EA | I48: EACH | J48: 0 | L48: SIGNING
D49: 2104.502 | G49: SALVAGE SIGN TYPE EO | I49: EACH | J49: =ESALINS!C38 -> 0 | L49: SIGNING
D50: 2104.502 | G50: SALVAGE SIGN TYPE OH | I50: EACH | J50: 0 | L50: SIGNING
D51: 2104.502 | G51: SALVAGE SIGN TYPE OH (BR MOUNTED) | I51: EACH | J51: 0 | L51: SIGNING
D52: 2104.502 | G52: SALVAGE SIGN TYPE SPECIAL | I52: EACH | J52: 0 | L52: SIGNING
D53: 2104.502 | G53: SALVAGE SIGN SUPPORT OH | I53: EACH | J53: 0 | L53: SIGNING
D54: 2104.503 | G54: REMOVE SIGN WALKWAY | I54: LIN FT | J54: ='OH REM WKWY'!D7 -> 0 | L54: SIGNING
D55: 2545.516 | G55: SIGN LIGHTING SYSTEM | I55: SYSTEM | J55: ='OH REM WKWY'!D9 -> 0 | L55: SIGNING
D56: 2545.516 | G56: SIGN LIGHTING SYSTEM BRIDGE MOUNTED | I56: SYSTEM | J56: ='OH REM WKWY'!D10 -> 0 | L56: SIGNING
D57: 2545.616 | G57: MODIFY SIGN LIGHTING SYSTEM | I57: SYSTEM | J57: ='OH REM WKWY'!D10 -> 0 | L57: SIGNING
D58: 2563.601 | G58: TRAFFIC CONTROL | I58: LUMP SUM | J58: ='OH REM WKWY'!D11 -> 0 | L58: SIGNING
D59: 2564.502 | G59: MEDIAN BARRIER FOOTING | I59: EACH | J59: 0 | L59: SIGNING
D60: 2564.502 | G60: SIGN SUPPORT SIGN BRIDGE | I60: EACH | J60: ='OH SIGN SUP BRIDGE'!C18 -> 1 | L60: SIGNING
B61: AA | D61: 2564.502 | G61: SIGN SUPPORT CANTILEVER | I61: EACH | J61: ='OH SGN SUP CANT'!B14 -> 1 | L61: SIGNING
B62: BB | D62: 2564.502 | G62: MODIFY POST | I62: EACH | J62: 0 | L62: SIGNING
D63: 2564.502 | G63: INSTALL DELINEATOR | I63: EACH | J63: =#REF! ->  | L63: SIGNING
D64: 2564.502 | G64: INSTALL MARKER | I64: EACH | J64: =#REF! ->  | L64: SIGNING
D65: 2564.502 | G65: INSTALL REFERENCE LOCATION SIGN | I65: EACH | J65: 0 | L65: SIGNING
D66: 2564.502 | G66: INSTALL SIGN PANEL | I66: EACH | J66: 0 | L66: SIGNING
D67: 2564.502 | G67: INSTALL SIGN PANEL TYPE A | I67: EACH | J67: =ASPNLIN!C12 -> 0 | L67: SIGNING
D68: 2564.502 | G68: INSTALL SIGN PANEL TYPE C | I68: EACH | J68: =#REF! ->  | L68: SIGNING
D69: 2564.502 | G69: INSTALL SIGN PANEL TYPE D | I69: EACH | J69: 0 | L69: SIGNING
D70: 2564.502 | G70: INSTALL SIGN PANEL TYPE EO | I70: EACH | J70: =ESALINS!C38 -> 0 | L70: SIGNING
D71: 2564.502 | G71: INSTALL SIGN PANEL TYPE OH | I71: EACH | J71: 0 | L71: SIGNING
D72: 2564.502 | G72: INSTALL SIGN PANEL TYPE SPECIAL | I72: EACH | J72: 0 | L72: SIGNING
D73: 2564.502 | G73: INSTALL SIGN PANEL TYPE OVERLAY | I73: EACH | J73: 0 | L73: SIGNING
D74: 2564.502 | G74: INSTALL SIGN TYPE A | I74: EACH | J74: 0 | L74: SIGNING
D75: 2564.502 | G75: INSTALL SIGN TYPE C | I75: EACH | J75: =#REF! ->  | L75: SIGNING
D76: 2564.502 | G76: INSTALL SIGN TYPE D | I76: EACH | J76: =#REF!+#REF! ->  | L76: SIGNING
D77: 2564.502 | G77: INSTALL SIGN TYPE EA | I77: EACH | J77: 0 | L77: SIGNING
D78: 2564.502 | G78: INSTALL SIGN TYPE EO | I78: EACH | J78: =ESALINS!C38 -> 0 | L78: SIGNING
D79: 2564.502 | G79: INSTALL SIGN TYPE OH | I79: EACH | J79: 0 | L79: SIGNING
D80: 2564.502 | G80: INSTALL SIGN TYPE OH (BR MOUNT) | I80: EACH | J80: 0 | L80: SIGNING
D81: 2564.502 | G81: LIGHTING SYSTEM IDENTIFICATION PLATE | I81: EACH | L81: SIGNING
D82: 2564.502 | G82: EXTEND WALKWAY SUPPORT | I82: EACH | J82: 0 | L82: SIGNING
D83: 2564.502 | G83: FRICTION FUSE | I83: EACH | J83: 0 | L83: SIGNING
D84: 2564.502 | G84: KEEPER PLATE | I84: EACH | J84: 0 | L84: SIGNING
D85: 2564.502 | G85: DELINEATOR | I85: EACH | J85: 0 | L85: SIGNING
D86: 2564.502 | G86: DELINEATOR TYPE RECOVERABLE | I86: EACH | L86: SIGNING
D87: 2564.502 | G87: DELINEATOR TYPE SPECIAL | I87: EACH | J87: 0 | L87: SIGNING
D88: 2564.502 | G88: REFERENCE LOCATION SIGN | I88: EACH | J88: ='REF SIGN'!C947 -> 0 | L88: SIGNING
D89: 2564.503 | G89: SAW SIGN PANELS | I89: LIN FT | J89: 0 | L89: SIGNING
D90: 2564.503 | G90: SAW SIGN PANELS TYPE A | I90: LIN FT | J90: 0 | L90: SIGNING
D91: 2564.503 | G91: SAW SIGN PANELS TYPE EA | I91: LIN FT | J91: 0 | L91: SIGNING
D92: 2564.503 | G92: SAW SIGN PANELS TYPE EO | I92: LIN FT | J92: 0 | L92: SIGNING
D93: 2564.503 | G93: SAW SIGN PANELS TYPE OH | I93: LIN FT | J93: 0 | L93: SIGNING
D94: 2564.507 | G94: CONCRETE FOOTINGS | I94: CU YD | J94: 0 | L94: SIGNING
D95: 2564.507 | G95: CONCRETE FOOTINGS (TYPE A SIGNS) | I95: CU YD | J95: 0 | L95: SIGNING
D96: 2564.507 | G96: CONCRETE FOOTINGS (TYPE OH SHAFT) | I96: CU YD | J96: =#REF! ->  | L96: SIGNING
D97: 2564.507 | G97: CONCRETE FOOTINGS (TYPE OH SPREAD) | I97: CU YD | J97: =#REF! ->  | L97: SIGNING
B98: BB | D98: 2564.507 | G98: CONCRETE FOOTINGS (DESIGN SPECIAL) | I98: CU YD | J98: 0 | L98: SIGNING
B99: CC | D99: 2564.508 | G99: STRUCTURAL STEEL | I99: POUND | J99: 0 | L99: SIGNING
D100: 2564.508 | G100: STRUCT STEEL-POSTS FOR TYPE A SIGNS | H100: (P) | I100: POUND | J100: 0 | L100: SIGNING
D101: 2564.508 | G101: STRUCT STEEL-POSTS FOR OH SIGNS (A) | H101: (P) | I101: POUND | J101: 0 | L101: SIGNING
D102: 2564.508 | G102: STRUCT STEEL-POSTS FOR OH SIGNS (B) | H102: (P) | I102: POUND | J102: =#REF! ->  | L102: SIGNING
D103: 2564.508 | G103: STRUCT STEEL-POSTS FOR OH SIGNS (C) | H103: (P) | I103: POUND | L103: SIGNING
D104: 2564.508 | G104: STRUCTURAL STEEL-POSTS FOR OH SIGNS (D) | H104: (P) | I104: POUND | L104: SIGNING
D105: 2564.508 | G105: STRUCT STEEL-TRUSSES FOR OH SIGNS (A) | H105: (P) | I105: POUND | J105: 0 | L105: SIGNING
D106: 2564.508 | G106: STRUCT STEEL-TRUSSES FOR OH SIGNS (B) | H106: (P) | I106: POUND | J106: =#REF! ->  | L106: SIGNING
D107: 2564.508 | G107: STRUCT STEEL-TRUSSES FOR OH SIGNS (C) | H107: (P) | I107: POUND | J107: =#REF! ->  | L107: SIGNING
D108: 2564.508 | G108: STRUCTURAL STEEL-TRUSSES FOR OH SIGNS (D) | H108: (P) | I108: POUND | J108: =#REF! ->  | L108: SIGNING
D109: 2564.508 | G109: STR STEEL-TRUSSES FOR OH SIGNS BR MTD | H109: (P) | I109: POUND | J109: =BMST!D9 -> 0 | L109: SIGNING
D110: 2564.508 | G110: STR STEEL-WLKWY SPRT FOR OH SIGNS (B) | H110: (P) | I110: POUND | J110: 0 | L110: SIGNING
D111: 2564.508 | G111: STRUCTURAL STEEL-WALKWAY SUPPORT FOR OH SIGNS (D) | H111: (P) | I111: POUND | J111: 0 | L111: SIGNING
D112: 2564.508 | G112: STR STEEL-WLKWY GRTNG FOR OH SIGNS (B) | H112: (P) | I112: POUND | J112: 0 | L112: SIGNING
D113: 2564.508 | G113: STR STEEL-WLKWY GRTNG FOR OH SIGNS (C) | H113: (P) | I113: POUND | J113: 0 | L113: SIGNING
D114: 2564.508 | G114: STRUCTURAL STEEL-WALKWAY GRATING FOR OH SIGNS (D) | H114: (P) | I114: POUND | J114: 0 | L114: SIGNING
D115: 2564.508 | G115: STR STEEL-WLKWY GRTNG FOR OH SIGNS (SPEC) | H115: (P) | I115: POUND | J115: 0 | L115: SIGNING
D116: 2564.508 | G116: STR STEEL-PANEL MT PST FOR OH SIGNS (A) | H116: (P) | I116: POUND | L116: SIGNING
D117: 2564.508 | G117: STR STEEL-PANEL MT PST FOR OH SIGNS (B) | H117: (P) | I117: POUND | J117: =#REF! ->  | L117: SIGNING
D118: 2564.508 | G118: STR STEEL-PANEL MT PST FOR OH SIGNS (C) | H118: (P) | I118: POUND | J118: =#REF! ->  | L118: SIGNING
D119: 2564.508 | G119: STRUCTURAL STEEL-PANEL MOUNT PST FOR OH SIGNS (D) | H119: (P) | I119: POUND | J119: =#REF! ->  | L119: SIGNING
D120: 2564.518 | G120: OVERHEAD SIGN STRUCTURE REPAIR | I120: HOUR | J120: 0 | L120: SIGNING
D121: 2564.518 | G121: SIGN PANELS TYPE A | H121: (P) | I121: SQ FT | J121: ='SIGN PANELS TYPE A EXTRUDED'!G16+'SIGN PANELS TYPE A'!H18 -> 0 | L121: SIGNING
D122: 2564.518 | G122: SIGN PANELS TYPE C | I122: SQ FT | J122: =ROUNDUP(#REF!,0) ->  | L122: SIGNING
D123: 2564.518 | G123: SIGN PANELS TYPE D | I123: SQ FT | J123: =ROUNDUP(#REF!,0) ->  | L123: SIGNING
D124: 2564.518 | G124: SIGN PANELS TYPE EA | H124: (P) | I124: SQ FT | J124: =EA!J975+EAEXTFI!K9 -> 0 | L124: SIGNING
D125: 2564.518 | G125: SIGN PANELS TYPE EO | H125: (P) | I125: SQ FT | J125: =EO!J15+'EO EXT PAN SECT'!I20 -> 0 | L125: SIGNING
D126: 2564.518 | G126: SIGN PANELS TYPE OH | H126: (P) | I126: SQ FT | J126: ='SIGN PANELS TYPE OH'!P17+'SIGN PANELS TYPE OH (EXT PAN )'!G8 -> 0 | L126: SIGNING
D127: 2564.518 | G127: SIGN PANELS TYPE OVERLAY | I127: SQ FT | J127: =ROUNDUP(OL!I963,0) -> 0 | L127: SIGNING
D128: 2564.518 | G128: SIGN PANELS TYPE SPECIAL | I128: SQ FT | J128: 0 | L128: SIGNING
D129: 2564.518 | G129: SIGN PANEL OVERLAY TYPE A | H129: (P) | I129: SQ FT | J129: 0 | L129: SIGNING
D130: 2564.518 | G130: SIGN PANEL OVERLAY TYPE EA | H130: (P) | I130: SQ FT | J130: 0 | L130: SIGNING
D131: 2564.518 | G131: SIGN PANEL OVERLAY TYPE EO | H131: (P) | I131: SQ FT | J131: 0 | L131: SIGNING
D132: 2564.518 | G132: SIGN PANEL OVERLAY TYPE OH | H132: (P) | I132: SQ FT | J132: ='OH OL'!P17 -> 0 | L132: SIGNING
D133: 2564.518 | G133: FURNISH SIGN PANELS TYPE C | I133: SQ FT | J133: 0 | L133: SIGNING
D134: 2564.518 | G134: FURNISH SIGN PANELS TYPE D | I134: SQ FT | J134: 0 | L134: SIGNING
D135: 2564.518 | G135: FURNISH SIGN PANELS TYPE OH | I135: SQ FT | J135: 0 | L135: SIGNING
D136: 2564.518 | G136: FURNISH SIGN PANELS TYPE OVERLAY | I136: SQ FT | J136: 0 | L136: SIGNING
D137: 2013.603 | G137: SAFETY CABLE | I137: LIN FT | J137: ='safety cable'!E15 -> 96 | L137: SIGNING
D138: 2104.601 | G138: SALVAGE LIGHTING SYSTEM | I138: LUMP SUM | J138: 0 | L138: SIGNING
D139: 2564.602 | G139: INSTALL SIGN COLLAR | I139: EACH | J139: 0 | L139: SIGNING
D140: 2564.602 | G140: SIGN COLLAR | I140: EACH | J140: 0 | L140: SIGNING
D141: 2564.602 | G141: CONC PEDESTAL EXTENSION DES SPEC | I141: EACH | J141: 0 | L141: SIGNING
D142: 2564.602 | G142: INSTALL SIGN | I142: EACH | J142: 0 | L142: SIGNING
D143: 2564.602 | G143: INSTALL STEEL POST | I143: EACH | J143: 0 | L143: SIGNING
D144: 2564.602 | G144: FOUNDATION SPECIAL OH | I144: EACH | J144: 0 | L144: SIGNING
D145: 2564.602 | G145: MEDIAN SIGN POST ANCHOR | I145: EACH | J145: 0 | L145: SIGNING
D146: 2564.602 | G146: REPAIR SIGN TYPE OH | I146: EACH | J146: 0 | L146: SIGNING
D147: 2564.602 | G147: FURNISH & INSTALL TRAFFIC WARNING SIGN | I147: EACH | J147: 0 | L147: SIGNING
D148: 2564.602 | G148: INSTALL SIGN SUPPORT | I148: EACH | J148: 0 | L148: SIGNING
D149: 2564.602 | G149: REPOSITION SIGN PANEL TYPE OH | I149: EACH | J149: =OHREPOSPNL!P11 -> 4 | L149: SIGNING
B150: CC | D150: 2564.602 | G150: REPOSITION SIGN PANEL | I150: EACH | J150: 0 | L150: SIGNING
B151: DD | D151: 2564.602 | G151: HIGHWAY ADVISORY RADIO SIGN | I151: EACH | J151: 0 | L151: SIGNING
D152: 2564.602 | G152: MODIFY SIGN TYPE OH (BR MTD) | I152: EACH | J152: 0 | L152: SIGNING
D153: 2564.602 | G153: MODIFY SIGN TYPE OH | I153: EACH | J153: 0 | L153: SIGNING
D154: 2564.602 | G154: INSTALL SIGN TRUSS | I154: EACH | J154: 0 | L154: SIGNING
D155: 2564.602 | G155: RELOCATE SIGN | I155: EACH | J155: 0 | L155: SIGNING
D156: 2564.602 | G156: INSTALL SIGN TYPE SPECIAL | I156: EACH | J156: 0 | L156: SIGNING
D157: 2564.602 | G157: CONCRETE FOOTINGS DESIGN SPECIAL | I157: EACH | J157: 0 | L157: SIGNING
D158: 2564.602 | G158: INTERNALLY ILLUMINATED SIGN | I158: EACH | J158: 0 | L158: SIGNING
D159: 2564.602 | G159: DELINEATOR/MARKER PANEL | I159: EACH | J159: ='DEL & MARK'!G39 -> 9 | L159: SIGNING
D160: 2564.602 | G160: DELINEATOR/MARKER SIGN | I160: EACH | J160: ='DEL & MARK'!H15 -> 10 | L160: SIGNING
D161: 2564.602 | G161: SIGN FRAME | I161: EACH | L161: SIGNING
D162: 2564.602 | G162: SUPPLEMENTAL DESCRIPTION | I162: EACH | J162: 0 | L162: SIGNING
D163: 2564.618 | G163: SIGN TYPE C | I163: SQ FT | J163: 0 | L163: SIGNING
B164: DD | D164: 2564.618 | G164: SIGN TYPE D | I164: SQ FT | J164: 0 | L164: SIGNING
L167: x
L168: x
B169: GENERAL NOTE:
B170: FOR SIGNS THAT ARE LOCATED ADJACENT TO A SIDEWALK OR TRAIL, A 4' MINIMUM (6' PREFERRED) UNOBSTRUCTED PAVED WALKWAY OR PATH
B172: (P) DENOTES PLAN QUANTITY | L172: High
B173: ="(3) OTHER NOTES." -> (3) OTHER NOTES. | L173: High
B174: ="(4) OTHER NOTES." -> (4) OTHER NOTES. | L174: High

Sheet SEQ-4Temp (hidden)
B5: =IF('SEQ-PSTAB'!F1<>"",'SEQ-PSTAB'!G1,IF('SEQ-PSTAB'!F2<>"",'SEQ-PSTAB'!G2,'SEQ-PSTAB'!G3)) -> PERMANENT SIGNING TABULATION | H5: X
C6: SHEET NO | H6: TOTAL
B7: TAB | D7: ITEM NO | F7: ITEM | G7: UNIT | H7: ESTIMATED
H8: QUANTITIES

Sheet TOC
B2: PAGE NO | C2: SHEET NAME
B3: ID PLATE (STANDARD SIGN DRAWINGS)
B4: 0 | C4: OH IDENTIFICATION PLATE
B5: 0 | C5: FEED POINT IDENTIFICATION PLATE
B6: PLACEMENT DETAILS
B7: ST13 | C7: SIGN PLACEMENT
B8: ST87 | C8: DELINEATORS AND MARKERS
B9: 58 | C9: FLANGED CHANNEL POST MOUNTED THROUGH SURFACED MEDIAN OR SIDEWALK
B10: A SIGN STRUCTURAL DETAILS
B11: 0 | C11: H-PILE FOOTINGS - SHEET 1
B12: 0 | C12: H-PILE FOOTINGS - SHEET 2
B14: 0 | C14: CONCRETE FOOTINGS - SHEET 1
B15: 0 | C15: CONCRETE FOOTINGS - SHEET 2
B17: 0 | C17: POST MODIFICATIONS
B18: C & D SIGN STRUCTURAL DETAILS
B19: ST23 | C19: SHEET 1 (MAIN)
B20: ST24 | C20: SHEET 2 (A-FRAME)
B21: ST25 | C21: SHEET 3 (PUNCH) * PUNCHING DETAILS ARE IN STANDARDS SIGN MANUAL PAGE 110.
B22: C SIGN: VARIOUS MOUNTING SHEETS
B23: 57 | C23: TYPE C SIGNS MOUNTED ON BRIDGE MEDIAN ISLAND
B24: 56 | C24: TYPE C SIGNS, DELINEATORES, & MARKERS IN CONCRETE
B25: 59 | C25: TYPC C SIGNS MOUNTED ON O-POSTS, OH SIGN POSTS, OR SIGNAL STANDARDS
B26: MOUNTED ON BRIDGE RAIL
B27: 32 | C27: 4 1/2" O-PIPE [A]
B28: 0 | C28: 6 5/8" O-PIPE
B29: 0 | C29: 4 1/2" O-PIPE [B]
B30: 0 | C30: WALL RAIL
B31: BRIDGE MOUNTED (D SIGNS ONLY)
B32: 36 | C32: DESIGN A1
B33: 0 | C33: DESIGN B4
B34: 0 | C34: DESIGN B3
B35: 0 | C35: DESIGN B2
B36: 0 | C36: DESIGN B1
B37: 0 | C37: DESIGN A2
B38: 0 | C38: DESIGN B5
B39: EA & EO SIGNS
B40: 94 | C40: STRUCTURAL DETAIL
B41: OH (OVERHEAD) SIGNS
B42: 0 | C42: PANEL MOUNTING POST MODIFICATION DETAILS
B43: 0 | C43: OH SIGN SUPPORTS
B44: 0 | C44: OH SIGN SAFETY CABLE - DESIGN A
B45: 0 | C45: OH SIGN SAFETY CABLE - DESIGN B
B46: 0 | C46: GENERAL ELEVATIONS AND NOTES (DRAWING ST-1)
B47: 0 | C47: CAMBER, POST IDENTIFICATION, AND ESTIMATED QUANTITIES (DRAWING ST-2)
B48: 0 | C48: FOUNDATIONS AND ANCHOR RODS (DRAWING ST-3)
B49: 0 | C49: TRUSS/POST CONNECTION & BASEPLATES (DRAWING ST-4)
B50: 0 | C50: SIGN TRUSS DETAILS - TRUSS TYPE A (DRAWING ST-5)
B51: 0 | C51: SIGN TRUSS DETAILS - TRUSS TYPE B (DRAWING ST-6)
B52: 0 | C52: SIGN TRUSS DETAILS - TRUSS TYPE C (DRAWING ST-7)
B53: 0 | C53: WALKWAY DETAILS (DRAWING ST-8)
B54: 0 | C54: FOLDING HANDRAIL (DRAWING ST-9)
B55: 0 | C55: SIGN PANEL AND PANEL MOUNTING POSTS DETAILS (DRAWING ST-10)
B56: 0 | C56: ELECTRICAL DETAILS (DRAWING ST-11)
B57: 0 | C57: ELECTRICAL DETAILS (DRAWING ST-12)
B58: 0 | C58: MODIFIED ELECTRICAL DETAILS (DRAWING ST-13) (INPLACE OF 12 UNLESS BOTH CMS & REG. OH)
C59: D PANELS
B60: ST81 | C60: FIRST PAGE OF TYPE D SIGN PANEL LAYOUTS
B61: ST94 | C61: LAST PAGE OF SIGN PANEL TYPE D LAYOUTS
C62: EO PANELS
B63: ST27 | C63: FIRST PAGE OF TYPE EO SIGN PANEL LAYOUTS
B64: ST47 | C64: LAST PAGE OF TYPE EO SIGN PANEL LAYOUTS
C65: OH PANELS
B66: ST67 | C66: FIRST PAGE OF TYPE OH SIGN PANEL LAYOUTS
B67: ST68 | C67: LAST PAGE OF TYPE OH SIGN PANEL LAYOUTS
C68: OH OVERLAY
B69: ST70 | C69: FIRST PAGE OF TYPE OH SIGN PANEL OVERLAY LAYOUTS
B70: ST71 | C70: LAST PAGE OF TYPE OH SIGN PANEL OVERLAY LAYOUTS

Sheet POSTS25 (hidden)
B2: 2.5# POSTS
B3: HEIGHT | C3: LENGTH | D3: V-POST | E3: K-POST
B4: INCH
B5: 12 | C5: 12 | D5: 1 | E5: 0
B6: =B5+6 -> 18 | C6: 12 | D6: 1 | E6: 0
B7: 24 | C7: 12 | D7: 1 | E7: 0
B8: 30 | C8: 12 | D8: 1 | E8: 0
B9: 36 | C9: 12 | D9: 2 | E9: 0
B10: 42 | C10: 12 | D10: 2 | E10: 0
B11: 48 | C11: 12 | D11: 2 | E11: 0
B12: 54 | C12: 12 | D12: 2 | E12: 0
B13: 60 | C13: 12 | D13: 2 | E13: 1
B14: 66 | C14: 12 | D14: 2 | E14: 1
B15: 72 | C15: 12 | D15: 2 | E15: 1
B16: 78 | C16: 12 | D16: 2 | E16: 1
B17: 84 | C17: 12 | D17: 2 | E17: 1
B18: 90 | C18: 12 | D18: 2 | E18: 1
B19: 96 | C19: 12 | D19: 2 | E19: 1
B20: 102 | C20: 12 | D20: 2 | E20: 1
B21: 108 | C21: 12 | D21: 2 | E21: 1
B22: 114 | C22: 12 | D22: 2 | E22: 1
B23: 120 | C23: 12 | D23: 2 | E23: 1
B24: 126 | C24: 12 | D24: 2 | E24: 1
B25: 132 | C25: 12 | D25: 2 | E25: 1
B26: 138 | C26: 12 | D26: 2 | E26: 1
B27: 144 | C27: 12 | D27: 2 | E27: 1
B28: 150 | C28: 12 | D28: 2 | E28: 1
B29: 12 | C29: 18 | D29: 1 | E29: 0
B30: =B29+6 -> 18 | C30: 18 | D30: 1 | E30: 0
B31: 24 | C31: 18 | D31: 2 | E31: 0
B32: 30 | C32: 18 | D32: 2 | E32: 0
B33: 36 | C33: 18 | D33: 2 | E33: 0
B34: 42 | C34: 18 | D34: 2 | E34: 1
B35: 48 | C35: 18 | D35: 2 | E35: 1
B36: 54 | C36: 18 | D36: 2 | E36: 1
B37: 60 | C37: 18 | D37: 2 | E37: 1
B38: 66 | C38: 18 | D38: 2 | E38: 1
B39: 72 | C39: 18 | D39: 2 | E39: 1
B40: 78 | C40: 18 | D40: 2 | E40: 1
B41: 84 | C41: 18 | D41: 2 | E41: 1
B42: 90 | C42: 18 | D42: 2 | E42: 1
B43: 96 | C43: 18 | D43: 2 | E43: 1
B44: 102 | C44: 18 | D44: 2 | E44: 1
B45: 108 | C45: 18 | D45: 2 | E45: 1
B46: 114 | C46: 18 | D46: 2 | E46: 1
B47: 120 | C47: 18 | D47: 2 | E47: 1
B48: 126 | C48: 18 | D48: 2 | E48: 1
B49: 132 | C49: 18 | D49: 2 | E49: 2
B50: 138 | C50: 18 | D50: 2 | E50: 2
B51: 144 | C51: 18 | D51: 2 | E51: 2
B52: 150 | C52: 18 | D52: 2 | E52: 2
B53: 12 | C53: 24 | D53: 1 | E53: 0
B54: =B53+6 -> 18 | C54: 24 | D54: 2 | E54: 0
B55: 24 | C55: 24 | D55: 2 | E55: 0
B56: 30 | C56: 24 | D56: 2 | E56: 0
B57: 36 | C57: 24 | D57: 2 | E57: 1
B58: 42 | C58: 24 | D58: 2 | E58: 1
B59: 48 | C59: 24 | D59: 2 | E59: 1
B60: 54 | C60: 24 | D60: 2 | E60: 1
B61: 60 | C61: 24 | D61: 2 | E61: 1
B62: 66 | C62: 24 | D62: 2 | E62: 1
B63: 72 | C63: 24 | D63: 2 | E63: 1
B64: 78 | C64: 24 | D64: 2 | E64: 1
B65: 84 | C65: 24 | D65: 2 | E65: 1
B66: 90 | C66: 24 | D66: 2 | E66: 1
B67: 96 | C67: 24 | D67: 2 | E67: 1
B68: 102 | C68: 24 | D68: 2 | E68: 1
B69: 108 | C69: 24 | D69: 2 | E69: 1
B70: 114 | C70: 24 | D70: 2 | E70: 2
B71: 120 | C71: 24 | D71: 2 | E71: 2
B72: 126 | C72: 24 | D72: 2 | E72: 2
B73: 132 | C73: 24 | D73: 2 | E73: 2
B74: 138 | C74: 24 | D74: 2 | E74: 2
B75: 144 | C75: 24 | D75: 2 | E75: 2
B76: 150 | C76: 24 | D76: 2 | E76: 2
B77: 12 | C77: 30 | D77: 1 | E77: 0
B78: =B77+6 -> 18 | C78: 30 | D78: 2 | E78: 0
B79: 24 | C79: 30 | D79: 2 | E79: 0
B80: 30 | C80: 30 | D80: 2 | E80: 1
B81: 36 | C81: 30 | D81: 2 | E81: 1
B82: 42 | C82: 30 | D82: 2 | E82: 1
B83: 48 | C83: 30 | D83: 2 | E83: 1
B84: 54 | C84: 30 | D84: 2 | E84: 1
B85: 60 | C85: 30 | D85: 2 | E85: 1
B86: 66 | C86: 30 | D86: 2 | E86: 1
B87: 72 | C87: 30 | D87: 2 | E87: 1
B88: 78 | C88: 30 | D88: 2 | E88: 1
B89: 84 | C89: 30 | D89: 2 | E89: 1
B90: 90 | C90: 30 | D90: 2 | E90: 1
B91: 96 | C91: 30 | D91: 2 | E91: 1
B92: 102 | C92: 30 | D92: 2 | E92: 2
B93: 108 | C93: 30 | D93: 2 | E93: 2
B94: 114 | C94: 30 | D94: 2 | E94: 2
B95: 120 | C95: 30 | D95: 2 | E95: 2
B96: 126 | C96: 30 | D96: 2 | E96: 2
B97: 132 | C97: 30 | D97: 2 | E97: 2
B98: 138 | C98: 30 | D98: 2 | E98: 2
B99: 12 | C99: 36 | D99: 2 | E99: 0
B100: =B99+6 -> 18 | C100: 36 | D100: 2 | E100: 0
B101: 24 | C101: 36 | D101: 2 | E101: 1
B102: 30 | C102: 36 | D102: 2 | E102: 1
B103: 36 | C103: 36 | D103: 2 | E103: 1
B104: 42 | C104: 36 | D104: 2 | E104: 1
B105: 48 | C105: 36 | D105: 2 | E105: 1
B106: 54 | C106: 36 | D106: 2 | E106: 1
B107: 60 | C107: 36 | D107: 2 | E107: 1
B108: 66 | C108: 36 | D108: 2 | E108: 1
B109: 72 | C109: 36 | D109: 2 | E109: 1
B110: 78 | C110: 36 | D110: 2 | E110: 1
B111: 84 | C111: 36 | D111: 2 | E111: 1
B112: 90 | C112: 36 | D112: 2 | E112: 2
B113: 96 | C113: 36 | D113: 2 | E113: 2
B114: 102 | C114: 36 | D114: 2 | E114: 2
B115: 108 | C115: 36 | D115: 2 | E115: 2
B116: 114 | C116: 36 | D116: 2 | E116: 2
B117: 120 | C117: 36 | D117: 2 | E117: 2
B118: 12 | C118: 42 | D118: 2 | E118: 0
B119: =B118+6 -> 18 | C119: 42 | D119: 2 | E119: 0
B120: 24 | C120: 42 | D120: 2 | E120: 1
B121: 30 | C121: 42 | D121: 2 | E121: 1
B122: 36 | C122: 42 | D122: 2 | E122: 1
B123: 42 | C123: 42 | D123: 2 | E123: 1
B124: 48 | C124: 42 | D124: 2 | E124: 1
B125: 54 | C125: 42 | D125: 2 | E125: 1
B126: 60 | C126: 42 | D126: 2 | E126: 1
B127: 66 | C127: 42 | D127: 2 | E127: 1
B128: 72 | C128: 42 | D128: 2 | E128: 1
B129: 78 | C129: 42 | D129: 2 | E129: 2
B130: 84 | C130: 42 | D130: 2 | E130: 2
B131: 90 | C131: 42 | D131: 2 | E131: 2
B132: 96 | C132: 42 | D132: 2 | E132: 2
B133: 102 | C133: 42 | D133: 2 | E133: 2
B134: 108 | C134: 42 | D134: 2 | E134: 2
B135: 114 | C135: 42 | D135: 2 | E135: 2
B136: 120 | C136: 42 | D136: 2 | E136: 2
B137: 12 | C137: 48 | D137: 2 | E137: 0
B138: =B137+6 -> 18 | C138: 48 | D138: 2 | E138: 1
B139: 24 | C139: 48 | D139: 2 | E139: 1
B140: 30 | C140: 48 | D140: 2 | E140: 1
B141: 36 | C141: 48 | D141: 2 | E141: 1
B142: 42 | C142: 48 | D142: 2 | E142: 1
B143: 48 | C143: 48 | D143: 2 | E143: 1
B144: 54 | C144: 48 | D144: 2 | E144: 1
B145: 60 | C145: 48 | D145: 2 | E145: 1
B146: 66 | C146: 48 | D146: 2 | E146: 1
B147: 72 | C147: 48 | D147: 2 | E147: 2
B148: 78 | C148: 48 | D148: 2 | E148: 2
B149: 84 | C149: 48 | D149: 2 | E149: 2
B150: 90 | C150: 48 | D150: 2 | E150: 2
B151: 96 | C151: 48 | D151: 2 | E151: 2
B152: 102 | C152: 48 | D152: 2 | E152: 2
B153: 108 | C153: 48 | D153: 2 | E153: 2
B154: 12 | C154: 54 | D154: 1 | E154: 0
B155: =B154+6 -> 18 | C155: 54 | D155: 2 | E155: 1
B156: 24 | C156: 54 | D156: 2 | E156: 1
B157: 30 | C157: 54 | D157: 2 | E157: 1
B158: 36 | C158: 54 | D158: 2 | E158: 1
B159: 42 | C159: 54 | D159: 2 | E159: 1
B160: 48 | C160: 54 | D160: 2 | E160: 1
B161: 54 | C161: 54 | D161: 2 | E161: 1
B162: 60 | C162: 54 | D162: 2 | E162: 1
B163: 66 | C163: 54 | D163: 2 | E163: 2
B164: 72 | C164: 54 | D164: 2 | E164: 2
B165: 78 | C165: 54 | D165: 2 | E165: 2
B166: 84 | C166: 54 | D166: 2 | E166: 2
B167: 90 | C167: 54 | D167: 2 | E167: 2
B168: 96 | C168: 54 | D168: 2 | E168: 2
B169: 12 | C169: 60 | D169: 1 | E169: 0
B170: =B169+6 -> 18 | C170: 60 | D170: 2 | E170: 1
B171: 24 | C171: 60 | D171: 2 | E171: 1
B172: 30 | C172: 60 | D172: 2 | E172: 1
B173: 36 | C173: 60 | D173: 2 | E173: 1
B174: 42 | C174: 60 | D174: 2 | E174: 1
B175: 48 | C175: 60 | D175: 2 | E175: 1
B176: 54 | C176: 60 | D176: 2 | E176: 1
B177: 60 | C177: 60 | D177: 2 | E177: 2
B178: 66 | C178: 60 | D178: 2 | E178: 2
B179: 72 | C179: 60 | D179: 2 | E179: 2
B180: 78 | C180: 60 | D180: 2 | E180: 2
B181: 84 | C181: 60 | D181: 2 | E181: 2
B182: 90 | C182: 60 | D182: 2 | E182: 2
B183: 12 | C183: 66 | D183: 1 | E183: 0
B184: =B183+6 -> 18 | C184: 66 | D184: 2 | E184: 2
B185: 24 | C185: 66 | D185: 2 | E185: 2
B186: 30 | C186: 66 | D186: 2 | E186: 2
B187: 36 | C187: 66 | D187: 2 | E187: 2
B188: 42 | C188: 66 | D188: 2 | E188: 2
B189: 48 | C189: 66 | D189: 2 | E189: 2
B190: 54 | C190: 66 | D190: 2 | E190: 2
B191: 60 | C191: 66 | D191: 2 | E191: 2
B192: 66 | C192: 66 | D192: 2 | E192: 2
B193: 72 | C193: 66 | D193: 2 | E193: 2
B194: 78 | C194: 66 | D194: 2 | E194: 2
B195: 84 | C195: 66 | D195: 2 | E195: 2
B196: 90 | C196: 66 | D196: 2 | E196: 2
B197: 12 | C197: 72 | D197: 2 | E197: 2
B198: =B197+6 -> 18 | C198: 72 | D198: 2 | E198: 2
B199: 24 | C199: 72 | D199: 2 | E199: 2
B200: 30 | C200: 72 | D200: 2 | E200: 2
B201: 36 | C201: 72 | D201: 2 | E201: 2
... 211 more rows

Sheet POSTS30 (hidden)
B2: 3.0# POSTS
B3: HEIGHT | C3: LENGTH | D3: V-POST | E3: K-POST
B4: INCH
B5: 12 | C5: 12 | D5: 1 | E5: 0
B6: 18 | C6: 12 | D6: 1 | E6: 0
B7: 24 | C7: 12 | D7: 1 | E7: 0
B8: 30 | C8: 12 | D8: 1 | E8: 0
B9: 36 | C9: 12 | D9: 2 | E9: 0
B10: 42 | C10: 12 | D10: 2 | E10: 0
B11: 48 | C11: 12 | D11: 2 | E11: 0
B12: 54 | C12: 12 | D12: 2 | E12: 0
B13: 60 | C13: 12 | D13: 2 | E13: 0
B14: 66 | C14: 12 | D14: 2 | E14: 0
B15: 72 | C15: 12 | D15: 2 | E15: 1
B16: 78 | C16: 12 | D16: 2 | E16: 1
B17: 84 | C17: 12 | D17: 2 | E17: 1
B18: 90 | C18: 12 | D18: 2 | E18: 1
B19: 96 | C19: 12 | D19: 2 | E19: 1
B20: 102 | C20: 12 | D20: 2 | E20: 1
B21: 108 | C21: 12 | D21: 2 | E21: 1
B22: 114 | C22: 12 | D22: 2 | E22: 1
B23: 120 | C23: 12 | D23: 2 | E23: 1
B24: 126 | C24: 12 | D24: 2 | E24: 1
B25: 132 | C25: 12 | D25: 2 | E25: 1
B26: 138 | C26: 12 | D26: 2 | E26: 1
B27: 144 | C27: 12 | D27: 2 | E27: 1
B28: 150 | C28: 12 | D28: 2 | E28: 1
B29: 12 | C29: 18 | D29: 1 | E29: 0
B30: 18 | C30: 18 | D30: 1 | E30: 0
B31: 24 | C31: 18 | D31: 1 | E31: 0
B32: 30 | C32: 18 | D32: 2 | E32: 0
B33: 36 | C33: 18 | D33: 2 | E33: 0
B34: 42 | C34: 18 | D34: 2 | E34: 0
B35: 48 | C35: 18 | D35: 2 | E35: 1
B36: 54 | C36: 18 | D36: 2 | E36: 1
B37: 60 | C37: 18 | D37: 2 | E37: 1
B38: 66 | C38: 18 | D38: 2 | E38: 1
B39: 72 | C39: 18 | D39: 2 | E39: 1
B40: 78 | C40: 18 | D40: 2 | E40: 1
B41: 84 | C41: 18 | D41: 2 | E41: 1
B42: 90 | C42: 18 | D42: 2 | E42: 1
B43: 96 | C43: 18 | D43: 2 | E43: 1
B44: 102 | C44: 18 | D44: 2 | E44: 1
B45: 108 | C45: 18 | D45: 2 | E45: 1
B46: 114 | C46: 18 | D46: 2 | E46: 1
B47: 120 | C47: 18 | D47: 2 | E47: 1
B48: 126 | C48: 18 | D48: 2 | E48: 1
B49: 132 | C49: 18 | D49: 2 | E49: 1
B50: 138 | C50: 18 | D50: 2 | E50: 2
B51: 144 | C51: 18 | D51: 2 | E51: 2
B52: 150 | C52: 18 | D52: 2 | E52: 2
B53: 12 | C53: 24 | D53: 1 | E53: 0
B54: 18 | C54: 24 | D54: 1 | E54: 0
B55: 24 | C55: 24 | D55: 2 | E55: 0
B56: 30 | C56: 24 | D56: 2 | E56: 0
B57: 36 | C57: 24 | D57: 2 | E57: 0
B58: 42 | C58: 24 | D58: 2 | E58: 1
B59: 48 | C59: 24 | D59: 2 | E59: 1
B60: 54 | C60: 24 | D60: 2 | E60: 1
B61: 60 | C61: 24 | D61: 2 | E61: 1
B62: 66 | C62: 24 | D62: 2 | E62: 1
B63: 72 | C63: 24 | D63: 2 | E63: 1
B64: 78 | C64: 24 | D64: 2 | E64: 1
B65: 84 | C65: 24 | D65: 2 | E65: 1
B66: 90 | C66: 24 | D66: 2 | E66: 1
B67: 96 | C67: 24 | D67: 2 | E67: 1
B68: 102 | C68: 24 | D68: 2 | E68: 1
B69: 108 | C69: 24 | D69: 2 | E69: 1
B70: 114 | C70: 24 | D70: 2 | E70: 2
B71: 120 | C71: 24 | D71: 2 | E71: 2
B72: 126 | C72: 24 | D72: 2 | E72: 2
B73: 132 | C73: 24 | D73: 2 | E73: 2
B74: 138 | C74: 24 | D74: 2 | E74: 2
B75: 144 | C75: 24 | D75: 2 | E75: 2
B76: 150 | C76: 24 | D76: 2 | E76: 2
B77: 12 | C77: 30 | D77: 1 | E77: 0
B78: 18 | C78: 30 | D78: 2 | E78: 0
B79: 24 | C79: 30 | D79: 2 | E79: 0
B80: 30 | C80: 30 | D80: 2 | E80: 0
B81: 36 | C81: 30 | D81: 2 | E81: 1
B82: 42 | C82: 30 | D82: 2 | E82: 1
B83: 48 | C83: 30 | D83: 2 | E83: 1
B84: 54 | C84: 30 | D84: 2 | E84: 1
B85: 60 | C85: 30 | D85: 2 | E85: 1
B86: 66 | C86: 30 | D86: 2 | E86: 1
B87: 72 | C87: 30 | D87: 2 | E87: 1
B88: 78 | C88: 30 | D88: 2 | E88: 1
B89: 84 | C89: 30 | D89: 2 | E89: 1
B90: 90 | C90: 30 | D90: 2 | E90: 1
B91: 96 | C91: 30 | D91: 2 | E91: 1
B92: 102 | C92: 30 | D92: 2 | E92: 2
B93: 108 | C93: 30 | D93: 2 | E93: 2
B94: 114 | C94: 30 | D94: 2 | E94: 2
B95: 120 | C95: 30 | D95: 2 | E95: 2
B96: 126 | C96: 30 | D96: 2 | E96: 2
B97: 132 | C97: 30 | D97: 2 | E97: 2
B98: 138 | C98: 30 | D98: 2 | E98: 2
B99: 144 | C99: 30 | D99: 2 | E99: 2
B100: 12 | C100: 36 | D100: 2 | E100: 0
B101: 18 | C101: 36 | D101: 2 | E101: 0
B102: 24 | C102: 36 | D102: 2 | E102: 0
B103: 30 | C103: 36 | D103: 2 | E103: 1
B104: 36 | C104: 36 | D104: 2 | E104: 1
B105: 42 | C105: 36 | D105: 2 | E105: 1
B106: 48 | C106: 36 | D106: 2 | E106: 1
B107: 54 | C107: 36 | D107: 2 | E107: 1
B108: 60 | C108: 36 | D108: 2 | E108: 1
B109: 66 | C109: 36 | D109: 2 | E109: 1
B110: 72 | C110: 36 | D110: 2 | E110: 1
B111: 78 | C111: 36 | D111: 2 | E111: 1
B112: 84 | C112: 36 | D112: 2 | E112: 1
B113: 90 | C113: 36 | D113: 2 | E113: 2
B114: 96 | C114: 36 | D114: 2 | E114: 2
B115: 102 | C115: 36 | D115: 2 | E115: 2
B116: 108 | C116: 36 | D116: 2 | E116: 2
B117: 114 | C117: 36 | D117: 2 | E117: 2
B118: 120 | C118: 36 | D118: 2 | E118: 2
B119: 126 | C119: 36 | D119: 2 | E119: 2
B120: 132 | C120: 36 | D120: 2 | E120: 2
B121: 12 | C121: 42 | D121: 2 | E121: 0
B122: 18 | C122: 42 | D122: 2 | E122: 0
B123: 24 | C123: 42 | D123: 2 | E123: 1
B124: 30 | C124: 42 | D124: 2 | E124: 1
B125: 36 | C125: 42 | D125: 2 | E125: 1
B126: 42 | C126: 42 | D126: 2 | E126: 1
B127: 48 | C127: 42 | D127: 2 | E127: 1
B128: 54 | C128: 42 | D128: 2 | E128: 1
B129: 60 | C129: 42 | D129: 2 | E129: 1
B130: 66 | C130: 42 | D130: 2 | E130: 1
B131: 72 | C131: 42 | D131: 2 | E131: 1
B132: 78 | C132: 42 | D132: 2 | E132: 1
B133: 84 | C133: 42 | D133: 2 | E133: 2
B134: 90 | C134: 42 | D134: 2 | E134: 2
B135: 96 | C135: 42 | D135: 2 | E135: 2
B136: 102 | C136: 42 | D136: 2 | E136: 2
B137: 108 | C137: 42 | D137: 2 | E137: 2
B138: 114 | C138: 42 | D138: 2 | E138: 2
B139: 120 | C139: 42 | D139: 2 | E139: 2
B140: 12 | C140: 48 | D140: 2 | E140: 0
B141: 18 | C141: 48 | D141: 2 | E141: 0
B142: 24 | C142: 48 | D142: 2 | E142: 1
B143: 30 | C143: 48 | D143: 2 | E143: 1
B144: 36 | C144: 48 | D144: 2 | E144: 1
B145: 42 | C145: 48 | D145: 2 | E145: 1
B146: 48 | C146: 48 | D146: 2 | E146: 1
B147: 54 | C147: 48 | D147: 2 | E147: 1
B148: 60 | C148: 48 | D148: 2 | E148: 1
B149: 66 | C149: 48 | D149: 2 | E149: 1
B150: 72 | C150: 48 | D150: 2 | E150: 1
B151: 78 | C151: 48 | D151: 2 | E151: 2
B152: 84 | C152: 48 | D152: 2 | E152: 2
B153: 90 | C153: 48 | D153: 2 | E153: 2
B154: 96 | C154: 48 | D154: 2 | E154: 2
B155: 102 | C155: 48 | D155: 2 | E155: 2
B156: 108 | C156: 48 | D156: 2 | E156: 2
B157: 12 | C157: 54 | D157: 2 | E157: 0
B158: 18 | C158: 54 | D158: 2 | E158: 1
B159: 24 | C159: 54 | D159: 2 | E159: 1
B160: 30 | C160: 54 | D160: 2 | E160: 1
B161: 36 | C161: 54 | D161: 2 | E161: 1
B162: 42 | C162: 54 | D162: 2 | E162: 1
B163: 48 | C163: 54 | D163: 2 | E163: 1
B164: 54 | C164: 54 | D164: 2 | E164: 1
B165: 60 | C165: 54 | D165: 2 | E165: 1
B166: 66 | C166: 54 | D166: 2 | E166: 1
B167: 72 | C167: 54 | D167: 2 | E167: 2
B168: 78 | C168: 54 | D168: 2 | E168: 2
B169: 84 | C169: 54 | D169: 2 | E169: 2
B170: 90 | C170: 54 | D170: 2 | E170: 2
B171: 96 | C171: 54 | D171: 2 | E171: 2
B172: 102 | C172: 54 | D172: 2 | E172: 2
B173: 12 | C173: 60 | D173: 2 | E173: 0
B174: 18 | C174: 60 | D174: 2 | E174: 1
B175: 24 | C175: 60 | D175: 2 | E175: 1
B176: 30 | C176: 60 | D176: 2 | E176: 1
B177: 36 | C177: 60 | D177: 2 | E177: 1
B178: 42 | C178: 60 | D178: 2 | E178: 1
B179: 48 | C179: 60 | D179: 2 | E179: 1
B180: 54 | C180: 60 | D180: 2 | E180: 1
B181: 60 | C181: 60 | D181: 2 | E181: 1
B182: 66 | C182: 60 | D182: 2 | E182: 2
B183: 72 | C183: 60 | D183: 2 | E183: 2
B184: 78 | C184: 60 | D184: 2 | E184: 2
B185: 84 | C185: 60 | D185: 2 | E185: 2
B186: 90 | C186: 60 | D186: 2 | E186: 2
B187: 96 | C187: 60 | D187: 2 | E187: 2
B188: 12 | C188: 66 | D188: 3 | E188: 0
B189: 18 | C189: 66 | D189: 2 | E189: 2
B190: 24 | C190: 66 | D190: 2 | E190: 2
B191: 30 | C191: 66 | D191: 2 | E191: 2
B192: 36 | C192: 66 | D192: 2 | E192: 2
B193: 42 | C193: 66 | D193: 2 | E193: 2
B194: 48 | C194: 66 | D194: 2 | E194: 2
B195: 54 | C195: 66 | D195: 2 | E195: 2
B196: 60 | C196: 66 | D196: 2 | E196: 2
B197: 66 | C197: 66 | D197: 2 | E197: 2
B198: 72 | C198: 66 | D198: 2 | E198: 2
B199: 78 | C199: 66 | D199: 2 | E199: 2
B200: 84 | C200: 66 | D200: 2 | E200: 2
B201: 90 | C201: 66 | D201: 2 | E201: 2
... 231 more rows

Sheet ESGNPOSTS (hidden)
B2: E SIGN POST SPACING
B3: WIDTH | C3: 2 POSTS | D3: 3 POSTS | E3: 4 POSTS
B4: INCH
B5: 48 | C5: 30
B6: =B5+6 -> 54 | C6: 30
B7: =B6+6 -> 60 | C7: 36
B8: 66 | C8: 36
B9: 72 | C9: 42
B10: 78 | C10: 48
B11: 84 | C11: 48
B12: 90 | C12: 54
B13: 96 | C13: 54
B14: 102 | D14: 36
B15: 108 | D15: 36
B16: 114 | D16: 42
B17: 120 | D17: 42
B18: 126 | D18: 42
B19: 132 | D19: 48
B20: 138 | D20: 48
B21: 144 | D21: 54
B22: 150 | E22: 42
B23: 156 | E23: 42
B24: 162 | E24: 42
B25: 168 | E25: 42
B26: 174 | E26: 48
B27: 180 | E27: 48

Sheet POSTSPACING (hidden)
B2: SIGN POST SPACING
B3: WIDTH | C3: 2 POSTS | D3: 3 POSTS | E3: 4 POSTS
B4: INCH
B5: 36 | C5: 24
B6: =B5+6 -> 42 | C6: 30
B7: 48 | C7: 30
B8: 54 | C8: 30
B9: 60 | C9: 36
B10: 66 | C10: 42
B11: 72 | C11: 42
B12: 78 | C12: 54
B13: 84 | C13: 54
B14: 90 | C14: 54
B15: 96 | C15: 54
B16: 102 | C16: 60 | D16: 45
B17: 108 | C17: 66 | D17: 45
B18: 114 | C18: 66 | D18: 45
B19: 120 | C19: 72 | D19: 45
B20: 126 | C20: 78 | D20: 45
B21: 132 | C21: 78 | D21: 45
B22: 138 | C22: 78 | D22: 48
B23: 144 | C23: 90 | D23: 51 | E23: 45
B24: 150 | C24: 90 | D24: 54 | E24: 45
B25: 156 | C25: 90 | D25: 54 | E25: 45
B26: 162 | C26: 96 | D26: 57 | E26: 48
B27: 168 | C27: 96 | D27: 60 | E27: 48
B28: 174 | C28: 102 | D28: 63 | E28: 54
B29: 180 | C29: 108 | D29: 63 | E29: 54

Sheet PICILINKS (hidden)
A1: Rev | B1: Item_Number | C1: Short_Description | D1: Units_Code
B2: 2102.501/00010 | C2: PAVEMENT MARKING REMOVAL | D2: S F
A3: F | B3: 2104.509/00170 | C3: REMOVE DELINEATOR | D3: EACH | E3: DELREM
A4: F | B4: 2104.509/00180 | C4: REMOVE MARKER | D4: EACH
B5: 2104.509/00199 | C5: REMOVE SIGN | D5: EACH
B6: 2104.509/00200 | C6: REMOVE SIGN TYPE A (BRIDGE MOUNTED) | D6: EACH
A7: x | B7: 2104.509/00201 | C7: REMOVE SIGN TYPE A | D7: EACH | E7: AREM | F7: ABASRM
A8: F | B8: 2104.509/00203 | C8: REMOVE SIGN TYPE C | D8: EACH
A9: F | B9: 2104.509/00205 | C9: REMOVE SIGN TYPE D | D9: EACH | E9: DREM
B10: 2104.509/00206 | C10: REMOVE SIGN TYPE EA | D10: EACH
B11: 2104.509/00207 | C11: REMOVE SIGN TYPE EO | D11: EACH
B12: 2104.509/00208 | C12: REMOVE SIGN TYPE OH (BRIDGE MOUNTED) | D12: EACH
B13: 2104.509/00209 | C13: REMOVE SIGN TYPE OH | D13: EACH
B14: 2104.509/00210 | C14: REMOVE SIGN TYPE D (BRIDGE MOUNTED) | D14: EACH
B15: 2104.509/00220 | C15: REMOVE SIGN TYPE SPECIAL | D15: EACH | E15: AEXTRM
B16: 2104.509/00250 | C16: REMOVE SIGN PANEL OVERLAY TYPE A | D16: EACH
B17: 2104.509/00251 | C17: REMOVE SIGN PANEL OVERLAY TYPE OH | D17: EACH
B18: 2104.509/00252 | C18: REMOVE SIGN PANEL OVERLAY TYPE EA | D18: EACH
B19: 2104.509/00253 | C19: REMOVE SIGN PANEL OVERLAY TYPE EO | D19: EACH
B20: 2104.509/00410 | C20: REMOVE SIGN BASE | D20: EACH
B21: 2104.509/00411 | C21: REMOVE SIGN BASE-TYPE OH | D21: EACH
B22: 2104.509/00412 | C22: REMOVE SIGN BASE-TYPE A | D22: EACH | E22: ABASRM
B23: 2104.509/00497 | C23: REMOVE SIGN PANEL TYPE C | D23: EACH
B24: 2104.509/00498 | C24: REMOVE SIGN PANEL TYPE D | D24: EACH
B25: 2104.509/00499 | C25: REMOVE SIGN PANEL TYPE A | D25: EACH | F25: AEXTRM
B26: 2104.509/00500 | C26: REMOVE SIGN PANEL TYPE OH | D26: EACH
B27: 2104.509/00660 | C27: REMOVE HISTORIC PLAQUE | D27: EACH
B28: 2104.509/00700 | C28: REMOVE WOOD INFORMATION SIGN | D28: EACH
B29: 2104.523/00067 | C29: SALVAGE HISTORIC MARKER | D29: EACH
B30: 2104.523/00068 | C30: SALVAGE HISTORIC PLAQUE | D30: EACH
B31: 2104.523/00069 | C31: SALVAGE DEDICATION PLAQUE | D31: EACH
A32: F | B32: 2104.523/00072 | C32: SALVAGE MARKER | D32: EACH | E32: DELS&I
A33: F | B33: 2104.523/00075 | C33: SALVAGE DELINEATOR | D33: EACH | E33: DELS&I
B34: 2104.523/00078 | C34: SALVAGE GUIDE POST TYPE A | D34: EACH
B35: 2104.523/00080 | C35: SALVAGE GUIDE POST TYPE B | D35: EACH
B36: 2104.523/00475 | C36: SALVAGE PED PUSH BUTTON AND SIGN | D36: EACH
B37: 2104.523/00530 | C37: SALVAGE R10-10 SIGN | D37: EACH
B38: 2104.523/00531 | C38: SALVAGE R11-2 SIGN | D38: EACH
B39: 2104.523/00537 | C39: SALVAGE SIGN SUPPORT | D39: EACH
B40: 2104.523/00538 | C40: SALVAGE COMMERCIAL SIGN | D40: EACH
B41: 2104.523/00539 | C41: SALVAGE SIGN | D41: EACH
A42: x | B42: 2104.523/00540 | C42: SALVAGE SIGN TYPE A | D42: EACH | E42: ASAL | F42: AS&IHP
A43: x | B43: 2104.523/00543 | C43: SALVAGE SIGN TYPE C | D43: EACH | E43: CS&I | F43: CSAL
A44: x | B44: 2104.523/00544 | C44: SALVAGE SIGN TYPE D | D44: EACH | E44: DS&I | F44: DSAL
B45: 2104.523/00547 | C45: SALVAGE SIGN TYPE EA | D45: EACH
B46: 2104.523/00548 | C46: SALVAGE SIGN TYPE EO | D46: EACH
B47: 2104.523/00549 | C47: SALVAGE SIGN TYPE OH (BR MOUNTED) | D47: EACH
B48: 2104.523/00550 | C48: SALVAGE SIGN TYPE OH | D48: EACH
B49: 2104.523/00560 | C49: SALVAGE SIGN TYPE SPECIAL | D49: EACH
B50: 2104.523/00593 | C50: SALVAGE SIGN PANEL TYPE A | D50: EACH | E50: ASPNLSAL | F50: ASPNLIN | G50: ASPNLSAL
B51: 2104.523/00594 | C51: SALVAGE SIGN PANEL TYPE A (EXTRUD) | D51: EACH | E51: AEXTSA | F51: AEXTRM | G51: ASPNLSAL
B52: 2104.523/00595 | C52: SALVAGE SIGN PANEL TYPE A (FLT SHT) | D52: EACH
B53: 2104.523/00598 | C53: SALVAGE SIGN PANEL TYPE EA | D53: EACH
B54: 2104.523/00600 | C54: SALVAGE SIGN PANEL TYPE EO | D54: EACH
B55: 2104.523/00601 | C55: SALVAGE SIGN PANEL TYPE OH | D55: EACH
B56: 2104.523/00605 | C56: SALVAGE SIGN PANEL TP OH (FLT SHT) | D56: EACH
B57: 2104.523/00606 | C57: SALVAGE SIGN PANEL TYPE C | D57: EACH
B58: 2104.523/00608 | C58: SALVAGE SIGN PANEL TYPE D | D58: EACH
B59: 2104.523/00610 | C59: SALVAGE SIGN PANEL TYPE D (BR MTD) | D59: EACH
B60: 2104.523/00652 | C60: SALVAGE SIGN POST TYPE B | D60: EACH
B61: 2104.602/00025 | C61: RELOCATE COMMERCIAL SIGN | D61: EACH
B62: 2232.602/00010 | C62: MILLED RUMBLE STRIPS | D62: EACH
B63: 2232.603/00025 | C63: MILLED RUMBLE STRIPS | D63: L F
B64: 2232.603/00030 | C64: MILLED RUMBLE STRIPS-INTERMITTENT | D64: L F
B65: 2232.603/00035 | C65: MILLED RUMBLE STRIPS-CENTERLINE | D65: L F
B66: 2554.602/00080 | C66: REPLACE DELINEATOR TYPE SPEC (NEW) | D66: EACH
B67: 2554.602/00081 | C67: REPLACE DELINEATOR TYPE SPEC(SALV) | D67: EACH
B68: 2563.601/00210 | C68: STOP SIGN RELOCATION | D68: LS
B69: 2563.601/00220 | C69: SIGN REMOVAL | D69: LS
B70: 2563.613/01200 | C70: SIGNS BY SQUARE INCH | D70: UDAY
B71: 2563.613/01220 | C71: 24"X24" SIGN | D71: UDAY
B72: 2563.613/01221 | C72: 24"X24" SIGN WITH SUPPORTS | D72: UDAY
B73: 2563.613/01441 | C73: 4'X4' SIGN WITH SUPPORTS | D73: UDAY
B74: 2563.618/00011 | C74: CONSTRUCTION SIGN-SPECIAL | D74: S F
B75: 2563.618/00024 | C75: FURNISH, INSTALL & REMOVE TYPE D SIGNS | D75: S F
B76: 2563.618/00030 | C76: SIGN PANEL COVER | D76: S F
B77: 2564.511/00010 | C77: CONCRETE FOOTINGS (TYPE OH SPREAD) | D77: C Y
B78: 2564.511/00011 | C78: CONCRETE FOOTINGS (TYPE A SIGNS) | D78: C Y
B79: 2564.511/00012 | C79: CONCRETE FOOTINGS (TYPE OH SHAFT) | D79: C Y
B80: 2564.511/00013 | C80: CONCRETE FOOTINGS DESIGN SPECIAL | D80: C Y
B81: 2564.515/00010 | C81: SIGN SUPPORT | D81: EACH
B82: 2564.515/00011 | C82: SIGN SUPPORT TYPE A | D82: EACH
B83: 2564.515/00020 | C83: SIGN SUPPORT SIGN OH | D83: EACH
B84: 2564.515/00030 | C84: SIGN SUPPORT CANTILEVER | D84: EACH
A85: x | B85: 2564.522/00111 | C85: STRUCT STEEL-POSTS FOR TYPE A SIGNS | D85: LB | E85: AS&IHP | F85: ASIGNHP
B86: 2564.522/00121 | C86: STRUCT STEEL-POSTS FOR OH SIGNS (A) | D86: LB
B87: 2564.522/00122 | C87: STRUCT STEEL-POSTS FOR OH SIGNS (B) | D87: LB
B88: 2564.522/00221 | C88: STRUCT STEEL-TRUSSES FOR OH SIGNS (A) | D88: LB
B89: 2564.522/00222 | C89: STRUCT STEEL-TRUSSES FOR OH SIGNS (B) | D89: LB
B90: 2564.522/00225 | C90: STR STEEL-TRUSSES FOR OH SIGNS BR MTD | D90: LB
B91: 2564.522/00226 | C91: STR STEEL-TRUS FOR OH SIGNS (A) BR MTD | D91: LB
B92: 2564.522/00228 | C92: STR STEEL-TRUSSES FOR A SIGNS BR MTD | D92: LB
B93: 2564.522/00251 | C93: STR STEEL-SIGN CMS 100 A (BR MTD) | D93: LB
B94: 2564.522/00322 | C94: STR STEEL-WLKWY SPRT FOR OH SIGNS (B) | D94: LB
B95: 2564.522/00422 | C95: STR STEEL-WLKWY GRTNG FOR OH SIGNS (B) | D95: LB
B96: 2564.522/00522 | C96: STR STEEL-PANEL MT PST FOR OH SIGNS (B) | D96: LB
B97: 2564.522/00530 | C97: STR STEEL-SIGN BRKT OH SIGNS (B) | D97: LB
A98: x | B98: 2564.524/00010 | C98: MODIFY POST | D98: EACH | E98: APSTMOD
B99: 2564.531/00105 | C99: SIGN PANELS TYPE SPECIAL | D99: S F
A100: x | B100: 2564.531/00110 | C100: SIGN PANELS TYPE A | D100: S F | E100: ASPNL | F100: OL | G100: AEXT | H100: ASIGNHP
A101: x | B101: 2564.531/00111 | C101: SIGN PANELS TYPE A (EXTRUDED) | D101: S F
A102: x | B102: 2564.531/00112 | C102: SIGN PANELS TYPE A (FLAT SHEET) | D102: S F
A103: x | B103: 2564.531/00130 | C103: SIGN PANELS TYPE C | D103: S F | E103: CSIGN
A104: x | B104: 2564.531/00140 | C104: SIGN PANELS TYPE D | D104: S F | E104: DSIGN | F104: OL
B105: 2564.531/00141 | C105: SIGN PANELS TYPE D-SIGNALS | D105: S F
B106: 2564.531/00142 | C106: SIGN PANELS TYPE D-SIGNAL SYS A | D106: S F
B107: 2564.531/00143 | C107: SIGN PANELS TYPE D-SIGNAL SYS B | D107: S F
B108: 2564.531/00144 | C108: SIGN PANELS TYPE D-SIGNAL SYS C | D108: S F
B109: 2564.531/00145 | C109: SIGN PANELS TYPE D-SIGNAL SYS D | D109: S F
B110: 2564.531/00146 | C110: SIGN PANELS TYPE D-SIGNAL SYS E | D110: S F
B111: 2564.531/00149 | C111: SIGN PANELS TYPE D-SIGNAL SYS I | D111: S F
B112: 2564.531/00151 | C112: SIGN PANELS TYPE EA | D112: S F
B113: 2564.531/00158 | C113: SIGN PANELS TYPE EO | D113: S F
B114: 2564.531/00159 | C114: SIGN PANELS TYPE EO (EXTRUDED) | D114: S F
B115: 2564.531/00160 | C115: SIGN PANELS TYPE EO (LOUVERED) | D115: S F
B116: 2564.531/00189 | C116: SIGN PANELS TYPE OVERLAY | D116: S F | E116: OL | F116: APSTCLP
B117: 2564.531/00190 | C117: SIGN PANELS TYPE OH | D117: S F | E117: OL
B118: 2564.531/00191 | C118: SIGN PANELS TYPE OH (EXTRUDED) | D118: S F
B119: 2564.531/00192 | C119: SIGN PANELS TYPE OH (LOUVERED) | D119: S F
B120: 2564.531/00193 | C120: SIGN PANELS TYPE OH (FLAT SHEET) | D120: S F
B121: 2564.533/00130 | C121: FURNISH SIGN PANELS TYPE C | D121: S F
B122: 2564.533/00140 | C122: FURNISH SIGN PANELS TYPE D | D122: S F
B123: 2564.533/00190 | C123: FURNISH SIGN PANELS TYPE OVERLAY | D123: S F
B124: 2564.533/00195 | C124: FURNISH SIGN PANELS TYPE OH | D124: S F
A125: x | B125: 2564.534/00010 | C125: SAW SIGN PANELS | D125: L F
B126: 2564.534/00011 | C126: SAW SIGN PANELS TYPE A | D126: L F | E126: ASPNLSAW
B127: 2564.534/00016 | C127: SAW SIGN PANELS TYPE OH | D127: L F
A128: x | B128: 2564.534/00017 | C128: SAW SIGN PANELS TYPE OH (EXTRUDED) | D128: L F
A129: x | B129: 2564.535/00010 | C129: SIGN PANEL OVERLAY TYPE A | D129: S F | E129: ASPNLOL | F129: APSTCLP | G129: APSTMOD | H129: OL
B130: 2564.535/00100 | C130: SIGN PANEL OVERLAY TYPE OH | D130: S F | E130: OL
B131: 2564.535/00110 | C131: SIGN PANEL OVERLAY TYPE EO | D131: S F
B132: 2564.535/00120 | C132: SIGN PANEL OVERLAY TYPE EA | D132: S F
B133: 2564.536/00010 | C133: INSTALL SIGN PANEL | D133: EACH
A134: x | B134: 2564.536/00011 | C134: INSTALL SIGN PANEL TYPE A | D134: EACH | E134: ASPNLIN
A135: x | B135: 2564.536/00013 | C135: INSTALL SIGN PANEL TYPE C | D135: EACH
B136: 2564.536/00014 | C136: INSTALL SIGN PANEL TYPE D | D136: EACH
B137: 2564.536/00020 | C137: INSTALL SIGN PANEL TYPE OH | D137: EACH
B138: 2564.536/00030 | C138: INSTALL SIGN PANEL TYPE EO | D138: EACH
A139: x | B139: 2564.537/00010 | C139: INSTALL SIGN TYPE A | D139: EACH | E139: AS&IHP
A140: x | B140: 2564.537/00013 | C140: INSTALL SIGN TYPE C | D140: EACH | E140: CS&I | F140: CINS
A141: x | B141: 2564.537/00014 | C141: INSTALL SIGN TYPE D | D141: EACH | E141: DS&I | F141: DINS
B142: 2564.537/00020 | C142: INSTALL SIGN TYPE OH | D142: EACH
B143: 2564.537/00021 | C143: INSTALL SIGN TYPE OH (BR MOUNT) | D143: EACH
B144: 2564.537/00022 | C144: INSTALL SIGN TYPE CMS (BR MOUNT) | D144: EACH
B145: 2564.537/00030 | C145: INSTALL SIGN TYPE SPECIAL | D145: EACH
B146: 2564.537/00040 | C146: INSTALL SIGN TYPE EO | D146: EACH
B147: 2564.537/00045 | C147: INSTALL SIGN TYPE EA | D147: EACH
B148: 2564.538/00009 | C148: SIGN LEGEND REVISION | D148: EACH
B149: 2564.538/00010 | C149: SIGN LEGEND REVISION TYPE EA | D149: EACH
B150: 2564.538/00015 | C150: SIGN LEGEND REVISION TYPE EO | D150: EACH
B151: 2564.538/00020 | C151: SIGN LEGEND REVISION TYPE OH | D151: EACH
B152: 2564.538/00021 | C152: SIGN LEGEND REVISION TYPE OH-SPECIAL | D152: EACH
B153: 2564.538/00031 | C153: SIGN LEGEND REVISION TYPE A | D153: EACH | E153: ALGNDREV
B154: 2564.538/00034 | C154: SIGN LEGEND REVISION TYPE D | D154: EACH
B155: 2564.539/00010 | C155: OVERHEAD SIGN IDENTIFICATION PLATE | D155: EACH
B156: 2564.540/00010 | C156: EXTEND WALKWAY SUPPORT | D156: EACH
B157: 2564.540/00011 | C157: EXTEND WALKWAY SUPPORT (A) | D157: EACH
B158: 2564.540/00012 | C158: EXTEND WALK SUPPORT (B) | D158: EACH
A159: x | B159: 2564.550/00010 | C159: DELINEATOR | D159: EACH | E159: DELIN
A160: x | B160: 2564.550/00011 | C160: DELINEATOR TYPE SPECIAL | D160: EACH | E160: DELIN
A161: x | B161: 2564.550/00020 | C161: DELINEATOR TYPE ONE TENTH MILE | D161: EACH | E161: DELIN
A162: x | B162: 2564.550/00030 | C162: DELINEATOR TYPE CYLINDER STYLE | D162: EACH | E162: DELIN
A163: x | B163: 2564.550/00040 | C163: DELINEATOR TYPE ALIGNMENT | D163: EACH | E163: DELIN
A164: x | B164: 2564.550/00111 | C164: DELINEATOR TYPE X4-6 | D164: EACH | E164: DELIN
A165: x | B165: 2564.551/00010 | C165: REFERENCE POST MARKER | D165: EACH | E165: RPM
A166: x | B166: 2564.552/00010 | C166: HAZARD MARKER X4-2 | D166: EACH | E166: DELIN
A167: x | B167: 2564.553/00010 | C167: CLEARANCE MARKER X4-4 | D167: EACH | E167: DELIN
A168: x | B168: 2564.554/00010 | C168: SNOW PLOW MARKER X4-5 | D168: EACH | E168: DELIN
A169: x | B169: 2564.555/00010 | C169: END OF ROADWAY MARKER X4-11 | D169: EACH | E169: DELIN
B170: 2564.601/00100 | C170: INTERNALLY LIT SIGNING OH | D170: LS
B171: 2564.601/00101 | C171: INTERNALLY LIT SIGNING OH A | D171: LS
B172: 2564.601/00102 | C172: INTERNALLY LIT SIGNING OH B | D172: LS
B173: 2564.601/00103 | C173: INTERNALLY LIT SIGNING OH C | D173: LS
B174: 2564.601/00104 | C174: INTERNALLY LIT SIGNING OH D | D174: LS
B175: 2564.601/00105 | C175: INTERNALLY LIT SIGNING OH E | D175: LS
B176: 2564.601/00106 | C176: INTERNALLY LIT SIGNING OH F | D176: LS
B177: 2564.601/00107 | C177: INTERNALLY LIT SIGNING OH G | D177: LS
B178: 2564.601/00108 | C178: INTERNALLY LIT SIGNING OH H | D178: LS
B179: 2564.601/00109 | C179: INTERNALLY LIT SIGNING OH I | D179: LS
B180: 2564.601/00110 | C180: INTERNALLY LIT SIGNING OH J | D180: LS
B181: 2564.601/00111 | C181: INTERNALLY LIT SIGNING OH K | D181: LS
B182: 2564.601/00112 | C182: INTERNALLY LIT SIGNING OH L | D182: LS
B183: 2564.602/00001 | C183: INSTALL SIGN COLLAR | D183: EACH
B184: 2564.602/00005 | C184: SIGN COLLAR | D184: EACH
B185: 2564.602/00008 | C185: CONC PEDESTAL EXTENSION DES SPEC | D185: EACH
A186: x | B186: 2564.602/00010 | C186: INSTALL DELINEATOR | D186: EACH | E186: DELS&I
B187: 2564.602/00015 | C187: INSTALL SIGN | D187: EACH
B188: 2564.602/00018 | C188: INSTALL STEEL POST | D188: EACH
B189: 2564.602/00023 | C189: SALV & INST WILDLIFE WARNING REFLECTER | D189: EACH
B190: 2564.602/00024 | C190: SALVAGE AND INSTALL OH SIGNS | D190: EACH
B191: 2564.602/00025 | C191: SALVAGE, MOD & REINSTALL OH SIGN | D191: EACH
B192: 2564.602/00026 | C192: SALVAGE AND REINSTALL OH SIGN | D192: EACH
B193: 2564.602/00027 | C193: SALVAGE, MOD & REINSTALL TYPE A SIGN | D193: EACH | F193: ABASRM | G193: AEXTSA | H193: AEXTRM
B194: 2564.602/00031 | C194: FOUNDATION SPECIAL OH | D194: EACH
B195: 2564.602/00033 | C195: MEDIAN SIGN POST ANCHOR | D195: EACH
B196: 2564.602/00035 | C196: REPAIR SIGN TYPE OH | D196: EACH
B197: 2564.602/00036 | C197: REPAIR SIGN TYPE OH | D197: EACH
B198: 2564.602/00037 | C198: SHORTEN PANEL MOUNTING POST | D198: EACH
B199: 2564.602/00038 | C199: SHORTEN TYPE A SIGN POST | D199: EACH | E199: APSTMOD
B200: 2564.602/00042 | C200: EXTEND TYPE A SIGN POST | D200: EACH | E200: APSTMOD
... 94 more rows

Sheet SIGN CODES
A1: CODE NO | B1: PANEL LEGEND | C1: NOTES
A2: D10-1 | B2: MILE X
A3: D10-2 | B3: MILE XX
A4: D10-3 | B4: MILE XXX
A5: D10-4 | B5: ENHANCED REFERENCE LOCATION
A6: D10-5 | B6: INTERMEDIATE ENHANCED REFERENCE LOCATION
A7: D11-1 | B7: BIKE ROUTE
A8: D12-2M | B8: CAR POOL INFO
A9: D12-4 | B9: EMERGENCY CALL 911
A10: D12-5a | B10: TRAVEL INFO CALL 511
A11: D13-3M | B11: FREEWAY ENTRANCE
A12: D17-2 | B12: TRUCK LANE XX MILES
A13: D18-X1 | B13: ALTERNATE FUELS CORRIDOR
A14: D18-X1P | B14: EV-CHARGING PLAQUE
A15: D1-X1DH | B15: FRONTAGE ROAD DOUBLE ARROW
A16: D1-X1L | B16: FRONTAGE ROAD LEFT
A17: D1-X1R | B17: FRONTAGE ROAD RIGHT
A18: D4-1L | B18: PARKING LEFT
A19: D4-1R | B19: PARKING RIGHT
A20: D4-2L | B20: PARK - RIDE LEFT
A21: D4-2M | B21: PARK - RIDE
A22: D4-2R | B22: PARK - RIDE RIGHT
A23: D5-1 | B23: REST AREA XX MILES
A24: D5-1a | B24: REST AREA NEXT RIGHT
A25: D5-1M | B25: REST AREA XX MILES NEXT REST AREA XX MILES
A26: D5-2 | B26: REST AREA 45 DEG ARROW
A27: D5-2a | B27: REST AREA 45 DEG ARROW
A28: D5-6 | B28: NEXT REST AREA XX MILES
A29: D5-X1L | B29: WAYSIDE REST XX MILES ON LEFT
A30: D5-X1R | B30: WAYSIDE REST XX MILES ON RIGHT
A31: D5-X2L | B31: WAYSIDE REST LEFT
A32: D5-X2R | B32: WAYSIDE REST RIGHT
A33: D6-2ML | B33: SCENIC OVERLOOK XX MILES ON LEFT
A34: D6-2MR | B34: SCENIC OVERLOOK XX MILES ON RIGHT
A35: D6-3ML | B35: SCENIC OVERLOOK LEFT
A36: D6-3MR | B36: SCENIC OVERLOOK RIGHT
A37: D7-X10aL | B37: PARK NAME CANOE LAUNCH XX MILES LEFT
A38: D7-X10aR | B38: PARK NAME CANOE LAUNCH XX MILES RIGHT
A39: D7-X10L | B39: PARK NAME BOAT LAUNCH XX MILES LEFT
A40: D7-X10R | B40: PARK NAME BOAT LAUNCH XX MILES RIGHT
A41: D7-X11L | B41: CITY PARK LEFT
A42: D7-X11R | B42: CITY PARK RIGHT
A43: D7-X11T | B43: CITY PARK AHEAD
A44: D7-X12aL | B44: COUNTY PARK XX MILES LEFT
A45: D7-X12aR | B45: COUNTY PARK XX MILES RIGHT
A46: D7-X12L | B46: COUNTY PARK LEFT
A47: D7-X12R | B47: COUNTY PARK RIGHT
A48: D7-X12T | B48: COUNTY PARK AHEAD
A49: D7-X13L | B49: STATE PARK LEFT
A50: D7-X13R | B50: STATE PARK RIGHT
A51: D7-X13T | B51: STATE PARK AHEAD
A52: D7-X14L | B52: PICNIC GROUNDS LEFT
A53: D7-X14R | B53: PICNIC GROUNDS RIGHT
A54: D7-X14L | B54: PICNIC GROUNDS AHEAD
A55: D7-X15L | B55: COUNTY MUSEUM LEFT
A56: D7-X15R | B56: COUNTY MUSEUM RIGHT
A57: D7-X15T | B57: COUNTY MUSEUM AHEAD
A58: D7-X16L | B58: GOLF COURSE LEFT
A59: D7-X16R | B59: GOLF COURSE RIGHT
A60: D7-X16T | B60: GOLF COURSE AHEAD
A61: D7-X17L | B61: DISC GOLF COURSE LEFT
A62: D7-X17R | B62: DISC GOLF COURSE RIGHT
A63: D7-X17T | B63: DISC GOLF COURSE AHEAD
A64: D7-X18L | B64: COUNTY FAIRGROUND LEFT
A65: D7-X18R | B65: COUNTY FAIRGROUND RIGHT
A66: D7-X18T | B66: COUNTY FAIRGROUND AHEAD
A67: D7-X19L | B67: HIGH SCHOOL LEFT
A68: D7-X19R | B68: HIGH SCHOOL RIGHT
A69: D7-X19T | B69: HIGH SCHOOL AHEAD
A70: D7-X1L | B70: GEOLOGICAL MARKER XX MILES ON LEFT
A71: D7-X1R | B71: GEOLOGICAL MARKER XX MILES ON RIGHT
A72: D7-X20L | B72: INDUSTRIAL PARK LEFT
A73: D7-X20R | B73: INDUSTRIAL PARK RIGHT
A74: D7-X20T | B74: INDUSTRIAL PARK AHEAD
A75: D7-X21L | B75: CAREERFORCE CENTER LEFT
A76: D7-X21R | B76: CAREERFORCE CENTER RIGHT
A77: D7-X21T | B77: CAREERFORCE CENTER AHEAD
A78: D7-X22L | B78: DOWNTOWN LEFT
A79: D7-X22R | B79: DOWNTOWN RIGHT
A80: D7-X22T | B80: DOWNTOWN AHEAD
A81: D7-X23L | B81: BUSINESS DISTRICT LEFT
A82: D7-X23R | B82: BUSINESS DISTRICT RIGHT
A83: D7-X24L | B83: TOWN HALL LEFT
A84: D7-X24R | B84: TOWN HALL RIGHT
A85: D7-X25L | B85: AIRPORT LEFT
A86: D7-X25R | B86: AIRPORT RIGHT
A87: D7-X26L | B87: RECYCLING CENTER LEFT
A88: D7-X26R | B88: RECYCLING CENTER RIGHT
A89: D7-X27L | B89: SANITARY LANDFILL LEFT
A90: D7-X27R | B90: SANITARY LANDFILL RIGHT
A91: D7-X28L | B91: SOLID WASTE TRANSFER STATION LEFT
A92: D7-X28R | B92: SOLID WASTE TRANSFER STATION RIGHT
A93: D7-X29L | B93: DEMOLITION LANDFILL LEFT
A94: D7-X29R | B94: DEMOLITION LANDFILL RIGHT
A95: D7-X29T | B95: DEMOLITION LANDFILL AHEAD
A96: D7-X2L | B96: GEOLOGICAL MARKER LEFT
A97: D7-X2R | B97: GEOLOGICAL MARKER RIGHT
A98: D7-X3 | B98: GEOLOGICAL MARKER
A99: D7-X4 | B99: HISTORICAL MARKER
A100: D7-X5L | B100: HISTORICAL MARKER XX MILES ON LEFT
A101: D7-X5R | B101: HISTORICAL MARKER XX MILES ON RIGHT
A102: D7-X6L | B102: HISTORICAL MARKER LEFT
A103: D7-X6R | B103: HISTORICAL MARKER RIGHT
A104: D7-X7L | B104: HISTORIC SITE XX MILES ON LEFT
A105: D7-X7R | B105: HISTORIC SITE XX MILES ON RIGHT
A106: D7-X8L | B106: HISTORIC SITE LEFT
A107: D7-X8R | B107: HISTORIC SITE RIGHT
A108: D7-X8T | B108: HISTORIC SITE AHEAD
A109: D7-X9L | B109: HISTORIC DISTRICT LEFT
A110: D7-X9R | B110: HISTORIC DISTRICT RIGHT
A111: D7-X9T | B111: HISTORIC DISTRICT AHEAD
A112: D8-1 | B112: WEIGH STATION XX MILES
A113: D8-2M | B113: WEIGH STATION NEXT RIGHT
A114: D8-3 | B114: WEIGH STATION 45 DEG ARROW
A115: D8-3ML | B115: WEIGH STATION LEFT
A116: D8-3MR | B116: WEIGH STATION RIGHT
A117: D9-1 | B117: PHONE
A118: D9-10ML | B118: TOURIST INFO LEFT
A119: D9-10MR | B119: TOURIST INFO RIGHT
A120: D9-16 | B120: TRUCK PARKING
A121: D9-18cMaL | B121: HOSPITAL XX MILES LEFT
A122: D9-18cMaR | B122: HOSPITAL XX MILES RIGHT
A123: D9-18cMbL | B123: GAS LEFT
A124: D9-18cMbR | B124: GAS RIGHT
A125: D9-18cMbRL | B125: GAS RIGHT AND LEFT
A126: D9-18cMcL | B126: FOOD LEFT
A127: D9-18cMcR | B127: FOOD RIGHT
A128: D9-18cMcRL | B128: FOOD RIGHT AND LEFT
A129: D9-18cMdL | B129: LODGING LEFT
A130: D9-18cMdR | B130: LODGING RIGHT
A131: D9-18cMdRL | B131: LODGING RIGHT AND LEFT
A132: D9-18cMeL | B132: HOSPITAL LEFT
A133: D9-18cMeR | B133: HOSPITAL RIGHT
A134: D9-18cMfL | B134: CAMPING LEFT
A135: D9-18cMfR | B135: CAMPING RIGHT
A136: D9-18cMfRL | B136: CAMPING RIGHT AND LEFT
A137: D9-18cMgL | B137: DIESEL LEFT
A138: D9-18cMgR | B138: DIESEL RIGHT
A139: D9-18cMgRL | B139: DIESEL RIGHT AND LEFT
A140: D9-18cMhL | B140: LP-GAS LEFT
A141: D9-18cMhR | B141: LP-GAS RIGHT
A142: D9-18cMhRL | B142: LP-GAS RIGHT AND LEFT
A143: D9-18cMiL | B143: E85 LEFT
A144: D9-18cMiR | B144: E85 RIGHT
A145: D9-18cMiRL | B145: E85 RIGHT AND LEFT
A146: D9-18cMjL | B146: EV-CHARGING LEFT
A147: D9-18cMjR | B147: EV-CHARGING RIGHT
A148: D9-2 | B148: HOSPITAL
A149: D9-21 | B149: PHONE TTY
A150: D9-2MaALTL | B150: HOSPITAL XX BLKS ADVANCED LEFT
A151: D9-2MaALTR | B151: HOSPITAL XX BLKS ADVANCED RIGHT
A152: D9-2MaL | B152: HOSPITAL XX BLKS LEFT
A153: D9-2MaR | B153: HOSPITAL XX BLKS RIGHT
A154: D9-2MaT | B154: HOSPITAL XX BLKS AHEAD
A155: D9-2MbL | B155: HOSPITAL LEFT
A156: D9-2MbR | B156: HOSPITAL RIGHT
A157: D9-6 | B157: HANDICAPED
A158: D9-6P | B158: VAN ACCESSIBLE PLAQUE
A159: D9-X1L | B159: HANDICAP LEFT
A160: D9-X1R | B160: HANDICAP RIGHT
A161: D9-X3L | B161: RESORTS LEFT
A162: D9-X3R | B162: RESORTS RIGHT
A163: D9-X3RL | B163: RESORTS RIGHT AND LEFT
A164: D9-X4L | B164: CAMPING LEFT
A165: D9-X4R | B165: CAMPING RIGHT
A166: D9-X4RL | B166: CAMPING RIGHT AND LEFT
A167: E13-1P | B167: XX MPH PLAQUE
A168: E5-1 | B168: EXIT XX DEG ARROW
A169: E5-1a | B169: EXIT X XX DEG ARROW
A170: E5-1aM | B170: EXIT XX XX DEG ARROW
A171: I-11 | B171: RECYCLING COLLECTION CENTER
A172: I-12 | B172: LIGHT RAIL TRANSIT STATION
A173: I2-X1 | B173: MINNESOTA ENTRANCE SIGN
A174: I2-X2 | B174: MINNESOTA EXIT SIGN
A175: I-5 | B175: AIRPORT
A176: I-6 | B176: BUS STATION
A177: I-7 | B177: TRAIN STATION
A178: I-8 | B178: LIBRARY
A179: M1-1 | B179: INTERSTATE XX
A180: M1-10 | B180: EISENHOWER INTERSTATE SYSTEM
A181: M1-2 | B181: INTERSTATE XX BUSINESS LOOP
A182: M1-3 | B182: INTERSTATE XX BUSINESS SPUR
A183: M1-4 | B183: US XX
A184: M1-4M | B184: US XX BUSINESS
A185: M1-5M | B185: MINNESOTA HWY XX
A186: M1-5Ma | B186: MINNESOTA HWY XX BUSINESS
A187: M1-6M | B187: XX COUNTY XX
A188: M1-9M | B188: MISSISSIPPI RIVER TRAIL
A189: M1-X4 | B189: XX COUNTY XX
A190: M1-X5 | B190: TOWNSHIP XX
A191: M2-1 | B191: JCT (COLOR)
A192: M3-1 | B192: NORTH (COLOR)
A193: M3-2 | B193: EAST (COLOR)
A194: M3-3 | B194: SOUTH (COLOR)
A195: M3-4 | B195: WEST (COLOR)
A196: M4-14 | B196: BEGIN (COLOR)
A197: M4-1a | B197: ALT (COLOR)
A198: M4-3 | B198: BUSINESS (COLOR)
A199: M4-4 | B199: TRUCK
A200: M4-5 | B200: TO (COLOR)
... 440 more rows

Sheet ACTIVITIES
B2: IN PLAN | C2: ACTIVITY NO | D2: ACTIVITY DESCRIPTION
B3: x | C3: 1 | D3: FURNISH & INSTALL
B4: x | C4: 2 | D4: INPLACE
C5: 3 | D5: SALVAGE
B6: x | C6: 4 | D6: REMOVE
B7: x | C7: 5 | D7: REMOVE SIGN TYPE C
B8: x | C8: 6 | D8: INSTALL
B9: x | C9: =SUBTOTAL(3,$D$9:D9)+6 -> 7 | D9: F & I SIGN PANEL OVERLAY(S)
B10: x | C10: =SUBTOTAL(3,$D$9:D10)+6 -> 8 | D10: F & I SIGN PANEL(S)
C11: =SUBTOTAL(3,$D$9:D11)+6 -> 9 | D11: F & I LEFT SIGN PANEL
C12: =SUBTOTAL(3,$D$9:D12)+6 -> 10 | D12: F & I MIDDLE SIGN PANEL
C13: =SUBTOTAL(3,$D$9:D13)+6 -> 11 | D13: F & I RIGHT SIGN PANEL
C14: =SUBTOTAL(3,$D$9:D14)+6 -> 12 | D14: F & I SIGN PANEL(S) AND PANEL MOUNTING POSTS
B15: x | C15: =SUBTOTAL(3,$D$9:D15)+6 -> 13 | D15: F & I LEFT SIGN PANEL AND PANEL MOUNTING POSTS
C16: =SUBTOTAL(3,$D$9:D16)+6 -> 14 | D16: F & I MIDDLE SIGN PANEL AND PANEL MOUNTING POSTS
C17: =SUBTOTAL(3,$D$9:D17)+6 -> 15 | D17: F & I RIGHT SIGN PANEL AND PANEL MOUNTING POSTS
B18: x | C18: =SUBTOTAL(3,$D$9:D18)+6 -> 16 | D18: F & I SIGN PANEL OVERLAY(S)
C19: =SUBTOTAL(3,$D$9:D19)+6 -> 17 | D19: F & I SIGN PANEL OVERLAY LEFT SIGN PANEL
B20: x | C20: =SUBTOTAL(3,$D$9:D20)+6 -> 18 | D20: F & I SIGN PANEL OVERLAY MIDDLE SIGN PANEL
C21: =SUBTOTAL(3,$D$9:D21)+6 -> 19 | D21: F & I SIGN PANEL OVERLAY RIGHT SIGN PANEL
C22: =SUBTOTAL(3,$D$9:D22)+6 -> 20 | D22: SIGN LEGEND REVISION
C23: =SUBTOTAL(3,$D$9:D23)+6 -> 21 | D23: SIGN LEGEND REVISION LEFT SIGN PANEL
C24: =SUBTOTAL(3,$D$9:D24)+6 -> 22 | D24: SIGN LEGEND REVISION MIDDLE SIGN PANEL
C25: =SUBTOTAL(3,$D$9:D25)+6 -> 23 | D25: SIGN LEGEND REVISION RIGHT SIGN PANEL
C26: =SUBTOTAL(3,$D$9:D26)+6 -> 24 | D26: SALVAGE SIGN PANEL(S)
C27: =SUBTOTAL(3,$D$9:D27)+6 -> 25 | D27: SALVAGE LEFT SIGN PANEL
C28: =SUBTOTAL(3,$D$9:D28)+6 -> 26 | D28: SALVAGE MIDDLE SIGN PANEL
C29: =SUBTOTAL(3,$D$9:D29)+6 -> 27 | D29: SALVAGE RIGHT SIGN PANEL
C30: =SUBTOTAL(3,$D$9:D30)+6 -> 28 | D30: REMOVE SIGN PANEL(S)
C31: =SUBTOTAL(3,$D$9:D31)+6 -> 29 | D31: REMOVE LEFT SIGN PANEL
C32: =SUBTOTAL(3,$D$9:D32)+6 -> 30 | D32: REMOVE MIDDLE SIGN PANEL
C33: =SUBTOTAL(3,$D$9:D33)+6 -> 31 | D33: REMOVE RIGHT SIGN PANEL
C34: =SUBTOTAL(3,$D$9:D34)+6 -> 32 | D34: MODIFY PANEL MOUNTING POSTS
C35: =SUBTOTAL(3,$D$9:D35)+6 -> 33 | D35: MODIFY PANEL MOUNTING POSTS LEFT SIGN PANEL
C36: =SUBTOTAL(3,$D$9:D36)+6 -> 34 | D36: MODIFY PANEL MOUNTING POSTS MIDDLE SIGN PANEL
C37: =SUBTOTAL(3,$D$9:D37)+6 -> 35 | D37: MODIFY PANEL MOUNTING POSTS RIGHT SIGN PANEL
C38: =SUBTOTAL(3,$D$9:D38)+6 -> 36 | D38: F & I EXTRUDED PANEL SECTION(S)
C39: =SUBTOTAL(3,$D$9:D39)+6 -> 37 | D39: F & I EXTRUDED PANEL SECTION(S) LEFT SIGN PANEL
C40: =SUBTOTAL(3,$D$9:D40)+6 -> 38 | D40: F & I EXTRUDED PANEL SECTION(S) MIDDLE SIGN PANEL
C41: =SUBTOTAL(3,$D$9:D41)+6 -> 39 | D41: F & I EXTRUDED PANEL SECTION(S) RIGHT SIGN PANEL
C42: =SUBTOTAL(3,$D$9:D42)+6 -> 40 | D42: REMOVE EXTRUDED PANEL SECTION(S)
C43: =SUBTOTAL(3,$D$9:D43)+6 -> 41 | D43: REMOVE EXTRUDED PANEL SECTION(S) LEFT SIGN PANEL
C44: =SUBTOTAL(3,$D$9:D44)+6 -> 42 | D44: REMOVE EXTRUDED PANEL SECTION(S) MIDDLE SIGN PANEL
C45: =SUBTOTAL(3,$D$9:D45)+6 -> 43 | D45: REMOVE EXTRUDED PANEL SECTION(S) RIGHT SIGN PANEL
C46: =SUBTOTAL(3,$D$9:D46)+6 -> 44 | D46: SAW SIGN PANEL(S)
C47: =SUBTOTAL(3,$D$9:D47)+6 -> 45 | D47: SAW LEFT SIGN PANEL
C48: =SUBTOTAL(3,$D$9:D48)+6 -> 46 | D48: SAW MIDDLE SIGN PANEL
C49: =SUBTOTAL(3,$D$9:D49)+6 -> 47 | D49: SAW RIGHT SIGN PANEL
C50: =SUBTOTAL(3,$D$9:D50)+6 -> 48 | D50: MODIFY SIGN STRUCTURE
C51: =SUBTOTAL(3,$D$9:D51)+6 -> 49 | D51: REPOSITION LEFT SIGN PANEL
C52: =SUBTOTAL(3,$D$9:D52)+6 -> 50 | D52: REPOSITION MIDDLE SIGN PANEL
C53: =SUBTOTAL(3,$D$9:D53)+6 -> 51 | D53: REPOSITION RIGHT SIGN PANEL
C54: =SUBTOTAL(3,$D$9:D54)+6 -> 52 | D54: RAISE SIGN PANEL(S) 8"
C55: =SUBTOTAL(3,$D$9:D55)+6 -> 53 | D55: MODIFY SIGN LIGHTING SYSTEM
C56: =SUBTOTAL(3,$D$9:D56)+6 -> 54 | D56: INSTALL SIGN PANEL(S)
C57: =SUBTOTAL(3,$D$9:D57)+6 -> 55 | D57: INSTALL LEFT SIGN PANEL
C58: =SUBTOTAL(3,$D$9:D58)+6 -> 56 | D58: INSTALL MIDDLE SIGN PANEL
C59: =SUBTOTAL(3,$D$9:D59)+6 -> 57 | D59: INSTALL RIGHT SIGN PANEL
C60: =SUBTOTAL(3,$D$9:D60)+6 -> 58 | D60: MODIFY POSTS
C61: =SUBTOTAL(3,$D$9:D61)+6 -> 59 | D61: F & I OVERHEAD SIGN IDENTIFICATION PLATE
C62: =SUBTOTAL(3,$D$9:D62)+6 -> 60 | D62: F & I FEED POINT IDENTIFICATION PLATE
C63: =SUBTOTAL(3,$D$9:D63)+6 -> 61 | D63: F & I NEW POST CLIPS ON ALL SIGN PANELS
C64: =SUBTOTAL(3,$D$9:D64)+6 -> 62 | D64: REMOVE SIGN WALKWAY
C65: =SUBTOTAL(3,$D$9:D65)+6 -> 63 | D65: REMOVE SIGN LIGHTING SYSTEM

Sheet STD PLANS
E3: user note
B4: STANDARD PLANS | E4: INCLUDE in plans with:
A5: x | B5: NUMBER | C5: DESCRIPTION
A6: SIGNING | B6: 5-297.701 | C6: STANDARD SIGN PLACEMENT | E6: SIGN, INSTALL SIGN PAY ITEMS
A7: SIGNING | B7: 5-297.702 | C7: DELINEATOR AND MARKER PLACEMENT | E7: DELINEATOR/MARKER, INSTALL DELIN/MARKER
A8: SIGNING | B8: 5-297.703 | C8: SIGN, DELINEATOR, AND MARKER PLACEMENT NEAR INTERCHANGE RAMP GORES | E8: DELINATION ON RAMPS/LOOPS
A9: SIGNING | B9: 5-297.710 | C9: EXTRUDED PANEL MOUNTING DETAILS (4 SHEETS) | E9: EXIT PANELS ON SIGNS WITH EXTRUDED PANELS
A10: SIGNING | B10: 5-297.711 | C10: I-BEAM SUPPORTED SIGN STRUCTURE DETAILS - FOOTING AND BASE CONNECTIONS (2 SHEETS) | E10: I BEAM STRUCTURES
B11: 5-297.713 | C11: I-BEAM SUPPORTED SIGN STRUCTURE DETAILS - SHALLOW SPREAD FOUNDATION
A12: X | B12: 5-297.721 | C12: THREE WALL BASE - FOR 1-3/4" SQUARE TUBE RISER POST | E12: 1-3/4 INCH RISER POSTS
B13: 5-297.726 | C13: SIGN MOUNTED ON CONCRETE WALL (3 SHEETS)
A14: X | B14: 5-297.730 | C14: SIGN MOUNTING SYSTEMS FOR ROUND SUPPORTS | E14: PANELS MOUNTED TO ROUND POSTS
A15: X | B15: 5-297.731 | C15: SIGN MOUNTING DETAILS FOR SIGNAL MAST ARMS | E15: MAST ARM SIGNING
A16: SIGNING | B16: 5-297.740 | C16: CONCRETE RAIL MOUNTED SIGN (4 SHEETS) | E16: CONCRETE RAIL MOUNTED SIGNS
A17: SIGNING | B17: 5-297.741 | C17: STRUCTURAL DETAILS FOR BRIDGE MOUNTED SIGNS - STREET NAME | E17: BRIDGE MOUNTED STREET NAME SIGNS
A18: SIGNING | B18: 5-297.742 | C18: STRUCTURAL DETAILS FOR BRIDGE MOUNTED SIGNS - MINOR GUIDE SIGNS | E18: BRIDGE MOUNTED GUIDE SIGNS
A19: X | B19: 5-297.745 | C19: MONOTUBE OVERHEAD SIGN STRUCTURES - GENERAL ELEVATIONS SECTIONS AND NOTES | E19: MONOTUBE STRUCTURES
A20: SIGNING | B20: 5-297.746 | C20: MONOTUBE OVERHEAD SIGN STRUCTURES - FOUNDATION DETAILS (2 SHEETS) | E20: MONOTUBE STRUCTURES
A21: SIGNING | B21: 5-297.747 | C21: MONOTUBE OVERHEAD SIGN STRUCTURES - SIMPLE SPAN (2 SHEETS) | E21: MONOTUBE STRUCTURES
A22: SIGNING | B22: 5-297.748 | C22: MONOTUBE OVERHEAD SIGN STRUCTURES - CANTILEVER (2 SHEETS) | E22: MONOTUBE STRUCTURES
A23: SIGNING | B23: 5-297.749 | C23: MONOTUBE OVERHEAD SIGN STRUCTURES - SIGN PANEL AND EXIT PANEL (2 SHEETS) | E23: MONOTUBE STRUCTURES
A24: SIGNING | B24: 5-297.750 | C24: PANEL MOUNTING POST MODIFICATION DETAILS | E24: PANEL MOUNTING POSTS
A25: SIGNING | B25: 5-297.752 | C25: TYPE F MEDIAN BARRIER FOUNDATION - SPREAD FOOTING | E25: OH STRUCTURES WITH SPREAD MEDIAN BARRIER FOOTING
A26: SIGNING | B26: 5-297.753 | C26: TYPE F MEDIAN BARRIER FOUNDATION - DRILLED SHAFT FOOTING | E26: OH STRUCTURES WITH DRILLED SHAFT MEDIAN BARRIER FOOTING
A27: SIGNING | B27: 5-297.754 | C27: SINGLE SLOPE MEDIAN BARRIER FOUNDATION - SPREAD FOOTING | E27: OH STRUCTURES WITH SPREAD FOOTING & SINGLE SLOPE MEDIAN BARRIER FOOTING
A28: SIGNING | B28: 5-297.755 | C28: SINGLE SLOPE MEDIAN BARRIER FOUNDATION - DRILLED SHAFT FOOTING | E28: OH STRUCTURES WITH DRILLED SHAFT SINGLE SLOPE MEDIAN BARRIER FOOTING
A29: X | B29: 5-297.761 | C29: STANDARD OVERHEAD SIGN STRUCTURES - DESIGN D - GENERAL ELEVATIONS, SECTIONS AND NOTES | E29: OH DESIGN D SIGN STRUCTURES
A30: X | B30: 5-297.762 | C30: STANDARD OVERHEAD SIGN STRUCTURES - DESIGN D - CAMBER POST TYPE AND ESTIMATED QUANTITIES | E30: OH DESIGN D SIGN STRUCTURES
A31: SIGNING | B31: 5-297.763 | C31: STANDARD OVERHEAD SIGN STRUCTURES - DESIGN D - FOUNDATION DETAILS (2 SHEETS) | E31: OH DESIGN D SIGN STRUCTURES WITH FOUNDATIONS
A32: SIGNING | B32: 5-297.764 | C32: STANDARD OVERHEAD SIGN STRUCTURES - DESIGN D - BASE PLATE, HANDHOLE, AND COVER PLATE DETAILS | E32: OH DESIGN D SIGN STRUCTURES
A33: SIGNING | B33: 5-297.765 | C33: STANDARD OVERHEAD SIGN STRUCTURES - DESIGN D - TRUSS TO POST CONNECTION DETAILS. | E33: OH DESIGN D SIGN STRUCTURES
A34: SIGNING | B34: 5-297.766 | C34: STANDARD OVERHEAD SIGN STRUCTURES - DESIGN D - SIGN TRUSS DETAILS TYPE A | E34: OH DESIGN D SIGN STRUCTURES WITH THIS TRUSS TYPE
A35: SIGNING | B35: 5-297.767 | C35: STANDARD OVERHEAD SIGN STRUCTURES - DESIGN D - SIGN TRUSS DETAILS TYPE B | E35: OH DESIGN D SIGN STRUCTURES WITH THIS TRUSS TYPE
A36: SIGNING | B36: 5-297.768 | C36: STANDARD OVERHEAD SIGN STRUCTURES - DESIGN D - SIGN TRUSS DETAILS TYPE C | E36: OH DESIGN D SIGN STRUCTURES WITH THIS TRUSS TYPE
A37: SIGNING | B37: 5-297.769 | C37: STANDARD OVERHEAD SIGN STRUCTURES - DESIGN D - WALKWAY DETAILS (3 SHEETS) | E37: OH DESIGN D SIGN STRUCTURES WITH WALKWAY
A38: SIGNING | B38: 5-297.770 | C38: STANDARD OVERHEAD SIGN STRUCTURES - DESIGN D - WALKWAY AND RAILING RETROFIT DETAILS | E38: OH DESIGN D SIGN STRUCTURES WITH WALKWAY RAILING
A39: X | B39: 5-297.772 | C39: STANDARD OVERHEAD SIGN STRUCTURES - DESIGN D - DMS MOUNTING DETAILS | E39: DMS ON OH STRUCTURES
A40: SIGNING | B40: 5-297.771 | C40: STANDARD OVERHEAD SIGN STRUCTURES - DESIGN D - ROCK SOCKET FOUNDATION DETAILS | E40: OH ROCK SOCKET FOUNDATION
A41: X | B41: 5-297.774 | C41: STANDARD OVERHEAD SIGN STRUCTURES - DESIGN D - VARIABLE LENGTH DRILLED SHAFT DETAILS | E41: OH VARIABLE DEPTH FOUNDATION
A42: SIGNING | B42: 5-297.779 | C42: OVERHEAD SIGN STRUCTURE - FOUNDATION EXTENSION - DESIGN D EXTENSION DETAILS - TYPE 1-4 POSTS | E42: FOUNDATION EXTENSION DESIGN D TYPE 1-4 POSTS
A43: X | B43: 5-297.780 | C43: OVERHEAD SIGN STRUCTURE - FOUNDATION EXTENSION - DESIGN D EXTENSION DETAILS - TYPE 5-6 POSTS (2 SHEETS) | E43: FOUNDATION EXTENSION DESIGN D TYPE 5-6 POSTS
A44: SIGNING | B44: 5-297.781 | C44: OVERHEAD SIGN STRUCTURE - FOUNDATION EXTENSION - INTERIM DESIGN B EXTENSION DETAILS - TYPE 1-4 POSTS | E44: FOUNDATION EXTENSION INTERIM DESIGN B TYPE 1-4 POSTS
A45: SIGNING | B45: 5-297.782 | C45: OVERHEAD SIGN STRUCTURE - FOUNDATION EXTENSION - INTERIM DESIGN B EXTENSION DETAILS - TYPE 5-7 POSTS (2 SHEETS) | E45: FOUNDATION EXTENSION INTERIM DESIGN B TYPE 5-7 POSTS
A46: SIGNING | B46: 5-297.783 | C46: OVERHEAD SIGN STRUCTURE - FOUNDATION EXTENSION - DESIGN B EXTENSION DETAILS - TYPE 1-3 POSTS | E46: FOUNDATION EXTENSION DESIGN B TYPE 1-3 POSTS
A47: SIGNING | B47: 5-297.784 | C47: OVERHEAD SIGN STRUCTURE - FOUNDATION EXTENSION - DESIGN B EXTENSION DETAILS - TYPE 4-5 POSTS (2 SHEETS) | E47: FOUNDATION EXTENSION DESIGN B TYPE 4-5 POSTS
A48: SIGNING | B48: 5-297.785 | C48: OVERHEAD SIGN STRUCTURE - FOUNDATION EXTENSION - DESIGN B EXTENSION DETAILS - TYPE 6-7 POSTS (2 SHEETS) | E48: FOUNDATION EXTENSION DESIGN B TYPE 6-7 POSTS
A49: SIGNING | B49: 5-297.786 | C49: OVERHEAD SIGN STRUCTURE - FOUNDATION EXTENSION - DESIGN B EXTENSION DETAILS - TYPE 8-9 POSTS (2 SHEETS) | E49: FOUNDATION EXTENSION DESIGN B TYPE 8-9 POSTS
A50: SIGNING | B50: 5-297.787 | C50: OVERHEAD SIGN STRUCTURE - FOUNDATION EXTENSION - DESIGN B EXTENSION DETAILS - TYPE 10-13 POSTS (3 SHEETS) | E50: FOUNDATION EXTENSION DESIGN B TYPE 10-13 POSTS
A51: SIGNING | B51: 5-297.788 | C51: OVERHEAD SIGN STRUCTURE - FOUNDATION EXTENSION - DESIGN B EXTENSION DETAILS - TYPE 14-15 POSTS | E51: FOUNDATION EXTENSION DESIGN B TYPE 14-15 POSTS
A52: SIGNING | B52: 5-297.789 | C52: OVERHEAD SIGN STRUCTURE - FOUNDATION EXTENSION - DESIGN B EXTENSION DETAILS - TYPE 16-19 POSTS (2 SHEETS) | E52: FOUNDATION EXTENSION DESIGN B TYPE 16-19 POSTS
B58: DETAILS | E58: INCLUDE in plans with:
A59: x | B59: NUMBER | C59: DESCRIPTION
A60: x | C60: SQUARE TUBE SIGN MOUNTING DETAIL | E60: SIGN, SIGN PANEL, INSTALL SIGN, INSTALL SIGN PANEL PAY ITEMS
A61: x | C61: SQUARE TUBE FIN BASE DETAIL | E61: 2 INCH RISER POST STRUCTURE
A62: x | C62: SQUARE TUBE SHEAR BOLT DETAIL | E62: 2 INCH RISER POST STRUCTURE IN CONCRETE
A63: x | C63: SQUARE TUBE SLIP BASE DETAIL | E63: 2-1/2 INCH RISER POST STRUCTURE
A64: x | C64: I BEAM SUPPORTED SIGN STRUCTURE DETAIL SHALLOW SPREAD FOOTING | E64: I BEAM STRUCTURES WITH SHALLOW FOUNDATIONS
B69: Designer Note: include only Standard Plans pertinent to project | O69: x

Sheet C S&I
B2: SALVAGE AND INSTALL SIGN TYPE C | M2: ST-C
C3: SIGNS | F3: PANEL | I3: MTG HT | J3: NEW POSTS/MOUNTING
B4: SIGN | D4: PANEL | F4: SIZE | J4: NUMBER OF POSTS | K4: POST TYPE (2) | L4: RISER POST SIZE | M4: SURFACE TYPE
B5: NO | C5: QTY | D5: LEGEND | I5: (1)
C6: EACH | F6: INCH | I6: FEET | L6: INCHES
B7: C-201 | C7: 2 | D7: EXIT 30 MPH | F7: 48 | G7: x | H7: 60 | I7: 7 | J7: 1 | K7: SQ | L7: 2-1/2 | M7: SOIL
B8: C-202 | C8: 12 | D8: CHEVRON | F8: 36 | G8: x | H8: 48 | I8: 7 | J8: 1 | K8: SQ | L8: 2-1/2 | M8: SOIL
C9: 1 | D9: MILE 164 | F9: 12 | G9: x | H9: 36 | I9: 7 | J9: 1 | K9: SQ | L9: 2 | M9: SOIL
C10: 2 | D10: CURVE | F10: 48 | G10: x | H10: 48 | I10: 7 | J10: 2 | K10: SQ | L10: 2-1/2 | M10: SOIL
D11: 30 MPH | F11: 30 | G11: x | H11: 30
C12: 2 | D12: RAMP 30 MPH | F12: 48 | G12: x | H12: 60 | I12: 7 | J12: 1 | K12: SQ | L12: 2-1/2 | M12: SOIL
C13: 1 | D13: ALTERNATE ROUTE TO | F13: 24 | G13: x | H13: 12 | I13: 7 | J13: 1 | K13: SQ | L13: 2 | M13: SOIL
D14: EAST | F14: 24 | G14: x | H14: 12
D15: INTERSTATE 94 | F15: 24 | G15: x | H15: 24
C16: 1 | D16: ADVANCED RIGHT TURN ARROW | F16: 21 | G16: x | H16: 15 | I16: 7 | J16: 1 | K16: SQ | L16: 2-1/2 | M16: SOIL
C17: 2 | D17: ONE WAY(RIGHT) | F17: 54 | G17: x | H17: 18 | I17: 7 | J17: 1 | K17: SQ | L17: 2-1/2 | M17: SOIL
D18: STOP | F18: 36 | G18: x | H18: 36
C19: 6 | D19: ONE WAY (LEFT) | F19: 54 | G19: x | H19: 18 | I19: 7 | J19: 1 | K19: SQ | L19: 2 | M19: SOIL
C20: 2 | D20: ONE WAY (LEFT) | F20: 54 | G20: x | H20: 18 | I20: 7 | J20: 1 | K20: SQ | L20: 2-1/2 | M20: SOIL
D21: YIELD | F21: 36
C22: 4 | D22: ONE WAY (RIGHT) | F22: 54 | G22: x | H22: 18 | I22: 7 | J22: 1 | K22: SQ | L22: 2 | M22: SOIL
C23: 4 | D23: DO NOT ENTER | F23: 48 | G23: x | H23: 48 | I23: 7 | J23: 1 | K23: SQ | L23: 2 | M23: SOIL
C24: 2 | D24: PEDS BIKES PROHIBITED | F24: 18 | G24: x | H24: 24 | I24: 7 | J24: 1 | K24: SQ | L24: 2-1/2 | M24: SOIL
C25: 2 | D25: WRONG WAY | F25: 42 | G25: x | H25: 30 | I25: 7 | J25: 1 | K25: SQ | L25: 2-1/2 | M25: SOIL
C26: 1 | D26: ALTERNATE ROUTE TO | F26: 24 | G26: x | H26: 12 | I26: 7 | J26: 1 | K26: SQ | L26: 2-1/2 | M26: SOIL
D27: EAST | F27: 24 | G27: x | H27: 12
D28: INTERSTATE 94 | F28: 24 | G28: x | H28: 24
D29: U TURN ARROW | F29: 21 | G29: x | H29: 15
C30: 1 | D30: ALTERNATE ROUTE TO | F30: 24 | G30: x | H30: 12 | I30: 7 | J30: 1 | K30: SQ | L30: 2-1/2 | M30: SOIL
D31: EAST | F31: 24 | G31: x | H31: 12
D32: INTERSTATE 94 | F32: 24 | G32: x | H32: 24
D33: U TURN ARROW | F33: 21 | G33: x | H33: 15
B34: TOTAL | C34: =SUM(C7:C33) -> 45
B37: SPECIFIC NOTE(S):
B39: GENERAL NOTE(S):
B40: 1. MOUNTING HEIGHT IS MINIMUM (WITH A +6 INCH TOLERANCE)
B41: 2. POST TYPE ABBREVIATIONS (SQ = SQUARE TUBE, R = ROUND POST, CR = CONCRETE RAIL - POST TYPE)
B42: 3. SEE THE CURRENT MnDOT STANDARD SIGNS AND MARKINGS MANUAL FOR STANDARD SIGN DESIGNS, SPLICE PLATES, STRINGERS AND PUNCHING CODES.
B43: 4. SEE SQUARE TUBE SIGN MOUNTING DETAIL FOR ATTACHMENT.
B44: 5. SEE STANDARD PLAN 5-297.701 FOR PLACEMENT.
B45: 6. SEE SQUARE TUBE SLIP BASE DETAIL FOR 2-1/2 INCH RISER POST.
B46: 7. SEE SQUARE TUBE FIN BASE DETAIL FOR 2 INCH RISER POST IN SOIL.
B47: 8. SEE SQUARE TUBE SHEAR BOLT BASE DETAIL FOR 2 INCH RISER POST ON CONCRETE.
B48: 9. SEE STANDARD PLAN 5-297.721 FOR 1-3/4 INCH RISER POST USE SQUARE TUBE THREE WALL BASE.
B49: 10. SEE STANDARD PLAN 5-297.730 FOR SIGN MOUNTING TO ROUND POST.
B50: 11. SEE STANDARD PLAN 5-297.703 FOR SIGN PLACEMENT AT RAMP GORES.
B51: 12. SEE STANDARD PLAN 5-297.740 FOR CONCRETE RAIL MOUNTED SIGN STRUCTURES.
B52: 13. SEE CONCRETE WALL MOUNTED SIGN DETAIL FOR WALL MOUNTED SIGN STRUCTURES.

Sheet C SIGN
B2: SIGN PANELS TYPE C | O2: ST-A
C3: QUANTITY | D3: PANEL | K3: MOUNTING HEIGHT (FEET) | L3: POSTS / MOUNTING
B4: SIGN | D4: CODE NUMBER | F4: SIZE (INCHES) | I4: AREA (SQ FT) | J4: TOTAL AREA (SQ FT) | L4: NUMBER OF POSTS | M4: POST TYPE | N4: RISER POST SIZE (INCHES) | O4: SURFACE TYPE
B5: NUMBER | E5: LEGEND
B7: C-1 | C7: 2 | D7: W13-2 | E7: =IF(D7<>"",IF(COUNTIF(Table2[CODE NO],D7)>0, LOOKUP(D7,Table2[CODE NO],Table2[PANEL LEGEND]),"NOT FOUND"),"") -> EXIT XX MPH | F7: 48 | G7: x | H7: 60 | I7: =(F7*H7)/144 -> 20 | J7: =I7*C7 -> 40 | K7: 7 | L7: 1 | M7: SQ | N7: 2-1/2 | O7: SOIL
B8: C-2 | C8: 12 | D8: W1-8 | E8: =IF(D8<>"",IF(COUNTIF(Table2[CODE NO],D8)>0, LOOKUP(D8,Table2[CODE NO],Table2[PANEL LEGEND]),"NOT FOUND"),"") -> CHEVRON | F8: 36 | G8: x | H8: 48 | I8: 12 | J8: =I8*C8 -> 144 | K8: 7 | L8: 1 | M8: SQ | N8: 2-1/2 | O8: SOIL
B9: C-3 | C9: 1 | D9: D10-3 | E9: =IF(D9<>"",IF(COUNTIF(Table2[CODE NO],D9)>0, LOOKUP(D9,Table2[CODE NO],Table2[PANEL LEGEND]),"NOT FOUND"),"") -> MILE XXX | F9: 12 | G9: x | H9: 36 | I9: 3 | J9: =I9*C9 -> 3 | K9: 4 | L9: 1 | M9: SQ | N9: 1-3/4 | O9: CONC
B10: C-4 | C10: 2 | D10: W1-2R | E10: =IF(D10<>"",IF(COUNTIF(Table2[CODE NO],D10)>0, LOOKUP(D10,Table2[CODE NO],Table2[PANEL LEGEND]),"NOT FOUND"),"") -> CURVE RIGHT | F10: 48 | G10: x | H10: 48 | I10: 16 | J10: =I10*C10 -> 32 | K10: 7 | L10: 2 | M10: SQ | N10: 2-1/2 | O10: SOIL
D11: W13-1P | E11: =IF(D11<>"",IF(COUNTIF(Table2[CODE NO],D11)>0, LOOKUP(D11,Table2[CODE NO],Table2[PANEL LEGEND]),"NOT FOUND"),"") -> XX MPH PLAQUE | F11: 30 | G11: x | H11: 30 | I11: 6.25 | J11: =I11*C10 -> 12.5 | N11: 2-1/2 | O11: SOIL
B12: C-5 | C12: 1 | D12: M4-X2 | E12: =IF(D12<>"",IF(COUNTIF(Table2[CODE NO],D12)>0, LOOKUP(D12,Table2[CODE NO],Table2[PANEL LEGEND]),"NOT FOUND"),"") -> ALTERNATE ROUTE TO | F12: 24 | G12: x | H12: 12 | I12: =(F12*H12)/144 -> 2 | J12: =I12*C12 -> 2 | K12: 7 | L12: 1 | M12: SQ | N12: 2 | O12: SOIL
D13: M3-2 | E13: =IF(D13<>"",IF(COUNTIF(Table2[CODE NO],D13)>0, LOOKUP(D13,Table2[CODE NO],Table2[PANEL LEGEND]),"NOT FOUND"),"") -> EAST (COLOR) | F13: 24 | G13: x | H13: 12 | I13: 2 | J13: =I13*C12 -> 2
D14: M5-1R | E14: =IF(D14<>"",IF(COUNTIF(Table2[CODE NO],D14)>0, LOOKUP(D14,Table2[CODE NO],Table2[PANEL LEGEND]),"NOT FOUND"),"") -> ADVANCE TURN RIGHT (COLOR) | F14: 21 | G14: x | H14: 15 | I14: 2.19 | J14: =I14*C12 -> 2.19
B15: C-6 | C15: 1 | D15: M4-X2 | E15: =IF(D15<>"",IF(COUNTIF(Table2[CODE NO],D15)>0, LOOKUP(D15,Table2[CODE NO],Table2[PANEL LEGEND]),"NOT FOUND"),"") -> ALTERNATE ROUTE TO | F15: 24 | G15: x | H15: 12 | I15: 2 | J15: =I15*C15 -> 2 | K15: 7 | L15: 1 | M15: SQ | N15: 2 | O15: SOIL
D16: M3-2 | E16: =IF(D16<>"",IF(COUNTIF(Table2[CODE NO],D16)>0, LOOKUP(D16,Table2[CODE NO],Table2[PANEL LEGEND]),"NOT FOUND"),"") -> EAST (COLOR) | F16: 24 | G16: x | H16: 12 | I16: 2 | J16: =I16*C15 -> 2
D17: M1-1 | E17: =IF(D17<>"",IF(COUNTIF(Table2[CODE NO],D17)>0, LOOKUP(D17,Table2[CODE NO],Table2[PANEL LEGEND]),"NOT FOUND"),"") -> INTERSTATE XX | F17: 24 | G17: x | H17: 24 | I17: 4 | J17: =I17*C15 -> 4
D18: M5-1R | E18: =IF(D18<>"",IF(COUNTIF(Table2[CODE NO],D18)>0, LOOKUP(D18,Table2[CODE NO],Table2[PANEL LEGEND]),"NOT FOUND"),"") -> ADVANCE TURN RIGHT (COLOR) | F18: 21 | G18: x | H18: 15 | I18: 2.19 | J18: =I18*C15 -> 2.19
B19: C-7 | C19: 2 | D19: R6-1R | E19: =IF(D19<>"",IF(COUNTIF(Table2[CODE NO],D19)>0, LOOKUP(D19,Table2[CODE NO],Table2[PANEL LEGEND]),"NOT FOUND"),"") -> ONE WAY RIGHT | F19: 54 | G19: x | H19: 18 | I19: 6.75 | J19: =I19*C19 -> 13.5 | K19: 7 | L19: 1 | M19: SQ | N19: 2-1/2 | O19: SOIL
D20: R1-1 | E20: =IF(D20<>"",IF(COUNTIF(Table2[CODE NO],D20)>0, LOOKUP(D20,Table2[CODE NO],Table2[PANEL LEGEND]),"NOT FOUND"),"") -> STOP | F20: 36 | G20: x | H20: 36 | I20: 9 | J20: =I20*C19 -> 18
B21: C-8 | C21: 6 | D21: R6-1L | E21: =IF(D21<>"",IF(COUNTIF(Table2[CODE NO],D21)>0, LOOKUP(D21,Table2[CODE NO],Table2[PANEL LEGEND]),"NOT FOUND"),"") -> ONE WAY LEFT | F21: 54 | G21: x | H21: 18 | I21: 6.75 | J21: =I21*C21 -> 40.5 | K21: 7 | L21: 1 | M21: SQ | N21: 2 | O21: SOIL
B22: C-9 | C22: 2 | D22: R6-1L | E22: =IF(D22<>"",IF(COUNTIF(Table2[CODE NO],D22)>0, LOOKUP(D22,Table2[CODE NO],Table2[PANEL LEGEND]),"NOT FOUND"),"") -> ONE WAY LEFT | F22: 54 | G22: x | H22: 18 | I22: 6.75 | J22: =I22*C22 -> 13.5 | K22: 7 | L22: 1 | M22: SQ | N22: 2-1/2 | O22: SOIL
D23: R1-2 | E23: =IF(D23<>"",IF(COUNTIF(Table2[CODE NO],D23)>0, LOOKUP(D23,Table2[CODE NO],Table2[PANEL LEGEND]),"NOT FOUND"),"") -> YIELD | F23: 36 | I23: 3.9 | J23: =I23*C22 -> 7.8
B24: C-10 | C24: 4 | D24: R6-1R | E24: =IF(D24<>"",IF(COUNTIF(Table2[CODE NO],D24)>0, LOOKUP(D24,Table2[CODE NO],Table2[PANEL LEGEND]),"NOT FOUND"),"") -> ONE WAY RIGHT | F24: 54 | G24: x | H24: 18 | I24: =(F24*H24)/144 -> 6.75 | J24: =I24*C24 -> 27 | K24: 7 | L24: 1 | M24: SQ | N24: 2 | O24: CONCRETE
B25: C-11 | C25: 4 | D25: R5-1 | E25: =IF(D25<>"",IF(COUNTIF(Table2[CODE NO],D25)>0, LOOKUP(D25,Table2[CODE NO],Table2[PANEL LEGEND]),"NOT FOUND"),"") -> DO NOT ENTER | F25: 48 | G25: x | H25: 48 | I25: 16 | J25: =I25*C25 -> 64 | K25: 7 | L25: 1 | M25: SQ | N25: 2 | O25: SOIL
B26: C-12 | C26: 2 | D26: R5-10aM | E26: =IF(D26<>"",IF(COUNTIF(Table2[CODE NO],D26)>0, LOOKUP(D26,Table2[CODE NO],Table2[PANEL LEGEND]),"NOT FOUND"),"") -> PEDS PROHIBITED | F26: 18 | G26: x | H26: 24 | I26: 3 | J26: =I26*C26 -> 6 | K26: 7 | L26: 1 | M26: SQ | N26: 1-3/4 | O26: SOIL
B27: C-13 | C27: 2 | D27: R5-1A | E27: =IF(D27<>"",IF(COUNTIF(Table2[CODE NO],D27)>0, LOOKUP(D27,Table2[CODE NO],Table2[PANEL LEGEND]),"NOT FOUND"),"") -> WRONG WAY | F27: 42 | G27: x | H27: 30 | I27: 8.75 | J27: =I27*C27 -> 17.5 | K27: 7 | L27: 1 | M27: SQ | N27: 2-1/2 | O27: SOIL
B28: C-14 | C28: 1 | D28: M4-X2 | E28: =IF(D28<>"",IF(COUNTIF(Table2[CODE NO],D28)>0, LOOKUP(D28,Table2[CODE NO],Table2[PANEL LEGEND]),"NOT FOUND"),"") -> ALTERNATE ROUTE TO | F28: 24 | G28: x | H28: 12 | I28: 2 | J28: =I28*C28 -> 2 | K28: 7 | L28: 1 | M28: SQ | N28: 2-1/2 | O28: SOIL
D29: M3-2 | E29: =IF(D29<>"",IF(COUNTIF(Table2[CODE NO],D29)>0, LOOKUP(D29,Table2[CODE NO],Table2[PANEL LEGEND]),"NOT FOUND"),"") -> EAST (COLOR) | F29: 24 | G29: x | H29: 12 | I29: 2 | J29: =I29*C28 -> 2
D30: M1-1 | E30: =IF(D30<>"",IF(COUNTIF(Table2[CODE NO],D30)>0, LOOKUP(D30,Table2[CODE NO],Table2[PANEL LEGEND]),"NOT FOUND"),"") -> INTERSTATE XX | F30: 24 | G30: x | H30: 24 | I30: 4 | J30: =I30*C28 -> 4
D31: M6-X2 | E31: =IF(D31<>"",IF(COUNTIF(Table2[CODE NO],D31)>0, LOOKUP(D31,Table2[CODE NO],Table2[PANEL LEGEND]),"NOT FOUND"),"") -> U TURN (COLOR) | F31: 21 | G31: x | H31: 15 | I31: 2.19 | J31: =I31*C28 -> 2.19
B32: C-15 | C32: 1 | D32: M4-X2 | E32: =IF(D32<>"",IF(COUNTIF(Table2[CODE NO],D32)>0, LOOKUP(D32,Table2[CODE NO],Table2[PANEL LEGEND]),"NOT FOUND"),"") -> ALTERNATE ROUTE TO | F32: 24 | G32: x | H32: 12 | I32: 2 | J32: =I32*C32 -> 2 | K32: 7 | L32: 1 | M32: SQ | N32: 2-1/2 | O32: SOIL
D33: M3-2 | E33: =IF(D33<>"",IF(COUNTIF(Table2[CODE NO],D33)>0, LOOKUP(D33,Table2[CODE NO],Table2[PANEL LEGEND]),"NOT FOUND"),"") -> EAST (COLOR) | F33: 24 | G33: x | H33: 12 | I33: 2 | J33: =I33*C32 -> 2
D34: M1-1 | E34: =IF(D34<>"",IF(COUNTIF(Table2[CODE NO],D34)>0, LOOKUP(D34,Table2[CODE NO],Table2[PANEL LEGEND]),"NOT FOUND"),"") -> INTERSTATE XX | F34: 24 | G34: x | H34: 24 | I34: 4 | J34: =I34*C32 -> 4
D35: M6-X2 | E35: =IF(D35<>"",IF(COUNTIF(Table2[CODE NO],D35)>0, LOOKUP(D35,Table2[CODE NO],Table2[PANEL LEGEND]),"NOT FOUND"),"") -> U TURN (COLOR) | F35: 21 | G35: x | H35: 15 | I35: 2.19 | J35: =I35*C32 -> 2.19
B36: C-16 | C36: 1 | D36: W3-3 | E36: =IF(D36<>"",IF(COUNTIF(Table2[CODE NO],D36)>0, LOOKUP(D36,Table2[CODE NO],Table2[PANEL LEGEND]),"NOT FOUND"),"") -> SIGNAL AHEAD | F36: 48 | G36: x | H36: 48 | I36: =(F36*H36)/144 -> 16 | J36: =I36*C36 -> 16 | K36: 7 | M36: CR-II
D37: W16-2P | E37: =IF(D37<>"",IF(COUNTIF(Table2[CODE NO],D37)>0, LOOKUP(D37,Table2[CODE NO],Table2[PANEL LEGEND]),"NOT FOUND"),"") -> XX FEET PLAQUE | F37: 42 | G37: x | H37: 18 | I37: 5.25 | J37: =I37*C36 -> 5.25
B38: TOTAL | J38: =SUM(J7:J37) -> 497.31
B40: SPECIFIC NOTE(S):
B42: GENERAL NOTE(S):
B43: 1. MOUNTING HEIGHT IS MINIMUM (WITH A +6 INCH TOLERANCE)
B44: 2. POST TYPE ABBREVIATIONS (SQ = SQUARE TUBE, R = ROUND POST, CR = CONCRETE RAIL - POST TYPE)
B45: 3. SEE THE CURRENT MnDOT STANDARD SIGNS AND MARKINGS MANUAL FOR STANDARD SIGN DESIGNS, SPLICE PLATES, STRINGERS AND PUNCHING CODES.
B46: 4. SEE SQUARE TUBE SIGN MOUNTING DETAIL FOR ATTACHMENT.
B47: 5. SEE STANDARD PLAN 5-297.701 FOR PLACEMENT.
B48: 6. SEE SQUARE TUBE SLIP BASE DETAIL FOR 2-1/2 INCH RISER POST.
B49: 7. SEE SQUARE TUBE FIN BASE DETAIL FOR 2 INCH RISER POST IN SOIL.
B50: 8. SEE SQUARE TUBE SHEAR BOLT BASE DETAIL FOR 2 INCH RISER POST ON CONCRETE.
B51: 9. SEE STANDARD PLAN 5-297.721 FOR 1-3/4 INCH RISER POST USE SQUARE TUBE THREE WALL BASE.
B52: 10. SEE STANDARD PLAN 5-297.730 FOR SIGN MOUNTING TO ROUND POST.
B53: 11. SEE STANDARD PLAN 5-297.703 FOR SIGN PLACEMENT AT RAMP GORES.
B54: 12. SEE STANDARD PLAN 5-297.740 FOR CONCRETE RAIL MOUNTED SIGN STRUCTURES.
B55: 13. SEE CONCRETE WALL MOUNTED SIGN DETAIL FOR WALL MOUNTED SIGN STRUCTURES.

Sheet C INSTALL
B2: INSTALL SIGN TYPE C | L2: ST-B
B3: SIGN NUMBER | C3: QUANTITY (EACH) | D3: PANEL | H3: MOUNTING HEIGHT (FEET) | I3: POSTS/MOUNTING
D4: LEGEND | E4: SIZE (INCHES) | I4: NUMBER OF POSTS | J4: POST TYPE | K4: RISER POST SIZE (INCHES) | L4: SURFACE TYPE
B7: C-201 | C7: 2 | D7: EXIT 30 MPH | E7: 48 | F7: x | G7: 60 | H7: 7 | I7: 1 | J7: SQ | K7: 2-1/2 | L7: SOIL
B8: C-202 | C8: 12 | D8: CHEVRON | E8: 36 | F8: x | G8: 48 | H8: 7 | I8: 1 | J8: SQ | K8: 2-1/2 | L8: SOIL
C9: 1 | D9: MILE 164 | E9: 12 | F9: x | G9: 36 | H9: 7 | I9: 1 | J9: SQ | K9: 2 | L9: SOIL
C10: 2 | D10: CURVE | E10: 48 | F10: x | G10: 48 | H10: 7 | I10: 2 | J10: SQ | K10: 2-1/2 | L10: SOIL
D11: 30 MPH | E11: 30 | F11: x | G11: 30 | K11: 2-1/2 | L11: SOIL
C12: 2 | D12: RAMP 30 MPH | E12: 48 | F12: x | G12: 60 | H12: 7 | I12: 1 | J12: SQ | K12: 2-1/2 | L12: SOIL
C13: 1 | D13: ALTERNATE ROUTE TO | E13: 24 | F13: x | G13: 12 | H13: 7 | I13: 1 | J13: SQ | K13: 2 | L13: SOIL
D14: EAST | E14: 24 | F14: x | G14: 12
D15: INTERSTATE 94 | E15: 24 | F15: x | G15: 24
C16: 1 | D16: ADVANCED RIGHT TURN ARROW | E16: 21 | F16: x | G16: 15
C17: 2 | D17: ONE WAY(RIGHT) | E17: 54 | F17: x | G17: 18 | H17: 7 | I17: 1 | J17: SQ | K17: 2-1/2 | L17: SOIL
D18: STOP | E18: 36 | F18: x | G18: 36
C19: 6 | D19: ONE WAY (LEFT) | E19: 54 | F19: x | G19: 18 | H19: 7 | I19: 1 | J19: SQ | K19: 2 | L19: SOIL
C20: 2 | D20: ONE WAY (LEFT) | E20: 54 | F20: x | G20: 18 | H20: 7 | I20: 1 | J20: SQ | K20: 2-1/2 | L20: SOIL
D21: YIELD | E21: 36
C22: 4 | D22: ONE WAY (RIGHT) | E22: 54 | F22: x | G22: 18 | H22: 7 | I22: 1 | J22: SQ | K22: 2 | L22: SOIL
C23: 4 | D23: DO NOT ENTER | E23: 48 | F23: x | G23: 48 | H23: 7 | I23: 1 | J23: SQ | K23: 2 | L23: SOIL
C24: 2 | D24: PEDS BIKES PROHIBITED | E24: 18 | F24: x | G24: 24 | H24: 7 | I24: 1 | J24: SQ | K24: 2-1/2 | L24: SOIL
C25: 2 | D25: WRONG WAY | E25: 42 | F25: x | G25: 30 | H25: 7 | I25: 1 | J25: SQ | K25: 2-1/2 | L25: SOIL
B26: TOTAL | C26: =+SUM(C7:C25) -> 43
B29: SPECIFIC NOTE(S):
B31: GENERAL NOTE(S):
B32: 1. MOUNTING HEIGHT IS MINIMUM (WITH A +6 INCH TOLERANCE)
B33: 2. POST TYPE ABBREVIATIONS (SQ = SQUARE TUBE, R = ROUND POST, CR = CONCRETE RAIL - POST TYPE)
B34: 3. SEE THE CURRENT MnDOT STANDARD SIGNS AND MARKINGS MANUAL FOR STANDARD SIGN DESIGNS, SPLICE PLATES, STRINGERS AND PUNCHING CODES.
B35: 4. SEE SQUARE TUBE SIGN MOUNTING DETAIL FOR ATTACHMENT.
B36: 5. SEE STANDARD PLAN 5-297.701 FOR PLACEMENT.
B37: 6. SEE SQUARE TUBE SLIP BASE DETAIL FOR 2-1/2 INCH RISER POST.
B38: 7. SEE SQUARE TUBE FIN BASE DETAIL FOR 2 INCH RISER POST IN SOIL.
B39: 8. SEE SQUARE TUBE SHEAR BOLT BASE DETAIL FOR 2 INCH RISER POST ON CONCRETE.
B40: 9. SEE STANDARD PLAN 5-297.721 FOR 1-3/4 INCH RISER POST USE SQUARE TUBE THREE WALL BASE.
B41: 10. SEE STANDARD PLAN 5-297.730 FOR SIGN MOUNTING TO ROUND POST.
B42: 11. SEE STANDARD PLAN 5-297.703 FOR SIGN PLACEMENT AT RAMP GORES.
B43: 12. SEE STANDARD PLAN 5-297.740 FOR CONCRETE RAIL MOUNTED SIGN STRUCTURES.
B44: 13. SEE CONCRETE WALL MOUNTED SIGN DETAIL FOR WALL MOUNTED SIGN STRUCTURES.

Sheet C SAL
B2: SALVAGE SIGN TYPE C | E2: ST-
B3: SIGN NUMBER | C3: QUANTITY (EACH) | D3: PANEL
E4: SIZE (INCHES)
D5: LEGEND | I5: add same note as D SAL
B7: C-201 | C7: 2 | D7: EXIT 30 MPH | E7: 48 | F7: x | G7: 60
B8: C-202 | C8: 12 | D8: CHEVRON | E8: 36 | F8: x | G8: 48
B9: C-203 | C9: 1 | D9: MILE 164 | E9: 12 | F9: x | G9: 36
C10: 2 | D10: CURVE | E10: 48 | F10: x | G10: 48
D11: 30 MPH | E11: 30 | F11: x | G11: 30
C12: 2 | D12: RAMP 30 MPH | E12: 48 | F12: x | G12: 60
C13: 1 | D13: ALTERNATE ROUTE TO | E13: 24 | F13: x | G13: 12
D14: EAST | E14: 24 | F14: x | G14: 12
D15: INTERSTATE 94 | E15: 24 | F15: x | G15: 24
C16: 1 | D16: ADVANCED RIGHT TURN ARROW | E16: 21 | F16: x | G16: 15
C17: 2 | D17: ONE WAY(RIGHT) | E17: 54 | F17: x | G17: 18
D18: STOP | E18: 36 | F18: x | G18: 36
C19: 6 | D19: ONE WAY (LEFT) | E19: 54 | F19: x | G19: 18
C20: 2 | D20: ONE WAY (LEFT) | E20: 54 | F20: x | G20: 18
D21: YIELD | E21: 36
C22: 4 | D22: ONE WAY (RIGHT) | E22: 54 | F22: x | G22: 18
C23: 4 | D23: DO NOT ENTER | E23: 48 | F23: x | G23: 48
C24: 2 | D24: PEDS BIKES PROHIBITED | E24: 18 | F24: x | G24: 24
C25: 2 | D25: WRONG WAY | E25: 42 | F25: x | G25: 30
B26: TOTAL | C26: =+SUM(C7:C25) -> 43

Sheet REM C PANEL
B2: REMOVE SIGN PANEL TYPE C | E2: ST-C
C3: QUANTITY (EACH)
B4: SIGN | E4: SIZE (INCHES)
B5: NUMBER | D5: LEGEND
B7: C-1 | C7: 1 | E7: 18 | F7: x | G7: 6
B8: C-2 | C8: 0 | E8: 36 | F8: x | G8: 48
B9: C-3 | C9: 0 | E9: 12 | F9: x | G9: 36
B10: C-4 | C10: 0 | E10: 48 | F10: x | G10: 48
E11: 30 | F11: x | G11: 30
B12: C-5 | C12: 0 | E12: 24 | F12: x | G12: 12
E13: 24 | F13: x | G13: 12
E14: 21 | F14: x | G14: 15
B15: C-6 | C15: 0 | E15: 24 | F15: x | G15: 12
E16: 24 | F16: x | G16: 12
E17: 24 | F17: x | G17: 24
E18: 21 | F18: x | G18: 15
B19: C-7 | C19: 0 | E19: 54 | F19: x | G19: 18
E20: 36 | F20: x | G20: 36
B21: C-8 | C21: 0 | E21: 54 | F21: x | G21: 18
B22: C-9 | C22: 0 | E22: 54 | F22: x | G22: 18
E23: 36
B24: C-10 | C24: 0 | E24: 54 | F24: x | G24: 18
B25: C-11 | C25: 0 | E25: 48 | F25: x | G25: 48
B26: C-12 | C26: 0 | E26: 18 | F26: x | G26: 24
B27: C-13 | C27: 0 | E27: 42 | F27: x | G27: 30
B28: C-14 | C28: 0 | E28: 24 | F28: x | G28: 12
E29: 24 | F29: x | G29: 12
E30: 24 | F30: x | G30: 24
E31: 21 | F31: x | G31: 15
B32: C-15 | C32: 0 | E32: 24 | F32: x | G32: 12
E33: 24 | F33: x | G33: 12
E34: 24 | F34: x | G34: 24
E35: 21 | F35: x | G35: 15
B36: C-16 | C36: 0 | E36: 48 | F36: x | G36: 48
E37: 42 | F37: x | G37: 18
B38: TOTAL | C38: =SUM(C7:C37) -> 1
B40: SPECIFIC NOTE(S):
B42: GENERAL NOTE(S):

Sheet C REM
A1: REMOVE SIGN TYPE C
A2: PAGE NO. | B2: QUANTITY
A3: 1 | B3: 24
A4: 2 | B4: 5
A5: 3 | B5: 3
A6: 4 | B6: 4
A7: 5 | B7: 9
A8: 6 | B8: 8
A9: 7 | B9: 25
A10: 8 | B10: 42
A11: 9 | B11: 6
A12: 10 | B12: 2 | D12: 0
A13: 11 | B13: 0
A14: 12 | B14: 6
A15: 13 | B15: 4
A16: 14 | B16: 14
A17: 15 | B17: 1 | E17: THIS CHART DOES NOT GO IN PLAN SETS
A18: 16 | B18: 19
A19: 17 | B19: 4
A20: 18 | B20: 7
A21: 19 | B21: 15
A22: 20 | B22: 1
A23: 21 | B23: 0
A24: 22 | B24: 22
A25: 23 | B25: 2
A26: 24 | B26: 6
A27: 25 | B27: 11
A28: 26 | B28: 7
A29: 27 | B29: 6
A30: 28 | B30: 13
A31: 29 | B31: 5
A32: 30 | B32: 2
A33: 31 | B33: 12
A34: 32 | B34: 2
A35: 33 | B35: 2
A36: 34 | B36: 1
A37: 35 | B37: 14
A38: 36 | B38: 11
A39: 37 | B39: 5
A40: 38 | B40: 7
A41: TOTAL | B41: =SUM(B3:B40) -> 327

Sheet D REM
A1: REMOVE SIGN TYPE D
A2: PAGE NO. | B2: QUANTITY
A3: 1 | B3: 24
A4: 2 | B4: 5
A5: 3 | B5: 3
A6: 4 | B6: 4
A7: 5 | B7: 9
A8: 6 | B8: 8
A9: 7 | B9: 25
A10: 8 | B10: 42
A11: 9 | B11: 6
A12: 10 | B12: 2 | D12: 0
A13: 11 | B13: 0
A14: 12 | B14: 6
A15: 13 | B15: 4
A16: 14 | B16: 14
A17: 15 | B17: 1 | E17: THIS CHART DOES NOT GO IN PLAN SETS
A18: 16 | B18: 19
A19: 17 | B19: 4
A20: 18 | B20: 7
A21: 19 | B21: 15
A22: 20 | B22: 1
A23: 21 | B23: 0
A24: 22 | B24: 22
A25: 23 | B25: 2
A26: 24 | B26: 6
A27: 25 | B27: 11
A28: 26 | B28: 7
A29: 27 | B29: 6
A30: 28 | B30: 13
A31: 29 | B31: 5
A32: 30 | B32: 2
A33: 31 | B33: 12
A34: 32 | B34: 2
A35: 33 | B35: 2
A36: 34 | B36: 1
A37: 35 | B37: 14
A38: 36 | B38: 11
A39: 37 | B39: 5
A40: 38 | B40: 7
A41: TOTAL | B41: =SUM(B3:B40) -> 327

Sheet D REM PANEL
B2: REMOVE SIGN PANEL TYPE D | E2: ST-B
B3: SIGN NUMBER | C3: QUANTITY (EACH) | D3: PANEL
D4: LEGEND | E4: (1) SIZE (INCHES)
B7: D-101 | C7: 1 | D7: ROCKVILLE COLD SPRING PAYNESVILLE / WAITE PARK | E7: 72 | F7: x | G7: 60
B8: D-102 | C8: 1 | D8: 3RD ST R | E8: 96 | F8: x | G8: 72
B9: D-103 | C9: 1 | D9: VANBUREN AVE DBL | E9: 114 | F9: x | G9: 48
B10: D-104 | C10: 0 | E10: 90 | F10: x | G10: 54
B11: D-105 | C11: 0 | E11: 72 | F11: x | G11: 72
B12: D-106 | C12: 0 | E12: 54 | F12: x | G12: 66
B13: D-107 | C13: 0 | E13: 54 | F13: x | G13: 66
B14: D-108 | C14: 0 | E14: 72 | F14: x | G14: 72
B15: TOTAL | C15: =SUM(C7:C14) -> 3
B18: SPECIFIC NOTE(S):
B19: (1) SIZES ARE APPROXIMATE
B21: GENERAL NOTE(S):

Sheet D SIGN
B2: SIGN PANELS TYPE D | O2: ST-D
B3: SIGN NUMBER | C3: QUANTITY | D3: PANEL | J3: MOUNTING HEIGHT (FEET) | K3: POSTS / MOUNTING | O3: TOTAL AREA (SQ FT)
D4: LEGEND | F4: SIZE (INCH) | I4: AREA (SQ FT) | K4: NUMBER OF POSTS | L4: POST TYPE | M4: RISER POST SIZE (INCHES) | N4: SURFACE TYPE
B7: D-1 | C7: 2 | D7: 182ND AVE DOUBLE HEADED ARROW | F7: 102 | G7: x | H7: 48 | I7: =(F7*H7)/144 -> 34 | J7: 7 | K7: 3 | L7: SQ | M7: 2-1/2 | N7: SOIL | O7: =I7*C7 -> 68
B8: D-2 | C8: 1 | D8: STILLWATER 10 | F8: 96 | G8: x | H8: 18 | I8: 12 | J8: 7 | K8: 2 | L8: SQ | M8: 2-1/2 | N8: SOIL | O8: =I8*C8 -> 12
B9: D-3 | C9: 2 | D9: JCT 94 1/4 MILE | F9: 72 | G9: x | H9: 66 | I9: 33 | J9: 7 | K9: 2 | L9: SQ | M9: 2-1/2 | N9: SOIL | O9: =I9*C9 -> 66
B10: D-4 | C10: 2 | D10: MN 95 DOUBLE ARROW | F10: 42 | G10: x | H10: 54 | I10: 15.75 | J10: 7 | K10: 1 | L10: SQ | M10: 2 | N10: SOIL | O10: =I10*C10 -> 31.5
B11: D-5 | C11: 1 | D11: EXIT 129 ARW | F11: 72 | G11: x | H11: 84 | I11: 42 | J11: 7 | K11: 3 | L11: SQ | M11: 2-1/2 | N11: CONCRETE | O11: =I11*C11 -> 42
B12: TOTAL | O12: =SUM(O7:O11) -> 219.5
B15: SPECIFIC NOTE(S):
B17: GENERAL NOTE(S):
B18: 1. MOUNTING HEIGHT IS MINIMUM (WITH A +6 INCH TOLERANCE)
B19: 2. POST TYPE ABBREVIATIONS (SQ = SQUARE TUBE, R = ROUND POST, CR = CONCRETE RAIL - POST TYPE, BR-SN = BRIDGE MOUNTED STREET NAME, BR-MG = BRIDGE MOUNTED MINOR GUIDE)
B20: 3. SEE THE CURRENT MnDOT STANDARD SIGNS AND MARKINGS MANUAL FOR STANDARD SIGN DESIGNS, SPLICE PLATES, STRINGERS AND PUNCHING CODES.
B21: 4. SEE PANEL LAYOUTS FOR PANEL DESIGNS.
B22: 5. SEE SQUARE TUBE SIGN MOUNTING DETAIL FOR ATTACHMENT.
B23: 6. SEE STANDARD PLAN 5-297.701 FOR PLACEMENT.
B24: 7. SEE SQUARE TUBE SLIP BASE DETAIL FOR 2-1/2 INCH RISER POST.
B25: 8. SEE SQUARE TUBE FIN BASE DETAIL FOR 2 INCH RISER POST IN SOIL.
B26: 9. SEE SQUARE TUBE SHEAR BOLT BASE DETAIL FOR 2 INCH RISER POST ON CONCRETE.
B27: 10. SEE STANDARD PLAN 5-297.721 FOR 1-3/4 INCH RISER POST USE SQUARE TUBE THREE WALL BASE.
B28: 11. SEE STANDARD PLAN 5-297.730 FOR SIGN MOUNTING TO ROUND POST.
B29: 12. SEE STANDARD PLAN 5-297.703 FOR SIGN PLACEMENT AT RAMP GORES.
B30: 13. SEE STANDARD PLAN 5-297.740 FOR CONCRETE RAIL MOUNTED SIGN STRUCTURES.
B31: 14. SEE CONCRETE WALL MOUNTED SIGN DETAIL FOR WALL MOUNTED SIGN STRUCTURES.
B32: 15. SEE STANDARD PLAN 5-297.741 FOR STRUCTURAL DETAIL FOR BRIDGE MOUNTED STREET NAME SIGNS.
B33: 16. SEE STANDARD PLAN 5-297.742 FOR STRUCTURAL DETAIL FOR BRIDGE MOUNTED MINOR GUIDE SIGNS.
E52: POST SPACING INFORMATION IS FOUND ON THE WINDLOAD CHART
E53: SEE OTE WEBSITE FOR WINDLOAD CHART (found under "Design Tools")
E54: http://www.dot.state.mn.us/trafficeng/signing/plans.html

Sheet D SIGN INSTALL
B2: INSTALL SIGN TYPE D | O2: ST-S
B3: SIGN NUMBER | C3: SIGNS QUANTITY (EACH) | D3: PANEL | J3: MOUNTING HEIGHT (FEET) | K3: POSTS / MOUNTING | P3: TOTAL AREA
F4: SIZE (INCHES) | I4: AREA (SQ FT) | K4: NUMBER OF POSTS | L4: POST TYPE | M4: RISER POST SIZE (INCHES) | N4: KNEE | O4: SURFACE TYPE
D5: LEGEND | N5: BRACES
N6: QTY | P6: SQ FT
B7: D-301 | C7: 2 | D7: 182ND AVE DOUBLE HEADED ARROW | F7: 102 | G7: x | H7: 48 | I7: =(F7*H7)/144 -> 34 | J7: 7 | K7: 3 | L7: SQ | M7: 2-1/2 | N7: 1 | O7: SOIL | P7: =I7*C7 -> 68
C8: 1 | D8: STILLWATER 10 | F8: 96 | G8: x | H8: 18 | I8: 12 | J8: 7 | K8: 1 | L8: SQ | M8: 2-1/2 | N8: 1 | O8: SOIL | P8: =I8*C8 -> 12
C9: 1 | D9: JCT 94 1/4 MILE | F9: 72 | G9: x | H9: 66 | I9: 33 | J9: 7 | K9: 2 | L9: SQ | M9: 2-1/2 | N9: 1 | O9: SOIL | P9: =I9*C9 -> 33
C10: 2 | D10: MN 95 DOUBLE ARROW | F10: 42 | G10: x | H10: 54 | I10: 15.75 | J10: 7 | K10: 1 | L10: SQ | M10: 2 | N10: 1 | O10: CONCRETE | P10: =I10*C10 -> 31.5
C11: 1 | D11: TREASURE ISLAND CASINO | F11: 114 | G11: x | H11: 60 | I11: 47.5 | J11: 7 | K11: 3 | L11: SQ | M11: 2-1/2 | N11: 1 | O11: SOIL | P11: =I11*C11 -> 47.5
B12: TOTAL | C12: =SUM(C7:C11) -> 7 | P12: =SUM(P7:P11) -> 192
B15: SPECIFIC NOTE(S):
B17: GENERAL NOTE(S):
B18: 1. MOUNTING HEIGHT IS MINIMUM (WITH A +6 INCH TOLERANCE)
B19: 2. POST TYPE ABBREVIATIONS (SQ = SQUARE TUBE, R = ROUND POST, CR = CONCRETE RAIL - POST TYPE, BR-SN = BRIDGE MOUNTED STREET NAME, BR-MG = BRIDGE MOUNTED MINOR GUIDE)
B20: 3. SEE THE CURRENT MnDOT STANDARD SIGNS AND MARKINGS MANUAL FOR STANDARD SIGN DESIGNS, SPLICE PLATES, STRINGERS AND PUNCHING CODES.
B21: 4. SEE SQUARE TUBE SIGN MOUNTING DETAIL FOR ATTACHMENT.
B22: 5. SEE STANDARD PLAN 5-297.701 FOR PLACEMENT.
B23: 6. SEE SQUARE TUBE SLIP BASE DETAIL FOR 2-1/2 INCH RISER POST.
B24: 7. SEE SQUARE TUBE FIN BASE DETAIL FOR 2 INCH RISER POST IN SOIL.
B25: 8. SEE SQUARE TUBE SHEAR BOLT BASE DETAIL FOR 2 INCH RISER POST ON CONCRETE.
B26: 9. SEE STANDARD PLAN 5-297.721 FOR 1-3/4 INCH RISER POST USE SQUARE TUBE THREE WALL BASE.
B27: 10. SEE STANDARD PLAN 5-297.730 FOR SIGN MOUNTING TO ROUND POST.
B28: 11. SEE STANDARD PLAN 5-297.703 FOR SIGN PLACEMENT AT RAMP GORES.
B29: 12. SEE STANDARD PLAN 5-297.741 FOR STRUCTURAL DETAIL FOR BRIDGE MOUNTED STREET NAME SIGNS.
B30: 13. SEE STANDARD PLAN 5-297.742 FOR STRUCTURAL DETAIL FOR BRIDGE MOUNTED MINOR GUIDE SIGNS.
B31: 14. SEE STANDARD PLAN 5-297.740 FOR CONCRETE RAIL MOUNTED SIGN STRUCTURES.
B32: 15. SEE CONCRETE WALL MOUNTED SIGN DETAIL FOR WALL MOUNTED SIGN STRUCTURES.

Sheet D SIGN S & I
B2: SALVAGE AND INSTALL SIGN TYPE D | O2: ST-T
B3: SIGN NUMBER | C3: SIGNS QUANTITY (EACH) | D3: PANEL | J3: MOUNTING HEIGHT (FEET) | K3: NEW POSTS / MOUNTING | P3: TOTAL AREA
F4: SIZE (INCHES) | I4: AREA (SQ FT) | K4: NUMBER OF POSTS | L4: POST TYPE | M4: RISER POST SIZE (INCHES) | N4: KNEE | O4: SURFACE TYPE
D5: LEGEND | N5: BRACES
N6: QTY | P6: SQ FT
B7: D-201 | C7: 2 | D7: 182ND AVE DOUBLE HEADED ARROW | F7: 102 | G7: x | H7: 48 | I7: =(F7*H7)/144 -> 34 | J7: 7 | K7: 3 | L7: SQ | M7: 2-1/2 | N7: 1 | O7: SOIL | P7: =I7*C7 -> 68
C8: 1 | D8: STILLWATER 10 | F8: 96 | G8: x | H8: 18 | I8: 12 | J8: 7 | K8: 1 | L8: SQ | M8: 2-1/2 | N8: 1 | O8: SOIL | P8: =I8*C8 -> 12
C9: 1 | D9: JCT 94 1/4 MILE | F9: 72 | G9: x | H9: 66 | I9: 33 | J9: 7 | K9: 2 | L9: SQ | M9: 2-1/2 | N9: 1 | O9: SOIL | P9: =I9*C9 -> 33
C10: 2 | D10: MN 95 DOUBLE ARROW | F10: 42 | G10: x | H10: 54 | I10: 15.75 | J10: 7 | K10: 1 | L10: SQ | M10: 2 | N10: 1 | O10: CONCRETE | P10: =I10*C10 -> 31.5
C11: 1 | D11: TREASURE ISLAND CASINO | F11: 114 | G11: x | H11: 60 | I11: 47.5 | J11: 7 | K11: 3 | L11: SQ | M11: 2-1/2 | N11: 1 | O11: SOIL | P11: =I11*C11 -> 47.5
B12: TOTAL | C12: =SUM(C7:C11) -> 7 | P12: =SUM(P7:P11) -> 192
B14: SPECIFIC NOTE(S):
B16: GENERAL NOTE(S):
B17: 1. MOUNTING HEIGHT IS MINIMUM (WITH A +6 INCH TOLERANCE)
B18: 2. POST TYPE ABBREVIATIONS (SQ = SQUARE TUBE, R = ROUND POST, CR = CONCRETE RAIL - POST TYPE, BR-SN = BRIDGE MOUNTED STREET NAME, BR-MG = BRIDGE MOUNTED MINOR GUIDE)
B19: 3. SEE THE CURRENT MnDOT STANDARD SIGNS AND MARKINGS MANUAL FOR STANDARD SIGN DESIGNS, SPLICE PLATES, STRINGERS AND PUNCHING CODES.
B20: 4. SEE SQUARE TUBE SIGN MOUNTING DETAIL FOR ATTACHMENT.
B21: 5. SEE STANDARD PLAN 5-297.701 FOR PLACEMENT.
B22: 6. SEE SQUARE TUBE SLIP BASE DETAIL FOR 2-1/2 INCH RISER POST.
B23: 7. SEE SQUARE TUBE FIN BASE DETAIL FOR 2 INCH RISER POST IN SOIL.
B24: 8. SEE SQUARE TUBE SHEAR BOLT BASE DETAIL FOR 2 INCH RISER POST ON CONCRETE.
B25: 9. SEE STANDARD PLAN 5-297.721 FOR 1-3/4 INCH RISER POST USE SQUARE TUBE THREE WALL BASE.
B26: 10. SEE STANDARD PLAN 5-297.730 FOR SIGN MOUNTING TO ROUND POST.
B27: 11. SEE STANDARD PLAN 5-297.703 FOR SIGN PLACEMENT AT RAMP GORES.
B28: 12. SEE STANDARD PLAN 5-297.741 FOR STRUCTURAL DETAIL FOR BRIDGE MOUNTED STREET NAME SIGNS.
B29: 13. SEE STANDARD PLAN 5-297.742 FOR STRUCTURAL DETAIL FOR BRIDGE MOUNTED MINOR GUIDE SIGNS.
B30: 14. SEE STANDARD PLAN 5-297.740 FOR CONCRETE RAIL MOUNTED SIGN STRUCTURES.
B31: 15. SEE CONCRETE WALL MOUNTED SIGN DETAIL FOR WALL MOUNTED SIGN STRUCTURES.

Sheet D SAL
B2: SALVAGE SIGN TYPE D | H2: ST-W
B3: SIGN NUMBER | C3: SIGNS QUANTITY (EACH) | D3: PANEL
D4: SIZE (INCHES)
G5: LEGEND
B7: D-101 | C7: 1 | D7: 48 | E7: x | F7: 60 | G7: EXIT 40 MPH
B8: D-102 | C8: 2 | D8: 24 | E8: x | F8: 15 | G8: NORTH
D9: 24 | E9: x | F9: 24 | G9: INTERSTATE 35
E10: x
E11: x
E12: x
E13: x
E14: x
B15: TOTAL | C15: =SUM(C7:C14) -> 3
B17: SPECIFIC NOTE(S):
B19: GENERAL NOTE(S):

Sheet MASTARM
B2: SIGN PANELS ON SIGNALS
B3: POLE NUMBER | C3: "A" DISTANCE (FEET) OR POLE | D3: PANEL
D4: QTY | E4: CODE NUMBER | F4: LEGEND | G4: SIZE (INCHES) | J4: AREA (SQ FT)
B7: 1 | C7: 0 | D7: 1 | E7: R10-X12 | F7: LEFT TURN YIELD ON FLASHING YELLOW ARROW | G7: 42 | H7: x | I7: 48 | J7: =(G7*I7)/144 -> 14
B8: 1 | C8: 27 | D8: 1 | F8: GRAND AVE | G8: 84 | H8: x | I8: 24 | J8: =(G8*I8)/144 -> 14
B9: 1 | C9: POLE | D9: 1 | E9: R6-1R | F9: ONE WAY RIGHT | G9: 54 | H9: x | I9: 18 | J9: =(G9*I9)/144 -> 6.75
B10: 1 | C10: POLE | D10: 1 | E10: R6-1L | F10: ONE WAY LEFT | G10: 54 | H10: x | I10: 18 | J10: =(G10*I10)/144 -> 6.75
B11: 2 | C11: 0 | D11: 1 | E11: R10-X12 | F11: LEFT TURN YIELD ON FLASHING YELLOW ARROW | G11: 42 | H11: x | I11: 48 | J11: =(G11*I11)/144 -> 14
B12: 2 | C12: 13 | D12: 1 | F12: MN156 DBL | G12: 48 | H12: x | I12: 54 | J12: =(G12*I12)/144 -> 18
B13: 2 | C13: POLE | D13: 1 | E13: R6-1R | F13: ONE WAY RIGHT | G13: 54 | H13: x | I13: 18 | J13: =(G13*I13)/144 -> 6.75
B14: 2 | C14: POLE | D14: 1 | E14: R6-1L | F14: ONE WAY LEFT | G14: 54 | H14: x | I14: 18 | J14: =(G14*I14)/144 -> 6.75
B15: 4 | C15: 0 | D15: 1 | E15: R10-X12 | F15: LEFT TURN YIELD ON FLASHING YELLOW ARROW | G15: 42 | H15: x | I15: 48 | J15: 14
B16: 4 | C16: 27 | D16: 1 | F16: GRAND AVE | G16: 84 | H16: x | I16: 24 | J16: 14
B17: 4 | C17: POLE | D17: 1 | E17: R6-1R | F17: ONE WAY RIGHT | G17: 54 | H17: x | I17: 18 | J17: =(G17*I17)/144 -> 6.75
B18: 4 | C18: POLE | D18: 1 | E18: R6-1L | F18: ONE WAY LEFT | G18: 54 | H18: x | I18: 18 | J18: =(G18*I18)/144 -> 6.75
B19: 5 | C19: 0 | D19: 1 | E19: R10-X12 | F19: LEFT TURN YIELD ON FLASHING YELLOW ARROW | G19: 42 | H19: x | I19: 48 | J19: 14
B20: 5 | C20: 13 | D20: 1 | F20: MN156 DBL | G20: 48 | H20: x | I20: 54 | J20: 18
B21: 5 | C21: POLE | D21: 1 | E21: R6-1R | F21: ONE WAY RIGHT | G21: 54 | H21: x | I21: 18 | J21: =(G21*I21)/144 -> 6.75
B22: 5 | C22: POLE | D22: 1 | E22: R6-1L | F22: ONE WAY LEFT | G22: 54 | H22: x | I22: 18 | J22: =(G22*I22)/144 -> 6.75
B24: SPECIFIC NOTE(S):
B26: GENERAL NOTE(S):
B27: 1. SEE THE CURRENT MnDOT STANDARD SIGNS AND MARKINGS MANUAL FOR STANDARD SIGN DESIGNS, ARROW DETAILS AND SPLICE PLATE DETAILS.
B28: 2. FOR NON STANDARD SIGN DESIGNS, LAYOUTS ARE INCLUDED. SIGN PANEL DIMENSIONS ARE IN INCHES.
B29: 3. SEE STANDARD PLAN 5-297.731 FOR SIGN MOUNTING TO MAST ARM.
B30: 4. SEE STANDARD PLAN 5-297.730 FOR SIGN MOUNTING TO ROUND POST.
B31: 5. MOUNTING HEIGHT OF POLE MOUNTED SIGN PANELS MUST BE 7 FOOT MINIMUM.
B32: MOUNTING HEIGHT IS MEASURED FROM BOTTOM OF SIGN PANEL TO SURFACE IMMEDIATELY BELOW THE SIGN PANEL.
B33: 6. "A" DISTANCE = DISTANCE FROM THE END OF THE MAST ARM TO THE EDGE OF EACH SIGN PANEL.
B37: SIGN PANELS ON MAST ARMS
B38: SIGN NUMBER | C38: "A" DISTANCE (FEET) OR POLE | D38: PANEL
D39: QTY | E39: CODE NUMBER | F39: LEGEND | G39: SIZE (INCHES) | J39: AREA (SQ FT)
B42: C-45 | C42: 0 | D42: 1 | E42: R10-X12 | F42: LEFT TURN YIELD ON FLASHING YELLOW ARROW | G42: 42 | H42: x | I42: 48 | J42: =(G42*I42)/144 -> 14
B43: D-13 | C43: 27 | D43: 1 | F43: GRAND AVE | G43: 84 | H43: x | I43: 24 | J43: =(G43*I43)/144 -> 14
B44: C-45 | C44: 0 | D44: 1 | E44: R10-X12 | F44: LEFT TURN YIELD ON FLASHING YELLOW ARROW | G44: 42 | H44: x | I44: 48 | J44: =(G44*I44)/144 -> 14
B45: D-14 | C45: 13 | D45: 1 | F45: MN156 DBL | G45: 48 | H45: x | I45: 54 | J45: =(G45*I45)/144 -> 18
B46: C-45 | C46: 0 | D46: 1 | E46: R10-X12 | F46: LEFT TURN YIELD ON FLASHING YELLOW ARROW | G46: 42 | H46: x | I46: 48 | J46: =(G46*I46)/144 -> 14
B47: D-12 | C47: 27 | D47: 1 | F47: GRAND AVE | G47: 84 | H47: x | I47: 24 | J47: 14
B48: C-45 | C48: 0 | D48: 1 | E48: R10-X12 | F48: LEFT TURN YIELD ON FLASHING YELLOW ARROW | G48: 42 | H48: x | I48: 48 | J48: =(G48*I48)/144 -> 14
B49: D-14 | C49: 13 | D49: 1 | F49: MN156 DBL | G49: 48 | H49: x | I49: 54 | J49: 18
B50: TOTAL | J50: =SUM(J42:J49) -> 120
B52: SPECIFIC NOTE(S):
B54: GENERAL NOTE(S):
B55: 1. SEE THE CURRENT MnDOT STANDARD SIGNS AND MARKINGS MANUAL FOR STANDARD SIGN DESIGNS, ARROW DETAILS AND SPLICE PLATE DETAILS.
B56: 2. FOR NON STANDARD SIGN DESIGNS, LAYOUTS ARE INCLUDED. SIGN PANEL DIMENSIONS ARE IN INCHES.
B57: 3. SEE STANDARD PLAN 5-297.731 FOR SIGN MOUNTING TO MAST ARM.
B58: 4. "A" DISTANCE = DISTANCE FROM THE END OF THE MAST ARM TO THE EDGE OF EACH SIGN PANEL.

Sheet DEL & MARK
B2: DELINEATOR / MARKER SIGN | H2: ST-W
B3: CODE NUMBER | C3: DESCRIPTION | D3: SIZE (INCHES) | G3: SURFACE TYPE | H3: QUANTITY (EACH)
B5: OM1-2 | C5: OBJECT MARKER / YELLOW ON BLACK | D5: 18 | E5: x | F5: 18 | G5: SOIL | H5: 1
B6: OM3-L | C6: OBJECT MARKER LEFT / BLACK ON YELLOW | D6: 12 | E6: x | F6: 36 | G6: SOIL | H6: 1
B7: OM3-C | C7: OBJECT MARKER CENTER / BLACK ON YELLOW | D7: 12 | E7: x | F7: 24 | G7: CONCRETE | H7: 1
B8: OM3-R | C8: OBJECT MARKER RIGHT / BLACK ON YELLOW | D8: 12 | E8: x | F8: 36 | G8: CONCRETE | H8: 1
B9: X2-2 | C9: BRIDGE NUMBER / 12345 | D9: 6 | E9: x | F9: 18 | G9: SOIL | H9: 1
B10: X4-1 | C10: GUIDE DELINEATOR / BLACK ON WHITE | D10: 8 | E10: x | F10: 24 | G10: SOIL | H10: 1
B11: X4-1 | C11: GUIDE DELINEATOR / BLACK ON YELLOW | D11: 8 | E11: x | F11: 24 | G11: SOIL | H11: 1
B12: X4-2 | C12: 1/10 MILE DELINEATOR / WHITE | D12: 4 | E12: x | F12: 4 | G12: SOIL | H12: 1
B13: X4-3 | C13: WRAP AROUND DELINEATOR / BLACK ON WHITE | D13: 3 | E13: x | F13: 12 | G13: SOIL | H13: 1
B14: X4-3 | C14: WRAP AROUND DELINEATOR / BLACK ON YELLOW | D14: 3 | E14: x | F14: 12 | G14: SOIL | H14: 1
B15: TOTAL | H15: =SUM(H5:H14) -> 10
B17: SPECIFIC NOTE(S):
B19: GENERAL NOTE(S):
B20: 1. SEE THE CURRENT MnDOT STANDARD SIGNS AND MARKINGS MANUAL FOR STANDARD SIGN DESIGNS AND PUNCHING CODES.
B21: 2. SEE SQUARE TUBE SIGN MOUNTING DETAIL FOR ATTACHMENT.
B22: 3. SEE STANDARD PLAN 5-297.702 FOR PLACEMENT.
B23: 4. SEE STANDARD PLAN 5-297.721 FOR SQUARE TUBE THREE WALL BASE STRUCTURE.
B24: 5. SEE STANDARD PLAN 5-297.703 FOR PLACEMENT IN GORES.
B27: DELINEATOR / MARKER PANEL | G27: ST-Y
B28: CODE NUMBER | C28: DESCRIPTION | D28: SIZE (INCHES) | G28: QUANTITY (EACH)
B30: OM1-2 | C30: OBJECT MARKER / YELLOW ON BLACK | D30: 18 | E30: x | F30: 18 | G30: 1
B31: OM3-L | C31: OBJECT MARKER LEFT / BLACK ON YELLOW | D31: 12 | E31: x | F31: 36 | G31: 1
B32: OM3-C | C32: OBJECT MARKER CENTER / BLACK ON YELLOW | D32: 12 | E32: x | F32: 24 | G32: 1
B33: OM3-R | C33: OBJECT MARKER RIGHT / BLACK ON YELLOW | D33: 12 | E33: x | F33: 36 | G33: 1
B34: X2-1 | C34: OH SIGN ID PLATE / 494-121 | D34: 12 | E34: x | F34: 6 | G34: 1
B35: X4-1 | C35: GUIDE DELINEATOR / BLACK ON WHITE | D35: 8 | E35: x | F35: 24 | G35: 1
B36: X4-1 | C36: GUIDE DELINEATOR / BLACK ON YELLOW | D36: 8 | E36: x | F36: 24 | G36: 1
B37: X4-3 | C37: WRAP AROUND DELINEATOR / BLACK ON WHITE | D37: 3 | E37: x | F37: 12 | G37: 1
B38: X4-3 | C38: WRAP AROUND DELINEATOR / BLACK ON YELLOW | D38: 3 | E38: x | F38: 12 | G38: 1
B39: TOTAL | G39: =SUM(G30:H38) -> 9
B41: SPECIFIC NOTE(S):
B43: GENERAL NOTES:
B44: 1. SEE THE CURRENT MnDOT STANDARD SIGNS AND MARKINGS MANUAL FOR STANDARD SIGN DESIGNS AND PUNCHING CODES.
B45: 2. SEE SQUARE TUBE SIGN MOUNTING DETAIL FOR ATTACHMENT.
B46: 3. SEE STANDARD PLAN 5-297.702 FOR PLACEMENT.
B47: 4. SEE STANDARD PLAN 5-297.730 FOR SIGN MOUNTING TO ROUND POST.

Sheet REF SIGN
B5: DO NOT USE THIS PAY ITEM.
B6: USE PAY ITEM SIGN PANEL TYPE C.
B7: MAKE SURE MOUNTING HEIGHT IS 4 FEET.

Sheet SAL REF SIGN
B4: DO NOT USE THIS PAY ITEM.
B5: USE PAY ITEM SALVAGE SIGN TYPE C.

Sheet REF SIGN S&I
B3: DO NOT USE THIS PAY ITEM.
B4: USE PAY ITEMS SALVAGE AND INSTALL SIGN TYPE C.
B5: MAKE SURE MOUNTING HEIGHT IS 4 FEET.

Sheet OL
C2: SIGN PANELS TYPE OVERLAY | K2: ST-K
C3: CODE NUMBER | D3: QUANTITY | E3: SIZE (INCHES) | H3: AREA (SQ FT) | I3: TOTAL (SQ FT) | J3: LEGEND
D5: 0 | F5: x | H5: =E5*G5/144 -> 0 | I5: =D5*H5 -> 0
D6: 0 | F6: x | H6: =E6*G6/144 -> 0 | I6: =D6*H6 -> 0
D7: 0 | F7: x | H7: =E7*G7/144 -> 0 | I7: =D7*H7 -> 0
C8: TOTAL | I8: =SUM(I5:I7) -> 0
C11: SPECIFIC NOTE(S):
C13: GENERAL NOTE(S):
B14: * ONLY USE FOR OVERLAYING A PORTION OF AN EXISTING SIGN

Sheet S&I SPEC
B2: SALVAGE & INSTALL SIGN TYPE SPECIAL | I2: ST-W
B3: SIGN NUMBER | C3: QUANTITY (EACH) | E3: MOUNTING HEIGHT (FEET) | F3: NEW POSTS / MOUNTING
D4: PANEL | F4: NUMBER OF POSTS | G4: POST TYPE | H4: RISER POST SIZE (INCHES) | I4: SURFACE TYPE
D5: LEGEND | L5: DEFAULT VALUES
L6: POST LB | M6: POST TYPE
B7: S-201 | C7: 1 | D7: ROCHESTER BLVD | E7: 7 | F7: 1 | G7: SQ | H7: 2 | I7: SOIL | L7: 2.5 | M7: U
D8: 250TH ST E | L8: 2.5 | M8: U
B9: TOTAL | C9: =SUM(C7:C8) -> 1
B11: SPECIFIC NOTE(S):
B13: GENERAL NOTE(S):
B14: 1. MOUNTING HEIGHT IS MINIMUM (WITH A +6 INCH TOLERANCE)
B15: 2. POST TYPE ABBREVIATIONS (SQ = SQUARE TUBE, R = ROUND POST, CR = CONCRETE RAIL - POST TYPE)
B16: 3. SEE SQUARE TUBE FIN BASE DETAIL FOR 2 INCH RISER POST IN SOIL.
B17: 4. SEE STANDARD PLAN 5-297.701 FOR PLACEMENT.

Sheet A REM FOOT
B2: REMOVE SIGN FOOTING-TYPE A | E2: ='SEQ-PSTAB'!#REF! -> 
B3: SIGN | C3: LOCATION | D3: FOOTING DEPTH
B4: NUMBER | D4: (FEET)
B5: A I94-528 | C5: 142+00 SB | D5: 6
B6: A I90-874 | C6: 212+75 NB | D6: 7.5
B19: TOTAL | C19: =COUNTA(B5:B16) -> 2
B22: USER NOTES:
B23: Sign is crushed and the CONCRETE base is left sitting and needs
B24: to be removed before new sign can be installed
B25: INCLUDED IN 2104.509 REMOVE SIGN BASE (EACH)
B26: Remember that there are two footings for each sign!!

Sheet SIGN PANELS TYPE A EXTRUDED
B2: SIGN PANELS TYPE A (EXTRUDED) | I2: ='SEQ-PSTAB'!#REF! -> 
C3: LOCATION | D3: F & I | H3: REQUIRED
B4: SIGN | D4: PANEL SECTIONS | H4: PANEL
B5: NUMBER | D5: SIZE (INCHES) | G5: AREA (SQ FT) | H5: SIZE
H6: (INCH)
B7: A I35-025 | C7: 142+00 SB | D7: 0 | E7: x | F7: 12 | G7: =D7*F7/144 -> 0 | H7: 132 x 102
B8: A I35-026 | C8: 212+75 NB | D8: 0 | E8: x | F8: 12 | G8: =D8*F8/144 -> 0 | H8: 138 x 96
E9: x | G9: 0
E10: x | G10: 0
E11: x | G11: 0
E12: x | G12: 0
E13: x | G13: 0
E14: x | G14: 0
E15: x | G15: 0
B16: TOTAL | G16: =SUM(G7:G15) -> 0
B18: USER NOTES:
B19: Paid for 2564.531 as Sign Panels Type A (sq. ft.)
B20: wrong title; Rick to get us the correct title
B21: roadway note will say : F and I extruded panel sections.
B22: this chart pays for the extruded panels but then the sign overlay is INCLUDED IN SIGN PANEL OVERLAY TYPE A.
B23: you'll then need a second chart for the whole sign called SIGN PANEL OVERLAY TYPE A.

Sheet AEXTRM
B2: REMOVE EXTRUDED PANEL SECTIONS TYPE A | H2: AA
B3: SIGN NO | C3: LOCATION | D3: PANEL SIZE | H3: PANEL SIZE
D4: EXISTING | H4: MODIFIED
D5: INCH
B6: A I94-587 | C6: 142+00 SB | D6: 132 | E6: x | F6: 12 | H6: 102 | I6: x | J6: 78
B7: A I94-588 | C7: 212+75 NB | D7: 186 | E7: x | F7: 12 | H7: 186 | I7: x | J7: 102
E8: x | I8: x
E9: x | I9: x
E10: x | I10: x
B13: NOTE:
B14: 1. INCLUDED IN SIGN PANEL OVERLAY TYPE A.
B16: USER NOTES:
B17: No matching PAY ITEM. This is incidental to SIGN PANEL OVERLAY TYPE A (thus you need to have a chart for the sign panel overlay type A)

Sheet AEXTSA
B2: SALVAGE EXTRUDED PANEL SECTIONS TYPE A | J2: ='SEQ-PSTAB'!#REF! -> 
B3: SIGN NO | C3: LOCATION | D3: PANEL SIZE
D4: EXISTING | H4: MODIFIED
D5: INCH
B6: A I94-587 | C6: 142+00 SB | D6: 132 | E6: x | F6: 12 | H6: 102 | I6: x | J6: 78
B7: A I94-588 | C7: 212+75 NB | D7: 186 | E7: x | F7: 12 | H7: 186 | I7: x | J7: 102
E8: x | I8: x
E9: x | I9: x
E10: x | I10: x
E11: x | I11: x
E12: x | I12: x
E13: x | I13: x
E14: x | I14: x
E15: x | I15: x
E16: x | I16: x
B18: What total is transferred to the SEQ?
B19: There is no pay item for this yet. Haven't used this in years. Could be incidental to
B20: another pay item.

Sheet APSTMOD
B2: MODIFY TYPE A SIGN POST | L2: =IF('SEQ-PSTAB'!#REF!>0,'SEQ-PSTAB'!#REF!,'SEQ-PSTAB'!#REF!) -> 
B3: SEE SHEETS FOR DETAILS
C4: LOCATION | D4: POST
B5: SIGN | J5: EXTEND | L5: SHORTEN
B6: NO | D6: NO | E6: EXISTING | J6: APPROX | L6: APPROX
J7: FEET | L7: FEET
B8: A I94-587 | C8: 142+00 SB | D8: 2 | E8: W | F8: 6 | G8: x | H8: 20 | J8: 1.5
B9: A I94-588 | C9: 212+75 NB | D9: 2 | E9: W | F9: 8 | G9: x | H9: 24 | L9: 2
G10: x
G11: x
G12: x
G13: x
G14: x
G15: x
G16: x
B19: USER NOTES:
B20: If you remove extruded panel sections you need to saw the posts then you use this chart.
B21: If you add extruded panel sections then you need to extend the posts and then you use this chart.
B22: Roadway note is going to be "modify post."
B23: This chart is used for shortening or extending posts.
B24: There is no pay item for this chart, it is incidental to SIGN PANEL OVERLAY TYPE A
B26: TOTAL | C26: =COUNTIF(B10:B21,"<>""") -> 5 | D26: (this total should not appear on the chart in the plan, but should be automatic in the SEQ-PSTAB)

Sheet AREM
B2: REMOVE SIGN TYPE A | Y2: ='SEQ-PSTAB'!#REF! -> 
C3: QTY | D3: LOCATION | E3: PANEL SIZE | M3: POSTS
B4: SIGN | E4: EXTRUDED | I4: FLAT | M4: SIZE | W4: L1 | Y4: L2
B5: NO | E5: TYPE | I5: SHEET | M5: BREAK-AWAY | R5: NON
C6: EACH | E6: INCH | R6: BREAK-AWAY | W6: FEET | Y6: FEET
B7: A I94-587 | C7: 0 | D7: 142+00 SB | E7: 132 | F7: x | G7: 78 | J7: x | M7: W | N7: 6 | O7: x | P7: 20 | T7: x | W7: 13.5 | Y7: 14.5
B8: A I94-588 | C8: 0 | D8: 212+75 NB | E8: 186 | F8: x | G8: 102 | J8: x | M8: W | N8: 8 | O8: x | P8: 24 | T8: x | W8: 14 | Y8: 15
B9: A MN65-144 | C9: 0 | F9: x | J9: x | O9: x | T9: x
F10: x | J10: x | O10: x | T10: x
F11: x | J11: x | O11: x | T11: x
F12: x | J12: x | O12: x | T12: x
F13: x | J13: x | O13: x | T13: x
F14: x | J14: x | O14: x | T14: x
F15: x | J15: x | O15: x | T15: x
F16: x | J16: x | O16: x | T16: x
F17: x | J17: x | O17: x | T17: x
B18: TOTAL | C18: =SUM(C7:C17) -> 0
B21: GENERAL NOTE:
B22: 1. SIZES ARE APPROXIMATE

Sheet AS&IHP
B2: SALVAGE & INSTALL SIGN TYPE A
E3: PANEL SIZE | I3: POST | U3: SALVAGE QTY | V3: INSTALL QTY | W3: ADDITIONAL
I4: SIZE | N4: LENGTH | W4: STRUCT STEEL- POSTS FOR TYPE A SIGNS
B5: SIGN | C5: PRESENT | D5: NEW | N5: EXISTING | R5: REQUIRED
B6: NO | C6: LOCATION | D6: LOCATION | N6: L1 | P6: L2 | R6: L1 | T6: L2
E7: INCH | I7: INCH | N7: FEET | U7: EACH | V7: EACH | W7: POUND
B8: A US10-154 | C8: 142+00 SB | D8: 143+00 SB | E8: 132 | F8: x | G8: 78 | I8: W | J8: 6 | K8: x | L8: 20 | N8: 13.5 | P8: 14.5 | R8: 13 | T8: 14 | U8: 1 | V8: 1 | W8: 688
B9: A I94-872 | C9: 212+75 NB | D9: 213+00 NB | E9: 186 | F9: x | G9: 102 | I9: W | J9: 8 | K9: x | L9: 24 | N9: 14 | P9: 15 | R9: 14 | T9: 14.5 | U9: 1 | V9: 1 | W9: 812
F10: x | K10: x
F11: x | K11: x
F12: x | K12: x
F13: x | K13: x
F14: x | K14: x
F15: x | K15: x
B16: TOTAL | U16: =SUM(U8:U15) -> 2 | V16: =SUM(V8:V15) -> 2 | W16: =SUM(W8:W15) -> 1500
B19: USER NOTES:
B20: This chart is used to replace footings.
B21: This chart needs to be reviewed by Rick before we use it!! In fact Rick promises that he will get us a new and BETTER box:)
B22: Use pay items:
B23: SALVAGE SIGN TYPE A
B24: INSTALL SIGN TYPE A
B25: STRUCTURAL STEEL POSTS FOR TYPE A SIGNS
B27: GENERAL NOTES:
B28: 1. FOOTING POSTS SHALL NOT BE REINSTALLED
B29: 2. PORTION OF RISER POST BETWEEN BASE CONNECTION AND FRICTION FUSE MAY BE SHORTENED BUT SHALL NOT BE LENGTHENED.

Sheet ASAL
B2: SALVAGE SIGN TYPE A | X2: ='SEQ-PSTAB'!#REF! -> 
C3: LOCATION | D3: PANEL SIZE | L3: POSTS
B4: SIGN | D4: EXTRUDED TYPE | H4: FLAT SHEET | L4: SIZE | V4: L1 | X4: L2
B5: NO | D5: TYPE | H5: SHEET | L5: BREAK-AWAY | Q5: NON
D6: INCH | Q6: BREAK-AWAY | V6: FEET | X6: FEET
B7: A I90-458 | C7: 142+00 SB | D7: 132 | E7: x | F7: 78 | I7: x | L7: W | M7: 6 | N7: x | O7: 20 | S7: x | V7: 13.5 | X7: 14.5
B8: A I90-765 | C8: 212+75 NB | D8: 186 | E8: x | F8: 102 | I8: x | L8: W | M8: 8 | N8: x | O8: 24 | S8: x | V8: 14 | X8: 15
E9: x | I9: x | N9: x | S9: x
E10: x | I10: x | N10: x | S10: x
E11: x | I11: x | N11: x | S11: x
E12: x | I12: x | N12: x | S12: x
E13: x | I13: x | N13: x | S13: x
E14: x | I14: x | N14: x | S14: x
E15: x | I15: x | N15: x | S15: x
E16: x | I16: x | N16: x | S16: x
E17: x | I17: x | N17: x | S17: x
E18: x | I18: x | N18: x | S18: x
B20: Pay item:
B21: SALVAGE SIGN TYPE A
B22: We don't expect that we would use this chart. It is typically going to be under salvage and install.
B23: We could use this as a salvage only and not install the sign back.

Sheet A SIGN 14' PILE (prefered ver)
B2: SIGN TYPE A | K2: XX | N2: XX
D3: PANEL | H3: POST | J3: TOTAL | L3: "X" | N3: "H"
D4: SIZE | G4: AREA | H4: SIZE | I4: NO. OF POSTS | J4: WEIGHT
B5: SIGN | C5: LOCATION | J5: STRUCTURAL
B6: NO | J6: STEEL
D7: INCH | G7: SQ FT | J7: POUND | L7: FEET | N7: FEET
E8: x | H8: W4X13 | J8: 1414 | L8: 30 | N8: 7
E9: x | H9: W6X20 | I9: 2 | J9: 696 | L9: 30 | N9: 7
E10: x | H10: W8X24 | L10: 30 | N10: 7
E11: x | H11: W8X31 | L11: 30 | N11: 7
E12: x | H12: W10X39 | L12: 30 | N12: 7
E13: x | L13: 30 | N13: 7
E14: x | L14: 30 | N14: 7
D15: TOTAL | G15: =SUM(G8:G14) -> 0 | J15: =SUM(J8:J14) -> 2110
B17: GENERAL NOTE:
B18: 1. SEE SIGNING PANEL LAYOUT SHEETS FOR PANEL DESIGNS.
B19: USER NOTES
B20: This is all new sign
B21: pay items:
B22: SIGN PANELS TYPE A
B23: STRUCTURAL STEEL POSTS FOR TYPE A SIGN
B28: USE A SIGN COMPUTATION SHEET TO DETERMINE THESE QUANTITIES

Sheet SIGN PANELS TYPE A
B2: SIGN PANELS TYPE A | H2: ='SEQ-PSTAB'!#REF! -> 
B3: SEE SHEETS FOR PANEL | K3: SIGN PANELS TYPE A | S3: AA
B4: SIGN | C4: LOCATION | D4: SIZE | H4: AREA
B5: NO | D5: INCH | H5: SQ FT | L5: SP XXXXX | O5: SP XXXXX | R5: SP XXXXX
B6: A I94-528 | C6: 142+00 SB | D6: 0 | E6: x | F6: 78 | H6: =D6*F6/144 -> 0 | K6: SIGN NO | L6: QTY | M6: AREA (SQ FT) | O6: QTY | P6: AREA (SQ FT) | R6: QTY | S6: AREA
B7: A I90-874 | C7: 212+75 NB | D7: 0 | E7: x | F7: 102 | H7: =D7*F7/144 -> 0 | M7: =-G6*L7/144 -> 0 | P7: =-K7*O7/144 -> 0 | S7: =-N7*R7/144 -> 0
E8: x | H8: 0 | M8: 0 | P8: 0 | S8: 0
E9: x | H9: 0 | M9: 0 | P9: 0 | S9: 0
E10: x | H10: 0 | M10: 0 | P10: 0 | S10: 0
E11: x | H11: 0 | M11: 0 | P11: 0 | S11: 0
E12: x | H12: 0 | M12: 0 | P12: 0 | S12: 0
E13: x | H13: 0 | M13: 0 | P13: 0 | S13: 0
E14: x | H14: 0 | M14: 0 | P14: 0 | S14: 0
E15: x | H15: 0 | M15: 0 | P15: 0 | S15: 0
E16: x | H16: 0 | M16: 0 | P16: 0 | S16: 0
E17: x | H17: 0 | M17: 0 | P17: 0 | S17: 0
D18: TOTAL | H18: =SUM(H6:H17) -> 0 | M18: 0 | P18: 0 | S18: 0
K19: TOTALS | M19: 0 | P19: 0 | S19: 0
K21: Use this chart for split in quantities for several SP's.
B22: New sign panel on an inplace sign structure. If the new panel is wider then make sure the structure can handle the new sign panel. If not, you need new posts and not this chart anymore.

Sheet ASPNLIN
B2: INSTALL SIGN PANEL TYPE A | G2: ='SEQ-PSTAB'!#REF! -> 
B3: SIGN | C3: QTY | D3: LOCATION | E3: SIZE
B4: NO | C4: EACH | E4: INCH
B5: A I94-528 | C5: 0 | D5: 142+00 SB | E5: 132 | F5: x | G5: 78
B6: A I90-874 | C6: 0 | D6: 212+75 NB | E6: 186 | F6: x | G6: 102
F7: x
F8: x
F9: x
F10: x
F11: x
B12: TOTAL | C12: =SUM(C5:C11) -> 0
B15: Chances you won't use this chart. A panel is usually salvaged and installed,
B16: and in the salvage and install chart.

Sheet ASPNLOL
B2: SIGN PANEL OVERLAY TYPE A | H2: AA
K3: SIGN PANEL OVERLAY TYPE A | S3: AA
B4: SIGN | C4: LOCATION | D4: OVERLAY | H4: AREA
B5: NO | D5: INCH | H5: SQ FT | K5: SIGN | L5: QTY | M5: AREA | O5: QTY | P5: AREA | R5: QTY | S5: AREA
B6: A I94-528 | C6: S | D6: 0 | E6: x | F6: 78 | H6: =D6*F6/144 -> 0 | K6: NO | M6: SQ FT | P6: SQ FT | S6: SQ FT
B7: A I90-874 | C7: 212+75 NB | D7: 0 | E7: x | F7: 102 | H7: 0 | K7: =B6 -> A I94-528 | L7: 2 | M7: =(D6*F6)/144 -> 0 | P7: =-K7*O7/144 -> 0 | S7: =-N7*R7/144 -> 0
E8: x | H8: 0 | K8: =B7 -> A I90-874 | L8: 3 | M8: =(D7*F7)/144 -> 0 | P8: 0 | S8: 0
E9: x | H9: 0 | K9: 0 | M9: 0 | P9: 0 | S9: 0
E10: x | H10: 0 | K10: 0 | M10: 0 | P10: 0 | S10: 0
E11: x | H11: 0 | K11: 0 | M11: 0 | P11: 0 | S11: 0
E12: x | H12: 0 | K12: 0 | M12: 0 | P12: 0 | S12: 0
E13: x | H13: 0 | K13: 0 | M13: 0 | P13: 0 | S13: 0
E14: x | H14: 0 | K14: 0 | M14: 0 | P14: 0 | S14: 0
E15: x | H15: 0 | K15: 0 | M15: 0 | P15: 0 | S15: 0
E16: x | H16: 0 | K16: 0 | M16: 0 | P16: 0 | S16: 0
E17: x | H17: 0 | K17: 0 | M17: 0 | P17: 0 | S17: 0
D18: TOTAL | H18: =SUM(H6:H17) -> 0 | K18: 0 | M18: 0 | P18: 0 | S18: 0
K19: TOTALS | M19: =SUM(M7:M18) -> 0 | P19: 0 | S19: 0
B20: GENERAL NOTE:
B21: 1. SEE SIGN PANEL OVERLAYS.
K22: this chart is for each SP

Sheet ASPNLSAL
B2: SALVAGE SIGN PANEL TYPE A | F2: ='SEQ-PSTAB'!#REF! -> 
C3: LOCATION | D3: PANEL SIZE
B4: SIGN
B5: NO
D6: INCHES
B7: A I94-100 | C7: 142+00 SB | D7: 102 | E7: x | F7: 78
B8: A I90-887 | C8: 212+75 NB | D8: 174 | E8: x | F8: 102
E9: x
E10: x
E11: x
E12: x
E13: x
E14: x
E15: x
E16: x

Sheet ASPNLSAW
B2: SAW SIGN PANEL TYPE A | L2: ='SEQ-PSTAB'!#REF! -> 
B3: SIGN NO | C3: LOCATION | D3: PANEL SIZE | L3: LENGTH
D4: EXISTING | H4: MODIFIED | L4: OF CUT
D5: INCH | L5: FEET
B6: A MN23-132 | C6: 142+00 SB | D6: 132 | E6: x | F6: 78 | H6: 102 | I6: x | J6: 78 | L6: =F6/12 -> 6.5
B7: A MN23-133 | C7: 212+75 NB | D7: 186 | E7: x | F7: 102 | H7: 174 | I7: x | J7: 102 | L7: =F7/12 -> 8.5
E8: x | I8: x | L8: 0
E9: x | I9: x | L9: 0
E10: x | I10: x | L10: 0
E11: x | I11: x | L11: 0
E12: x | I12: x | L12: 0
E13: x | I13: x | L13: 0
E14: x | I14: x | L14: 0
E15: x | I15: x | L15: 0
J16: TOTAL | L16: =SUM(L6:L15) -> 15
B18: just what it means, we need to saw it because it is too wide. You will then have SIGN PANEL OVERLAY TYPE A
B19: It would be incidental to SIGN PANEL OVERLAY TYPE A
B20: But there is a pay item for it just as the title is.

Sheet AFF
B2: FRICTION FUSE | E2: SA
B3: SIGN | C3: QTY | D3: LOCATION | E3: POST
B4: NO | C4: EACH | E4: SIZE
B5: A-1 | C5: 2 | D5: 142+00 SB | E5: W6X20
B6: A-2 | C6: 2 | D6: 212+75 NB | E6: W8X24
B17: TOTAL | C17: =SUM(C5:C16) -> 4

Sheet A REM PANEL
B1: AREMPAN
B2: REMOVE SIGN PANEL TYPE A | D2: AA
B3: SIGN NO | C3: LOCATION | D3: SIZE
D5: INCH
B6: A MN23-132
B7: A MN23-133
B12: TOTAL | C12: =COUNTA(B6:B11) -> 2

Sheet AKP
B2: KEEPER PLATE | E2: SA
B3: SIGN | C3: QTY | D3: LOCATION | E3: POST
B4: NO | C4: EACH | E4: SIZE
B5: A MN23-132 | C5: 0 | D5: 142+00 SB | E5: W6X20
B6: A MN23-133 | C6: 0 | D6: 212+75 NB | E6: W8X24
B17: TOTAL | C17: =SUM(C5:C16) -> 0

Sheet EA
B2: SIGN PANELS TYPE EA | K2: G
C3: QTY | D3: LOCATION | E3: PANEL | K3: LEGEND
B4: SIGN | E4: SIZE (INCH) | I4: AREA (SQ FT) | J4: TOTAL
B5: NO | J5: AREA
J6: (SQ FT)
B7: EA-1 | C7: 3 | D7: A US75-246, A US75-247 & A US75-249 | E7: 102 | F7: x | G7: 0 | I7: =E7*G7/144 -> 0 | J7: =I7*C7 -> 0 | K7: EXIT 157
B8: EA-2 | C8: 2 | D8: A US75-247, US75-250 | E8: 162 | F8: x | G8: 0 | I8: =E8*G8/144 -> 0 | J8: =I8*C8 -> 0 | K8: EXITS 159A&B
B9: EA-3 | C9: 1 | D9: A I90-621 | E9: 120 | F9: x | G9: 0 | I9: 0 | J9: 0 | K9: EXIT 159A
F10: x | I10: 0 | J10: 0
F11: x | I11: 0 | J11: 0
F12: x | I12: 0 | J12: 0
F13: x | I13: 0 | J13: 0
F14: x | I14: 0 | J14: 0
F15: x | I15: 0 | J15: 0
F16: x | I16: 0 | J16: 0
F17: x | I17: 0 | J17: 0
F18: x | I18: 0 | J18: 0
B19: TOTAL | J19: =SUM(J7:J18) -> 0
B23: GENERAL NOTES:
B24: 1. SEE STANDARD PLAN 5-297.710 FOR STRUCTURAL DETAILS.
B25: 2. POST SPACING MAY BE VARIED TO MISS MEMBERS OF A SIGN STRUCTURE
B26: 3. SEE SIGNING PANEL LAYOUT SHEETS FOR PANEL DESIGNS.

Sheet EAOL
B2: SIGN PANEL OVERLAY TYPE EA | L2: ='SEQ-PSTAB'!#REF! -> 
B3: SIGN NO | E3: PANEL OVERLAY | L3: LEGEND
C4: QTY | D4: LOCATION | E4: SIZE | I4: AREA | K4: TOTAL
E5: INCH | I5: SQ FT | K5: SQ FT
B6: EA-1 | C6: 2 | D6: A I90-454, A I90-455 | E6: 150 | F6: x | G6: 0 | I6: =(E6*G6)/144 -> 0 | K6: =I6*C6 -> 0 | L6: EXITS 52B&A
B7: EA-2 | C7: 1 | D7: A I90-560 | E7: 96 | F7: x | G7: 0 | I7: =(E7*G7)/144 -> 0 | K7: =I7*C7 -> 0 | L7: EXIT 48
F8: x
F9: x
F10: x
F11: x
F12: x
F13: x
F14: x
B15: TOTAL | K15: =SUM(K6:K14) -> 0

Sheet EAREM
B2: REMOVE SIGN TYPE EA | J2: AA
B3: SIGN NO | C3: QTY | E3: POSTS NO & TYPE | F3: PANEL
D4: LOCATION | F4: SIZE | J4: LEGEND
C5: EACH | F5: (INCH)
B6: EA-101 | C6: 0 | D6: A I35W-024 | E6: 3-U | F6: 102 | G6: x | H6: 24 | J6: EXIT 157
B7: EA-102 | C7: 0 | D7: A MN100-041 | E7: 4-U | F7: 162 | G7: x | H7: 24 | J7: EXITS 159A&B
G8: x
G9: x
G10: x
G11: x
G12: x
G13: x
B14: TOTAL | C14: =SUM(C6:C13) -> 0

Sheet EAEXTFI
B2: SIGN PANELS TYPE EA (EXTRUDED PANEL SECTIONS) | N2: AA
C3: QTY | D3: LOCATION | E3: PANEL | L3: REQUIRED PANEL SIZE
B4: SIGN | E4: SIZE | I4: AREA | K4: TOTAL
B5: NO | K5: AREA
E6: INCH | I6: SQ FT | K6: SQ FT | L6: INCH
B7: EA-201 | C7: 0 | D7: A MN280-002 | E7: 96 | F7: x | G7: 6 | I7: =E7*G7/144 -> 4 | K7: =C7*I7 -> 0 | L7: 96 | M7: x | N7: 30
B8: EA-202 | C8: 0 | D8: A MN280-003, A MN280-004 | E8: 96 | F8: x | G8: 6 | I8: =E8*G8/144 -> 4 | K8: =C8*I8 -> 0 | L8: 96 | M8: x | N8: 30
B9: TOTAL | K9: =SUM(K7:K8) -> 0

Sheet PANEL OL, EXT PAN, PMP
B2: PANEL OVERLAYS, EXTRUDED PANELS AND PANEL MOUNTING POSTS | X2: ST-B
B3: SIGN SUPPORT NUMBER | C3: PANEL NUMBER | D3: PANEL OVERLAY | I3: EXTRUDED PANEL | T3: PANEL MOUNTING POSTS
D4: PANEL LEGEND | E4: PANEL OVERLAY | I4: EXISTING EXTRUDED PANEL | L4: F. & I. EXTRUDED PANEL | Q4: REMOVE EXTRUDED PANEL SECTIONS | T4: NO. | U4: TYPE (1) | V4: LENGTH | W4: STRUCTURAL STEEL-PANEL MOUNTING PST FOR OH SIGNS (2) | X4: ATTACH TO TRUSS TYPE (3) | AA4: EXTEND APPROX. | AB4: SHORTEN APPROX.
P5: REMOVE
P6: EXTRUDED
P7: PANEL
E10: INCH | H10: SQ FT | I10: INCH | L10: INCH | O10: SQ FT | P10: EACH | Q10: INCH | V10: INCH | W10: POUND | AA10: INCH | AB10: INCH
B11: SP 1010-001
B12: IB MN101-020 | C12: P-1 | D12: EXIT 40 | E12: 96 | F12: x | G12: 30 | H12: =E12*G12/144 -> 20 | J12: x | L12: 96 | M12: x | N12: 30 | O12: =L12*N12/144 -> 20 | R12: x | T12: 2 | U12: U | W12: 42
B13: IB MN101-020 | C13: P-2 | D13: COUNTY 144-141ST AVE 1/2 MILE | E13: 144 | F13: x | G13: 108 | H13: 108 | J13: x | L13: 144 | M13: x | N13: 108 | O13: =L13*N13/144 -> 108 | R13: x
B14: IB MN101-021 | D14: EXIT 40 | E14: 96 | F14: x | G14: 30 | H14: 20 | J14: x | L14: 96 | M14: x | N14: 30 | O14: =L14*N14/144 -> 20 | R14: x | T14: 2 | U14: U | W14: 42
B15: IB MN101-021 | D15: COUNTY 144-141ST AVE 45 DEG ARROW | E15: 144 | F15: x | G15: 126 | H15: 126 | I15: 144 | J15: x | K15: 126 | R15: x
B16: IB MN101-023 | D16: EXIT 39 | E16: 96 | F16: x | G16: 30 | H16: 20 | J16: x | L16: 96 | M16: x | N16: 30 | O16: =L16*N16/144 -> 20 | R16: x | T16: 2 | U16: U | W16: 42
B17: IB MN101-023 | D17: MN SCHOOL OF BARTENDING 1/2 MILE | E17: 240 | F17: x | G17: 96 | H17: 160 | I17: 240 | J17: x | K17: 126 | Q17: 240 | R17: x | S17: 30 | AB17: 30
B18: OH MN101-521 | D18: EXIT 43 | E18: 96 | F18: x | G18: 30 | H18: 20 | J18: x | L18: 96 | M18: x | N18: 30 | O18: =L18*N18/144 -> 20 | R18: x | T18: 2 | U18: U | W18: 42
B19: OH MN101-521 | D19: MN 51 ST PAUL MINNEAPOLIS 1 MILE EXIT ONLY | E19: 174 | F19: x | G19: 156 | H19: 188.5 | I19: 174 | J19: x | K19: 126 | L19: 174 | M19: x | N19: 30 | O19: 36.25 | R19: x | T19: 3 | U19: W6x12 | V19: 160 | W19: 534 | X19: C | Y19: (4)
B20: OH MN101-522 | D20: EXIT 44 | E20: 96 | F20: x | G20: 30 | H20: 20 | J20: x | L20: 96 | M20: x | N20: 30 | O20: 20 | R20: x | T20: 2 | U20: U | W20: 42
B21: OH MN101-522 | D21: HAMLINE AVE 1 MILE | E21: 126 | F21: x | G21: 90 | H21: 78.75 | J21: x | L21: 126 | M21: x | N21: 90 | O21: 78.75 | R21: x | T21: 2 | U21: S4x7.7 | V21: 94 | W21: 156 | X21: B
B22: OH MN101-522 | D22: EXIT 43 | E22: 96 | F22: x | G22: 30 | H22: 20 | J22: x | L22: 96 | M22: x | N22: 30 | O22: 20 | R22: x | T22: 2 | U22: U | W22: 42
B23: OH MN101-522 | D23: MN 51 ST PAUL MINNEAPOLIS EXIT ONLY | E23: 174 | F23: x | G23: 144 | H23: 174 | J23: x | L23: 174 | M23: x | N23: 144 | O23: 174 | R23: x | T23: 3 | U23: W6x12 | V23: 148 | W23: 498 | X23: C
B24: SUBTOTAL SP 1010-001 | H24: =SUM(H12:H23) -> 955.25 | O24: =SUM(O12:O23) -> 517 | W24: =SUM(W12:W23) -> 1440
B26: SP 2020-002
B27: OH MN101-989 | D27: McKNIGHT RD 1/2 ,MN 120 CENTURY AVE 1 1/4, I694 I494 2 | E27: 258 | F27: x | G27: 96 | H27: 172 | J27: x | L27: 258 | M27: x | N27: 96 | O27: 172 | R27: x
B28: SUBTOTAL SP 2020-002 | H28: =SUM(H27) -> 172 | O28: =SUM(O27) -> 172
B30: TOTAL | H30: =SUM(H24+H28) -> 1127.25 | O30: =SUM(O24+O28) -> 689 | W30: =SUM(W24+W28) -> 1440
B33: SPECIFIC NOTE(S):
B34: (X) INCLUDES SAWCUTTING PANEL MOUNTING POSTS OR I BEAMS TO SPECIFICATIONS SHOWN IN STANDARD PLANS.
B35: (1) POST TYPE ABBREVIATIONS ( U = U CHANNEL )
B36: (2) FURNISH & INSTALL NEW PANEL MOUNTING POSTS PER STANDARD PLAN 5-297.771.
B37: (3) TRUSS DEPTH AND CHORD ANGLE INFORMATION FOR PANEL MOUNTING POSTS ARE BASED ON TRUSS TYPE AND APPLY TO DESIGN B, INTERIM DESIGN B AND DESIGN D STRUCTURES.
B38: TRUSS TYPE A: TRUSS DEPTH = 72 INCHES, CHORD ANGLES = 6 x 6 x 1/2
B39: TRUSS TYPE B: TRUSS DEPTH = 72 INCHES, CHORD ANGLES = 6 x 6 x 3/4
B40: TRUSS TYPE C: TRUSS DEPTH = 72 INCHES, CHORD ANGLES = 8 x 8 x 5/8
B41: (4) REMOVE EXISTING PANEL MOUNTING POSTS.
B44: GENERAL NOTE(S):
B45: 1. SEE SIGN PANEL LAYOUTS FOR PANEL OVERLAY DESIGNS.

Sheet EOREM
B2: REMOVE SIGN TYPE EO | K2: AA
B3: SIGN NO | C3: QTY | D3: LOCATION | E3: POSTS NO & TYPE | G3: PANEL
G4: SIZE | K4: LEGEND
C5: EACH | G5: (INCH)
B6: EO-101 | C6: 0 | D6: OH I90-014 | E6: =IF(G6>180.1,"ERROR",IF(G6>149.9,"4",IF(G6>101.9,"3",IF(G6>47.9,"2")))) -> 3 | F6: -U | G6: 102 | H6: x | I6: 24 | K6: EXIT 157
B7: EO-102 | C7: 0 | D7: OH I90-017(R), OH I90-018(M), OH I90-036 | E7: =IF(G7>180.1,"ERROR",IF(G7>149.9,"4",IF(G7>101.9,"3",IF(G7>47.9,"2")))) -> 3 | F7: -U | G7: 120 | H7: x | I7: 24 | K7: EXITS 159A
E8: 2 | F8: -U | G8: 84 | H8: x
E9: FALSE | F9: -U | H9: x
E10: FALSE | F10: -U | H10: x
H11: x
H12: x
H13: x
B14: TOTAL | C14: =SUM(C6:C13) -> 0

Sheet EO
B2: SIGN PANELS TYPE EO | K2: AA
E3: PANEL | K3: LEGEND
B4: SIGN | C4: QTY | E4: SIZE (INCH) | I4: AREA (SQ FT) | J4: TOTAL
B5: NO | D5: LOCATION | J5: AREA
J6: (SQ FT)
B7: EO-1 | C7: 0 | D7: OH I90-014 | E7: 108 | F7: x | G7: 30 | I7: =E7*G7/144 -> 22.5 | J7: =I7*C7 -> 0 | K7: EXIT 154
B8: EO-2 | C8: 0 | D8: OH I90-017(R), OH I90-018(M) & OH I90-036 | E8: 108 | F8: x | G8: 30 | I8: 22.5 | J8: 0 | K8: EXIT 159A
B9: EO-3 | C9: 0 | D9: OH I90-017(M), OH I90-018(R) & OH I90-037(R) | E9: 108 | F9: x | G9: 30 | I9: 22.5 | J9: 0 | K9: EXIT 159B
E10: 108 | F10: x | I10: 0 | J10: 0
E11: 108 | F11: x | I11: 0 | J11: 0
E12: 108 | F12: x | I12: 0 | J12: 0
E13: 108 | F13: x | I13: 0 | J13: 0
E14: 108 | F14: x | I14: 0 | J14: 0
B15: TOTAL | J15: =SUM(J7:J14) -> 0
B17: SPECIFIC NOTES:
B19: GENERAL NOTES:
B20: 1. SEE STANDARD PLAN 5-297.710 FOR STRUCTURAL DETAILS.
B21: 2. POST SPACING MAY BE VARIED TO MISS MEMBERS OF OH SIGN STRUCTURES.
B22: 3. SEE SIGNING PANEL LAYOUT SHEETS FOR PANEL DESIGNS.

Sheet EOOL
B2: SIGN PANEL OVERLAY TYPE EO | L2: ='SEQ-PSTAB'!B25 -> 0
B3: SIGN NO | E3: PANEL OVERLAY
C4: QTY | D4: LOCATION | E4: SIZE | I4: AREA | K4: TOTAL | L4: LEGEND
E5: INCH | I5: SQ FT | K5: SQ FT
B6: EO-1 | C6: 0 | D6: OH I694-037 | E6: 150 | F6: x | G6: 30 | I6: =(E6*G6)/144 -> 31.25 | K6: =I6*C6 -> 0 | L6: EXITS 52B&A
B7: EO-2 | C7: 0 | D7: OH I694-066(R), OH I694-101(R) | E7: 96 | F7: x | G7: 30 | I7: =(E7*G7)/144 -> 20 | K7: =I7*C7 -> 0 | L7: EXIT 48
F8: x
F9: x
F10: x
F11: x
F12: x
F13: x
F14: x
B15: TOTAL | K15: =SUM(K6:K14) -> 0
B19: GENERAL NOTES:
B20: 1. SEE SIGNING PANEL LAYOUT SHEETS FOR PANEL DESIGNS.

Sheet EO EXT PAN SECT
B1: EOEXTFI
B2: SIGN PANELS TYPE EO (EXTRUDED PANEL SECTIONS) | J2: SS
B3: SIGN NO | C3: QTY | D3: LOCATION | E3: PANEL | J3: REQUIRED PANEL SIZE (INCH)
E4: SIZE (INCH) | H4: AREA (SQ FT) | I4: TOTAL AREA (SQ FT)
B7: EA-201 | C7: 0 | D7: OH I94-0, OH I94-046, OH I94-056 | E7: 108 | F7: x | G7: 6 | H7: =E7*G7/144 -> 4.5 | I7: =C7*H7 -> 0 | J7: 108 x 30
B8: EO-202 | C8: 0 | D8: OH I94-052-94 OH I94-055, OH I94-488(R) | E8: 108 | F8: x | G8: 6 | H8: 4.5 | I8: 0 | J8: 108 x 30
D9: OH I94-489 OH I94-095(L)
B10: EO-203 | C10: 0 | D10: OH I94-097(L) | E10: 126 | F10: x | G10: 6 | H10: =E10*G10/144 -> 5.25 | I10: =C10*H10 -> 0 | J10: 126 x 30
B11: EO-204 | C11: 0 | D11: OH I94-488(L) OH I94-092 | E11: 126 | F11: x | G11: 6 | H11: =E11*G11/144 -> 5.25 | I11: 0 | J11: 126 x 30
D12: OH I94-094(R) OH I94-095(R) OH I94-572(L)
C13: 0 | E13: 0 | F13: x | G13: 0 | H13: =E13*G13/144 -> 0 | I13: 0 | J13: 108 x 30
C15: 0 | E15: 0 | F15: x | G15: 0 | H15: =E15*G15/144 -> 0 | I15: 0 | J15: 126 x 30
C17: 0 | E17: 0 | F17: x | G17: 0 | H17: =E17*G17/144 -> 0 | I17: 0 | J17: 126 x 30
B19: EO-208 | C19: 0 | E19: 126 | F19: x | G19: 6 | H19: =E19*G19/144 -> 5.25 | I19: =C19*H19 -> 0 | J19: 96 x 30
B20: TOTAL | I20: =SUM(I7:I19) -> 0

Sheet ESALINS
B2: SALVAGE & INSTALL SIGN TYPE EO | O2: ='SEQ-PSTAB'!B42 -> 0
B3: SIGN NO | C3: QTY | E3: PANEL SIZE | M3: POSTS | O3: LEGEND
D4: INSTALL LOCATION | E4: SALVAGE | I4: INSTALL | M4: NO. & TYPE | N4: SPACING | S4: DEFAULT VALUES
C5: EACH | E5: INCH | I5: INCH | S5: POST # | T5: POST TYPE
B6: EO-201 | C6: 0 | D6: OH I494-299(L) | E6: 96 | F6: x | G6: 24 | I6: 90 | J6: x | K6: 30 | M6: =Epostnumb(I6)&"-"&T6 ->  | N6: =epostspace(I6) ->  | O6: EXIT 21 | S6: 3 | T6: U
B7: EO-202 | C7: 0 | D7: OH 494-299(R) OH I94-318(L) | E7: 96 | F7: x | G7: 24 | I7: 96 | J7: x | K7: 30 | M7: =Epostnumb(I7)&"-"&T7 ->  | N7: =epostspace(I7) ->  | O7: EXIT 22 | S7: 3 | T7: U
B8: EO-203 | C8: 0 | D8: OH I494-317 OH I494-318(R) | E8: 96 | F8: x | G8: 24 | I8: 96 | J8: x | K8: 30 | M8: =Epostnumb(I8)&"-"&T8 ->  | N8: =epostspace(I8) ->  | O8: EXIT 23 | S8: 3 | T8: U
B9: EO-204 | C9: 0 | D9: OH I494-101(R) OH I494-124 | E9: 96 | F9: x | G9: 24 | I9: 96 | J9: x | K9: 30 | M9: =Epostnumb(I9)&"-"&T9 ->  | N9: =epostspace(I9) ->  | O9: EXIT 26 | S9: 3 | T9: U
B10: EO-205 | C10: 0 | E10: 96 | F10: x | G10: 24 | I10: 96 | J10: x | K10: 30 | M10: =Epostnumb(I10)&"-"&T10 ->  | N10: =epostspace(I10) ->  | O10: EXIT 27 | S10: 3 | T10: U
B12: EO-206 | C12: 0 | E12: 114 | F12: x | G12: 24 | I12: 114 | J12: x | K12: 30 | M12: =Epostnumb(I12)&"-"&T12 ->  | N12: =epostspace(I12) ->  | O12: EXIT 35A | S12: 3 | T12: U
B13: EO-207 | C13: 0 | E13: 114 | F13: x | G13: 24 | I13: 114 | J13: x | K13: 30 | M13: =Epostnumb(I13)&"-"&T13 ->  | N13: =epostspace(I13) ->  | O13: EXIT 35B | S13: 3 | T13: U
B14: EO-208 | C14: 0 | E14: 114 | F14: x | G14: 24 | I14: 114 | J14: x | K14: 30 | M14: =Epostnumb(I14)&"-"&T14 ->  | N14: 42 | O14: EXIT 35C | S14: 3 | T14: U
B16: EO-209 | C16: 0 | E16: 150 | F16: x | G16: 24 | I16: 150 | J16: x | K16: 30 | M16: =Epostnumb(I16)&"-"&T16 ->  | N16: 42 | O16: EXITS 35C&B | S16: 3 | T16: U
B19: EO-210 | C19: 0 | E19: 96 | F19: x | G19: 24 | I19: 96 | J19: x | K19: 30 | M19: =Epostnumb(I19)&"-"&T19 ->  | N19: 42 | O19: EXIT 36 | S19: 3 | T19: U
B22: EO-211 | C22: 0 | E22: 96 | F22: x | G22: 24 | I22: 96 | J22: x | K22: 30 | M22: =Epostnumb(I22)&"-"&T22 ->  | N22: 42 | O22: EXIT 37 | S22: 3 | T22: U
B25: EO-212 | C25: 0 | E25: 114 | F25: x | G25: 24 | I25: 114 | J25: x | K25: 30 | M25: =Epostnumb(I25)&"-"&T25 ->  | N25: 42 | O25: EXIT 38 | S25: 3 | T25: U
B27: EO-213 | C27: 0 | E27: 114 | F27: x | G27: 24 | I27: 114 | J27: x | K27: 30 | M27: =Epostnumb(I27)&"-"&T27 ->  | N27: =epostspace(I27) ->  | O27: EXIT 39 | S27: 3 | T27: U
B28: EO-214 | C28: 0 | E28: 108 | F28: x | G28: 24 | I28: 108 | J28: x | K28: 30 | M28: =Epostnumb(I28)&"-"&T28 ->  | N28: =epostspace(I28) ->  | O28: EXIT 41A | S28: 3 | T28: U
B29: EO-215 | C29: 0 | E29: 108 | F29: x | G29: 24 | I29: 108 | J29: x | K29: 30 | M29: =Epostnumb(I29)&"-"&T29 ->  | N29: =epostspace(I29) ->  | O29: EXIT 41B | S29: 3 | T29: U
B30: EO-216 | C30: 0 | E30: 150 | F30: x | G30: 24 | I30: 150 | J30: x | K30: 30 | M30: =Epostnumb(I30)&"-"&T30 ->  | N30: =epostspace(I30) ->  | O30: EXITS 41A&B | S30: 3 | T30: U
B31: EO-217 | C31: 0 | E31: 114 | F31: x | G31: 24 | I31: 114 | J31: x | K31: 30 | M31: =Epostnumb(I31)&"-"&T31 ->  | N31: 42 | O31: EXIT 42A | S31: 3 | T31: U
B33: EO-218 | C33: 0 | E33: 114 | F33: x | G33: 24 | I33: 114 | J33: x | K33: 30 | M33: =Epostnumb(I33)&"-"&T33 ->  | N33: =epostspace(I33) ->  | O33: EXIT 42B | S33: 3 | T33: U
B34: EO-219 | C34: 0 | E34: 114 | F34: x | G34: 24 | I34: 114 | J34: x | K34: 30 | M34: =Epostnumb(I34)&"-"&T34 ->  | N34: 42 | O34: EXIT 43A | S34: 3 | T34: U
B36: EO-220 | C36: 0 | E36: 114 | F36: x | G36: 24 | I36: 114 | J36: x | K36: 30 | M36: =Epostnumb(I36)&"-"&T36 ->  | N36: =epostspace(I36) ->  | O36: EXIT 43B | S36: 3 | T36: U
B37: EO-221 | C37: 0 | E37: 96 | F37: x | G37: 24 | I37: 96 | J37: x | K37: 30 | M37: =Epostnumb(I37)&"-"&T37 ->  | N37: =epostspace(I37) ->  | O37: EXIT 45 | S37: 3 | T37: U
B38: TOTAL | C38: =SUM(C6:C37) -> 0
B40: GENERAL NOTES:
B41: 1. SEE STANDARD PLAN 5-297.710 FOR TYPE EO STRUCTURAL DETAILS.
B42: 2. TYPE EO POST SPACING MAY BE VARIED TO MISS MEMBERS OF OH SIGN STRUCTURES.

Sheet EO SAW
B3: SAW SIGN PANELS TYPE EO (1)
B4: SIGN NO | C4: LOCATION | D4: PANEL SIZE (INCH) | J4: LENGTH OF CUT (FT)
D5: EXISTING | G5: MODIFIED
B7: EO-204 | C7: BR 6850 | D7: 96 | E7: x | F7: 30 | G7: 78 | H7: x | I7: 30 | J7: 2.5
B9: SPECIFIC NOTE:
B10: (1) PAID FOR UNDER SIGN PANEL OVERLAY TYPE EO

Sheet OH REM
E2: REMOVE SIGN TYPE OH | J2: AA
E3: SIGN NO | F3: LOCATION | G3: TYPE | H3: POST TYPE | I3: SPAN | J3: REMARKS
E5: OH I35W-068 | G5: SIGN BRIDGE | H5: III-S | I5: 93'-0" | J5: SEE SPECIAL PROVISIONS
G6: CANTILEVER
G7: BR MNTD
G8: BR MNTD
G9: CANTILEVER
G10: SIGN BRIDGE
G11: SIGN BRIDGE - CANTILEVER
G12: BUTTERFLY CANTILEVER
E14: total | F14: =COUNTA(E5:E12) -> 1

Sheet OH SAL PN
B3: SALVAGE SIGN PANEL TYPE OH | G3: AA
B4: SIGN NO | C4: LOCATION | D4: PANEL SIZE (INCH) | E4: PANEL SIZE (INCH) | F4: PANEL SIZE (INCH) | G4: TOTAL PANELS
G6: EACH
B7: OH I90-046
B9: TOTAL | G9: =SUM(G7:G8) -> 0

Sheet OHREPOSPNL
B2: REPOSITION SIGN PANEL TYPE OH | P2: ='SEQ-PSTAB'!B149 -> 0 | S2: OH STRUCTURE REPOSITONED PANEL LOCATIONS
B3: SIGN NO | C3: LOCATION | D3: PANEL | H3: PANEL | L3: PANEL | P3: TOTAL PANELS | S3: SIGN NO | T3: LOCATION | U3: TYPE | V3: SPAN | W3: PANEL SIZES AND LOCATION | AD3: REMARKS
D4: SIZE | H4: SIZE | L4: SIZE | W4: E | X4: F x W | Y4: G | Z4: H x W | AA4: J | AB4: K x W | AC4: L
D5: INCH | H5: INCH | L5: INCH | P5: EACH | S5: OH MN55-025 FWBT | T5: 1590+00 NB | U5: SPAN | V5: 42'-0' | W5: 60" | X5: 120" | Y5: 36" | Z5: 144" | AA5: 48" | AB5: 96" | AC5: 54"
B6: OH I494-043 | C6: 695+35 NB | D6: 84 | E6: x | F6: 102 | H6: 132 | I6: x | J6: 126 | L6: 162 | M6: x | N6: 108 | P6: 3
B7: OH I694-512 | C7: 705+60 SB | D7: 168 | E7: x | F7: 84 | P7: 1
N11: TOTAL | P11: =SUM(P6:P10) -> 4

Sheet OH STRUCT QUAN
B2: OVERHEAD SIGN STRUCTURE QUANTITIES | K2: AA
B3: OH SIGN NO | C3: STRUCTURAL STEEL-POSTS FOR OH SIGNS (D) | D3: STRUCTURAL STEEL-TRUSSES FOR OH SIGNS (D) | E3: STRUCTURAL STEEL-WALKWAY SUPPORT FOR OH SIGNS (D) | F3: STRUCTURAL STEEL-WALKWAY GRATING FOR OH SIGNS (D) | G3: STRUCTURAL STEEL-PANEL MOUNT PST FOR OH SIGNS (D) | H3: MEDIAN BARRIER FOOTING (SHAFT) | I3: MEDIAN BARRIER FOOTING (SPREAD) | J3: CONCRETE FOOTING (TYPE OH SPREAD) | K3: CONCRETE FOOTINGS (TYPE OH SHAFT)
C8: POUND | D8: POUND | E8: POUND | F8: POUND | G8: POUND | H8: CU YD | I8: CU YD | J8: CU YD | K8: CU TD
B9: I94-697 | C9: 5788 | D9: 5712 | E9: 0 | F9: 0 | G9: 664 | H9: 0 | I9: 0 | J9: 0 | K9: 15.9
B10: I94-698 | C10: 5681 | D10: 4428 | E10: 0 | F10: 0 | G10: 230 | H10: 0 | I10: 0 | J10: 0 | K10: 15.9
C11: 0 | D11: 0 | E11: 0 | F11: 0 | G11: 0 | H11: 0 | I11: 0 | J11: 0 | K11: 0
C12: 0 | D12: 0 | E12: 0 | F12: 0 | G12: 0 | H12: 0 | I12: 0 | J12: 0 | K12: 0
C13: 0 | D13: 0 | E13: 0 | F13: 0 | G13: 0 | H13: 0 | I13: 0 | J13: 0 | K13: 0
C14: 0 | D14: 0 | E14: 0 | F14: 0 | G14: 0 | H14: 0 | I14: 0 | J14: 0 | K14: 0
B15: TOTAL | C15: =SUM(C9:C14) -> 11469 | D15: =SUM(D9:D14) -> 10140 | E15: 0 | F15: 0 | G15: 894 | H15: =SUM(H9:H14) -> 0 | I15: 0 | J15: =SUM(J9:J14) -> 0 | K15: 31.8

Sheet S & I_OH B
B2: SALVAGE AND INSTALL OVERHEAD SIGN STRUCTURES
B3: INPLACE SIGN NO | C3: INPLACE STATION | D3: NEW SIGN NO. | E3: NEW STATION | F3: BRIDGE TYPE | G3: TRUSS TYPE | H3: SPAN LENGTHS | L3: LOW STEEL ELEVATION (1) | M3: LEFT POST | P3: CENTER POST | S3: RIGHT POST
H4: LEFT CANT | I4: RIGHT CANT | J4: SPAN OR LEFT SPAN | K4: RIGHT SPAN | M4: ELEVATION (1) | O4: TYPE | P4: ELEVATION (1) | R4: TYPE | S4: ELEVATION (1) | U4: TYPE
M6: A | N6: B | P6: A | Q6: B | S6: A | T6: B
B7: OH I90-056 | D7: OH I90-347
D13: SPECIFIC NOTES:
D14: (1) CENTER LINE ELEVATION= 100.00
D15: (2) BASED ON TABULATED ELEVATIONS AND DIMENSIONS.
D16: REVISE IF NECESSARY USING QUANTITY TABLES ON SHEET XX
D17: (3) SEE SHEET XX
D18: (4) DRILLED SHAFT FOOTING.
D29: * THIS CHART is ALWAYS used along with "TABULATION OF OVERHEAD SIGN STRUCTURE QUANTITIES" chart on the OH tabulation sheet with the Bridge Type figure drawings
D31: The SPECIFIC NOTES are COMBINED on the two charts.
D34: NOTES (1) (4) are on the SALVAGE AND INSTALL OVERHEAD SIGN STRUCTURE chart
D36: NOTES (2) (3) are on the TABULATION OF OVERHEAD SIGN STRUCTURE QUANTITIES chart

Sheet OH OL
B3: SIGN PANEL OVERLAY TYPE OH | P3: GG
B4: SIGN NO | C4: LOCATION | D4: PANEL OVERLAY | H4: PANEL OVERLAY | L4: PANEL OVERLAY | P4: TOTAL AREA (SQ FT)
D5: SIZE (INCH) | G5: AREA (SQ FT) | H5: SIZE (INCH) | K5: AREA (SQ FT) | L5: SIZE (INCH) | O5: AREA (SQ FT)
B7: OH I35W-314 | C7: 39+00 NB | D7: 0 | E7: x | F7: 114 | G7: =D7*F7/144 -> 0 | H7: 0 | I7: x | J7: 120 | K7: =H7*J7/144 -> 0 | L7: 0 | M7: x | N7: 90 | O7: =L7*N7/144 -> 0 | P7: =SUM(G7+K7+O7) -> 0
B8: OH I35W-315 | C8: 40+80 NB | D8: 0 | E8: x | F8: 120 | G8: =D8*F8/144 -> 0 | P8: =SUM(G8+K8+O8) -> 0
B17: TOTAL | P17: =SUM(P7:P16) -> 0
B20: GENERAL NOTES:
B21: 1. SEE SIGNING PANEL LAYOUT SHEETS FOR PANEL DESIGNS.

Sheet OH INSPN
B3: INSTALL SIGN PANEL TYPE OH | G3: AA
B4: SIGN NO | C4: LOCATION | D4: PANEL SIZE (INCH) | E4: PANEL SIZE (INCH) | F4: PANEL SIZE (INCH) | G4: TOTAL PANELS
G6: EACH
B7: OH MN36-084 | C7: 667+00 C D ROAD | D7: 114 x 126 | E7: 126 x 126 | G7: 0
B9: TOTAL | G9: =SUM(G7:G8) -> 0

Sheet SIGN PANELS TYPE OH
B3: SIGN PANELS TYPE OH | P3: AA
B4: SIGN NO | C4: LOCATION | D4: PANEL | H4: PANEL | L4: PANEL | P4: TOTAL AREA (SQ FT)
D5: SIZE (INCH) | G5: AREA (SQ FT) | H5: SIZE (INCH) | K5: AREA (SQ FT) | L5: SIZE (INCH) | O5: AREA (SQ FT)
B7: OH I694-314 | C7: 39+00 NB | D7: 0 | E7: x | F7: 114 | G7: =D7*F7/144 -> 0 | H7: 0 | I7: x | J7: 120 | K7: =H7*J7/144 -> 0 | L7: 0 | M7: x | N7: 90 | O7: =L7*N7/144 -> 0 | P7: =SUM(G7+K7+O7) -> 0
B8: OH I694-315 | C8: 40+80 NB | D8: 0 | E8: x | F8: 120 | G8: =D8*F8/144 -> 0 | P8: =SUM(G8+K8+O8) -> 0
B17: TOTAL | P17: =SUM(P7:P16) -> 0
B20: GENERAL NOTES:
B21: 1. SEE SIGNING PANEL LAYOUT SHEETS FOR PANEL DESIGNS.
B23: * THIS QUANTITY GETS COMBINED WITH "SIGN PANEL TYPE OH (EXTRUDED PANEL)" QUANTITY ON THE SEQ(STATEMENT OF EST. QUANTITIES)

Sheet OH ID
B2: OH SIGN IDENTIFICATION PLATE | E2: KO
B3: SIGN NO | C3: QTY | D3: LOCATION | E3: IDENTIFICATION PLATE NO
C4: EACH
B5: OH MN610-045 | C5: 0 | D5: 39+00 NB | E5: 610-045
B6: OH MN280-035 | C6: 0 | D6: 40+80 NB | E6: 280-035
B14: TOTAL | C14: =SUM(C5:C13) -> 0
B17: GENERAL NOTES:
B18: 1. SEE 2020 MNDOT STANDARD SIGNS AND MARKINGS MANUAL FOR OH SIGN IDENTIFICATION PLATE (X2-1)
B19: 2. SEE STANDARD PLAN 5-297.730 FOR MOUNTING DETAILS.

Sheet OH EXT REM
B1: OHEXTREM
B2: REMOVE EXTRUDED PANEL SECTIONS TYPE OH (1) | E2: XX
B3: SIGN NO | C3: LOCATION | D3: PANEL SIZE (INCH)
D4: REMOVE | E4: MODIFIED
B5: OH I35W-64 (R) | C5: 35+00 SB | D5: 162 x 24 | E5: 162 x 90
B6: OH I35W-314 (L) | C6: 39+00 NB | D6: 204 x 24 | E6: 204 x 90
B17: (1) INCLUDED IN SIGN PANEL OVERLAY TYPE OH

Sheet OH REMPAN
B2: REMOVE SIGN PANEL TYPE OH | G2: AA
B3: SIGN NO | C3: LOCATION | D3: PANEL SIZE (INCH) | E3: PANEL SIZE (INCH) | F3: PANEL SIZE (INCH) | G3: TOTAL PANELS
G5: EACH
B6: OH I494-043 | C6: 695+35 NB | D6: 84 x 102 | E6: 132 x 126 | F6: 162 x 108 | G6: 3
B7: OH I494-045 | C7: 705+60 SB | D7: 168 x 84 | G7: 1
F14: TOTAL | G14: =SUM(G6:G13) -> 4

Sheet OH SAW
B3: SAW SIGN PANELS TYPE OH (1)
B4: SIGN NO | C4: LOCATION | D4: PANEL SIZE (INCH) | J4: LENGTH OF CUT (FT)
D5: EXISTING | G5: MODIFIED
B7: OH US61-007 | D7: 156 | E7: x | F7: 96 | G7: 132 | H7: x | I7: 96 | J7: =(I7)/12 -> 8
E8: x | H8: x | J8: =(I8)/12 -> 0
B10: SPECIFIC NOTE:
B11: (1) PAID FOR UNDER SIGN PANEL OVERLAY TYPE OH

Sheet OH PMP
B2: PANEL MOUNTING POSTS (S4x7.7) | G2: AA
B3: SIGN NO | C3: TRUSS DEPTH (INCH) | D3: CHORD ANGLES (INCH) | E3: NO. OF POSTS | F3: LENGTH APPROX (INCH) | G3: WEIGHT (POUND)
B6: OH US7-015 | C6: 72 | D6: 6 x 6 x 1/2 | E6: 2 | F6: 88 | G6: 148
F8: TOTAL | G8: =SUM(G6:G7) -> 148

Sheet OH PMP MOD
B3: MODIFY POST (1) (2)
B4: SIGN NO | C4: PANEL MOUNTING POSTS
C5: NO. | D5: SIZE | E5: EXTEND APPROX. (INCH) | F5: SHORTEN APPROX. (INCH)
B8: OH I35E-139 (L) | C8: 2 | D8: S4x7.7 | E8: 18
B9: OH I35E-139 (R) | C9: 3 | D9: S4x7.7 | E9: 18
B10: OH I35E-238 (R) | C10: 2 | D10: S4x7.7 | E10: 12
B12: SPECIFIC NOTES:
B13: (1) SEE STANDARD PLAN 5-297.750 FOR DETAILS.
B14: (2) INCLUDED IN SIGN PANEL OVERLAY TYPE OH.
B21: * Panel Mounting Post SIZES (FROM NOTE 3 ON Standard Plan 5-297.771)
C22: PANEL HEIGHT DETERMINES PMP SIZE.
C23: SIZE | D23: S4x7.7 | E23: IF PANEL HEIGHT IS 11'-0" OR LESS
C24: SIZE | D24: W6x12 | E24: IF PANEL HEIGHT IS 11'-6" OR GREATER
B27: Size S4x7.7 posts should not be extended beyond 11'-0".
B28: IF PANEL HEIGHT is less than 11'-0" and is increasing to GREATER than 11'-0" the panel mounting posts should be REPLACED rather than extended
B31: DO NOT ADD MORE THAN 3 FEET of extension to the Panel Mounting Post(s)
B32: If it needs to be extended more than 3 FEET, it is preferable to replace the Panel Mounting Post

Sheet BMST
B2: STRUCT. STEEL TRUSSES TYPE OH BR. MTD (1) | D2: AA
B3: SIGN NO | C3: BRIDGE NO | D3: POUND
B4: OH MN22-014 | C4: 52007 | D4: 0
B9: TOTAL | D9: =SUM(D4:D8) -> 0
B12: SPECIFIC NOTES:
B13: (1) INCLUDES F & I OH SIGN IDENTIFICATION PLATE (X2-1)

Sheet SIGN PANELS TYPE OH (EXT PAN )
B1: OHEXTFI
B2: SIGN PANELS TYPE OH (EXTRUDED PANEL SECTIONS) | H2: AA
B3: SIGN NO | C3: LOCATION | D3: EXTRUDED PANEL SECTIONS | H3: REQUIRED PANEL SIZE (INCH)
D5: SIZE (INCH) | G5: AREA (SQ FT) | J5: used for adding extruded panel sections to an OH sign panel.
B7: OH I94-100 (L) | C7: EB TH 94 STA 228+40 | D7: 0 | E7: x | F7: 6 | G7: =D7*F7/144 -> 0 | H7: 144 x 102
B8: TOTAL | G8: =SUM(G7:G7) -> 0
B15: * THIS QUANTITY GETS COMBINED WITH "SIGN PANEL TYPE OH" QUANTITY ON THE SEQ(STATEMENT OF EST. QUANTITIES)

Sheet REMOVE EXT PANEL SECT
B1: OHEXTFI
B2: REMOVE (EXTRUDED PANEL SECTIONS)(1) | H2: TAA
B3: SIGN NO | C3: LOCATION | D3: EXTRUDED PANEL SECTIONS | H3: REQUIRED PANEL SIZE (INCH)
D5: SIZE (INCH) | G5: AREA (SQ FT)
B7: OH I94-468(R) | C7: EB TH 94 STA 95+00 | D7: 0 | E7: x | F7: 12 | G7: =D7*F7/144 -> 0 | H7: 150 x 96
B8: TOTAL | G8: =SUM(G7) -> 0
B10: (1) INCLUDED IN SIGN PANEL OVERLAY TYPE OH

Sheet OH REM FOOT
B1: OHREMFTG
B2: REMOVE SIGN FOOTING - TYPE OH | D2: AA
B3: SIGN NO | C3: LOCATION | D3: FOOTING DEPTH (FT)
B5: OH MN100-053
B15: TOTAL | C15: =COUNTA(B5:B10) -> 1

Sheet OH SGN SUP CANT
B3: CANTILEVER SIGN SUPPORT | F3: STZ
B4: SIGN NO | C4: LOCATION | D4: SPAN | E4: PANEL | F4: POST
E5: ELEV. A | F5: ELEV. B
B6: OH MN65-024 | C6: 208+85 NB | D6: 30'-0" | E6: 117.46 | F6: 101.55
C7: 208+85 NB | D7: 13'-0" | E7: 117.11 | F7: 100.39
A14: TOTAL | B14: =COUNTA(B6:B11) -> 1

Sheet OH SIGN SUP BRIDGE
B1: OHSSSB
B2: SIGN BRIDGE SIGN SUPPORT | G2: PIL
B3: SIGN NO | C3: LOCATION | D3: SPAN | E3: PANEL | F3: LEFT POST | G3: RIGHT POST
E5: Elev A | F5: Elev B | G5: Elev B
B6: OH MN47-008 | C6: 1590+00 NB | D6: 67'-0" | E6: 117.33 | F6: 98.5 | G6: 99.5
B18: TOTAL | C18: =COUNTA(B6:B13) -> 1

Sheet OH REM WKWY
B2: REMOVE SIGN WALKWAY (1)(2)(3) | E2: AA
B3: SIGN NO | C3: LOCATION | D3: LENGTH (FT) | E3: NUMBER OF FIXTURES
B5: OHI 35E-164
C8: TOTAL | D8: =SUM(D5:D7) -> 0
B10: SPECIFIC NOTES:
B11: (1) INCLUDES SIGN LIGHTING SYSTEM
B12: (2) REMOVE FEED POINT IDENTIFICATION PLATE NUMBER.
B13: (3) SEE DIVISION ST FOR SPECIAL PROVISIONS.

Sheet OH REM LT SYS
B2: REMOVE SIGN LIGHTING SYSTEM | G2: AA
B3: SIGN NO | C3: OH DESIGN | D3: FIXTURES | F3: SOURCE OF POWER VOLTAGE | G3: FEED POINT ID PLATE NO
D5: 125 W | E5: 250 W
B6: OH I35W-025 | C6: BR # | E6: 4 | F6: 240/480 | G6: N2L/P
B15: TOTAL | C15: =COUNTA(B6:B12) -> 1

Sheet safety cable
B2: SAFETY CABLE | E2: ='SEQ-PSTAB'!B137 -> 0
B3: SIGN NO | C3: LOCATION | D3: DESIGN | E3: LENGTH
E4: FEET
B5: OH MN101-016 | C5: 1079+80 WB | D5: BR MTD | E5: 33
B6: OH MN101-024 | C6: 21+50 LOOP B | D6: B | E6: 33
B7: OH MN101-037 | C7: 9+00 LEG A | D7: A | E7: 30
D8: CANT
D15: TOTAL | E15: =SUM(E5:E14) -> 96

Sheet REMOVE BRIDGE MTD OH LIGHT SYST
B2: REMOVE SIGN LIGHTING SYSTEM (1) | E2: TQ
B3: SIGN NO | C3: LOCATION | D3: TYPE | E3: NUMBER OF FIXTURES
B5: OH I94-458 | C5: BR 62878 | D5: BRIDGE MOUNTED | E5: 4
B6: OH I94-459 | C6: BR 62878 | D6: BRIDGE MOUNTED | E6: 4
B7: OH I94-459 | C7: BR 62878 | D7: BRIDGE MOUNTED | E7: 3
B8: TOTAL (EACH) | C8: 3
B10: SPECIFIC NOTES:
B12: (1) REMOVE FEED POINT IDENTIFICATION NUMBER.

Sheet SEQ-4Copy
B5: =IF('SEQ-PSTAB'!F1<>"",'SEQ-PSTAB'!G1,IF('SEQ-PSTAB'!F2<>"",'SEQ-PSTAB'!G2,'SEQ-PSTAB'!G3)) -> PERMANENT SIGNING TABULATION | H5: X
C6: SHEET NO | H6: TOTAL
B7: TAB | D7: ITEM NO | F7: ITEM | G7: UNIT | H7: ESTIMATED
H8: QUANTITIES
J9: x
J10: x

Sheet Conc Rail Calc
D2: Input Parameters | G2: Output | H2: Output Conditions
D3: Sign Size | F3: Configuration | G3: STRUCTURE TYPE | O3: NOMINAL POST SIZE (IN.) | P3: NOMINAL ARM SIZE (IN.) | Q3: CONCRETE ANCHOR | V3: FILL PLATE THICKNESS (IN.) | W3: BENT PLATE THICKNESS (IN.) | X3: SIDE PLATE THICKNESS (IN.) | Y3: STRUCTURE TYPE
D4: Panel Width "B" (in) | E4: Panel Height "H" (in) | F4: Square or Diamond | H4: Arm Spacing "0.6H" (in) | I4: Sign Area (SF) | J4: Arm, "A" (in) | K4: Maximum Arm (in) | L4: Arm Condition 1 | M4: Arm Condtion 2 | N4: Arm Condition 3 | Q4: DIAMETER (IN.) | R4: EMBEDMENT (IN.) | S4: NUMBER REQUIRED | T4: TORQUE (FT-LBS) | U4: PROOF LOAD (KIPS)
D5: 144 | E5: 24 | F5: square | G5: =Y5 -> III | H5: =MROUND(0.6*E5,3) -> 15 | I5: =D5*E5/144 -> 24 | J5: =IF(F5="Square",2+D5/2,2+(SQRT(2)/2)*D5) -> 74 | K5: =IF(OR(I5<'[1]TABLE DATA'!$D$7,I5='[1]TABLE DATA'!$D$7),717.75/I5,IF(AND('[1]TABLE DATA'!$D$7<I5,OR(I5<'[1]TABLE DATA'!$D$8,I5='[1]TABLE DATA'!$D$8)),1695/I5,IF(AND('[1]TABLE DATA'!$D$8<I5,OR(I5<'[1]TABLE DATA'!$D$9,I5='[1]TABLE DATA'!$D$9)),2268/I5,IF(I5="Arm Too Long", "Reduce V or W","Sign Too Wide")))) -> 29.91 | L5: =717.75/'[1]Input-Output Data'!I5 -> 29.91 | M5: =1695/I5 -> 70.63 | N5: =2268/I5 -> 94.5 | O5: =IF(I5="Arm Too Long", "Reduce V or W",IF($I5>'[1]TABLE DATA'!$D$9,"SIGN TOO LARGE",IF(AND(OR($I5<'[1]TABLE DATA'!$D$7,$I5='[1]TABLE DATA'!$D$7),OR('[1]Input-Output Data'!$J5<'[1]Input-Output Data'!$K5,'[1]Input-Output Data'!$J5='[1]Input-Output Data'!$K5)),'[1]TABLE DATA'!F$7,IF(AND(OR($I5<'[1]TABLE DATA'!$D$7,$I5='[1]TABLE DATA'!$D$7),AND($J5>$L5),OR('[1]Input-Output Data'!$J5<'[1]Input-Output Data'!$M5,'[1]Input-Output Data'!$J5='[1]Input-Output Data'!$M5)),'[1]TABLE DATA'!F$8,IF(AND(OR($I5<'[1]TABLE DATA'!$D$7,$I5='[1]TABLE DATA'!$D$7),AND($J5>$M5),OR('[1]Input-Output Data'!$J5<'[1]Input-Output Data'!$N5,'[1]Input-Output Data'!$J5='[1]Input-Output Data'!$N5)),'[1]TABLE DATA'!F$9,IF(AND(OR($I5<'[1]TABLE DATA'!$D$7,$I5='[1]TABLE DATA'!$D$7),$J5>$N5),"SIGN TOO WIDE",IF(AND(AND($I5>'[1]TABLE DATA'!$D$7,OR($I5<'[1]TABLE DATA'!$D$8,$I5='[1]TABLE DATA'!$D$8)),'[1]Input-Output Data'!$J5<'[1]Input-Output Data'!$K5),'[1]TABLE DATA'!F$8,IF(AND(AND($I5>'[1]TABLE DATA'!$D$7,OR($I5<'[1]TABLE DATA'!$D$8,$I5='[1]TABLE DATA'!$D$8)),AND('[1]Input-Output Data'!$J5>'[1]Input-Output Data'!$M5,OR('[1]Input-Output Data'!$J5<'[1]Input-Output Data'!$N5,'[1]Input-Output Data'!$J5='[1]Input-Output Data'!$N5))),'[1]TABLE DATA'!F$9,IF(AND(AND($I5>'[1]TABLE DATA'!$D$7,OR($I5<'[1]TABLE DATA'!$D$8,$I5='[1]TABLE DATA'!$D$8)),$J5>'[1]Input-Output Data'!$N5),"SIGN TOO WIDE",IF(AND(AND($I5>'[1]TABLE DATA'!$D$8,OR($I5<'[1]TABLE DATA'!$D$9,$I5='[1]TABLE DATA'!$D$9)),'[1]Input-Output Data'!$J5<'[1]Input-Output Data'!$K5),'[1]TABLE DATA'!F$9,"SIGN TOO WIDE")))))))))) -> 5 | P5: =IF(I5="Arm Too Long", "Reduce V or W",IF($I5>'[1]TABLE DATA'!$D$9,"SIGN TOO LARGE",IF(AND(OR($I5<'[1]TABLE DATA'!$D$7,$I5='[1]TABLE DATA'!$D$7),OR('[1]Input-Output Data'!$J5<'[1]Input-Output Data'!$K5,'[1]Input-Output Data'!$J5='[1]Input-Output Data'!$K5)),'[1]TABLE DATA'!G$7,IF(AND(OR($I5<'[1]TABLE DATA'!$D$7,$I5='[1]TABLE DATA'!$D$7),AND($J5>$L5),OR('[1]Input-Output Data'!$J5<'[1]Input-Output Data'!$M5,'[1]Input-Output Data'!$J5='[1]Input-Output Data'!$M5)),'[1]TABLE DATA'!G$8,IF(AND(OR($I5<'[1]TABLE DATA'!$D$7,$I5='[1]TABLE DATA'!$D$7),AND($J5>$M5),OR('[1]Input-Output Data'!$J5<'[1]Input-Output Data'!$N5,'[1]Input-Output Data'!$J5='[1]Input-Output Data'!$N5)),'[1]TABLE DATA'!G$9,IF(AND(OR($I5<'[1]TABLE DATA'!$D$7,$I5='[1]TABLE DATA'!$D$7),$J5>$N5),"SIGN TOO WIDE",IF(AND(AND($I5>'[1]TABLE DATA'!$D$7,OR($I5<'[1]TABLE DATA'!$D$8,$I5='[1]TABLE DATA'!$D$8)),'[1]Input-Output Data'!$J5<'[1]Input-Output Data'!$K5),'[1]TABLE DATA'!G$8,IF(AND(AND($I5>'[1]TABLE DATA'!$D$7,OR($I5<'[1]TABLE DATA'!$D$8,$I5='[1]TABLE DATA'!$D$8)),AND('[1]Input-Output Data'!$J5>'[1]Input-Output Data'!$M5,OR('[1]Input-Output Data'!$J5<'[1]Input-Output Data'!$N5,'[1]Input-Output Data'!$J5='[1]Input-Output Data'!$N5))),'[1]TABLE DATA'!G$9,IF(AND(AND($I5>'[1]TABLE DATA'!$D$7,OR($I5<'[1]TABLE DATA'!$D$8,$I5='[1]TABLE DATA'!$D$8)),$J5>'[1]Input-Output Data'!$N5),"SIGN TOO WIDE",IF(AND(AND($I5>'[1]TABLE DATA'!$D$8,OR($I5<'[1]TABLE DATA'!$D$9,$I5='[1]TABLE DATA'!$D$9)),'[1]Input-Output Data'!$J5<'[1]Input-Output Data'!$K5),'[1]TABLE DATA'!G$9,"SIGN TOO WIDE")))))))))) -> 3 | Q5: =IF(I5="Arm Too Long", "Reduce V or W",IF($I5>'[1]TABLE DATA'!$D$9,"SIGN TOO LARGE",IF(AND(OR($I5<'[1]TABLE DATA'!$D$7,$I5='[1]TABLE DATA'!$D$7),OR('[1]Input-Output Data'!$J5<'[1]Input-Output Data'!$K5,'[1]Input-Output Data'!$J5='[1]Input-Output Data'!$K5)),'[1]TABLE DATA'!H$7,IF(AND(OR($I5<'[1]TABLE DATA'!$D$7,$I5='[1]TABLE DATA'!$D$7),AND($J5>$L5),OR('[1]Input-Output Data'!$J5<'[1]Input-Output Data'!$M5,'[1]Input-Output Data'!$J5='[1]Input-Output Data'!$M5)),'[1]TABLE DATA'!H$8,IF(AND(OR($I5<'[1]TABLE DATA'!$D$7,$I5='[1]TABLE DATA'!$D$7),AND($J5>$M5),OR('[1]Input-Output Data'!$J5<'[1]Input-Output Data'!$N5,'[1]Input-Output Data'!$J5='[1]Input-Output Data'!$N5)),'[1]TABLE DATA'!H$9,IF(AND(OR($I5<'[1]TABLE DATA'!$D$7,$I5='[1]TABLE DATA'!$D$7),$J5>$N5),"SIGN TOO WIDE",IF(AND(AND($I5>'[1]TABLE DATA'!$D$7,OR($I5<'[1]TABLE DATA'!$D$8,$I5='[1]TABLE DATA'!$D$8)),'[1]Input-Output Data'!$J5<'[1]Input-Output Data'!$K5),'[1]TABLE DATA'!H$8,IF(AND(AND($I5>'[1]TABLE DATA'!$D$7,OR($I5<'[1]TABLE DATA'!$D$8,$I5='[1]TABLE DATA'!$D$8)),AND('[1]Input-Output Data'!$J5>'[1]Input-Output Data'!$M5,OR('[1]Input-Output Data'!$J5<'[1]Input-Output Data'!$N5,'[1]Input-Output Data'!$J5='[1]Input-Output Data'!$N5))),'[1]TABLE DATA'!H$9,IF(AND(AND($I5>'[1]TABLE DATA'!$D$7,OR($I5<'[1]TABLE DATA'!$D$8,$I5='[1]TABLE DATA'!$D$8)),$J5>'[1]Input-Output Data'!$N5),"SIGN TOO WIDE",IF(AND(AND($I5>'[1]TABLE DATA'!$D$8,OR($I5<'[1]TABLE DATA'!$D$9,$I5='[1]TABLE DATA'!$D$9)),'[1]Input-Output Data'!$J5<'[1]Input-Output Data'!$K5),'[1]TABLE DATA'!H$9,"SIGN TOO WIDE")))))))))) -> 0.875 | R5: =IF(I5="Arm Too Long", "Reduce V or W",IF($I5>'[1]TABLE DATA'!$D$9,"SIGN TOO LARGE",IF(AND(OR($I5<'[1]TABLE DATA'!$D$7,$I5='[1]TABLE DATA'!$D$7),OR('[1]Input-Output Data'!$J5<'[1]Input-Output Data'!$K5,'[1]Input-Output Data'!$J5='[1]Input-Output Data'!$K5)),'[1]TABLE DATA'!I$7,IF(AND(OR($I5<'[1]TABLE DATA'!$D$7,$I5='[1]TABLE DATA'!$D$7),AND($J5>$L5),OR('[1]Input-Output Data'!$J5<'[1]Input-Output Data'!$M5,'[1]Input-Output Data'!$J5='[1]Input-Output Data'!$M5)),'[1]TABLE DATA'!I$8,IF(AND(OR($I5<'[1]TABLE DATA'!$D$7,$I5='[1]TABLE DATA'!$D$7),AND($J5>$M5),OR('[1]Input-Output Data'!$J5<'[1]Input-Output Data'!$N5,'[1]Input-Output Data'!$J5='[1]Input-Output Data'!$N5)),'[1]TABLE DATA'!I$9,IF(AND(OR($I5<'[1]TABLE DATA'!$D$7,$I5='[1]TABLE DATA'!$D$7),$J5>$N5),"SIGN TOO WIDE",IF(AND(AND($I5>'[1]TABLE DATA'!$D$7,OR($I5<'[1]TABLE DATA'!$D$8,$I5='[1]TABLE DATA'!$D$8)),'[1]Input-Output Data'!$J5<'[1]Input-Output Data'!$K5),'[1]TABLE DATA'!I$8,IF(AND(AND($I5>'[1]TABLE DATA'!$D$7,OR($I5<'[1]TABLE DATA'!$D$8,$I5='[1]TABLE DATA'!$D$8)),AND('[1]Input-Output Data'!$J5>'[1]Input-Output Data'!$M5,OR('[1]Input-Output Data'!$J5<'[1]Input-Output Data'!$N5,'[1]Input-Output Data'!$J5='[1]Input-Output Data'!$N5))),'[1]TABLE DATA'!I$9,IF(AND(AND($I5>'[1]TABLE DATA'!$D$7,OR($I5<'[1]TABLE DATA'!$D$8,$I5='[1]TABLE DATA'!$D$8)),$J5>'[1]Input-Output Data'!$N5),"SIGN TOO WIDE",IF(AND(AND($I5>'[1]TABLE DATA'!$D$8,OR($I5<'[1]TABLE DATA'!$D$9,$I5='[1]TABLE DATA'!$D$9)),'[1]Input-Output Data'!$J5<'[1]Input-Output Data'!$K5),'[1]TABLE DATA'!I$9,"SIGN TOO WIDE")))))))))) -> 8 | S5: =IF(I5="Arm Too Long", "Reduce V or W",IF($I5>'[1]TABLE DATA'!$D$9,"SIGN TOO LARGE",IF(AND(OR($I5<'[1]TABLE DATA'!$D$7,$I5='[1]TABLE DATA'!$D$7),OR('[1]Input-Output Data'!$J5<'[1]Input-Output Data'!$K5,'[1]Input-Output Data'!$J5='[1]Input-Output Data'!$K5)),'[1]TABLE DATA'!J$7,IF(AND(OR($I5<'[1]TABLE DATA'!$D$7,$I5='[1]TABLE DATA'!$D$7),AND($J5>$L5),OR('[1]Input-Output Data'!$J5<'[1]Input-Output Data'!$M5,'[1]Input-Output Data'!$J5='[1]Input-Output Data'!$M5)),'[1]TABLE DATA'!J$8,IF(AND(OR($I5<'[1]TABLE DATA'!$D$7,$I5='[1]TABLE DATA'!$D$7),AND($J5>$M5),OR('[1]Input-Output Data'!$J5<'[1]Input-Output Data'!$N5,'[1]Input-Output Data'!$J5='[1]Input-Output Data'!$N5)),'[1]TABLE DATA'!J$9,IF(AND(OR($I5<'[1]TABLE DATA'!$D$7,$I5='[1]TABLE DATA'!$D$7),$J5>$N5),"SIGN TOO WIDE",IF(AND(AND($I5>'[1]TABLE DATA'!$D$7,OR($I5<'[1]TABLE DATA'!$D$8,$I5='[1]TABLE DATA'!$D$8)),'[1]Input-Output Data'!$J5<'[1]Input-Output Data'!$K5),'[1]TABLE DATA'!J$8,IF(AND(AND($I5>'[1]TABLE DATA'!$D$7,OR($I5<'[1]TABLE DATA'!$D$8,$I5='[1]TABLE DATA'!$D$8)),AND('[1]Input-Output Data'!$J5>'[1]Input-Output Data'!$M5,OR('[1]Input-Output Data'!$J5<'[1]Input-Output Data'!$N5,'[1]Input-Output Data'!$J5='[1]Input-Output Data'!$N5))),'[1]TABLE DATA'!J$9,IF(AND(AND($I5>'[1]TABLE DATA'!$D$7,OR($I5<'[1]TABLE DATA'!$D$8,$I5='[1]TABLE DATA'!$D$8)),$J5>'[1]Input-Output Data'!$N5),"SIGN TOO WIDE",IF(AND(AND($I5>'[1]TABLE DATA'!$D$8,OR($I5<'[1]TABLE DATA'!$D$9,$I5='[1]TABLE DATA'!$D$9)),'[1]Input-Output Data'!$J5<'[1]Input-Output Data'!$K5),'[1]TABLE DATA'!J$9,"SIGN TOO WIDE")))))))))) -> 3 | T5: =IF(I5="Arm Too Long", "Reduce V or W",IF($I5>'[1]TABLE DATA'!$D$9,"SIGN TOO LARGE",IF(AND(OR($I5<'[1]TABLE DATA'!$D$7,$I5='[1]TABLE DATA'!$D$7),OR('[1]Input-Output Data'!$J5<'[1]Input-Output Data'!$K5,'[1]Input-Output Data'!$J5='[1]Input-Output Data'!$K5)),'[1]TABLE DATA'!K$7,IF(AND(OR($I5<'[1]TABLE DATA'!$D$7,$I5='[1]TABLE DATA'!$D$7),AND($J5>$L5),OR('[1]Input-Output Data'!$J5<'[1]Input-Output Data'!$M5,'[1]Input-Output Data'!$J5='[1]Input-Output Data'!$M5)),'[1]TABLE DATA'!K$8,IF(AND(OR($I5<'[1]TABLE DATA'!$D$7,$I5='[1]TABLE DATA'!$D$7),AND($J5>$M5),OR('[1]Input-Output Data'!$J5<'[1]Input-Output Data'!$N5,'[1]Input-Output Data'!$J5='[1]Input-Output Data'!$N5)),'[1]TABLE DATA'!K$9,IF(AND(OR($I5<'[1]TABLE DATA'!$D$7,$I5='[1]TABLE DATA'!$D$7),$J5>$N5),"SIGN TOO WIDE",IF(AND(AND($I5>'[1]TABLE DATA'!$D$7,OR($I5<'[1]TABLE DATA'!$D$8,$I5='[1]TABLE DATA'!$D$8)),'[1]Input-Output Data'!$J5<'[1]Input-Output Data'!$K5),'[1]TABLE DATA'!K$8,IF(AND(AND($I5>'[1]TABLE DATA'!$D$7,OR($I5<'[1]TABLE DATA'!$D$8,$I5='[1]TABLE DATA'!$D$8)),AND('[1]Input-Output Data'!$J5>'[1]Input-Output Data'!$M5,OR('[1]Input-Output Data'!$J5<'[1]Input-Output Data'!$N5,'[1]Input-Output Data'!$J5='[1]Input-Output Data'!$N5))),'[1]TABLE DATA'!K$9,IF(AND(AND($I5>'[1]TABLE DATA'!$D$7,OR($I5<'[1]TABLE DATA'!$D$8,$I5='[1]TABLE DATA'!$D$8)),$J5>'[1]Input-Output Data'!$N5),"SIGN TOO WIDE",IF(AND(AND($I5>'[1]TABLE DATA'!$D$8,OR($I5<'[1]TABLE DATA'!$D$9,$I5='[1]TABLE DATA'!$D$9)),'[1]Input-Output Data'!$J5<'[1]Input-Output Data'!$K5),'[1]TABLE DATA'!K$9,"SIGN TOO WIDE")))))))))) -> 80 | U5: =IF(I5="Arm Too Long", "Reduce V or W",IF($I5>'[1]TABLE DATA'!$D$9,"SIGN TOO LARGE",IF(AND(OR($I5<'[1]TABLE DATA'!$D$7,$I5='[1]TABLE DATA'!$D$7),OR('[1]Input-Output Data'!$J5<'[1]Input-Output Data'!$K5,'[1]Input-Output Data'!$J5='[1]Input-Output Data'!$K5)),'[1]TABLE DATA'!L$7,IF(AND(OR($I5<'[1]TABLE DATA'!$D$7,$I5='[1]TABLE DATA'!$D$7),AND($J5>$L5),OR('[1]Input-Output Data'!$J5<'[1]Input-Output Data'!$M5,'[1]Input-Output Data'!$J5='[1]Input-Output Data'!$M5)),'[1]TABLE DATA'!L$8,IF(AND(OR($I5<'[1]TABLE DATA'!$D$7,$I5='[1]TABLE DATA'!$D$7),AND($J5>$M5),OR('[1]Input-Output Data'!$J5<'[1]Input-Output Data'!$N5,'[1]Input-Output Data'!$J5='[1]Input-Output Data'!$N5)),'[1]TABLE DATA'!L$9,IF(AND(OR($I5<'[1]TABLE DATA'!$D$7,$I5='[1]TABLE DATA'!$D$7),$J5>$N5),"SIGN TOO WIDE",IF(AND(AND($I5>'[1]TABLE DATA'!$D$7,OR($I5<'[1]TABLE DATA'!$D$8,$I5='[1]TABLE DATA'!$D$8)),'[1]Input-Output Data'!$J5<'[1]Input-Output Data'!$K5),'[1]TABLE DATA'!L$8,IF(AND(AND($I5>'[1]TABLE DATA'!$D$7,OR($I5<'[1]TABLE DATA'!$D$8,$I5='[1]TABLE DATA'!$D$8)),AND('[1]Input-Output Data'!$J5>'[1]Input-Output Data'!$M5,OR('[1]Input-Output Data'!$J5<'[1]Input-Output Data'!$N5,'[1]Input-Output Data'!$J5='[1]Input-Output Data'!$N5))),'[1]TABLE DATA'!L$9,IF(AND(AND($I5>'[1]TABLE DATA'!$D$7,OR($I5<'[1]TABLE DATA'!$D$8,$I5='[1]TABLE DATA'!$D$8)),$J5>'[1]Input-Output Data'!$N5),"SIGN TOO WIDE",IF(AND(AND($I5>'[1]TABLE DATA'!$D$8,OR($I5<'[1]TABLE DATA'!$D$9,$I5='[1]TABLE DATA'!$D$9)),'[1]Input-Output Data'!$J5<'[1]Input-Output Data'!$K5),'[1]TABLE DATA'!L$9,"SIGN TOO WIDE")))))))))) -> 14.5 | V5: =IF(I5="Arm Too Long", "Reduce V or W",IF($I5>'[1]TABLE DATA'!$D$9,"SIGN TOO LARGE",IF(AND(OR($I5<'[1]TABLE DATA'!$D$7,$I5='[1]TABLE DATA'!$D$7),OR('[1]Input-Output Data'!$J5<'[1]Input-Output Data'!$K5,'[1]Input-Output Data'!$J5='[1]Input-Output Data'!$K5)),'[1]TABLE DATA'!M$7,IF(AND(OR($I5<'[1]TABLE DATA'!$D$7,$I5='[1]TABLE DATA'!$D$7),AND($J5>$L5),OR('[1]Input-Output Data'!$J5<'[1]Input-Output Data'!$M5,'[1]Input-Output Data'!$J5='[1]Input-Output Data'!$M5)),'[1]TABLE DATA'!M$8,IF(AND(OR($I5<'[1]TABLE DATA'!$D$7,$I5='[1]TABLE DATA'!$D$7),AND($J5>$M5),OR('[1]Input-Output Data'!$J5<'[1]Input-Output Data'!$N5,'[1]Input-Output Data'!$J5='[1]Input-Output Data'!$N5)),'[1]TABLE DATA'!M$9,IF(AND(OR($I5<'[1]TABLE DATA'!$D$7,$I5='[1]TABLE DATA'!$D$7),$J5>$N5),"SIGN TOO WIDE",IF(AND(AND($I5>'[1]TABLE DATA'!$D$7,OR($I5<'[1]TABLE DATA'!$D$8,$I5='[1]TABLE DATA'!$D$8)),'[1]Input-Output Data'!$J5<'[1]Input-Output Data'!$K5),'[1]TABLE DATA'!M$8,IF(AND(AND($I5>'[1]TABLE DATA'!$D$7,OR($I5<'[1]TABLE DATA'!$D$8,$I5='[1]TABLE DATA'!$D$8)),AND('[1]Input-Output Data'!$J5>'[1]Input-Output Data'!$M5,OR('[1]Input-Output Data'!$J5<'[1]Input-Output Data'!$N5,'[1]Input-Output Data'!$J5='[1]Input-Output Data'!$N5))),'[1]TABLE DATA'!M$9,IF(AND(AND($I5>'[1]TABLE DATA'!$D$7,OR($I5<'[1]TABLE DATA'!$D$8,$I5='[1]TABLE DATA'!$D$8)),$J5>'[1]Input-Output Data'!$N5),"SIGN TOO WIDE",IF(AND(AND($I5>'[1]TABLE DATA'!$D$8,OR($I5<'[1]TABLE DATA'!$D$9,$I5='[1]TABLE DATA'!$D$9)),'[1]Input-Output Data'!$J5<'[1]Input-Output Data'!$K5),'[1]TABLE DATA'!M$9,"SIGN TOO WIDE")))))))))) -> 0.75 | W5: =IF(I5="Arm Too Long", "Reduce V or W",IF($I5>'[1]TABLE DATA'!$D$9,"SIGN TOO LARGE",IF(AND(OR($I5<'[1]TABLE DATA'!$D$7,$I5='[1]TABLE DATA'!$D$7),OR('[1]Input-Output Data'!$J5<'[1]Input-Output Data'!$K5,'[1]Input-Output Data'!$J5='[1]Input-Output Data'!$K5)),'[1]TABLE DATA'!N$7,IF(AND(OR($I5<'[1]TABLE DATA'!$D$7,$I5='[1]TABLE DATA'!$D$7),AND($J5>$L5),OR('[1]Input-Output Data'!$J5<'[1]Input-Output Data'!$M5,'[1]Input-Output Data'!$J5='[1]Input-Output Data'!$M5)),'[1]TABLE DATA'!N$8,IF(AND(OR($I5<'[1]TABLE DATA'!$D$7,$I5='[1]TABLE DATA'!$D$7),AND($J5>$M5),OR('[1]Input-Output Data'!$J5<'[1]Input-Output Data'!$N5,'[1]Input-Output Data'!$J5='[1]Input-Output Data'!$N5)),'[1]TABLE DATA'!N$9,IF(AND(OR($I5<'[1]TABLE DATA'!$D$7,$I5='[1]TABLE DATA'!$D$7),$J5>$N5),"SIGN TOO WIDE",IF(AND(AND($I5>'[1]TABLE DATA'!$D$7,OR($I5<'[1]TABLE DATA'!$D$8,$I5='[1]TABLE DATA'!$D$8)),'[1]Input-Output Data'!$J5<'[1]Input-Output Data'!$K5),'[1]TABLE DATA'!N$8,IF(AND(AND($I5>'[1]TABLE DATA'!$D$7,OR($I5<'[1]TABLE DATA'!$D$8,$I5='[1]TABLE DATA'!$D$8)),AND('[1]Input-Output Data'!$J5>'[1]Input-Output Data'!$M5,OR('[1]Input-Output Data'!$J5<'[1]Input-Output Data'!$N5,'[1]Input-Output Data'!$J5='[1]Input-Output Data'!$N5))),'[1]TABLE DATA'!N$9,IF(AND(AND($I5>'[1]TABLE DATA'!$D$7,OR($I5<'[1]TABLE DATA'!$D$8,$I5='[1]TABLE DATA'!$D$8)),$J5>'[1]Input-Output Data'!$N5),"SIGN TOO WIDE",IF(AND(AND($I5>'[1]TABLE DATA'!$D$8,OR($I5<'[1]TABLE DATA'!$D$9,$I5='[1]TABLE DATA'!$D$9)),'[1]Input-Output Data'!$J5<'[1]Input-Output Data'!$K5),'[1]TABLE DATA'!N$9,"SIGN TOO WIDE")))))))))) -> 0.625 | X5: =IF(I5="Arm Too Long", "Reduce V or W",IF($I5>'[1]TABLE DATA'!$D$9,"SIGN TOO LARGE",IF(AND(OR($I5<'[1]TABLE DATA'!$D$7,$I5='[1]TABLE DATA'!$D$7),OR('[1]Input-Output Data'!$J5<'[1]Input-Output Data'!$K5,'[1]Input-Output Data'!$J5='[1]Input-Output Data'!$K5)),'[1]TABLE DATA'!O$7,IF(AND(OR($I5<'[1]TABLE DATA'!$D$7,$I5='[1]TABLE DATA'!$D$7),AND($J5>$L5),OR('[1]Input-Output Data'!$J5<'[1]Input-Output Data'!$M5,'[1]Input-Output Data'!$J5='[1]Input-Output Data'!$M5)),'[1]TABLE DATA'!O$8,IF(AND(OR($I5<'[1]TABLE DATA'!$D$7,$I5='[1]TABLE DATA'!$D$7),AND($J5>$M5),OR('[1]Input-Output Data'!$J5<'[1]Input-Output Data'!$N5,'[1]Input-Output Data'!$J5='[1]Input-Output Data'!$N5)),'[1]TABLE DATA'!O$9,IF(AND(OR($I5<'[1]TABLE DATA'!$D$7,$I5='[1]TABLE DATA'!$D$7),$J5>$N5),"SIGN TOO WIDE",IF(AND(AND($I5>'[1]TABLE DATA'!$D$7,OR($I5<'[1]TABLE DATA'!$D$8,$I5='[1]TABLE DATA'!$D$8)),'[1]Input-Output Data'!$J5<'[1]Input-Output Data'!$K5),'[1]TABLE DATA'!O$8,IF(AND(AND($I5>'[1]TABLE DATA'!$D$7,OR($I5<'[1]TABLE DATA'!$D$8,$I5='[1]TABLE DATA'!$D$8)),AND('[1]Input-Output Data'!$J5>'[1]Input-Output Data'!$M5,OR('[1]Input-Output Data'!$J5<'[1]Input-Output Data'!$N5,'[1]Input-Output Data'!$J5='[1]Input-Output Data'!$N5))),'[1]TABLE DATA'!O$9,IF(AND(AND($I5>'[1]TABLE DATA'!$D$7,OR($I5<'[1]TABLE DATA'!$D$8,$I5='[1]TABLE DATA'!$D$8)),$J5>'[1]Input-Output Data'!$N5),"SIGN TOO WIDE",IF(AND(AND($I5>'[1]TABLE DATA'!$D$8,OR($I5<'[1]TABLE DATA'!$D$9,$I5='[1]TABLE DATA'!$D$9)),'[1]Input-Output Data'!$J5<'[1]Input-Output Data'!$K5),'[1]TABLE DATA'!O$9,"SIGN TOO WIDE")))))))))) -> 0.625 | Y5: =IF(V5=0.5,"I",IF(V5=0.625,"II",IF(V5=0.75,"III","N/A"))) -> III
D6: 48 | E6: 48 | F6: Diamond | G6: =Y6 -> I | H6: 30 | I6: =D6*E6/144 -> 16 | J6: =IF(F6="Square",2+D6/2,2+(SQRT(2)/2)*D6) -> 35.9 | K6: =IF(OR(I6<'[1]TABLE DATA'!$D$7,I6='[1]TABLE DATA'!$D$7),717.75/I6,IF(AND('[1]TABLE DATA'!$D$7<I6,OR(I6<'[1]TABLE DATA'!$D$8,I6='[1]TABLE DATA'!$D$8)),1695/I6,IF(AND('[1]TABLE DATA'!$D$8<I6,OR(I6<'[1]TABLE DATA'!$D$9,I6='[1]TABLE DATA'!$D$9)),2268/I6,IF(I6="Arm Too Long", "Reduce V or W","Sign Too Wide")))) -> 44.86 | L6: =717.75/'[1]Input-Output Data'!I6 -> 44.86 | M6: =1695/I6 -> 105.94 | N6: =2268/I6 -> 141.75 | O6: =IF(I6="Arm Too Long", "Reduce V or W",IF($I6>'[1]TABLE DATA'!$D$9,"SIGN TOO LARGE",IF(AND(OR($I6<'[1]TABLE DATA'!$D$7,$I6='[1]TABLE DATA'!$D$7),OR('[1]Input-Output Data'!$J6<'[1]Input-Output Data'!$K6,'[1]Input-Output Data'!$J6='[1]Input-Output Data'!$K6)),'[1]TABLE DATA'!F$7,IF(AND(OR($I6<'[1]TABLE DATA'!$D$7,$I6='[1]TABLE DATA'!$D$7),AND($J6>$L6),OR('[1]Input-Output Data'!$J6<'[1]Input-Output Data'!$M6,'[1]Input-Output Data'!$J6='[1]Input-Output Data'!$M6)),'[1]TABLE DATA'!F$8,IF(AND(OR($I6<'[1]TABLE DATA'!$D$7,$I6='[1]TABLE DATA'!$D$7),AND($J6>$M6),OR('[1]Input-Output Data'!$J6<'[1]Input-Output Data'!$N6,'[1]Input-Output Data'!$J6='[1]Input-Output Data'!$N6)),'[1]TABLE DATA'!F$9,IF(AND(OR($I6<'[1]TABLE DATA'!$D$7,$I6='[1]TABLE DATA'!$D$7),$J6>$N6),"SIGN TOO WIDE",IF(AND(AND($I6>'[1]TABLE DATA'!$D$7,OR($I6<'[1]TABLE DATA'!$D$8,$I6='[1]TABLE DATA'!$D$8)),'[1]Input-Output Data'!$J6<'[1]Input-Output Data'!$K6),'[1]TABLE DATA'!F$8,IF(AND(AND($I6>'[1]TABLE DATA'!$D$7,OR($I6<'[1]TABLE DATA'!$D$8,$I6='[1]TABLE DATA'!$D$8)),AND('[1]Input-Output Data'!$J6>'[1]Input-Output Data'!$M6,OR('[1]Input-Output Data'!$J6<'[1]Input-Output Data'!$N6,'[1]Input-Output Data'!$J6='[1]Input-Output Data'!$N6))),'[1]TABLE DATA'!F$9,IF(AND(AND($I6>'[1]TABLE DATA'!$D$7,OR($I6<'[1]TABLE DATA'!$D$8,$I6='[1]TABLE DATA'!$D$8)),$J6>'[1]Input-Output Data'!$N6),"SIGN TOO WIDE",IF(AND(AND($I6>'[1]TABLE DATA'!$D$8,OR($I6<'[1]TABLE DATA'!$D$9,$I6='[1]TABLE DATA'!$D$9)),'[1]Input-Output Data'!$J6<'[1]Input-Output Data'!$K6),'[1]TABLE DATA'!F$9,"SIGN TOO WIDE")))))))))) -> 4 | P6: =IF(I6="Arm Too Long", "Reduce V or W",IF($I6>'[1]TABLE DATA'!$D$9,"SIGN TOO LARGE",IF(AND(OR($I6<'[1]TABLE DATA'!$D$7,$I6='[1]TABLE DATA'!$D$7),OR('[1]Input-Output Data'!$J6<'[1]Input-Output Data'!$K6,'[1]Input-Output Data'!$J6='[1]Input-Output Data'!$K6)),'[1]TABLE DATA'!G$7,IF(AND(OR($I6<'[1]TABLE DATA'!$D$7,$I6='[1]TABLE DATA'!$D$7),AND($J6>$L6),OR('[1]Input-Output Data'!$J6<'[1]Input-Output Data'!$M6,'[1]Input-Output Data'!$J6='[1]Input-Output Data'!$M6)),'[1]TABLE DATA'!G$8,IF(AND(OR($I6<'[1]TABLE DATA'!$D$7,$I6='[1]TABLE DATA'!$D$7),AND($J6>$M6),OR('[1]Input-Output Data'!$J6<'[1]Input-Output Data'!$N6,'[1]Input-Output Data'!$J6='[1]Input-Output Data'!$N6)),'[1]TABLE DATA'!G$9,IF(AND(OR($I6<'[1]TABLE DATA'!$D$7,$I6='[1]TABLE DATA'!$D$7),$J6>$N6),"SIGN TOO WIDE",IF(AND(AND($I6>'[1]TABLE DATA'!$D$7,OR($I6<'[1]TABLE DATA'!$D$8,$I6='[1]TABLE DATA'!$D$8)),'[1]Input-Output Data'!$J6<'[1]Input-Output Data'!$K6),'[1]TABLE DATA'!G$8,IF(AND(AND($I6>'[1]TABLE DATA'!$D$7,OR($I6<'[1]TABLE DATA'!$D$8,$I6='[1]TABLE DATA'!$D$8)),AND('[1]Input-Output Data'!$J6>'[1]Input-Output Data'!$M6,OR('[1]Input-Output Data'!$J6<'[1]Input-Output Data'!$N6,'[1]Input-Output Data'!$J6='[1]Input-Output Data'!$N6))),'[1]TABLE DATA'!G$9,IF(AND(AND($I6>'[1]TABLE DATA'!$D$7,OR($I6<'[1]TABLE DATA'!$D$8,$I6='[1]TABLE DATA'!$D$8)),$J6>'[1]Input-Output Data'!$N6),"SIGN TOO WIDE",IF(AND(AND($I6>'[1]TABLE DATA'!$D$8,OR($I6<'[1]TABLE DATA'!$D$9,$I6='[1]TABLE DATA'!$D$9)),'[1]Input-Output Data'!$J6<'[1]Input-Output Data'!$K6),'[1]TABLE DATA'!G$9,"SIGN TOO WIDE")))))))))) -> 2 | Q6: =IF(I6="Arm Too Long", "Reduce V or W",IF($I6>'[1]TABLE DATA'!$D$9,"SIGN TOO LARGE",IF(AND(OR($I6<'[1]TABLE DATA'!$D$7,$I6='[1]TABLE DATA'!$D$7),OR('[1]Input-Output Data'!$J6<'[1]Input-Output Data'!$K6,'[1]Input-Output Data'!$J6='[1]Input-Output Data'!$K6)),'[1]TABLE DATA'!H$7,IF(AND(OR($I6<'[1]TABLE DATA'!$D$7,$I6='[1]TABLE DATA'!$D$7),AND($J6>$L6),OR('[1]Input-Output Data'!$J6<'[1]Input-Output Data'!$M6,'[1]Input-Output Data'!$J6='[1]Input-Output Data'!$M6)),'[1]TABLE DATA'!H$8,IF(AND(OR($I6<'[1]TABLE DATA'!$D$7,$I6='[1]TABLE DATA'!$D$7),AND($J6>$M6),OR('[1]Input-Output Data'!$J6<'[1]Input-Output Data'!$N6,'[1]Input-Output Data'!$J6='[1]Input-Output Data'!$N6)),'[1]TABLE DATA'!H$9,IF(AND(OR($I6<'[1]TABLE DATA'!$D$7,$I6='[1]TABLE DATA'!$D$7),$J6>$N6),"SIGN TOO WIDE",IF(AND(AND($I6>'[1]TABLE DATA'!$D$7,OR($I6<'[1]TABLE DATA'!$D$8,$I6='[1]TABLE DATA'!$D$8)),'[1]Input-Output Data'!$J6<'[1]Input-Output Data'!$K6),'[1]TABLE DATA'!H$8,IF(AND(AND($I6>'[1]TABLE DATA'!$D$7,OR($I6<'[1]TABLE DATA'!$D$8,$I6='[1]TABLE DATA'!$D$8)),AND('[1]Input-Output Data'!$J6>'[1]Input-Output Data'!$M6,OR('[1]Input-Output Data'!$J6<'[1]Input-Output Data'!$N6,'[1]Input-Output Data'!$J6='[1]Input-Output Data'!$N6))),'[1]TABLE DATA'!H$9,IF(AND(AND($I6>'[1]TABLE DATA'!$D$7,OR($I6<'[1]TABLE DATA'!$D$8,$I6='[1]TABLE DATA'!$D$8)),$J6>'[1]Input-Output Data'!$N6),"SIGN TOO WIDE",IF(AND(AND($I6>'[1]TABLE DATA'!$D$8,OR($I6<'[1]TABLE DATA'!$D$9,$I6='[1]TABLE DATA'!$D$9)),'[1]Input-Output Data'!$J6<'[1]Input-Output Data'!$K6),'[1]TABLE DATA'!H$9,"SIGN TOO WIDE")))))))))) -> 0.625 | R6: =IF(I6="Arm Too Long", "Reduce V or W",IF($I6>'[1]TABLE DATA'!$D$9,"SIGN TOO LARGE",IF(AND(OR($I6<'[1]TABLE DATA'!$D$7,$I6='[1]TABLE DATA'!$D$7),OR('[1]Input-Output Data'!$J6<'[1]Input-Output Data'!$K6,'[1]Input-Output Data'!$J6='[1]Input-Output Data'!$K6)),'[1]TABLE DATA'!I$7,IF(AND(OR($I6<'[1]TABLE DATA'!$D$7,$I6='[1]TABLE DATA'!$D$7),AND($J6>$L6),OR('[1]Input-Output Data'!$J6<'[1]Input-Output Data'!$M6,'[1]Input-Output Data'!$J6='[1]Input-Output Data'!$M6)),'[1]TABLE DATA'!I$8,IF(AND(OR($I6<'[1]TABLE DATA'!$D$7,$I6='[1]TABLE DATA'!$D$7),AND($J6>$M6),OR('[1]Input-Output Data'!$J6<'[1]Input-Output Data'!$N6,'[1]Input-Output Data'!$J6='[1]Input-Output Data'!$N6)),'[1]TABLE DATA'!I$9,IF(AND(OR($I6<'[1]TABLE DATA'!$D$7,$I6='[1]TABLE DATA'!$D$7),$J6>$N6),"SIGN TOO WIDE",IF(AND(AND($I6>'[1]TABLE DATA'!$D$7,OR($I6<'[1]TABLE DATA'!$D$8,$I6='[1]TABLE DATA'!$D$8)),'[1]Input-Output Data'!$J6<'[1]Input-Output Data'!$K6),'[1]TABLE DATA'!I$8,IF(AND(AND($I6>'[1]TABLE DATA'!$D$7,OR($I6<'[1]TABLE DATA'!$D$8,$I6='[1]TABLE DATA'!$D$8)),AND('[1]Input-Output Data'!$J6>'[1]Input-Output Data'!$M6,OR('[1]Input-Output Data'!$J6<'[1]Input-Output Data'!$N6,'[1]Input-Output Data'!$J6='[1]Input-Output Data'!$N6))),'[1]TABLE DATA'!I$9,IF(AND(AND($I6>'[1]TABLE DATA'!$D$7,OR($I6<'[1]TABLE DATA'!$D$8,$I6='[1]TABLE DATA'!$D$8)),$J6>'[1]Input-Output Data'!$N6),"SIGN TOO WIDE",IF(AND(AND($I6>'[1]TABLE DATA'!$D$8,OR($I6<'[1]TABLE DATA'!$D$9,$I6='[1]TABLE DATA'!$D$9)),'[1]Input-Output Data'!$J6<'[1]Input-Output Data'!$K6),'[1]TABLE DATA'!I$9,"SIGN TOO WIDE")))))))))) -> 5.625 | S6: =IF(I6="Arm Too Long", "Reduce V or W",IF($I6>'[1]TABLE DATA'!$D$9,"SIGN TOO LARGE",IF(AND(OR($I6<'[1]TABLE DATA'!$D$7,$I6='[1]TABLE DATA'!$D$7),OR('[1]Input-Output Data'!$J6<'[1]Input-Output Data'!$K6,'[1]Input-Output Data'!$J6='[1]Input-Output Data'!$K6)),'[1]TABLE DATA'!J$7,IF(AND(OR($I6<'[1]TABLE DATA'!$D$7,$I6='[1]TABLE DATA'!$D$7),AND($J6>$L6),OR('[1]Input-Output Data'!$J6<'[1]Input-Output Data'!$M6,'[1]Input-Output Data'!$J6='[1]Input-Output Data'!$M6)),'[1]TABLE DATA'!J$8,IF(AND(OR($I6<'[1]TABLE DATA'!$D$7,$I6='[1]TABLE DATA'!$D$7),AND($J6>$M6),OR('[1]Input-Output Data'!$J6<'[1]Input-Output Data'!$N6,'[1]Input-Output Data'!$J6='[1]Input-Output Data'!$N6)),'[1]TABLE DATA'!J$9,IF(AND(OR($I6<'[1]TABLE DATA'!$D$7,$I6='[1]TABLE DATA'!$D$7),$J6>$N6),"SIGN TOO WIDE",IF(AND(AND($I6>'[1]TABLE DATA'!$D$7,OR($I6<'[1]TABLE DATA'!$D$8,$I6='[1]TABLE DATA'!$D$8)),'[1]Input-Output Data'!$J6<'[1]Input-Output Data'!$K6),'[1]TABLE DATA'!J$8,IF(AND(AND($I6>'[1]TABLE DATA'!$D$7,OR($I6<'[1]TABLE DATA'!$D$8,$I6='[1]TABLE DATA'!$D$8)),AND('[1]Input-Output Data'!$J6>'[1]Input-Output Data'!$M6,OR('[1]Input-Output Data'!$J6<'[1]Input-Output Data'!$N6,'[1]Input-Output Data'!$J6='[1]Input-Output Data'!$N6))),'[1]TABLE DATA'!J$9,IF(AND(AND($I6>'[1]TABLE DATA'!$D$7,OR($I6<'[1]TABLE DATA'!$D$8,$I6='[1]TABLE DATA'!$D$8)),$J6>'[1]Input-Output Data'!$N6),"SIGN TOO WIDE",IF(AND(AND($I6>'[1]TABLE DATA'!$D$8,OR($I6<'[1]TABLE DATA'!$D$9,$I6='[1]TABLE DATA'!$D$9)),'[1]Input-Output Data'!$J6<'[1]Input-Output Data'!$K6),'[1]TABLE DATA'!J$9,"SIGN TOO WIDE")))))))))) -> 2 | T6: =IF(I6="Arm Too Long", "Reduce V or W",IF($I6>'[1]TABLE DATA'!$D$9,"SIGN TOO LARGE",IF(AND(OR($I6<'[1]TABLE DATA'!$D$7,$I6='[1]TABLE DATA'!$D$7),OR('[1]Input-Output Data'!$J6<'[1]Input-Output Data'!$K6,'[1]Input-Output Data'!$J6='[1]Input-Output Data'!$K6)),'[1]TABLE DATA'!K$7,IF(AND(OR($I6<'[1]TABLE DATA'!$D$7,$I6='[1]TABLE DATA'!$D$7),AND($J6>$L6),OR('[1]Input-Output Data'!$J6<'[1]Input-Output Data'!$M6,'[1]Input-Output Data'!$J6='[1]Input-Output Data'!$M6)),'[1]TABLE DATA'!K$8,IF(AND(OR($I6<'[1]TABLE DATA'!$D$7,$I6='[1]TABLE DATA'!$D$7),AND($J6>$M6),OR('[1]Input-Output Data'!$J6<'[1]Input-Output Data'!$N6,'[1]Input-Output Data'!$J6='[1]Input-Output Data'!$N6)),'[1]TABLE DATA'!K$9,IF(AND(OR($I6<'[1]TABLE DATA'!$D$7,$I6='[1]TABLE DATA'!$D$7),$J6>$N6),"SIGN TOO WIDE",IF(AND(AND($I6>'[1]TABLE DATA'!$D$7,OR($I6<'[1]TABLE DATA'!$D$8,$I6='[1]TABLE DATA'!$D$8)),'[1]Input-Output Data'!$J6<'[1]Input-Output Data'!$K6),'[1]TABLE DATA'!K$8,IF(AND(AND($I6>'[1]TABLE DATA'!$D$7,OR($I6<'[1]TABLE DATA'!$D$8,$I6='[1]TABLE DATA'!$D$8)),AND('[1]Input-Output Data'!$J6>'[1]Input-Output Data'!$M6,OR('[1]Input-Output Data'!$J6<'[1]Input-Output Data'!$N6,'[1]Input-Output Data'!$J6='[1]Input-Output Data'!$N6))),'[1]TABLE DATA'!K$9,IF(AND(AND($I6>'[1]TABLE DATA'!$D$7,OR($I6<'[1]TABLE DATA'!$D$8,$I6='[1]TABLE DATA'!$D$8)),$J6>'[1]Input-Output Data'!$N6),"SIGN TOO WIDE",IF(AND(AND($I6>'[1]TABLE DATA'!$D$8,OR($I6<'[1]TABLE DATA'!$D$9,$I6='[1]TABLE DATA'!$D$9)),'[1]Input-Output Data'!$J6<'[1]Input-Output Data'!$K6),'[1]TABLE DATA'!K$9,"SIGN TOO WIDE")))))))))) -> 60 | U6: =IF(I6="Arm Too Long", "Reduce V or W",IF($I6>'[1]TABLE DATA'!$D$9,"SIGN TOO LARGE",IF(AND(OR($I6<'[1]TABLE DATA'!$D$7,$I6='[1]TABLE DATA'!$D$7),OR('[1]Input-Output Data'!$J6<'[1]Input-Output Data'!$K6,'[1]Input-Output Data'!$J6='[1]Input-Output Data'!$K6)),'[1]TABLE DATA'!L$7,IF(AND(OR($I6<'[1]TABLE DATA'!$D$7,$I6='[1]TABLE DATA'!$D$7),AND($J6>$L6),OR('[1]Input-Output Data'!$J6<'[1]Input-Output Data'!$M6,'[1]Input-Output Data'!$J6='[1]Input-Output Data'!$M6)),'[1]TABLE DATA'!L$8,IF(AND(OR($I6<'[1]TABLE DATA'!$D$7,$I6='[1]TABLE DATA'!$D$7),AND($J6>$M6),OR('[1]Input-Output Data'!$J6<'[1]Input-Output Data'!$N6,'[1]Input-Output Data'!$J6='[1]Input-Output Data'!$N6)),'[1]TABLE DATA'!L$9,IF(AND(OR($I6<'[1]TABLE DATA'!$D$7,$I6='[1]TABLE DATA'!$D$7),$J6>$N6),"SIGN TOO WIDE",IF(AND(AND($I6>'[1]TABLE DATA'!$D$7,OR($I6<'[1]TABLE DATA'!$D$8,$I6='[1]TABLE DATA'!$D$8)),'[1]Input-Output Data'!$J6<'[1]Input-Output Data'!$K6),'[1]TABLE DATA'!L$8,IF(AND(AND($I6>'[1]TABLE DATA'!$D$7,OR($I6<'[1]TABLE DATA'!$D$8,$I6='[1]TABLE DATA'!$D$8)),AND('[1]Input-Output Data'!$J6>'[1]Input-Output Data'!$M6,OR('[1]Input-Output Data'!$J6<'[1]Input-Output Data'!$N6,'[1]Input-Output Data'!$J6='[1]Input-Output Data'!$N6))),'[1]TABLE DATA'!L$9,IF(AND(AND($I6>'[1]TABLE DATA'!$D$7,OR($I6<'[1]TABLE DATA'!$D$8,$I6='[1]TABLE DATA'!$D$8)),$J6>'[1]Input-Output Data'!$N6),"SIGN TOO WIDE",IF(AND(AND($I6>'[1]TABLE DATA'!$D$8,OR($I6<'[1]TABLE DATA'!$D$9,$I6='[1]TABLE DATA'!$D$9)),'[1]Input-Output Data'!$J6<'[1]Input-Output Data'!$K6),'[1]TABLE DATA'!L$9,"SIGN TOO WIDE")))))))))) -> 7.4 | V6: =IF(I6="Arm Too Long", "Reduce V or W",IF($I6>'[1]TABLE DATA'!$D$9,"SIGN TOO LARGE",IF(AND(OR($I6<'[1]TABLE DATA'!$D$7,$I6='[1]TABLE DATA'!$D$7),OR('[1]Input-Output Data'!$J6<'[1]Input-Output Data'!$K6,'[1]Input-Output Data'!$J6='[1]Input-Output Data'!$K6)),'[1]TABLE DATA'!M$7,IF(AND(OR($I6<'[1]TABLE DATA'!$D$7,$I6='[1]TABLE DATA'!$D$7),AND($J6>$L6),OR('[1]Input-Output Data'!$J6<'[1]Input-Output Data'!$M6,'[1]Input-Output Data'!$J6='[1]Input-Output Data'!$M6)),'[1]TABLE DATA'!M$8,IF(AND(OR($I6<'[1]TABLE DATA'!$D$7,$I6='[1]TABLE DATA'!$D$7),AND($J6>$M6),OR('[1]Input-Output Data'!$J6<'[1]Input-Output Data'!$N6,'[1]Input-Output Data'!$J6='[1]Input-Output Data'!$N6)),'[1]TABLE DATA'!M$9,IF(AND(OR($I6<'[1]TABLE DATA'!$D$7,$I6='[1]TABLE DATA'!$D$7),$J6>$N6),"SIGN TOO WIDE",IF(AND(AND($I6>'[1]TABLE DATA'!$D$7,OR($I6<'[1]TABLE DATA'!$D$8,$I6='[1]TABLE DATA'!$D$8)),'[1]Input-Output Data'!$J6<'[1]Input-Output Data'!$K6),'[1]TABLE DATA'!M$8,IF(AND(AND($I6>'[1]TABLE DATA'!$D$7,OR($I6<'[1]TABLE DATA'!$D$8,$I6='[1]TABLE DATA'!$D$8)),AND('[1]Input-Output Data'!$J6>'[1]Input-Output Data'!$M6,OR('[1]Input-Output Data'!$J6<'[1]Input-Output Data'!$N6,'[1]Input-Output Data'!$J6='[1]Input-Output Data'!$N6))),'[1]TABLE DATA'!M$9,IF(AND(AND($I6>'[1]TABLE DATA'!$D$7,OR($I6<'[1]TABLE DATA'!$D$8,$I6='[1]TABLE DATA'!$D$8)),$J6>'[1]Input-Output Data'!$N6),"SIGN TOO WIDE",IF(AND(AND($I6>'[1]TABLE DATA'!$D$8,OR($I6<'[1]TABLE DATA'!$D$9,$I6='[1]TABLE DATA'!$D$9)),'[1]Input-Output Data'!$J6<'[1]Input-Output Data'!$K6),'[1]TABLE DATA'!M$9,"SIGN TOO WIDE")))))))))) -> 0.5 | W6: =IF(I6="Arm Too Long", "Reduce V or W",IF($I6>'[1]TABLE DATA'!$D$9,"SIGN TOO LARGE",IF(AND(OR($I6<'[1]TABLE DATA'!$D$7,$I6='[1]TABLE DATA'!$D$7),OR('[1]Input-Output Data'!$J6<'[1]Input-Output Data'!$K6,'[1]Input-Output Data'!$J6='[1]Input-Output Data'!$K6)),'[1]TABLE DATA'!N$7,IF(AND(OR($I6<'[1]TABLE DATA'!$D$7,$I6='[1]TABLE DATA'!$D$7),AND($J6>$L6),OR('[1]Input-Output Data'!$J6<'[1]Input-Output Data'!$M6,'[1]Input-Output Data'!$J6='[1]Input-Output Data'!$M6)),'[1]TABLE DATA'!N$8,IF(AND(OR($I6<'[1]TABLE DATA'!$D$7,$I6='[1]TABLE DATA'!$D$7),AND($J6>$M6),OR('[1]Input-Output Data'!$J6<'[1]Input-Output Data'!$N6,'[1]Input-Output Data'!$J6='[1]Input-Output Data'!$N6)),'[1]TABLE DATA'!N$9,IF(AND(OR($I6<'[1]TABLE DATA'!$D$7,$I6='[1]TABLE DATA'!$D$7),$J6>$N6),"SIGN TOO WIDE",IF(AND(AND($I6>'[1]TABLE DATA'!$D$7,OR($I6<'[1]TABLE DATA'!$D$8,$I6='[1]TABLE DATA'!$D$8)),'[1]Input-Output Data'!$J6<'[1]Input-Output Data'!$K6),'[1]TABLE DATA'!N$8,IF(AND(AND($I6>'[1]TABLE DATA'!$D$7,OR($I6<'[1]TABLE DATA'!$D$8,$I6='[1]TABLE DATA'!$D$8)),AND('[1]Input-Output Data'!$J6>'[1]Input-Output Data'!$M6,OR('[1]Input-Output Data'!$J6<'[1]Input-Output Data'!$N6,'[1]Input-Output Data'!$J6='[1]Input-Output Data'!$N6))),'[1]TABLE DATA'!N$9,IF(AND(AND($I6>'[1]TABLE DATA'!$D$7,OR($I6<'[1]TABLE DATA'!$D$8,$I6='[1]TABLE DATA'!$D$8)),$J6>'[1]Input-Output Data'!$N6),"SIGN TOO WIDE",IF(AND(AND($I6>'[1]TABLE DATA'!$D$8,OR($I6<'[1]TABLE DATA'!$D$9,$I6='[1]TABLE DATA'!$D$9)),'[1]Input-Output Data'!$J6<'[1]Input-Output Data'!$K6),'[1]TABLE DATA'!N$9,"SIGN TOO WIDE")))))))))) -> 0.5 | X6: =IF(I6="Arm Too Long", "Reduce V or W",IF($I6>'[1]TABLE DATA'!$D$9,"SIGN TOO LARGE",IF(AND(OR($I6<'[1]TABLE DATA'!$D$7,$I6='[1]TABLE DATA'!$D$7),OR('[1]Input-Output Data'!$J6<'[1]Input-Output Data'!$K6,'[1]Input-Output Data'!$J6='[1]Input-Output Data'!$K6)),'[1]TABLE DATA'!O$7,IF(AND(OR($I6<'[1]TABLE DATA'!$D$7,$I6='[1]TABLE DATA'!$D$7),AND($J6>$L6),OR('[1]Input-Output Data'!$J6<'[1]Input-Output Data'!$M6,'[1]Input-Output Data'!$J6='[1]Input-Output Data'!$M6)),'[1]TABLE DATA'!O$8,IF(AND(OR($I6<'[1]TABLE DATA'!$D$7,$I6='[1]TABLE DATA'!$D$7),AND($J6>$M6),OR('[1]Input-Output Data'!$J6<'[1]Input-Output Data'!$N6,'[1]Input-Output Data'!$J6='[1]Input-Output Data'!$N6)),'[1]TABLE DATA'!O$9,IF(AND(OR($I6<'[1]TABLE DATA'!$D$7,$I6='[1]TABLE DATA'!$D$7),$J6>$N6),"SIGN TOO WIDE",IF(AND(AND($I6>'[1]TABLE DATA'!$D$7,OR($I6<'[1]TABLE DATA'!$D$8,$I6='[1]TABLE DATA'!$D$8)),'[1]Input-Output Data'!$J6<'[1]Input-Output Data'!$K6),'[1]TABLE DATA'!O$8,IF(AND(AND($I6>'[1]TABLE DATA'!$D$7,OR($I6<'[1]TABLE DATA'!$D$8,$I6='[1]TABLE DATA'!$D$8)),AND('[1]Input-Output Data'!$J6>'[1]Input-Output Data'!$M6,OR('[1]Input-Output Data'!$J6<'[1]Input-Output Data'!$N6,'[1]Input-Output Data'!$J6='[1]Input-Output Data'!$N6))),'[1]TABLE DATA'!O$9,IF(AND(AND($I6>'[1]TABLE DATA'!$D$7,OR($I6<'[1]TABLE DATA'!$D$8,$I6='[1]TABLE DATA'!$D$8)),$J6>'[1]Input-Output Data'!$N6),"SIGN TOO WIDE",IF(AND(AND($I6>'[1]TABLE DATA'!$D$8,OR($I6<'[1]TABLE DATA'!$D$9,$I6='[1]TABLE DATA'!$D$9)),'[1]Input-Output Data'!$J6<'[1]Input-Output Data'!$K6),'[1]TABLE DATA'!O$9,"SIGN TOO WIDE")))))))))) -> 0.5 | Y6: =IF(V6=0.5,"I",IF(V6=0.625,"II",IF(V6=0.75,"III","N/A"))) -> I
D7: 102 | E7: 54 | F7: Square | G7: III | H7: 33 | I7: 38.25 | J7: 53 | K7: =IF(OR(I7<'[1]TABLE DATA'!$D$7,I7='[1]TABLE DATA'!$D$7),717.75/I7,IF(AND('[1]TABLE DATA'!$D$7<I7,OR(I7<'[1]TABLE DATA'!$D$8,I7='[1]TABLE DATA'!$D$8)),1695/I7,IF(AND('[1]TABLE DATA'!$D$8<I7,OR(I7<'[1]TABLE DATA'!$D$9,I7='[1]TABLE DATA'!$D$9)),2268/I7,IF(I7="Arm Too Long", "Reduce V or W","Sign Too Wide")))) -> 44.31 | L7: =717.75/'[1]Input-Output Data'!I7 -> 18.76 | M7: 44.31 | N7: 59.29 | O7: =IF(I7="Arm Too Long", "Reduce V or W",IF($I7>'[1]TABLE DATA'!$D$9,"SIGN TOO LARGE",IF(AND(OR($I7<'[1]TABLE DATA'!$D$7,$I7='[1]TABLE DATA'!$D$7),OR('[1]Input-Output Data'!$J7<'[1]Input-Output Data'!$K7,'[1]Input-Output Data'!$J7='[1]Input-Output Data'!$K7)),'[1]TABLE DATA'!F$7,IF(AND(OR($I7<'[1]TABLE DATA'!$D$7,$I7='[1]TABLE DATA'!$D$7),AND($J7>$L7),OR('[1]Input-Output Data'!$J7<'[1]Input-Output Data'!$M7,'[1]Input-Output Data'!$J7='[1]Input-Output Data'!$M7)),'[1]TABLE DATA'!F$8,IF(AND(OR($I7<'[1]TABLE DATA'!$D$7,$I7='[1]TABLE DATA'!$D$7),AND($J7>$M7),OR('[1]Input-Output Data'!$J7<'[1]Input-Output Data'!$N7,'[1]Input-Output Data'!$J7='[1]Input-Output Data'!$N7)),'[1]TABLE DATA'!F$9,IF(AND(OR($I7<'[1]TABLE DATA'!$D$7,$I7='[1]TABLE DATA'!$D$7),$J7>$N7),"SIGN TOO WIDE",IF(AND(AND($I7>'[1]TABLE DATA'!$D$7,OR($I7<'[1]TABLE DATA'!$D$8,$I7='[1]TABLE DATA'!$D$8)),'[1]Input-Output Data'!$J7<'[1]Input-Output Data'!$K7),'[1]TABLE DATA'!F$8,IF(AND(AND($I7>'[1]TABLE DATA'!$D$7,OR($I7<'[1]TABLE DATA'!$D$8,$I7='[1]TABLE DATA'!$D$8)),AND('[1]Input-Output Data'!$J7>'[1]Input-Output Data'!$M7,OR('[1]Input-Output Data'!$J7<'[1]Input-Output Data'!$N7,'[1]Input-Output Data'!$J7='[1]Input-Output Data'!$N7))),'[1]TABLE DATA'!F$9,IF(AND(AND($I7>'[1]TABLE DATA'!$D$7,OR($I7<'[1]TABLE DATA'!$D$8,$I7='[1]TABLE DATA'!$D$8)),$J7>'[1]Input-Output Data'!$N7),"SIGN TOO WIDE",IF(AND(AND($I7>'[1]TABLE DATA'!$D$8,OR($I7<'[1]TABLE DATA'!$D$9,$I7='[1]TABLE DATA'!$D$9)),'[1]Input-Output Data'!$J7<'[1]Input-Output Data'!$K7),'[1]TABLE DATA'!F$9,"SIGN TOO WIDE")))))))))) -> 5 | P7: =IF(I7="Arm Too Long", "Reduce V or W",IF($I7>'[1]TABLE DATA'!$D$9,"SIGN TOO LARGE",IF(AND(OR($I7<'[1]TABLE DATA'!$D$7,$I7='[1]TABLE DATA'!$D$7),OR('[1]Input-Output Data'!$J7<'[1]Input-Output Data'!$K7,'[1]Input-Output Data'!$J7='[1]Input-Output Data'!$K7)),'[1]TABLE DATA'!G$7,IF(AND(OR($I7<'[1]TABLE DATA'!$D$7,$I7='[1]TABLE DATA'!$D$7),AND($J7>$L7),OR('[1]Input-Output Data'!$J7<'[1]Input-Output Data'!$M7,'[1]Input-Output Data'!$J7='[1]Input-Output Data'!$M7)),'[1]TABLE DATA'!G$8,IF(AND(OR($I7<'[1]TABLE DATA'!$D$7,$I7='[1]TABLE DATA'!$D$7),AND($J7>$M7),OR('[1]Input-Output Data'!$J7<'[1]Input-Output Data'!$N7,'[1]Input-Output Data'!$J7='[1]Input-Output Data'!$N7)),'[1]TABLE DATA'!G$9,IF(AND(OR($I7<'[1]TABLE DATA'!$D$7,$I7='[1]TABLE DATA'!$D$7),$J7>$N7),"SIGN TOO WIDE",IF(AND(AND($I7>'[1]TABLE DATA'!$D$7,OR($I7<'[1]TABLE DATA'!$D$8,$I7='[1]TABLE DATA'!$D$8)),'[1]Input-Output Data'!$J7<'[1]Input-Output Data'!$K7),'[1]TABLE DATA'!G$8,IF(AND(AND($I7>'[1]TABLE DATA'!$D$7,OR($I7<'[1]TABLE DATA'!$D$8,$I7='[1]TABLE DATA'!$D$8)),AND('[1]Input-Output Data'!$J7>'[1]Input-Output Data'!$M7,OR('[1]Input-Output Data'!$J7<'[1]Input-Output Data'!$N7,'[1]Input-Output Data'!$J7='[1]Input-Output Data'!$N7))),'[1]TABLE DATA'!G$9,IF(AND(AND($I7>'[1]TABLE DATA'!$D$7,OR($I7<'[1]TABLE DATA'!$D$8,$I7='[1]TABLE DATA'!$D$8)),$J7>'[1]Input-Output Data'!$N7),"SIGN TOO WIDE",IF(AND(AND($I7>'[1]TABLE DATA'!$D$8,OR($I7<'[1]TABLE DATA'!$D$9,$I7='[1]TABLE DATA'!$D$9)),'[1]Input-Output Data'!$J7<'[1]Input-Output Data'!$K7),'[1]TABLE DATA'!G$9,"SIGN TOO WIDE")))))))))) -> 3 | Q7: =IF(I7="Arm Too Long", "Reduce V or W",IF($I7>'[1]TABLE DATA'!$D$9,"SIGN TOO LARGE",IF(AND(OR($I7<'[1]TABLE DATA'!$D$7,$I7='[1]TABLE DATA'!$D$7),OR('[1]Input-Output Data'!$J7<'[1]Input-Output Data'!$K7,'[1]Input-Output Data'!$J7='[1]Input-Output Data'!$K7)),'[1]TABLE DATA'!H$7,IF(AND(OR($I7<'[1]TABLE DATA'!$D$7,$I7='[1]TABLE DATA'!$D$7),AND($J7>$L7),OR('[1]Input-Output Data'!$J7<'[1]Input-Output Data'!$M7,'[1]Input-Output Data'!$J7='[1]Input-Output Data'!$M7)),'[1]TABLE DATA'!H$8,IF(AND(OR($I7<'[1]TABLE DATA'!$D$7,$I7='[1]TABLE DATA'!$D$7),AND($J7>$M7),OR('[1]Input-Output Data'!$J7<'[1]Input-Output Data'!$N7,'[1]Input-Output Data'!$J7='[1]Input-Output Data'!$N7)),'[1]TABLE DATA'!H$9,IF(AND(OR($I7<'[1]TABLE DATA'!$D$7,$I7='[1]TABLE DATA'!$D$7),$J7>$N7),"SIGN TOO WIDE",IF(AND(AND($I7>'[1]TABLE DATA'!$D$7,OR($I7<'[1]TABLE DATA'!$D$8,$I7='[1]TABLE DATA'!$D$8)),'[1]Input-Output Data'!$J7<'[1]Input-Output Data'!$K7),'[1]TABLE DATA'!H$8,IF(AND(AND($I7>'[1]TABLE DATA'!$D$7,OR($I7<'[1]TABLE DATA'!$D$8,$I7='[1]TABLE DATA'!$D$8)),AND('[1]Input-Output Data'!$J7>'[1]Input-Output Data'!$M7,OR('[1]Input-Output Data'!$J7<'[1]Input-Output Data'!$N7,'[1]Input-Output Data'!$J7='[1]Input-Output Data'!$N7))),'[1]TABLE DATA'!H$9,IF(AND(AND($I7>'[1]TABLE DATA'!$D$7,OR($I7<'[1]TABLE DATA'!$D$8,$I7='[1]TABLE DATA'!$D$8)),$J7>'[1]Input-Output Data'!$N7),"SIGN TOO WIDE",IF(AND(AND($I7>'[1]TABLE DATA'!$D$8,OR($I7<'[1]TABLE DATA'!$D$9,$I7='[1]TABLE DATA'!$D$9)),'[1]Input-Output Data'!$J7<'[1]Input-Output Data'!$K7),'[1]TABLE DATA'!H$9,"SIGN TOO WIDE")))))))))) -> 0.875 | R7: =IF(I7="Arm Too Long", "Reduce V or W",IF($I7>'[1]TABLE DATA'!$D$9,"SIGN TOO LARGE",IF(AND(OR($I7<'[1]TABLE DATA'!$D$7,$I7='[1]TABLE DATA'!$D$7),OR('[1]Input-Output Data'!$J7<'[1]Input-Output Data'!$K7,'[1]Input-Output Data'!$J7='[1]Input-Output Data'!$K7)),'[1]TABLE DATA'!I$7,IF(AND(OR($I7<'[1]TABLE DATA'!$D$7,$I7='[1]TABLE DATA'!$D$7),AND($J7>$L7),OR('[1]Input-Output Data'!$J7<'[1]Input-Output Data'!$M7,'[1]Input-Output Data'!$J7='[1]Input-Output Data'!$M7)),'[1]TABLE DATA'!I$8,IF(AND(OR($I7<'[1]TABLE DATA'!$D$7,$I7='[1]TABLE DATA'!$D$7),AND($J7>$M7),OR('[1]Input-Output Data'!$J7<'[1]Input-Output Data'!$N7,'[1]Input-Output Data'!$J7='[1]Input-Output Data'!$N7)),'[1]TABLE DATA'!I$9,IF(AND(OR($I7<'[1]TABLE DATA'!$D$7,$I7='[1]TABLE DATA'!$D$7),$J7>$N7),"SIGN TOO WIDE",IF(AND(AND($I7>'[1]TABLE DATA'!$D$7,OR($I7<'[1]TABLE DATA'!$D$8,$I7='[1]TABLE DATA'!$D$8)),'[1]Input-Output Data'!$J7<'[1]Input-Output Data'!$K7),'[1]TABLE DATA'!I$8,IF(AND(AND($I7>'[1]TABLE DATA'!$D$7,OR($I7<'[1]TABLE DATA'!$D$8,$I7='[1]TABLE DATA'!$D$8)),AND('[1]Input-Output Data'!$J7>'[1]Input-Output Data'!$M7,OR('[1]Input-Output Data'!$J7<'[1]Input-Output Data'!$N7,'[1]Input-Output Data'!$J7='[1]Input-Output Data'!$N7))),'[1]TABLE DATA'!I$9,IF(AND(AND($I7>'[1]TABLE DATA'!$D$7,OR($I7<'[1]TABLE DATA'!$D$8,$I7='[1]TABLE DATA'!$D$8)),$J7>'[1]Input-Output Data'!$N7),"SIGN TOO WIDE",IF(AND(AND($I7>'[1]TABLE DATA'!$D$8,OR($I7<'[1]TABLE DATA'!$D$9,$I7='[1]TABLE DATA'!$D$9)),'[1]Input-Output Data'!$J7<'[1]Input-Output Data'!$K7),'[1]TABLE DATA'!I$9,"SIGN TOO WIDE")))))))))) -> 8 | S7: =IF(I7="Arm Too Long", "Reduce V or W",IF($I7>'[1]TABLE DATA'!$D$9,"SIGN TOO LARGE",IF(AND(OR($I7<'[1]TABLE DATA'!$D$7,$I7='[1]TABLE DATA'!$D$7),OR('[1]Input-Output Data'!$J7<'[1]Input-Output Data'!$K7,'[1]Input-Output Data'!$J7='[1]Input-Output Data'!$K7)),'[1]TABLE DATA'!J$7,IF(AND(OR($I7<'[1]TABLE DATA'!$D$7,$I7='[1]TABLE DATA'!$D$7),AND($J7>$L7),OR('[1]Input-Output Data'!$J7<'[1]Input-Output Data'!$M7,'[1]Input-Output Data'!$J7='[1]Input-Output Data'!$M7)),'[1]TABLE DATA'!J$8,IF(AND(OR($I7<'[1]TABLE DATA'!$D$7,$I7='[1]TABLE DATA'!$D$7),AND($J7>$M7),OR('[1]Input-Output Data'!$J7<'[1]Input-Output Data'!$N7,'[1]Input-Output Data'!$J7='[1]Input-Output Data'!$N7)),'[1]TABLE DATA'!J$9,IF(AND(OR($I7<'[1]TABLE DATA'!$D$7,$I7='[1]TABLE DATA'!$D$7),$J7>$N7),"SIGN TOO WIDE",IF(AND(AND($I7>'[1]TABLE DATA'!$D$7,OR($I7<'[1]TABLE DATA'!$D$8,$I7='[1]TABLE DATA'!$D$8)),'[1]Input-Output Data'!$J7<'[1]Input-Output Data'!$K7),'[1]TABLE DATA'!J$8,IF(AND(AND($I7>'[1]TABLE DATA'!$D$7,OR($I7<'[1]TABLE DATA'!$D$8,$I7='[1]TABLE DATA'!$D$8)),AND('[1]Input-Output Data'!$J7>'[1]Input-Output Data'!$M7,OR('[1]Input-Output Data'!$J7<'[1]Input-Output Data'!$N7,'[1]Input-Output Data'!$J7='[1]Input-Output Data'!$N7))),'[1]TABLE DATA'!J$9,IF(AND(AND($I7>'[1]TABLE DATA'!$D$7,OR($I7<'[1]TABLE DATA'!$D$8,$I7='[1]TABLE DATA'!$D$8)),$J7>'[1]Input-Output Data'!$N7),"SIGN TOO WIDE",IF(AND(AND($I7>'[1]TABLE DATA'!$D$8,OR($I7<'[1]TABLE DATA'!$D$9,$I7='[1]TABLE DATA'!$D$9)),'[1]Input-Output Data'!$J7<'[1]Input-Output Data'!$K7),'[1]TABLE DATA'!J$9,"SIGN TOO WIDE")))))))))) -> 3 | T7: =IF(I7="Arm Too Long", "Reduce V or W",IF($I7>'[1]TABLE DATA'!$D$9,"SIGN TOO LARGE",IF(AND(OR($I7<'[1]TABLE DATA'!$D$7,$I7='[1]TABLE DATA'!$D$7),OR('[1]Input-Output Data'!$J7<'[1]Input-Output Data'!$K7,'[1]Input-Output Data'!$J7='[1]Input-Output Data'!$K7)),'[1]TABLE DATA'!K$7,IF(AND(OR($I7<'[1]TABLE DATA'!$D$7,$I7='[1]TABLE DATA'!$D$7),AND($J7>$L7),OR('[1]Input-Output Data'!$J7<'[1]Input-Output Data'!$M7,'[1]Input-Output Data'!$J7='[1]Input-Output Data'!$M7)),'[1]TABLE DATA'!K$8,IF(AND(OR($I7<'[1]TABLE DATA'!$D$7,$I7='[1]TABLE DATA'!$D$7),AND($J7>$M7),OR('[1]Input-Output Data'!$J7<'[1]Input-Output Data'!$N7,'[1]Input-Output Data'!$J7='[1]Input-Output Data'!$N7)),'[1]TABLE DATA'!K$9,IF(AND(OR($I7<'[1]TABLE DATA'!$D$7,$I7='[1]TABLE DATA'!$D$7),$J7>$N7),"SIGN TOO WIDE",IF(AND(AND($I7>'[1]TABLE DATA'!$D$7,OR($I7<'[1]TABLE DATA'!$D$8,$I7='[1]TABLE DATA'!$D$8)),'[1]Input-Output Data'!$J7<'[1]Input-Output Data'!$K7),'[1]TABLE DATA'!K$8,IF(AND(AND($I7>'[1]TABLE DATA'!$D$7,OR($I7<'[1]TABLE DATA'!$D$8,$I7='[1]TABLE DATA'!$D$8)),AND('[1]Input-Output Data'!$J7>'[1]Input-Output Data'!$M7,OR('[1]Input-Output Data'!$J7<'[1]Input-Output Data'!$N7,'[1]Input-Output Data'!$J7='[1]Input-Output Data'!$N7))),'[1]TABLE DATA'!K$9,IF(AND(AND($I7>'[1]TABLE DATA'!$D$7,OR($I7<'[1]TABLE DATA'!$D$8,$I7='[1]TABLE DATA'!$D$8)),$J7>'[1]Input-Output Data'!$N7),"SIGN TOO WIDE",IF(AND(AND($I7>'[1]TABLE DATA'!$D$8,OR($I7<'[1]TABLE DATA'!$D$9,$I7='[1]TABLE DATA'!$D$9)),'[1]Input-Output Data'!$J7<'[1]Input-Output Data'!$K7),'[1]TABLE DATA'!K$9,"SIGN TOO WIDE")))))))))) -> 80 | U7: =IF(I7="Arm Too Long", "Reduce V or W",IF($I7>'[1]TABLE DATA'!$D$9,"SIGN TOO LARGE",IF(AND(OR($I7<'[1]TABLE DATA'!$D$7,$I7='[1]TABLE DATA'!$D$7),OR('[1]Input-Output Data'!$J7<'[1]Input-Output Data'!$K7,'[1]Input-Output Data'!$J7='[1]Input-Output Data'!$K7)),'[1]TABLE DATA'!L$7,IF(AND(OR($I7<'[1]TABLE DATA'!$D$7,$I7='[1]TABLE DATA'!$D$7),AND($J7>$L7),OR('[1]Input-Output Data'!$J7<'[1]Input-Output Data'!$M7,'[1]Input-Output Data'!$J7='[1]Input-Output Data'!$M7)),'[1]TABLE DATA'!L$8,IF(AND(OR($I7<'[1]TABLE DATA'!$D$7,$I7='[1]TABLE DATA'!$D$7),AND($J7>$M7),OR('[1]Input-Output Data'!$J7<'[1]Input-Output Data'!$N7,'[1]Input-Output Data'!$J7='[1]Input-Output Data'!$N7)),'[1]TABLE DATA'!L$9,IF(AND(OR($I7<'[1]TABLE DATA'!$D$7,$I7='[1]TABLE DATA'!$D$7),$J7>$N7),"SIGN TOO WIDE",IF(AND(AND($I7>'[1]TABLE DATA'!$D$7,OR($I7<'[1]TABLE DATA'!$D$8,$I7='[1]TABLE DATA'!$D$8)),'[1]Input-Output Data'!$J7<'[1]Input-Output Data'!$K7),'[1]TABLE DATA'!L$8,IF(AND(AND($I7>'[1]TABLE DATA'!$D$7,OR($I7<'[1]TABLE DATA'!$D$8,$I7='[1]TABLE DATA'!$D$8)),AND('[1]Input-Output Data'!$J7>'[1]Input-Output Data'!$M7,OR('[1]Input-Output Data'!$J7<'[1]Input-Output Data'!$N7,'[1]Input-Output Data'!$J7='[1]Input-Output Data'!$N7))),'[1]TABLE DATA'!L$9,IF(AND(AND($I7>'[1]TABLE DATA'!$D$7,OR($I7<'[1]TABLE DATA'!$D$8,$I7='[1]TABLE DATA'!$D$8)),$J7>'[1]Input-Output Data'!$N7),"SIGN TOO WIDE",IF(AND(AND($I7>'[1]TABLE DATA'!$D$8,OR($I7<'[1]TABLE DATA'!$D$9,$I7='[1]TABLE DATA'!$D$9)),'[1]Input-Output Data'!$J7<'[1]Input-Output Data'!$K7),'[1]TABLE DATA'!L$9,"SIGN TOO WIDE")))))))))) -> 14.5 | V7: =IF(I7="Arm Too Long", "Reduce V or W",IF($I7>'[1]TABLE DATA'!$D$9,"SIGN TOO LARGE",IF(AND(OR($I7<'[1]TABLE DATA'!$D$7,$I7='[1]TABLE DATA'!$D$7),OR('[1]Input-Output Data'!$J7<'[1]Input-Output Data'!$K7,'[1]Input-Output Data'!$J7='[1]Input-Output Data'!$K7)),'[1]TABLE DATA'!M$7,IF(AND(OR($I7<'[1]TABLE DATA'!$D$7,$I7='[1]TABLE DATA'!$D$7),AND($J7>$L7),OR('[1]Input-Output Data'!$J7<'[1]Input-Output Data'!$M7,'[1]Input-Output Data'!$J7='[1]Input-Output Data'!$M7)),'[1]TABLE DATA'!M$8,IF(AND(OR($I7<'[1]TABLE DATA'!$D$7,$I7='[1]TABLE DATA'!$D$7),AND($J7>$M7),OR('[1]Input-Output Data'!$J7<'[1]Input-Output Data'!$N7,'[1]Input-Output Data'!$J7='[1]Input-Output Data'!$N7)),'[1]TABLE DATA'!M$9,IF(AND(OR($I7<'[1]TABLE DATA'!$D$7,$I7='[1]TABLE DATA'!$D$7),$J7>$N7),"SIGN TOO WIDE",IF(AND(AND($I7>'[1]TABLE DATA'!$D$7,OR($I7<'[1]TABLE DATA'!$D$8,$I7='[1]TABLE DATA'!$D$8)),'[1]Input-Output Data'!$J7<'[1]Input-Output Data'!$K7),'[1]TABLE DATA'!M$8,IF(AND(AND($I7>'[1]TABLE DATA'!$D$7,OR($I7<'[1]TABLE DATA'!$D$8,$I7='[1]TABLE DATA'!$D$8)),AND('[1]Input-Output Data'!$J7>'[1]Input-Output Data'!$M7,OR('[1]Input-Output Data'!$J7<'[1]Input-Output Data'!$N7,'[1]Input-Output Data'!$J7='[1]Input-Output Data'!$N7))),'[1]TABLE DATA'!M$9,IF(AND(AND($I7>'[1]TABLE DATA'!$D$7,OR($I7<'[1]TABLE DATA'!$D$8,$I7='[1]TABLE DATA'!$D$8)),$J7>'[1]Input-Output Data'!$N7),"SIGN TOO WIDE",IF(AND(AND($I7>'[1]TABLE DATA'!$D$8,OR($I7<'[1]TABLE DATA'!$D$9,$I7='[1]TABLE DATA'!$D$9)),'[1]Input-Output Data'!$J7<'[1]Input-Output Data'!$K7),'[1]TABLE DATA'!M$9,"SIGN TOO WIDE")))))))))) -> 0.75 | W7: =IF(I7="Arm Too Long", "Reduce V or W",IF($I7>'[1]TABLE DATA'!$D$9,"SIGN TOO LARGE",IF(AND(OR($I7<'[1]TABLE DATA'!$D$7,$I7='[1]TABLE DATA'!$D$7),OR('[1]Input-Output Data'!$J7<'[1]Input-Output Data'!$K7,'[1]Input-Output Data'!$J7='[1]Input-Output Data'!$K7)),'[1]TABLE DATA'!N$7,IF(AND(OR($I7<'[1]TABLE DATA'!$D$7,$I7='[1]TABLE DATA'!$D$7),AND($J7>$L7),OR('[1]Input-Output Data'!$J7<'[1]Input-Output Data'!$M7,'[1]Input-Output Data'!$J7='[1]Input-Output Data'!$M7)),'[1]TABLE DATA'!N$8,IF(AND(OR($I7<'[1]TABLE DATA'!$D$7,$I7='[1]TABLE DATA'!$D$7),AND($J7>$M7),OR('[1]Input-Output Data'!$J7<'[1]Input-Output Data'!$N7,'[1]Input-Output Data'!$J7='[1]Input-Output Data'!$N7)),'[1]TABLE DATA'!N$9,IF(AND(OR($I7<'[1]TABLE DATA'!$D$7,$I7='[1]TABLE DATA'!$D$7),$J7>$N7),"SIGN TOO WIDE",IF(AND(AND($I7>'[1]TABLE DATA'!$D$7,OR($I7<'[1]TABLE DATA'!$D$8,$I7='[1]TABLE DATA'!$D$8)),'[1]Input-Output Data'!$J7<'[1]Input-Output Data'!$K7),'[1]TABLE DATA'!N$8,IF(AND(AND($I7>'[1]TABLE DATA'!$D$7,OR($I7<'[1]TABLE DATA'!$D$8,$I7='[1]TABLE DATA'!$D$8)),AND('[1]Input-Output Data'!$J7>'[1]Input-Output Data'!$M7,OR('[1]Input-Output Data'!$J7<'[1]Input-Output Data'!$N7,'[1]Input-Output Data'!$J7='[1]Input-Output Data'!$N7))),'[1]TABLE DATA'!N$9,IF(AND(AND($I7>'[1]TABLE DATA'!$D$7,OR($I7<'[1]TABLE DATA'!$D$8,$I7='[1]TABLE DATA'!$D$8)),$J7>'[1]Input-Output Data'!$N7),"SIGN TOO WIDE",IF(AND(AND($I7>'[1]TABLE DATA'!$D$8,OR($I7<'[1]TABLE DATA'!$D$9,$I7='[1]TABLE DATA'!$D$9)),'[1]Input-Output Data'!$J7<'[1]Input-Output Data'!$K7),'[1]TABLE DATA'!N$9,"SIGN TOO WIDE")))))))))) -> 0.625 | X7: =IF(I7="Arm Too Long", "Reduce V or W",IF($I7>'[1]TABLE DATA'!$D$9,"SIGN TOO LARGE",IF(AND(OR($I7<'[1]TABLE DATA'!$D$7,$I7='[1]TABLE DATA'!$D$7),OR('[1]Input-Output Data'!$J7<'[1]Input-Output Data'!$K7,'[1]Input-Output Data'!$J7='[1]Input-Output Data'!$K7)),'[1]TABLE DATA'!O$7,IF(AND(OR($I7<'[1]TABLE DATA'!$D$7,$I7='[1]TABLE DATA'!$D$7),AND($J7>$L7),OR('[1]Input-Output Data'!$J7<'[1]Input-Output Data'!$M7,'[1]Input-Output Data'!$J7='[1]Input-Output Data'!$M7)),'[1]TABLE DATA'!O$8,IF(AND(OR($I7<'[1]TABLE DATA'!$D$7,$I7='[1]TABLE DATA'!$D$7),AND($J7>$M7),OR('[1]Input-Output Data'!$J7<'[1]Input-Output Data'!$N7,'[1]Input-Output Data'!$J7='[1]Input-Output Data'!$N7)),'[1]TABLE DATA'!O$9,IF(AND(OR($I7<'[1]TABLE DATA'!$D$7,$I7='[1]TABLE DATA'!$D$7),$J7>$N7),"SIGN TOO WIDE",IF(AND(AND($I7>'[1]TABLE DATA'!$D$7,OR($I7<'[1]TABLE DATA'!$D$8,$I7='[1]TABLE DATA'!$D$8)),'[1]Input-Output Data'!$J7<'[1]Input-Output Data'!$K7),'[1]TABLE DATA'!O$8,IF(AND(AND($I7>'[1]TABLE DATA'!$D$7,OR($I7<'[1]TABLE DATA'!$D$8,$I7='[1]TABLE DATA'!$D$8)),AND('[1]Input-Output Data'!$J7>'[1]Input-Output Data'!$M7,OR('[1]Input-Output Data'!$J7<'[1]Input-Output Data'!$N7,'[1]Input-Output Data'!$J7='[1]Input-Output Data'!$N7))),'[1]TABLE DATA'!O$9,IF(AND(AND($I7>'[1]TABLE DATA'!$D$7,OR($I7<'[1]TABLE DATA'!$D$8,$I7='[1]TABLE DATA'!$D$8)),$J7>'[1]Input-Output Data'!$N7),"SIGN TOO WIDE",IF(AND(AND($I7>'[1]TABLE DATA'!$D$8,OR($I7<'[1]TABLE DATA'!$D$9,$I7='[1]TABLE DATA'!$D$9)),'[1]Input-Output Data'!$J7<'[1]Input-Output Data'!$K7),'[1]TABLE DATA'!O$9,"SIGN TOO WIDE")))))))))) -> 0.625 | Y7: =IF(V7=0.5,"I",IF(V7=0.625,"II",IF(V7=0.75,"III","N/A"))) -> III
D8: 48 | E8: 60 | F8: Square | G8: I | H8: 36 | I8: 20 | J8: 26 | K8: =IF(OR(I8<'[1]TABLE DATA'!$D$7,I8='[1]TABLE DATA'!$D$7),717.75/I8,IF(AND('[1]TABLE DATA'!$D$7<I8,OR(I8<'[1]TABLE DATA'!$D$8,I8='[1]TABLE DATA'!$D$8)),1695/I8,IF(AND('[1]TABLE DATA'!$D$8<I8,OR(I8<'[1]TABLE DATA'!$D$9,I8='[1]TABLE DATA'!$D$9)),2268/I8,IF(I8="Arm Too Long", "Reduce V or W","Sign Too Wide")))) -> 35.89 | L8: =717.75/'[1]Input-Output Data'!I8 -> 35.89 | M8: 84.75 | N8: 113.4 | O8: =IF(I8="Arm Too Long", "Reduce V or W",IF($I8>'[1]TABLE DATA'!$D$9,"SIGN TOO LARGE",IF(AND(OR($I8<'[1]TABLE DATA'!$D$7,$I8='[1]TABLE DATA'!$D$7),OR('[1]Input-Output Data'!$J8<'[1]Input-Output Data'!$K8,'[1]Input-Output Data'!$J8='[1]Input-Output Data'!$K8)),'[1]TABLE DATA'!F$7,IF(AND(OR($I8<'[1]TABLE DATA'!$D$7,$I8='[1]TABLE DATA'!$D$7),AND($J8>$L8),OR('[1]Input-Output Data'!$J8<'[1]Input-Output Data'!$M8,'[1]Input-Output Data'!$J8='[1]Input-Output Data'!$M8)),'[1]TABLE DATA'!F$8,IF(AND(OR($I8<'[1]TABLE DATA'!$D$7,$I8='[1]TABLE DATA'!$D$7),AND($J8>$M8),OR('[1]Input-Output Data'!$J8<'[1]Input-Output Data'!$N8,'[1]Input-Output Data'!$J8='[1]Input-Output Data'!$N8)),'[1]TABLE DATA'!F$9,IF(AND(OR($I8<'[1]TABLE DATA'!$D$7,$I8='[1]TABLE DATA'!$D$7),$J8>$N8),"SIGN TOO WIDE",IF(AND(AND($I8>'[1]TABLE DATA'!$D$7,OR($I8<'[1]TABLE DATA'!$D$8,$I8='[1]TABLE DATA'!$D$8)),'[1]Input-Output Data'!$J8<'[1]Input-Output Data'!$K8),'[1]TABLE DATA'!F$8,IF(AND(AND($I8>'[1]TABLE DATA'!$D$7,OR($I8<'[1]TABLE DATA'!$D$8,$I8='[1]TABLE DATA'!$D$8)),AND('[1]Input-Output Data'!$J8>'[1]Input-Output Data'!$M8,OR('[1]Input-Output Data'!$J8<'[1]Input-Output Data'!$N8,'[1]Input-Output Data'!$J8='[1]Input-Output Data'!$N8))),'[1]TABLE DATA'!F$9,IF(AND(AND($I8>'[1]TABLE DATA'!$D$7,OR($I8<'[1]TABLE DATA'!$D$8,$I8='[1]TABLE DATA'!$D$8)),$J8>'[1]Input-Output Data'!$N8),"SIGN TOO WIDE",IF(AND(AND($I8>'[1]TABLE DATA'!$D$8,OR($I8<'[1]TABLE DATA'!$D$9,$I8='[1]TABLE DATA'!$D$9)),'[1]Input-Output Data'!$J8<'[1]Input-Output Data'!$K8),'[1]TABLE DATA'!F$9,"SIGN TOO WIDE")))))))))) -> 4 | P8: =IF(I8="Arm Too Long", "Reduce V or W",IF($I8>'[1]TABLE DATA'!$D$9,"SIGN TOO LARGE",IF(AND(OR($I8<'[1]TABLE DATA'!$D$7,$I8='[1]TABLE DATA'!$D$7),OR('[1]Input-Output Data'!$J8<'[1]Input-Output Data'!$K8,'[1]Input-Output Data'!$J8='[1]Input-Output Data'!$K8)),'[1]TABLE DATA'!G$7,IF(AND(OR($I8<'[1]TABLE DATA'!$D$7,$I8='[1]TABLE DATA'!$D$7),AND($J8>$L8),OR('[1]Input-Output Data'!$J8<'[1]Input-Output Data'!$M8,'[1]Input-Output Data'!$J8='[1]Input-Output Data'!$M8)),'[1]TABLE DATA'!G$8,IF(AND(OR($I8<'[1]TABLE DATA'!$D$7,$I8='[1]TABLE DATA'!$D$7),AND($J8>$M8),OR('[1]Input-Output Data'!$J8<'[1]Input-Output Data'!$N8,'[1]Input-Output Data'!$J8='[1]Input-Output Data'!$N8)),'[1]TABLE DATA'!G$9,IF(AND(OR($I8<'[1]TABLE DATA'!$D$7,$I8='[1]TABLE DATA'!$D$7),$J8>$N8),"SIGN TOO WIDE",IF(AND(AND($I8>'[1]TABLE DATA'!$D$7,OR($I8<'[1]TABLE DATA'!$D$8,$I8='[1]TABLE DATA'!$D$8)),'[1]Input-Output Data'!$J8<'[1]Input-Output Data'!$K8),'[1]TABLE DATA'!G$8,IF(AND(AND($I8>'[1]TABLE DATA'!$D$7,OR($I8<'[1]TABLE DATA'!$D$8,$I8='[1]TABLE DATA'!$D$8)),AND('[1]Input-Output Data'!$J8>'[1]Input-Output Data'!$M8,OR('[1]Input-Output Data'!$J8<'[1]Input-Output Data'!$N8,'[1]Input-Output Data'!$J8='[1]Input-Output Data'!$N8))),'[1]TABLE DATA'!G$9,IF(AND(AND($I8>'[1]TABLE DATA'!$D$7,OR($I8<'[1]TABLE DATA'!$D$8,$I8='[1]TABLE DATA'!$D$8)),$J8>'[1]Input-Output Data'!$N8),"SIGN TOO WIDE",IF(AND(AND($I8>'[1]TABLE DATA'!$D$8,OR($I8<'[1]TABLE DATA'!$D$9,$I8='[1]TABLE DATA'!$D$9)),'[1]Input-Output Data'!$J8<'[1]Input-Output Data'!$K8),'[1]TABLE DATA'!G$9,"SIGN TOO WIDE")))))))))) -> 2 | Q8: =IF(I8="Arm Too Long", "Reduce V or W",IF($I8>'[1]TABLE DATA'!$D$9,"SIGN TOO LARGE",IF(AND(OR($I8<'[1]TABLE DATA'!$D$7,$I8='[1]TABLE DATA'!$D$7),OR('[1]Input-Output Data'!$J8<'[1]Input-Output Data'!$K8,'[1]Input-Output Data'!$J8='[1]Input-Output Data'!$K8)),'[1]TABLE DATA'!H$7,IF(AND(OR($I8<'[1]TABLE DATA'!$D$7,$I8='[1]TABLE DATA'!$D$7),AND($J8>$L8),OR('[1]Input-Output Data'!$J8<'[1]Input-Output Data'!$M8,'[1]Input-Output Data'!$J8='[1]Input-Output Data'!$M8)),'[1]TABLE DATA'!H$8,IF(AND(OR($I8<'[1]TABLE DATA'!$D$7,$I8='[1]TABLE DATA'!$D$7),AND($J8>$M8),OR('[1]Input-Output Data'!$J8<'[1]Input-Output Data'!$N8,'[1]Input-Output Data'!$J8='[1]Input-Output Data'!$N8)),'[1]TABLE DATA'!H$9,IF(AND(OR($I8<'[1]TABLE DATA'!$D$7,$I8='[1]TABLE DATA'!$D$7),$J8>$N8),"SIGN TOO WIDE",IF(AND(AND($I8>'[1]TABLE DATA'!$D$7,OR($I8<'[1]TABLE DATA'!$D$8,$I8='[1]TABLE DATA'!$D$8)),'[1]Input-Output Data'!$J8<'[1]Input-Output Data'!$K8),'[1]TABLE DATA'!H$8,IF(AND(AND($I8>'[1]TABLE DATA'!$D$7,OR($I8<'[1]TABLE DATA'!$D$8,$I8='[1]TABLE DATA'!$D$8)),AND('[1]Input-Output Data'!$J8>'[1]Input-Output Data'!$M8,OR('[1]Input-Output Data'!$J8<'[1]Input-Output Data'!$N8,'[1]Input-Output Data'!$J8='[1]Input-Output Data'!$N8))),'[1]TABLE DATA'!H$9,IF(AND(AND($I8>'[1]TABLE DATA'!$D$7,OR($I8<'[1]TABLE DATA'!$D$8,$I8='[1]TABLE DATA'!$D$8)),$J8>'[1]Input-Output Data'!$N8),"SIGN TOO WIDE",IF(AND(AND($I8>'[1]TABLE DATA'!$D$8,OR($I8<'[1]TABLE DATA'!$D$9,$I8='[1]TABLE DATA'!$D$9)),'[1]Input-Output Data'!$J8<'[1]Input-Output Data'!$K8),'[1]TABLE DATA'!H$9,"SIGN TOO WIDE")))))))))) -> 0.625 | R8: =IF(I8="Arm Too Long", "Reduce V or W",IF($I8>'[1]TABLE DATA'!$D$9,"SIGN TOO LARGE",IF(AND(OR($I8<'[1]TABLE DATA'!$D$7,$I8='[1]TABLE DATA'!$D$7),OR('[1]Input-Output Data'!$J8<'[1]Input-Output Data'!$K8,'[1]Input-Output Data'!$J8='[1]Input-Output Data'!$K8)),'[1]TABLE DATA'!I$7,IF(AND(OR($I8<'[1]TABLE DATA'!$D$7,$I8='[1]TABLE DATA'!$D$7),AND($J8>$L8),OR('[1]Input-Output Data'!$J8<'[1]Input-Output Data'!$M8,'[1]Input-Output Data'!$J8='[1]Input-Output Data'!$M8)),'[1]TABLE DATA'!I$8,IF(AND(OR($I8<'[1]TABLE DATA'!$D$7,$I8='[1]TABLE DATA'!$D$7),AND($J8>$M8),OR('[1]Input-Output Data'!$J8<'[1]Input-Output Data'!$N8,'[1]Input-Output Data'!$J8='[1]Input-Output Data'!$N8)),'[1]TABLE DATA'!I$9,IF(AND(OR($I8<'[1]TABLE DATA'!$D$7,$I8='[1]TABLE DATA'!$D$7),$J8>$N8),"SIGN TOO WIDE",IF(AND(AND($I8>'[1]TABLE DATA'!$D$7,OR($I8<'[1]TABLE DATA'!$D$8,$I8='[1]TABLE DATA'!$D$8)),'[1]Input-Output Data'!$J8<'[1]Input-Output Data'!$K8),'[1]TABLE DATA'!I$8,IF(AND(AND($I8>'[1]TABLE DATA'!$D$7,OR($I8<'[1]TABLE DATA'!$D$8,$I8='[1]TABLE DATA'!$D$8)),AND('[1]Input-Output Data'!$J8>'[1]Input-Output Data'!$M8,OR('[1]Input-Output Data'!$J8<'[1]Input-Output Data'!$N8,'[1]Input-Output Data'!$J8='[1]Input-Output Data'!$N8))),'[1]TABLE DATA'!I$9,IF(AND(AND($I8>'[1]TABLE DATA'!$D$7,OR($I8<'[1]TABLE DATA'!$D$8,$I8='[1]TABLE DATA'!$D$8)),$J8>'[1]Input-Output Data'!$N8),"SIGN TOO WIDE",IF(AND(AND($I8>'[1]TABLE DATA'!$D$8,OR($I8<'[1]TABLE DATA'!$D$9,$I8='[1]TABLE DATA'!$D$9)),'[1]Input-Output Data'!$J8<'[1]Input-Output Data'!$K8),'[1]TABLE DATA'!I$9,"SIGN TOO WIDE")))))))))) -> 5.625 | S8: =IF(I8="Arm Too Long", "Reduce V or W",IF($I8>'[1]TABLE DATA'!$D$9,"SIGN TOO LARGE",IF(AND(OR($I8<'[1]TABLE DATA'!$D$7,$I8='[1]TABLE DATA'!$D$7),OR('[1]Input-Output Data'!$J8<'[1]Input-Output Data'!$K8,'[1]Input-Output Data'!$J8='[1]Input-Output Data'!$K8)),'[1]TABLE DATA'!J$7,IF(AND(OR($I8<'[1]TABLE DATA'!$D$7,$I8='[1]TABLE DATA'!$D$7),AND($J8>$L8),OR('[1]Input-Output Data'!$J8<'[1]Input-Output Data'!$M8,'[1]Input-Output Data'!$J8='[1]Input-Output Data'!$M8)),'[1]TABLE DATA'!J$8,IF(AND(OR($I8<'[1]TABLE DATA'!$D$7,$I8='[1]TABLE DATA'!$D$7),AND($J8>$M8),OR('[1]Input-Output Data'!$J8<'[1]Input-Output Data'!$N8,'[1]Input-Output Data'!$J8='[1]Input-Output Data'!$N8)),'[1]TABLE DATA'!J$9,IF(AND(OR($I8<'[1]TABLE DATA'!$D$7,$I8='[1]TABLE DATA'!$D$7),$J8>$N8),"SIGN TOO WIDE",IF(AND(AND($I8>'[1]TABLE DATA'!$D$7,OR($I8<'[1]TABLE DATA'!$D$8,$I8='[1]TABLE DATA'!$D$8)),'[1]Input-Output Data'!$J8<'[1]Input-Output Data'!$K8),'[1]TABLE DATA'!J$8,IF(AND(AND($I8>'[1]TABLE DATA'!$D$7,OR($I8<'[1]TABLE DATA'!$D$8,$I8='[1]TABLE DATA'!$D$8)),AND('[1]Input-Output Data'!$J8>'[1]Input-Output Data'!$M8,OR('[1]Input-Output Data'!$J8<'[1]Input-Output Data'!$N8,'[1]Input-Output Data'!$J8='[1]Input-Output Data'!$N8))),'[1]TABLE DATA'!J$9,IF(AND(AND($I8>'[1]TABLE DATA'!$D$7,OR($I8<'[1]TABLE DATA'!$D$8,$I8='[1]TABLE DATA'!$D$8)),$J8>'[1]Input-Output Data'!$N8),"SIGN TOO WIDE",IF(AND(AND($I8>'[1]TABLE DATA'!$D$8,OR($I8<'[1]TABLE DATA'!$D$9,$I8='[1]TABLE DATA'!$D$9)),'[1]Input-Output Data'!$J8<'[1]Input-Output Data'!$K8),'[1]TABLE DATA'!J$9,"SIGN TOO WIDE")))))))))) -> 2 | T8: =IF(I8="Arm Too Long", "Reduce V or W",IF($I8>'[1]TABLE DATA'!$D$9,"SIGN TOO LARGE",IF(AND(OR($I8<'[1]TABLE DATA'!$D$7,$I8='[1]TABLE DATA'!$D$7),OR('[1]Input-Output Data'!$J8<'[1]Input-Output Data'!$K8,'[1]Input-Output Data'!$J8='[1]Input-Output Data'!$K8)),'[1]TABLE DATA'!K$7,IF(AND(OR($I8<'[1]TABLE DATA'!$D$7,$I8='[1]TABLE DATA'!$D$7),AND($J8>$L8),OR('[1]Input-Output Data'!$J8<'[1]Input-Output Data'!$M8,'[1]Input-Output Data'!$J8='[1]Input-Output Data'!$M8)),'[1]TABLE DATA'!K$8,IF(AND(OR($I8<'[1]TABLE DATA'!$D$7,$I8='[1]TABLE DATA'!$D$7),AND($J8>$M8),OR('[1]Input-Output Data'!$J8<'[1]Input-Output Data'!$N8,'[1]Input-Output Data'!$J8='[1]Input-Output Data'!$N8)),'[1]TABLE DATA'!K$9,IF(AND(OR($I8<'[1]TABLE DATA'!$D$7,$I8='[1]TABLE DATA'!$D$7),$J8>$N8),"SIGN TOO WIDE",IF(AND(AND($I8>'[1]TABLE DATA'!$D$7,OR($I8<'[1]TABLE DATA'!$D$8,$I8='[1]TABLE DATA'!$D$8)),'[1]Input-Output Data'!$J8<'[1]Input-Output Data'!$K8),'[1]TABLE DATA'!K$8,IF(AND(AND($I8>'[1]TABLE DATA'!$D$7,OR($I8<'[1]TABLE DATA'!$D$8,$I8='[1]TABLE DATA'!$D$8)),AND('[1]Input-Output Data'!$J8>'[1]Input-Output Data'!$M8,OR('[1]Input-Output Data'!$J8<'[1]Input-Output Data'!$N8,'[1]Input-Output Data'!$J8='[1]Input-Output Data'!$N8))),'[1]TABLE DATA'!K$9,IF(AND(AND($I8>'[1]TABLE DATA'!$D$7,OR($I8<'[1]TABLE DATA'!$D$8,$I8='[1]TABLE DATA'!$D$8)),$J8>'[1]Input-Output Data'!$N8),"SIGN TOO WIDE",IF(AND(AND($I8>'[1]TABLE DATA'!$D$8,OR($I8<'[1]TABLE DATA'!$D$9,$I8='[1]TABLE DATA'!$D$9)),'[1]Input-Output Data'!$J8<'[1]Input-Output Data'!$K8),'[1]TABLE DATA'!K$9,"SIGN TOO WIDE")))))))))) -> 60 | U8: =IF(I8="Arm Too Long", "Reduce V or W",IF($I8>'[1]TABLE DATA'!$D$9,"SIGN TOO LARGE",IF(AND(OR($I8<'[1]TABLE DATA'!$D$7,$I8='[1]TABLE DATA'!$D$7),OR('[1]Input-Output Data'!$J8<'[1]Input-Output Data'!$K8,'[1]Input-Output Data'!$J8='[1]Input-Output Data'!$K8)),'[1]TABLE DATA'!L$7,IF(AND(OR($I8<'[1]TABLE DATA'!$D$7,$I8='[1]TABLE DATA'!$D$7),AND($J8>$L8),OR('[1]Input-Output Data'!$J8<'[1]Input-Output Data'!$M8,'[1]Input-Output Data'!$J8='[1]Input-Output Data'!$M8)),'[1]TABLE DATA'!L$8,IF(AND(OR($I8<'[1]TABLE DATA'!$D$7,$I8='[1]TABLE DATA'!$D$7),AND($J8>$M8),OR('[1]Input-Output Data'!$J8<'[1]Input-Output Data'!$N8,'[1]Input-Output Data'!$J8='[1]Input-Output Data'!$N8)),'[1]TABLE DATA'!L$9,IF(AND(OR($I8<'[1]TABLE DATA'!$D$7,$I8='[1]TABLE DATA'!$D$7),$J8>$N8),"SIGN TOO WIDE",IF(AND(AND($I8>'[1]TABLE DATA'!$D$7,OR($I8<'[1]TABLE DATA'!$D$8,$I8='[1]TABLE DATA'!$D$8)),'[1]Input-Output Data'!$J8<'[1]Input-Output Data'!$K8),'[1]TABLE DATA'!L$8,IF(AND(AND($I8>'[1]TABLE DATA'!$D$7,OR($I8<'[1]TABLE DATA'!$D$8,$I8='[1]TABLE DATA'!$D$8)),AND('[1]Input-Output Data'!$J8>'[1]Input-Output Data'!$M8,OR('[1]Input-Output Data'!$J8<'[1]Input-Output Data'!$N8,'[1]Input-Output Data'!$J8='[1]Input-Output Data'!$N8))),'[1]TABLE DATA'!L$9,IF(AND(AND($I8>'[1]TABLE DATA'!$D$7,OR($I8<'[1]TABLE DATA'!$D$8,$I8='[1]TABLE DATA'!$D$8)),$J8>'[1]Input-Output Data'!$N8),"SIGN TOO WIDE",IF(AND(AND($I8>'[1]TABLE DATA'!$D$8,OR($I8<'[1]TABLE DATA'!$D$9,$I8='[1]TABLE DATA'!$D$9)),'[1]Input-Output Data'!$J8<'[1]Input-Output Data'!$K8),'[1]TABLE DATA'!L$9,"SIGN TOO WIDE")))))))))) -> 7.4 | V8: =IF(I8="Arm Too Long", "Reduce V or W",IF($I8>'[1]TABLE DATA'!$D$9,"SIGN TOO LARGE",IF(AND(OR($I8<'[1]TABLE DATA'!$D$7,$I8='[1]TABLE DATA'!$D$7),OR('[1]Input-Output Data'!$J8<'[1]Input-Output Data'!$K8,'[1]Input-Output Data'!$J8='[1]Input-Output Data'!$K8)),'[1]TABLE DATA'!M$7,IF(AND(OR($I8<'[1]TABLE DATA'!$D$7,$I8='[1]TABLE DATA'!$D$7),AND($J8>$L8),OR('[1]Input-Output Data'!$J8<'[1]Input-Output Data'!$M8,'[1]Input-Output Data'!$J8='[1]Input-Output Data'!$M8)),'[1]TABLE DATA'!M$8,IF(AND(OR($I8<'[1]TABLE DATA'!$D$7,$I8='[1]TABLE DATA'!$D$7),AND($J8>$M8),OR('[1]Input-Output Data'!$J8<'[1]Input-Output Data'!$N8,'[1]Input-Output Data'!$J8='[1]Input-Output Data'!$N8)),'[1]TABLE DATA'!M$9,IF(AND(OR($I8<'[1]TABLE DATA'!$D$7,$I8='[1]TABLE DATA'!$D$7),$J8>$N8),"SIGN TOO WIDE",IF(AND(AND($I8>'[1]TABLE DATA'!$D$7,OR($I8<'[1]TABLE DATA'!$D$8,$I8='[1]TABLE DATA'!$D$8)),'[1]Input-Output Data'!$J8<'[1]Input-Output Data'!$K8),'[1]TABLE DATA'!M$8,IF(AND(AND($I8>'[1]TABLE DATA'!$D$7,OR($I8<'[1]TABLE DATA'!$D$8,$I8='[1]TABLE DATA'!$D$8)),AND('[1]Input-Output Data'!$J8>'[1]Input-Output Data'!$M8,OR('[1]Input-Output Data'!$J8<'[1]Input-Output Data'!$N8,'[1]Input-Output Data'!$J8='[1]Input-Output Data'!$N8))),'[1]TABLE DATA'!M$9,IF(AND(AND($I8>'[1]TABLE DATA'!$D$7,OR($I8<'[1]TABLE DATA'!$D$8,$I8='[1]TABLE DATA'!$D$8)),$J8>'[1]Input-Output Data'!$N8),"SIGN TOO WIDE",IF(AND(AND($I8>'[1]TABLE DATA'!$D$8,OR($I8<'[1]TABLE DATA'!$D$9,$I8='[1]TABLE DATA'!$D$9)),'[1]Input-Output Data'!$J8<'[1]Input-Output Data'!$K8),'[1]TABLE DATA'!M$9,"SIGN TOO WIDE")))))))))) -> 0.5 | W8: =IF(I8="Arm Too Long", "Reduce V or W",IF($I8>'[1]TABLE DATA'!$D$9,"SIGN TOO LARGE",IF(AND(OR($I8<'[1]TABLE DATA'!$D$7,$I8='[1]TABLE DATA'!$D$7),OR('[1]Input-Output Data'!$J8<'[1]Input-Output Data'!$K8,'[1]Input-Output Data'!$J8='[1]Input-Output Data'!$K8)),'[1]TABLE DATA'!N$7,IF(AND(OR($I8<'[1]TABLE DATA'!$D$7,$I8='[1]TABLE DATA'!$D$7),AND($J8>$L8),OR('[1]Input-Output Data'!$J8<'[1]Input-Output Data'!$M8,'[1]Input-Output Data'!$J8='[1]Input-Output Data'!$M8)),'[1]TABLE DATA'!N$8,IF(AND(OR($I8<'[1]TABLE DATA'!$D$7,$I8='[1]TABLE DATA'!$D$7),AND($J8>$M8),OR('[1]Input-Output Data'!$J8<'[1]Input-Output Data'!$N8,'[1]Input-Output Data'!$J8='[1]Input-Output Data'!$N8)),'[1]TABLE DATA'!N$9,IF(AND(OR($I8<'[1]TABLE DATA'!$D$7,$I8='[1]TABLE DATA'!$D$7),$J8>$N8),"SIGN TOO WIDE",IF(AND(AND($I8>'[1]TABLE DATA'!$D$7,OR($I8<'[1]TABLE DATA'!$D$8,$I8='[1]TABLE DATA'!$D$8)),'[1]Input-Output Data'!$J8<'[1]Input-Output Data'!$K8),'[1]TABLE DATA'!N$8,IF(AND(AND($I8>'[1]TABLE DATA'!$D$7,OR($I8<'[1]TABLE DATA'!$D$8,$I8='[1]TABLE DATA'!$D$8)),AND('[1]Input-Output Data'!$J8>'[1]Input-Output Data'!$M8,OR('[1]Input-Output Data'!$J8<'[1]Input-Output Data'!$N8,'[1]Input-Output Data'!$J8='[1]Input-Output Data'!$N8))),'[1]TABLE DATA'!N$9,IF(AND(AND($I8>'[1]TABLE DATA'!$D$7,OR($I8<'[1]TABLE DATA'!$D$8,$I8='[1]TABLE DATA'!$D$8)),$J8>'[1]Input-Output Data'!$N8),"SIGN TOO WIDE",IF(AND(AND($I8>'[1]TABLE DATA'!$D$8,OR($I8<'[1]TABLE DATA'!$D$9,$I8='[1]TABLE DATA'!$D$9)),'[1]Input-Output Data'!$J8<'[1]Input-Output Data'!$K8),'[1]TABLE DATA'!N$9,"SIGN TOO WIDE")))))))))) -> 0.5 | X8: =IF(I8="Arm Too Long", "Reduce V or W",IF($I8>'[1]TABLE DATA'!$D$9,"SIGN TOO LARGE",IF(AND(OR($I8<'[1]TABLE DATA'!$D$7,$I8='[1]TABLE DATA'!$D$7),OR('[1]Input-Output Data'!$J8<'[1]Input-Output Data'!$K8,'[1]Input-Output Data'!$J8='[1]Input-Output Data'!$K8)),'[1]TABLE DATA'!O$7,IF(AND(OR($I8<'[1]TABLE DATA'!$D$7,$I8='[1]TABLE DATA'!$D$7),AND($J8>$L8),OR('[1]Input-Output Data'!$J8<'[1]Input-Output Data'!$M8,'[1]Input-Output Data'!$J8='[1]Input-Output Data'!$M8)),'[1]TABLE DATA'!O$8,IF(AND(OR($I8<'[1]TABLE DATA'!$D$7,$I8='[1]TABLE DATA'!$D$7),AND($J8>$M8),OR('[1]Input-Output Data'!$J8<'[1]Input-Output Data'!$N8,'[1]Input-Output Data'!$J8='[1]Input-Output Data'!$N8)),'[1]TABLE DATA'!O$9,IF(AND(OR($I8<'[1]TABLE DATA'!$D$7,$I8='[1]TABLE DATA'!$D$7),$J8>$N8),"SIGN TOO WIDE",IF(AND(AND($I8>'[1]TABLE DATA'!$D$7,OR($I8<'[1]TABLE DATA'!$D$8,$I8='[1]TABLE DATA'!$D$8)),'[1]Input-Output Data'!$J8<'[1]Input-Output Data'!$K8),'[1]TABLE DATA'!O$8,IF(AND(AND($I8>'[1]TABLE DATA'!$D$7,OR($I8<'[1]TABLE DATA'!$D$8,$I8='[1]TABLE DATA'!$D$8)),AND('[1]Input-Output Data'!$J8>'[1]Input-Output Data'!$M8,OR('[1]Input-Output Data'!$J8<'[1]Input-Output Data'!$N8,'[1]Input-Output Data'!$J8='[1]Input-Output Data'!$N8))),'[1]TABLE DATA'!O$9,IF(AND(AND($I8>'[1]TABLE DATA'!$D$7,OR($I8<'[1]TABLE DATA'!$D$8,$I8='[1]TABLE DATA'!$D$8)),$J8>'[1]Input-Output Data'!$N8),"SIGN TOO WIDE",IF(AND(AND($I8>'[1]TABLE DATA'!$D$8,OR($I8<'[1]TABLE DATA'!$D$9,$I8='[1]TABLE DATA'!$D$9)),'[1]Input-Output Data'!$J8<'[1]Input-Output Data'!$K8),'[1]TABLE DATA'!O$9,"SIGN TOO WIDE")))))))))) -> 0.5 | Y8: I
D9: 36 | E9: 48 | F9: Square | G9: I | H9: 30 | I9: 12 | J9: 20 | K9: =IF(OR(I9<'[1]TABLE DATA'!$D$7,I9='[1]TABLE DATA'!$D$7),717.75/I9,IF(AND('[1]TABLE DATA'!$D$7<I9,OR(I9<'[1]TABLE DATA'!$D$8,I9='[1]TABLE DATA'!$D$8)),1695/I9,IF(AND('[1]TABLE DATA'!$D$8<I9,OR(I9<'[1]TABLE DATA'!$D$9,I9='[1]TABLE DATA'!$D$9)),2268/I9,IF(I9="Arm Too Long", "Reduce V or W","Sign Too Wide")))) -> 59.81 | L9: =717.75/'[1]Input-Output Data'!I9 -> 59.81 | M9: 141.25 | N9: 189 | O9: =IF(I9="Arm Too Long", "Reduce V or W",IF($I9>'[1]TABLE DATA'!$D$9,"SIGN TOO LARGE",IF(AND(OR($I9<'[1]TABLE DATA'!$D$7,$I9='[1]TABLE DATA'!$D$7),OR('[1]Input-Output Data'!$J9<'[1]Input-Output Data'!$K9,'[1]Input-Output Data'!$J9='[1]Input-Output Data'!$K9)),'[1]TABLE DATA'!F$7,IF(AND(OR($I9<'[1]TABLE DATA'!$D$7,$I9='[1]TABLE DATA'!$D$7),AND($J9>$L9),OR('[1]Input-Output Data'!$J9<'[1]Input-Output Data'!$M9,'[1]Input-Output Data'!$J9='[1]Input-Output Data'!$M9)),'[1]TABLE DATA'!F$8,IF(AND(OR($I9<'[1]TABLE DATA'!$D$7,$I9='[1]TABLE DATA'!$D$7),AND($J9>$M9),OR('[1]Input-Output Data'!$J9<'[1]Input-Output Data'!$N9,'[1]Input-Output Data'!$J9='[1]Input-Output Data'!$N9)),'[1]TABLE DATA'!F$9,IF(AND(OR($I9<'[1]TABLE DATA'!$D$7,$I9='[1]TABLE DATA'!$D$7),$J9>$N9),"SIGN TOO WIDE",IF(AND(AND($I9>'[1]TABLE DATA'!$D$7,OR($I9<'[1]TABLE DATA'!$D$8,$I9='[1]TABLE DATA'!$D$8)),'[1]Input-Output Data'!$J9<'[1]Input-Output Data'!$K9),'[1]TABLE DATA'!F$8,IF(AND(AND($I9>'[1]TABLE DATA'!$D$7,OR($I9<'[1]TABLE DATA'!$D$8,$I9='[1]TABLE DATA'!$D$8)),AND('[1]Input-Output Data'!$J9>'[1]Input-Output Data'!$M9,OR('[1]Input-Output Data'!$J9<'[1]Input-Output Data'!$N9,'[1]Input-Output Data'!$J9='[1]Input-Output Data'!$N9))),'[1]TABLE DATA'!F$9,IF(AND(AND($I9>'[1]TABLE DATA'!$D$7,OR($I9<'[1]TABLE DATA'!$D$8,$I9='[1]TABLE DATA'!$D$8)),$J9>'[1]Input-Output Data'!$N9),"SIGN TOO WIDE",IF(AND(AND($I9>'[1]TABLE DATA'!$D$8,OR($I9<'[1]TABLE DATA'!$D$9,$I9='[1]TABLE DATA'!$D$9)),'[1]Input-Output Data'!$J9<'[1]Input-Output Data'!$K9),'[1]TABLE DATA'!F$9,"SIGN TOO WIDE")))))))))) -> 4 | P9: =IF(I9="Arm Too Long", "Reduce V or W",IF($I9>'[1]TABLE DATA'!$D$9,"SIGN TOO LARGE",IF(AND(OR($I9<'[1]TABLE DATA'!$D$7,$I9='[1]TABLE DATA'!$D$7),OR('[1]Input-Output Data'!$J9<'[1]Input-Output Data'!$K9,'[1]Input-Output Data'!$J9='[1]Input-Output Data'!$K9)),'[1]TABLE DATA'!G$7,IF(AND(OR($I9<'[1]TABLE DATA'!$D$7,$I9='[1]TABLE DATA'!$D$7),AND($J9>$L9),OR('[1]Input-Output Data'!$J9<'[1]Input-Output Data'!$M9,'[1]Input-Output Data'!$J9='[1]Input-Output Data'!$M9)),'[1]TABLE DATA'!G$8,IF(AND(OR($I9<'[1]TABLE DATA'!$D$7,$I9='[1]TABLE DATA'!$D$7),AND($J9>$M9),OR('[1]Input-Output Data'!$J9<'[1]Input-Output Data'!$N9,'[1]Input-Output Data'!$J9='[1]Input-Output Data'!$N9)),'[1]TABLE DATA'!G$9,IF(AND(OR($I9<'[1]TABLE DATA'!$D$7,$I9='[1]TABLE DATA'!$D$7),$J9>$N9),"SIGN TOO WIDE",IF(AND(AND($I9>'[1]TABLE DATA'!$D$7,OR($I9<'[1]TABLE DATA'!$D$8,$I9='[1]TABLE DATA'!$D$8)),'[1]Input-Output Data'!$J9<'[1]Input-Output Data'!$K9),'[1]TABLE DATA'!G$8,IF(AND(AND($I9>'[1]TABLE DATA'!$D$7,OR($I9<'[1]TABLE DATA'!$D$8,$I9='[1]TABLE DATA'!$D$8)),AND('[1]Input-Output Data'!$J9>'[1]Input-Output Data'!$M9,OR('[1]Input-Output Data'!$J9<'[1]Input-Output Data'!$N9,'[1]Input-Output Data'!$J9='[1]Input-Output Data'!$N9))),'[1]TABLE DATA'!G$9,IF(AND(AND($I9>'[1]TABLE DATA'!$D$7,OR($I9<'[1]TABLE DATA'!$D$8,$I9='[1]TABLE DATA'!$D$8)),$J9>'[1]Input-Output Data'!$N9),"SIGN TOO WIDE",IF(AND(AND($I9>'[1]TABLE DATA'!$D$8,OR($I9<'[1]TABLE DATA'!$D$9,$I9='[1]TABLE DATA'!$D$9)),'[1]Input-Output Data'!$J9<'[1]Input-Output Data'!$K9),'[1]TABLE DATA'!G$9,"SIGN TOO WIDE")))))))))) -> 2 | Q9: =IF(I9="Arm Too Long", "Reduce V or W",IF($I9>'[1]TABLE DATA'!$D$9,"SIGN TOO LARGE",IF(AND(OR($I9<'[1]TABLE DATA'!$D$7,$I9='[1]TABLE DATA'!$D$7),OR('[1]Input-Output Data'!$J9<'[1]Input-Output Data'!$K9,'[1]Input-Output Data'!$J9='[1]Input-Output Data'!$K9)),'[1]TABLE DATA'!H$7,IF(AND(OR($I9<'[1]TABLE DATA'!$D$7,$I9='[1]TABLE DATA'!$D$7),AND($J9>$L9),OR('[1]Input-Output Data'!$J9<'[1]Input-Output Data'!$M9,'[1]Input-Output Data'!$J9='[1]Input-Output Data'!$M9)),'[1]TABLE DATA'!H$8,IF(AND(OR($I9<'[1]TABLE DATA'!$D$7,$I9='[1]TABLE DATA'!$D$7),AND($J9>$M9),OR('[1]Input-Output Data'!$J9<'[1]Input-Output Data'!$N9,'[1]Input-Output Data'!$J9='[1]Input-Output Data'!$N9)),'[1]TABLE DATA'!H$9,IF(AND(OR($I9<'[1]TABLE DATA'!$D$7,$I9='[1]TABLE DATA'!$D$7),$J9>$N9),"SIGN TOO WIDE",IF(AND(AND($I9>'[1]TABLE DATA'!$D$7,OR($I9<'[1]TABLE DATA'!$D$8,$I9='[1]TABLE DATA'!$D$8)),'[1]Input-Output Data'!$J9<'[1]Input-Output Data'!$K9),'[1]TABLE DATA'!H$8,IF(AND(AND($I9>'[1]TABLE DATA'!$D$7,OR($I9<'[1]TABLE DATA'!$D$8,$I9='[1]TABLE DATA'!$D$8)),AND('[1]Input-Output Data'!$J9>'[1]Input-Output Data'!$M9,OR('[1]Input-Output Data'!$J9<'[1]Input-Output Data'!$N9,'[1]Input-Output Data'!$J9='[1]Input-Output Data'!$N9))),'[1]TABLE DATA'!H$9,IF(AND(AND($I9>'[1]TABLE DATA'!$D$7,OR($I9<'[1]TABLE DATA'!$D$8,$I9='[1]TABLE DATA'!$D$8)),$J9>'[1]Input-Output Data'!$N9),"SIGN TOO WIDE",IF(AND(AND($I9>'[1]TABLE DATA'!$D$8,OR($I9<'[1]TABLE DATA'!$D$9,$I9='[1]TABLE DATA'!$D$9)),'[1]Input-Output Data'!$J9<'[1]Input-Output Data'!$K9),'[1]TABLE DATA'!H$9,"SIGN TOO WIDE")))))))))) -> 0.625 | R9: =IF(I9="Arm Too Long", "Reduce V or W",IF($I9>'[1]TABLE DATA'!$D$9,"SIGN TOO LARGE",IF(AND(OR($I9<'[1]TABLE DATA'!$D$7,$I9='[1]TABLE DATA'!$D$7),OR('[1]Input-Output Data'!$J9<'[1]Input-Output Data'!$K9,'[1]Input-Output Data'!$J9='[1]Input-Output Data'!$K9)),'[1]TABLE DATA'!I$7,IF(AND(OR($I9<'[1]TABLE DATA'!$D$7,$I9='[1]TABLE DATA'!$D$7),AND($J9>$L9),OR('[1]Input-Output Data'!$J9<'[1]Input-Output Data'!$M9,'[1]Input-Output Data'!$J9='[1]Input-Output Data'!$M9)),'[1]TABLE DATA'!I$8,IF(AND(OR($I9<'[1]TABLE DATA'!$D$7,$I9='[1]TABLE DATA'!$D$7),AND($J9>$M9),OR('[1]Input-Output Data'!$J9<'[1]Input-Output Data'!$N9,'[1]Input-Output Data'!$J9='[1]Input-Output Data'!$N9)),'[1]TABLE DATA'!I$9,IF(AND(OR($I9<'[1]TABLE DATA'!$D$7,$I9='[1]TABLE DATA'!$D$7),$J9>$N9),"SIGN TOO WIDE",IF(AND(AND($I9>'[1]TABLE DATA'!$D$7,OR($I9<'[1]TABLE DATA'!$D$8,$I9='[1]TABLE DATA'!$D$8)),'[1]Input-Output Data'!$J9<'[1]Input-Output Data'!$K9),'[1]TABLE DATA'!I$8,IF(AND(AND($I9>'[1]TABLE DATA'!$D$7,OR($I9<'[1]TABLE DATA'!$D$8,$I9='[1]TABLE DATA'!$D$8)),AND('[1]Input-Output Data'!$J9>'[1]Input-Output Data'!$M9,OR('[1]Input-Output Data'!$J9<'[1]Input-Output Data'!$N9,'[1]Input-Output Data'!$J9='[1]Input-Output Data'!$N9))),'[1]TABLE DATA'!I$9,IF(AND(AND($I9>'[1]TABLE DATA'!$D$7,OR($I9<'[1]TABLE DATA'!$D$8,$I9='[1]TABLE DATA'!$D$8)),$J9>'[1]Input-Output Data'!$N9),"SIGN TOO WIDE",IF(AND(AND($I9>'[1]TABLE DATA'!$D$8,OR($I9<'[1]TABLE DATA'!$D$9,$I9='[1]TABLE DATA'!$D$9)),'[1]Input-Output Data'!$J9<'[1]Input-Output Data'!$K9),'[1]TABLE DATA'!I$9,"SIGN TOO WIDE")))))))))) -> 5.625 | S9: =IF(I9="Arm Too Long", "Reduce V or W",IF($I9>'[1]TABLE DATA'!$D$9,"SIGN TOO LARGE",IF(AND(OR($I9<'[1]TABLE DATA'!$D$7,$I9='[1]TABLE DATA'!$D$7),OR('[1]Input-Output Data'!$J9<'[1]Input-Output Data'!$K9,'[1]Input-Output Data'!$J9='[1]Input-Output Data'!$K9)),'[1]TABLE DATA'!J$7,IF(AND(OR($I9<'[1]TABLE DATA'!$D$7,$I9='[1]TABLE DATA'!$D$7),AND($J9>$L9),OR('[1]Input-Output Data'!$J9<'[1]Input-Output Data'!$M9,'[1]Input-Output Data'!$J9='[1]Input-Output Data'!$M9)),'[1]TABLE DATA'!J$8,IF(AND(OR($I9<'[1]TABLE DATA'!$D$7,$I9='[1]TABLE DATA'!$D$7),AND($J9>$M9),OR('[1]Input-Output Data'!$J9<'[1]Input-Output Data'!$N9,'[1]Input-Output Data'!$J9='[1]Input-Output Data'!$N9)),'[1]TABLE DATA'!J$9,IF(AND(OR($I9<'[1]TABLE DATA'!$D$7,$I9='[1]TABLE DATA'!$D$7),$J9>$N9),"SIGN TOO WIDE",IF(AND(AND($I9>'[1]TABLE DATA'!$D$7,OR($I9<'[1]TABLE DATA'!$D$8,$I9='[1]TABLE DATA'!$D$8)),'[1]Input-Output Data'!$J9<'[1]Input-Output Data'!$K9),'[1]TABLE DATA'!J$8,IF(AND(AND($I9>'[1]TABLE DATA'!$D$7,OR($I9<'[1]TABLE DATA'!$D$8,$I9='[1]TABLE DATA'!$D$8)),AND('[1]Input-Output Data'!$J9>'[1]Input-Output Data'!$M9,OR('[1]Input-Output Data'!$J9<'[1]Input-Output Data'!$N9,'[1]Input-Output Data'!$J9='[1]Input-Output Data'!$N9))),'[1]TABLE DATA'!J$9,IF(AND(AND($I9>'[1]TABLE DATA'!$D$7,OR($I9<'[1]TABLE DATA'!$D$8,$I9='[1]TABLE DATA'!$D$8)),$J9>'[1]Input-Output Data'!$N9),"SIGN TOO WIDE",IF(AND(AND($I9>'[1]TABLE DATA'!$D$8,OR($I9<'[1]TABLE DATA'!$D$9,$I9='[1]TABLE DATA'!$D$9)),'[1]Input-Output Data'!$J9<'[1]Input-Output Data'!$K9),'[1]TABLE DATA'!J$9,"SIGN TOO WIDE")))))))))) -> 2 | T9: =IF(I9="Arm Too Long", "Reduce V or W",IF($I9>'[1]TABLE DATA'!$D$9,"SIGN TOO LARGE",IF(AND(OR($I9<'[1]TABLE DATA'!$D$7,$I9='[1]TABLE DATA'!$D$7),OR('[1]Input-Output Data'!$J9<'[1]Input-Output Data'!$K9,'[1]Input-Output Data'!$J9='[1]Input-Output Data'!$K9)),'[1]TABLE DATA'!K$7,IF(AND(OR($I9<'[1]TABLE DATA'!$D$7,$I9='[1]TABLE DATA'!$D$7),AND($J9>$L9),OR('[1]Input-Output Data'!$J9<'[1]Input-Output Data'!$M9,'[1]Input-Output Data'!$J9='[1]Input-Output Data'!$M9)),'[1]TABLE DATA'!K$8,IF(AND(OR($I9<'[1]TABLE DATA'!$D$7,$I9='[1]TABLE DATA'!$D$7),AND($J9>$M9),OR('[1]Input-Output Data'!$J9<'[1]Input-Output Data'!$N9,'[1]Input-Output Data'!$J9='[1]Input-Output Data'!$N9)),'[1]TABLE DATA'!K$9,IF(AND(OR($I9<'[1]TABLE DATA'!$D$7,$I9='[1]TABLE DATA'!$D$7),$J9>$N9),"SIGN TOO WIDE",IF(AND(AND($I9>'[1]TABLE DATA'!$D$7,OR($I9<'[1]TABLE DATA'!$D$8,$I9='[1]TABLE DATA'!$D$8)),'[1]Input-Output Data'!$J9<'[1]Input-Output Data'!$K9),'[1]TABLE DATA'!K$8,IF(AND(AND($I9>'[1]TABLE DATA'!$D$7,OR($I9<'[1]TABLE DATA'!$D$8,$I9='[1]TABLE DATA'!$D$8)),AND('[1]Input-Output Data'!$J9>'[1]Input-Output Data'!$M9,OR('[1]Input-Output Data'!$J9<'[1]Input-Output Data'!$N9,'[1]Input-Output Data'!$J9='[1]Input-Output Data'!$N9))),'[1]TABLE DATA'!K$9,IF(AND(AND($I9>'[1]TABLE DATA'!$D$7,OR($I9<'[1]TABLE DATA'!$D$8,$I9='[1]TABLE DATA'!$D$8)),$J9>'[1]Input-Output Data'!$N9),"SIGN TOO WIDE",IF(AND(AND($I9>'[1]TABLE DATA'!$D$8,OR($I9<'[1]TABLE DATA'!$D$9,$I9='[1]TABLE DATA'!$D$9)),'[1]Input-Output Data'!$J9<'[1]Input-Output Data'!$K9),'[1]TABLE DATA'!K$9,"SIGN TOO WIDE")))))))))) -> 60 | U9: =IF(I9="Arm Too Long", "Reduce V or W",IF($I9>'[1]TABLE DATA'!$D$9,"SIGN TOO LARGE",IF(AND(OR($I9<'[1]TABLE DATA'!$D$7,$I9='[1]TABLE DATA'!$D$7),OR('[1]Input-Output Data'!$J9<'[1]Input-Output Data'!$K9,'[1]Input-Output Data'!$J9='[1]Input-Output Data'!$K9)),'[1]TABLE DATA'!L$7,IF(AND(OR($I9<'[1]TABLE DATA'!$D$7,$I9='[1]TABLE DATA'!$D$7),AND($J9>$L9),OR('[1]Input-Output Data'!$J9<'[1]Input-Output Data'!$M9,'[1]Input-Output Data'!$J9='[1]Input-Output Data'!$M9)),'[1]TABLE DATA'!L$8,IF(AND(OR($I9<'[1]TABLE DATA'!$D$7,$I9='[1]TABLE DATA'!$D$7),AND($J9>$M9),OR('[1]Input-Output Data'!$J9<'[1]Input-Output Data'!$N9,'[1]Input-Output Data'!$J9='[1]Input-Output Data'!$N9)),'[1]TABLE DATA'!L$9,IF(AND(OR($I9<'[1]TABLE DATA'!$D$7,$I9='[1]TABLE DATA'!$D$7),$J9>$N9),"SIGN TOO WIDE",IF(AND(AND($I9>'[1]TABLE DATA'!$D$7,OR($I9<'[1]TABLE DATA'!$D$8,$I9='[1]TABLE DATA'!$D$8)),'[1]Input-Output Data'!$J9<'[1]Input-Output Data'!$K9),'[1]TABLE DATA'!L$8,IF(AND(AND($I9>'[1]TABLE DATA'!$D$7,OR($I9<'[1]TABLE DATA'!$D$8,$I9='[1]TABLE DATA'!$D$8)),AND('[1]Input-Output Data'!$J9>'[1]Input-Output Data'!$M9,OR('[1]Input-Output Data'!$J9<'[1]Input-Output Data'!$N9,'[1]Input-Output Data'!$J9='[1]Input-Output Data'!$N9))),'[1]TABLE DATA'!L$9,IF(AND(AND($I9>'[1]TABLE DATA'!$D$7,OR($I9<'[1]TABLE DATA'!$D$8,$I9='[1]TABLE DATA'!$D$8)),$J9>'[1]Input-Output Data'!$N9),"SIGN TOO WIDE",IF(AND(AND($I9>'[1]TABLE DATA'!$D$8,OR($I9<'[1]TABLE DATA'!$D$9,$I9='[1]TABLE DATA'!$D$9)),'[1]Input-Output Data'!$J9<'[1]Input-Output Data'!$K9),'[1]TABLE DATA'!L$9,"SIGN TOO WIDE")))))))))) -> 7.4 | V9: =IF(I9="Arm Too Long", "Reduce V or W",IF($I9>'[1]TABLE DATA'!$D$9,"SIGN TOO LARGE",IF(AND(OR($I9<'[1]TABLE DATA'!$D$7,$I9='[1]TABLE DATA'!$D$7),OR('[1]Input-Output Data'!$J9<'[1]Input-Output Data'!$K9,'[1]Input-Output Data'!$J9='[1]Input-Output Data'!$K9)),'[1]TABLE DATA'!M$7,IF(AND(OR($I9<'[1]TABLE DATA'!$D$7,$I9='[1]TABLE DATA'!$D$7),AND($J9>$L9),OR('[1]Input-Output Data'!$J9<'[1]Input-Output Data'!$M9,'[1]Input-Output Data'!$J9='[1]Input-Output Data'!$M9)),'[1]TABLE DATA'!M$8,IF(AND(OR($I9<'[1]TABLE DATA'!$D$7,$I9='[1]TABLE DATA'!$D$7),AND($J9>$M9),OR('[1]Input-Output Data'!$J9<'[1]Input-Output Data'!$N9,'[1]Input-Output Data'!$J9='[1]Input-Output Data'!$N9)),'[1]TABLE DATA'!M$9,IF(AND(OR($I9<'[1]TABLE DATA'!$D$7,$I9='[1]TABLE DATA'!$D$7),$J9>$N9),"SIGN TOO WIDE",IF(AND(AND($I9>'[1]TABLE DATA'!$D$7,OR($I9<'[1]TABLE DATA'!$D$8,$I9='[1]TABLE DATA'!$D$8)),'[1]Input-Output Data'!$J9<'[1]Input-Output Data'!$K9),'[1]TABLE DATA'!M$8,IF(AND(AND($I9>'[1]TABLE DATA'!$D$7,OR($I9<'[1]TABLE DATA'!$D$8,$I9='[1]TABLE DATA'!$D$8)),AND('[1]Input-Output Data'!$J9>'[1]Input-Output Data'!$M9,OR('[1]Input-Output Data'!$J9<'[1]Input-Output Data'!$N9,'[1]Input-Output Data'!$J9='[1]Input-Output Data'!$N9))),'[1]TABLE DATA'!M$9,IF(AND(AND($I9>'[1]TABLE DATA'!$D$7,OR($I9<'[1]TABLE DATA'!$D$8,$I9='[1]TABLE DATA'!$D$8)),$J9>'[1]Input-Output Data'!$N9),"SIGN TOO WIDE",IF(AND(AND($I9>'[1]TABLE DATA'!$D$8,OR($I9<'[1]TABLE DATA'!$D$9,$I9='[1]TABLE DATA'!$D$9)),'[1]Input-Output Data'!$J9<'[1]Input-Output Data'!$K9),'[1]TABLE DATA'!M$9,"SIGN TOO WIDE")))))))))) -> 0.5 | W9: =IF(I9="Arm Too Long", "Reduce V or W",IF($I9>'[1]TABLE DATA'!$D$9,"SIGN TOO LARGE",IF(AND(OR($I9<'[1]TABLE DATA'!$D$7,$I9='[1]TABLE DATA'!$D$7),OR('[1]Input-Output Data'!$J9<'[1]Input-Output Data'!$K9,'[1]Input-Output Data'!$J9='[1]Input-Output Data'!$K9)),'[1]TABLE DATA'!N$7,IF(AND(OR($I9<'[1]TABLE DATA'!$D$7,$I9='[1]TABLE DATA'!$D$7),AND($J9>$L9),OR('[1]Input-Output Data'!$J9<'[1]Input-Output Data'!$M9,'[1]Input-Output Data'!$J9='[1]Input-Output Data'!$M9)),'[1]TABLE DATA'!N$8,IF(AND(OR($I9<'[1]TABLE DATA'!$D$7,$I9='[1]TABLE DATA'!$D$7),AND($J9>$M9),OR('[1]Input-Output Data'!$J9<'[1]Input-Output Data'!$N9,'[1]Input-Output Data'!$J9='[1]Input-Output Data'!$N9)),'[1]TABLE DATA'!N$9,IF(AND(OR($I9<'[1]TABLE DATA'!$D$7,$I9='[1]TABLE DATA'!$D$7),$J9>$N9),"SIGN TOO WIDE",IF(AND(AND($I9>'[1]TABLE DATA'!$D$7,OR($I9<'[1]TABLE DATA'!$D$8,$I9='[1]TABLE DATA'!$D$8)),'[1]Input-Output Data'!$J9<'[1]Input-Output Data'!$K9),'[1]TABLE DATA'!N$8,IF(AND(AND($I9>'[1]TABLE DATA'!$D$7,OR($I9<'[1]TABLE DATA'!$D$8,$I9='[1]TABLE DATA'!$D$8)),AND('[1]Input-Output Data'!$J9>'[1]Input-Output Data'!$M9,OR('[1]Input-Output Data'!$J9<'[1]Input-Output Data'!$N9,'[1]Input-Output Data'!$J9='[1]Input-Output Data'!$N9))),'[1]TABLE DATA'!N$9,IF(AND(AND($I9>'[1]TABLE DATA'!$D$7,OR($I9<'[1]TABLE DATA'!$D$8,$I9='[1]TABLE DATA'!$D$8)),$J9>'[1]Input-Output Data'!$N9),"SIGN TOO WIDE",IF(AND(AND($I9>'[1]TABLE DATA'!$D$8,OR($I9<'[1]TABLE DATA'!$D$9,$I9='[1]TABLE DATA'!$D$9)),'[1]Input-Output Data'!$J9<'[1]Input-Output Data'!$K9),'[1]TABLE DATA'!N$9,"SIGN TOO WIDE")))))))))) -> 0.5 | X9: =IF(I9="Arm Too Long", "Reduce V or W",IF($I9>'[1]TABLE DATA'!$D$9,"SIGN TOO LARGE",IF(AND(OR($I9<'[1]TABLE DATA'!$D$7,$I9='[1]TABLE DATA'!$D$7),OR('[1]Input-Output Data'!$J9<'[1]Input-Output Data'!$K9,'[1]Input-Output Data'!$J9='[1]Input-Output Data'!$K9)),'[1]TABLE DATA'!O$7,IF(AND(OR($I9<'[1]TABLE DATA'!$D$7,$I9='[1]TABLE DATA'!$D$7),AND($J9>$L9),OR('[1]Input-Output Data'!$J9<'[1]Input-Output Data'!$M9,'[1]Input-Output Data'!$J9='[1]Input-Output Data'!$M9)),'[1]TABLE DATA'!O$8,IF(AND(OR($I9<'[1]TABLE DATA'!$D$7,$I9='[1]TABLE DATA'!$D$7),AND($J9>$M9),OR('[1]Input-Output Data'!$J9<'[1]Input-Output Data'!$N9,'[1]Input-Output Data'!$J9='[1]Input-Output Data'!$N9)),'[1]TABLE DATA'!O$9,IF(AND(OR($I9<'[1]TABLE DATA'!$D$7,$I9='[1]TABLE DATA'!$D$7),$J9>$N9),"SIGN TOO WIDE",IF(AND(AND($I9>'[1]TABLE DATA'!$D$7,OR($I9<'[1]TABLE DATA'!$D$8,$I9='[1]TABLE DATA'!$D$8)),'[1]Input-Output Data'!$J9<'[1]Input-Output Data'!$K9),'[1]TABLE DATA'!O$8,IF(AND(AND($I9>'[1]TABLE DATA'!$D$7,OR($I9<'[1]TABLE DATA'!$D$8,$I9='[1]TABLE DATA'!$D$8)),AND('[1]Input-Output Data'!$J9>'[1]Input-Output Data'!$M9,OR('[1]Input-Output Data'!$J9<'[1]Input-Output Data'!$N9,'[1]Input-Output Data'!$J9='[1]Input-Output Data'!$N9))),'[1]TABLE DATA'!O$9,IF(AND(AND($I9>'[1]TABLE DATA'!$D$7,OR($I9<'[1]TABLE DATA'!$D$8,$I9='[1]TABLE DATA'!$D$8)),$J9>'[1]Input-Output Data'!$N9),"SIGN TOO WIDE",IF(AND(AND($I9>'[1]TABLE DATA'!$D$8,OR($I9<'[1]TABLE DATA'!$D$9,$I9='[1]TABLE DATA'!$D$9)),'[1]Input-Output Data'!$J9<'[1]Input-Output Data'!$K9),'[1]TABLE DATA'!O$9,"SIGN TOO WIDE")))))))))) -> 0.5 | Y9: I
D10: 72 | E10: 60 | F10: Square | G10: II | H10: 36 | I10: 30 | J10: 38 | K10: =IF(OR(I10<'[1]TABLE DATA'!$D$7,I10='[1]TABLE DATA'!$D$7),717.75/I10,IF(AND('[1]TABLE DATA'!$D$7<I10,OR(I10<'[1]TABLE DATA'!$D$8,I10='[1]TABLE DATA'!$D$8)),1695/I10,IF(AND('[1]TABLE DATA'!$D$8<I10,OR(I10<'[1]TABLE DATA'!$D$9,I10='[1]TABLE DATA'!$D$9)),2268/I10,IF(I10="Arm Too Long", "Reduce V or W","Sign Too Wide")))) -> 56.5 | L10: =717.75/'[1]Input-Output Data'!I10 -> 23.93 | M10: 56.5 | N10: 75.6 | O10: =IF(I10="Arm Too Long", "Reduce V or W",IF($I10>'[1]TABLE DATA'!$D$9,"SIGN TOO LARGE",IF(AND(OR($I10<'[1]TABLE DATA'!$D$7,$I10='[1]TABLE DATA'!$D$7),OR('[1]Input-Output Data'!$J10<'[1]Input-Output Data'!$K10,'[1]Input-Output Data'!$J10='[1]Input-Output Data'!$K10)),'[1]TABLE DATA'!F$7,IF(AND(OR($I10<'[1]TABLE DATA'!$D$7,$I10='[1]TABLE DATA'!$D$7),AND($J10>$L10),OR('[1]Input-Output Data'!$J10<'[1]Input-Output Data'!$M10,'[1]Input-Output Data'!$J10='[1]Input-Output Data'!$M10)),'[1]TABLE DATA'!F$8,IF(AND(OR($I10<'[1]TABLE DATA'!$D$7,$I10='[1]TABLE DATA'!$D$7),AND($J10>$M10),OR('[1]Input-Output Data'!$J10<'[1]Input-Output Data'!$N10,'[1]Input-Output Data'!$J10='[1]Input-Output Data'!$N10)),'[1]TABLE DATA'!F$9,IF(AND(OR($I10<'[1]TABLE DATA'!$D$7,$I10='[1]TABLE DATA'!$D$7),$J10>$N10),"SIGN TOO WIDE",IF(AND(AND($I10>'[1]TABLE DATA'!$D$7,OR($I10<'[1]TABLE DATA'!$D$8,$I10='[1]TABLE DATA'!$D$8)),'[1]Input-Output Data'!$J10<'[1]Input-Output Data'!$K10),'[1]TABLE DATA'!F$8,IF(AND(AND($I10>'[1]TABLE DATA'!$D$7,OR($I10<'[1]TABLE DATA'!$D$8,$I10='[1]TABLE DATA'!$D$8)),AND('[1]Input-Output Data'!$J10>'[1]Input-Output Data'!$M10,OR('[1]Input-Output Data'!$J10<'[1]Input-Output Data'!$N10,'[1]Input-Output Data'!$J10='[1]Input-Output Data'!$N10))),'[1]TABLE DATA'!F$9,IF(AND(AND($I10>'[1]TABLE DATA'!$D$7,OR($I10<'[1]TABLE DATA'!$D$8,$I10='[1]TABLE DATA'!$D$8)),$J10>'[1]Input-Output Data'!$N10),"SIGN TOO WIDE",IF(AND(AND($I10>'[1]TABLE DATA'!$D$8,OR($I10<'[1]TABLE DATA'!$D$9,$I10='[1]TABLE DATA'!$D$9)),'[1]Input-Output Data'!$J10<'[1]Input-Output Data'!$K10),'[1]TABLE DATA'!F$9,"SIGN TOO WIDE")))))))))) -> 5 | P10: =IF(I10="Arm Too Long", "Reduce V or W",IF($I10>'[1]TABLE DATA'!$D$9,"SIGN TOO LARGE",IF(AND(OR($I10<'[1]TABLE DATA'!$D$7,$I10='[1]TABLE DATA'!$D$7),OR('[1]Input-Output Data'!$J10<'[1]Input-Output Data'!$K10,'[1]Input-Output Data'!$J10='[1]Input-Output Data'!$K10)),'[1]TABLE DATA'!G$7,IF(AND(OR($I10<'[1]TABLE DATA'!$D$7,$I10='[1]TABLE DATA'!$D$7),AND($J10>$L10),OR('[1]Input-Output Data'!$J10<'[1]Input-Output Data'!$M10,'[1]Input-Output Data'!$J10='[1]Input-Output Data'!$M10)),'[1]TABLE DATA'!G$8,IF(AND(OR($I10<'[1]TABLE DATA'!$D$7,$I10='[1]TABLE DATA'!$D$7),AND($J10>$M10),OR('[1]Input-Output Data'!$J10<'[1]Input-Output Data'!$N10,'[1]Input-Output Data'!$J10='[1]Input-Output Data'!$N10)),'[1]TABLE DATA'!G$9,IF(AND(OR($I10<'[1]TABLE DATA'!$D$7,$I10='[1]TABLE DATA'!$D$7),$J10>$N10),"SIGN TOO WIDE",IF(AND(AND($I10>'[1]TABLE DATA'!$D$7,OR($I10<'[1]TABLE DATA'!$D$8,$I10='[1]TABLE DATA'!$D$8)),'[1]Input-Output Data'!$J10<'[1]Input-Output Data'!$K10),'[1]TABLE DATA'!G$8,IF(AND(AND($I10>'[1]TABLE DATA'!$D$7,OR($I10<'[1]TABLE DATA'!$D$8,$I10='[1]TABLE DATA'!$D$8)),AND('[1]Input-Output Data'!$J10>'[1]Input-Output Data'!$M10,OR('[1]Input-Output Data'!$J10<'[1]Input-Output Data'!$N10,'[1]Input-Output Data'!$J10='[1]Input-Output Data'!$N10))),'[1]TABLE DATA'!G$9,IF(AND(AND($I10>'[1]TABLE DATA'!$D$7,OR($I10<'[1]TABLE DATA'!$D$8,$I10='[1]TABLE DATA'!$D$8)),$J10>'[1]Input-Output Data'!$N10),"SIGN TOO WIDE",IF(AND(AND($I10>'[1]TABLE DATA'!$D$8,OR($I10<'[1]TABLE DATA'!$D$9,$I10='[1]TABLE DATA'!$D$9)),'[1]Input-Output Data'!$J10<'[1]Input-Output Data'!$K10),'[1]TABLE DATA'!G$9,"SIGN TOO WIDE")))))))))) -> 3 | Q10: =IF(I10="Arm Too Long", "Reduce V or W",IF($I10>'[1]TABLE DATA'!$D$9,"SIGN TOO LARGE",IF(AND(OR($I10<'[1]TABLE DATA'!$D$7,$I10='[1]TABLE DATA'!$D$7),OR('[1]Input-Output Data'!$J10<'[1]Input-Output Data'!$K10,'[1]Input-Output Data'!$J10='[1]Input-Output Data'!$K10)),'[1]TABLE DATA'!H$7,IF(AND(OR($I10<'[1]TABLE DATA'!$D$7,$I10='[1]TABLE DATA'!$D$7),AND($J10>$L10),OR('[1]Input-Output Data'!$J10<'[1]Input-Output Data'!$M10,'[1]Input-Output Data'!$J10='[1]Input-Output Data'!$M10)),'[1]TABLE DATA'!H$8,IF(AND(OR($I10<'[1]TABLE DATA'!$D$7,$I10='[1]TABLE DATA'!$D$7),AND($J10>$M10),OR('[1]Input-Output Data'!$J10<'[1]Input-Output Data'!$N10,'[1]Input-Output Data'!$J10='[1]Input-Output Data'!$N10)),'[1]TABLE DATA'!H$9,IF(AND(OR($I10<'[1]TABLE DATA'!$D$7,$I10='[1]TABLE DATA'!$D$7),$J10>$N10),"SIGN TOO WIDE",IF(AND(AND($I10>'[1]TABLE DATA'!$D$7,OR($I10<'[1]TABLE DATA'!$D$8,$I10='[1]TABLE DATA'!$D$8)),'[1]Input-Output Data'!$J10<'[1]Input-Output Data'!$K10),'[1]TABLE DATA'!H$8,IF(AND(AND($I10>'[1]TABLE DATA'!$D$7,OR($I10<'[1]TABLE DATA'!$D$8,$I10='[1]TABLE DATA'!$D$8)),AND('[1]Input-Output Data'!$J10>'[1]Input-Output Data'!$M10,OR('[1]Input-Output Data'!$J10<'[1]Input-Output Data'!$N10,'[1]Input-Output Data'!$J10='[1]Input-Output Data'!$N10))),'[1]TABLE DATA'!H$9,IF(AND(AND($I10>'[1]TABLE DATA'!$D$7,OR($I10<'[1]TABLE DATA'!$D$8,$I10='[1]TABLE DATA'!$D$8)),$J10>'[1]Input-Output Data'!$N10),"SIGN TOO WIDE",IF(AND(AND($I10>'[1]TABLE DATA'!$D$8,OR($I10<'[1]TABLE DATA'!$D$9,$I10='[1]TABLE DATA'!$D$9)),'[1]Input-Output Data'!$J10<'[1]Input-Output Data'!$K10),'[1]TABLE DATA'!H$9,"SIGN TOO WIDE")))))))))) -> 0.875 | R10: =IF(I10="Arm Too Long", "Reduce V or W",IF($I10>'[1]TABLE DATA'!$D$9,"SIGN TOO LARGE",IF(AND(OR($I10<'[1]TABLE DATA'!$D$7,$I10='[1]TABLE DATA'!$D$7),OR('[1]Input-Output Data'!$J10<'[1]Input-Output Data'!$K10,'[1]Input-Output Data'!$J10='[1]Input-Output Data'!$K10)),'[1]TABLE DATA'!I$7,IF(AND(OR($I10<'[1]TABLE DATA'!$D$7,$I10='[1]TABLE DATA'!$D$7),AND($J10>$L10),OR('[1]Input-Output Data'!$J10<'[1]Input-Output Data'!$M10,'[1]Input-Output Data'!$J10='[1]Input-Output Data'!$M10)),'[1]TABLE DATA'!I$8,IF(AND(OR($I10<'[1]TABLE DATA'!$D$7,$I10='[1]TABLE DATA'!$D$7),AND($J10>$M10),OR('[1]Input-Output Data'!$J10<'[1]Input-Output Data'!$N10,'[1]Input-Output Data'!$J10='[1]Input-Output Data'!$N10)),'[1]TABLE DATA'!I$9,IF(AND(OR($I10<'[1]TABLE DATA'!$D$7,$I10='[1]TABLE DATA'!$D$7),$J10>$N10),"SIGN TOO WIDE",IF(AND(AND($I10>'[1]TABLE DATA'!$D$7,OR($I10<'[1]TABLE DATA'!$D$8,$I10='[1]TABLE DATA'!$D$8)),'[1]Input-Output Data'!$J10<'[1]Input-Output Data'!$K10),'[1]TABLE DATA'!I$8,IF(AND(AND($I10>'[1]TABLE DATA'!$D$7,OR($I10<'[1]TABLE DATA'!$D$8,$I10='[1]TABLE DATA'!$D$8)),AND('[1]Input-Output Data'!$J10>'[1]Input-Output Data'!$M10,OR('[1]Input-Output Data'!$J10<'[1]Input-Output Data'!$N10,'[1]Input-Output Data'!$J10='[1]Input-Output Data'!$N10))),'[1]TABLE DATA'!I$9,IF(AND(AND($I10>'[1]TABLE DATA'!$D$7,OR($I10<'[1]TABLE DATA'!$D$8,$I10='[1]TABLE DATA'!$D$8)),$J10>'[1]Input-Output Data'!$N10),"SIGN TOO WIDE",IF(AND(AND($I10>'[1]TABLE DATA'!$D$8,OR($I10<'[1]TABLE DATA'!$D$9,$I10='[1]TABLE DATA'!$D$9)),'[1]Input-Output Data'!$J10<'[1]Input-Output Data'!$K10),'[1]TABLE DATA'!I$9,"SIGN TOO WIDE")))))))))) -> 8 | S10: =IF(I10="Arm Too Long", "Reduce V or W",IF($I10>'[1]TABLE DATA'!$D$9,"SIGN TOO LARGE",IF(AND(OR($I10<'[1]TABLE DATA'!$D$7,$I10='[1]TABLE DATA'!$D$7),OR('[1]Input-Output Data'!$J10<'[1]Input-Output Data'!$K10,'[1]Input-Output Data'!$J10='[1]Input-Output Data'!$K10)),'[1]TABLE DATA'!J$7,IF(AND(OR($I10<'[1]TABLE DATA'!$D$7,$I10='[1]TABLE DATA'!$D$7),AND($J10>$L10),OR('[1]Input-Output Data'!$J10<'[1]Input-Output Data'!$M10,'[1]Input-Output Data'!$J10='[1]Input-Output Data'!$M10)),'[1]TABLE DATA'!J$8,IF(AND(OR($I10<'[1]TABLE DATA'!$D$7,$I10='[1]TABLE DATA'!$D$7),AND($J10>$M10),OR('[1]Input-Output Data'!$J10<'[1]Input-Output Data'!$N10,'[1]Input-Output Data'!$J10='[1]Input-Output Data'!$N10)),'[1]TABLE DATA'!J$9,IF(AND(OR($I10<'[1]TABLE DATA'!$D$7,$I10='[1]TABLE DATA'!$D$7),$J10>$N10),"SIGN TOO WIDE",IF(AND(AND($I10>'[1]TABLE DATA'!$D$7,OR($I10<'[1]TABLE DATA'!$D$8,$I10='[1]TABLE DATA'!$D$8)),'[1]Input-Output Data'!$J10<'[1]Input-Output Data'!$K10),'[1]TABLE DATA'!J$8,IF(AND(AND($I10>'[1]TABLE DATA'!$D$7,OR($I10<'[1]TABLE DATA'!$D$8,$I10='[1]TABLE DATA'!$D$8)),AND('[1]Input-Output Data'!$J10>'[1]Input-Output Data'!$M10,OR('[1]Input-Output Data'!$J10<'[1]Input-Output Data'!$N10,'[1]Input-Output Data'!$J10='[1]Input-Output Data'!$N10))),'[1]TABLE DATA'!J$9,IF(AND(AND($I10>'[1]TABLE DATA'!$D$7,OR($I10<'[1]TABLE DATA'!$D$8,$I10='[1]TABLE DATA'!$D$8)),$J10>'[1]Input-Output Data'!$N10),"SIGN TOO WIDE",IF(AND(AND($I10>'[1]TABLE DATA'!$D$8,OR($I10<'[1]TABLE DATA'!$D$9,$I10='[1]TABLE DATA'!$D$9)),'[1]Input-Output Data'!$J10<'[1]Input-Output Data'!$K10),'[1]TABLE DATA'!J$9,"SIGN TOO WIDE")))))))))) -> 2 | T10: =IF(I10="Arm Too Long", "Reduce V or W",IF($I10>'[1]TABLE DATA'!$D$9,"SIGN TOO LARGE",IF(AND(OR($I10<'[1]TABLE DATA'!$D$7,$I10='[1]TABLE DATA'!$D$7),OR('[1]Input-Output Data'!$J10<'[1]Input-Output Data'!$K10,'[1]Input-Output Data'!$J10='[1]Input-Output Data'!$K10)),'[1]TABLE DATA'!K$7,IF(AND(OR($I10<'[1]TABLE DATA'!$D$7,$I10='[1]TABLE DATA'!$D$7),AND($J10>$L10),OR('[1]Input-Output Data'!$J10<'[1]Input-Output Data'!$M10,'[1]Input-Output Data'!$J10='[1]Input-Output Data'!$M10)),'[1]TABLE DATA'!K$8,IF(AND(OR($I10<'[1]TABLE DATA'!$D$7,$I10='[1]TABLE DATA'!$D$7),AND($J10>$M10),OR('[1]Input-Output Data'!$J10<'[1]Input-Output Data'!$N10,'[1]Input-Output Data'!$J10='[1]Input-Output Data'!$N10)),'[1]TABLE DATA'!K$9,IF(AND(OR($I10<'[1]TABLE DATA'!$D$7,$I10='[1]TABLE DATA'!$D$7),$J10>$N10),"SIGN TOO WIDE",IF(AND(AND($I10>'[1]TABLE DATA'!$D$7,OR($I10<'[1]TABLE DATA'!$D$8,$I10='[1]TABLE DATA'!$D$8)),'[1]Input-Output Data'!$J10<'[1]Input-Output Data'!$K10),'[1]TABLE DATA'!K$8,IF(AND(AND($I10>'[1]TABLE DATA'!$D$7,OR($I10<'[1]TABLE DATA'!$D$8,$I10='[1]TABLE DATA'!$D$8)),AND('[1]Input-Output Data'!$J10>'[1]Input-Output Data'!$M10,OR('[1]Input-Output Data'!$J10<'[1]Input-Output Data'!$N10,'[1]Input-Output Data'!$J10='[1]Input-Output Data'!$N10))),'[1]TABLE DATA'!K$9,IF(AND(AND($I10>'[1]TABLE DATA'!$D$7,OR($I10<'[1]TABLE DATA'!$D$8,$I10='[1]TABLE DATA'!$D$8)),$J10>'[1]Input-Output Data'!$N10),"SIGN TOO WIDE",IF(AND(AND($I10>'[1]TABLE DATA'!$D$8,OR($I10<'[1]TABLE DATA'!$D$9,$I10='[1]TABLE DATA'!$D$9)),'[1]Input-Output Data'!$J10<'[1]Input-Output Data'!$K10),'[1]TABLE DATA'!K$9,"SIGN TOO WIDE")))))))))) -> 80 | U10: =IF(I10="Arm Too Long", "Reduce V or W",IF($I10>'[1]TABLE DATA'!$D$9,"SIGN TOO LARGE",IF(AND(OR($I10<'[1]TABLE DATA'!$D$7,$I10='[1]TABLE DATA'!$D$7),OR('[1]Input-Output Data'!$J10<'[1]Input-Output Data'!$K10,'[1]Input-Output Data'!$J10='[1]Input-Output Data'!$K10)),'[1]TABLE DATA'!L$7,IF(AND(OR($I10<'[1]TABLE DATA'!$D$7,$I10='[1]TABLE DATA'!$D$7),AND($J10>$L10),OR('[1]Input-Output Data'!$J10<'[1]Input-Output Data'!$M10,'[1]Input-Output Data'!$J10='[1]Input-Output Data'!$M10)),'[1]TABLE DATA'!L$8,IF(AND(OR($I10<'[1]TABLE DATA'!$D$7,$I10='[1]TABLE DATA'!$D$7),AND($J10>$M10),OR('[1]Input-Output Data'!$J10<'[1]Input-Output Data'!$N10,'[1]Input-Output Data'!$J10='[1]Input-Output Data'!$N10)),'[1]TABLE DATA'!L$9,IF(AND(OR($I10<'[1]TABLE DATA'!$D$7,$I10='[1]TABLE DATA'!$D$7),$J10>$N10),"SIGN TOO WIDE",IF(AND(AND($I10>'[1]TABLE DATA'!$D$7,OR($I10<'[1]TABLE DATA'!$D$8,$I10='[1]TABLE DATA'!$D$8)),'[1]Input-Output Data'!$J10<'[1]Input-Output Data'!$K10),'[1]TABLE DATA'!L$8,IF(AND(AND($I10>'[1]TABLE DATA'!$D$7,OR($I10<'[1]TABLE DATA'!$D$8,$I10='[1]TABLE DATA'!$D$8)),AND('[1]Input-Output Data'!$J10>'[1]Input-Output Data'!$M10,OR('[1]Input-Output Data'!$J10<'[1]Input-Output Data'!$N10,'[1]Input-Output Data'!$J10='[1]Input-Output Data'!$N10))),'[1]TABLE DATA'!L$9,IF(AND(AND($I10>'[1]TABLE DATA'!$D$7,OR($I10<'[1]TABLE DATA'!$D$8,$I10='[1]TABLE DATA'!$D$8)),$J10>'[1]Input-Output Data'!$N10),"SIGN TOO WIDE",IF(AND(AND($I10>'[1]TABLE DATA'!$D$8,OR($I10<'[1]TABLE DATA'!$D$9,$I10='[1]TABLE DATA'!$D$9)),'[1]Input-Output Data'!$J10<'[1]Input-Output Data'!$K10),'[1]TABLE DATA'!L$9,"SIGN TOO WIDE")))))))))) -> 14.5 | V10: =IF(I10="Arm Too Long", "Reduce V or W",IF($I10>'[1]TABLE DATA'!$D$9,"SIGN TOO LARGE",IF(AND(OR($I10<'[1]TABLE DATA'!$D$7,$I10='[1]TABLE DATA'!$D$7),OR('[1]Input-Output Data'!$J10<'[1]Input-Output Data'!$K10,'[1]Input-Output Data'!$J10='[1]Input-Output Data'!$K10)),'[1]TABLE DATA'!M$7,IF(AND(OR($I10<'[1]TABLE DATA'!$D$7,$I10='[1]TABLE DATA'!$D$7),AND($J10>$L10),OR('[1]Input-Output Data'!$J10<'[1]Input-Output Data'!$M10,'[1]Input-Output Data'!$J10='[1]Input-Output Data'!$M10)),'[1]TABLE DATA'!M$8,IF(AND(OR($I10<'[1]TABLE DATA'!$D$7,$I10='[1]TABLE DATA'!$D$7),AND($J10>$M10),OR('[1]Input-Output Data'!$J10<'[1]Input-Output Data'!$N10,'[1]Input-Output Data'!$J10='[1]Input-Output Data'!$N10)),'[1]TABLE DATA'!M$9,IF(AND(OR($I10<'[1]TABLE DATA'!$D$7,$I10='[1]TABLE DATA'!$D$7),$J10>$N10),"SIGN TOO WIDE",IF(AND(AND($I10>'[1]TABLE DATA'!$D$7,OR($I10<'[1]TABLE DATA'!$D$8,$I10='[1]TABLE DATA'!$D$8)),'[1]Input-Output Data'!$J10<'[1]Input-Output Data'!$K10),'[1]TABLE DATA'!M$8,IF(AND(AND($I10>'[1]TABLE DATA'!$D$7,OR($I10<'[1]TABLE DATA'!$D$8,$I10='[1]TABLE DATA'!$D$8)),AND('[1]Input-Output Data'!$J10>'[1]Input-Output Data'!$M10,OR('[1]Input-Output Data'!$J10<'[1]Input-Output Data'!$N10,'[1]Input-Output Data'!$J10='[1]Input-Output Data'!$N10))),'[1]TABLE DATA'!M$9,IF(AND(AND($I10>'[1]TABLE DATA'!$D$7,OR($I10<'[1]TABLE DATA'!$D$8,$I10='[1]TABLE DATA'!$D$8)),$J10>'[1]Input-Output Data'!$N10),"SIGN TOO WIDE",IF(AND(AND($I10>'[1]TABLE DATA'!$D$8,OR($I10<'[1]TABLE DATA'!$D$9,$I10='[1]TABLE DATA'!$D$9)),'[1]Input-Output Data'!$J10<'[1]Input-Output Data'!$K10),'[1]TABLE DATA'!M$9,"SIGN TOO WIDE")))))))))) -> 0.625 | W10: =IF(I10="Arm Too Long", "Reduce V or W",IF($I10>'[1]TABLE DATA'!$D$9,"SIGN TOO LARGE",IF(AND(OR($I10<'[1]TABLE DATA'!$D$7,$I10='[1]TABLE DATA'!$D$7),OR('[1]Input-Output Data'!$J10<'[1]Input-Output Data'!$K10,'[1]Input-Output Data'!$J10='[1]Input-Output Data'!$K10)),'[1]TABLE DATA'!N$7,IF(AND(OR($I10<'[1]TABLE DATA'!$D$7,$I10='[1]TABLE DATA'!$D$7),AND($J10>$L10),OR('[1]Input-Output Data'!$J10<'[1]Input-Output Data'!$M10,'[1]Input-Output Data'!$J10='[1]Input-Output Data'!$M10)),'[1]TABLE DATA'!N$8,IF(AND(OR($I10<'[1]TABLE DATA'!$D$7,$I10='[1]TABLE DATA'!$D$7),AND($J10>$M10),OR('[1]Input-Output Data'!$J10<'[1]Input-Output Data'!$N10,'[1]Input-Output Data'!$J10='[1]Input-Output Data'!$N10)),'[1]TABLE DATA'!N$9,IF(AND(OR($I10<'[1]TABLE DATA'!$D$7,$I10='[1]TABLE DATA'!$D$7),$J10>$N10),"SIGN TOO WIDE",IF(AND(AND($I10>'[1]TABLE DATA'!$D$7,OR($I10<'[1]TABLE DATA'!$D$8,$I10='[1]TABLE DATA'!$D$8)),'[1]Input-Output Data'!$J10<'[1]Input-Output Data'!$K10),'[1]TABLE DATA'!N$8,IF(AND(AND($I10>'[1]TABLE DATA'!$D$7,OR($I10<'[1]TABLE DATA'!$D$8,$I10='[1]TABLE DATA'!$D$8)),AND('[1]Input-Output Data'!$J10>'[1]Input-Output Data'!$M10,OR('[1]Input-Output Data'!$J10<'[1]Input-Output Data'!$N10,'[1]Input-Output Data'!$J10='[1]Input-Output Data'!$N10))),'[1]TABLE DATA'!N$9,IF(AND(AND($I10>'[1]TABLE DATA'!$D$7,OR($I10<'[1]TABLE DATA'!$D$8,$I10='[1]TABLE DATA'!$D$8)),$J10>'[1]Input-Output Data'!$N10),"SIGN TOO WIDE",IF(AND(AND($I10>'[1]TABLE DATA'!$D$8,OR($I10<'[1]TABLE DATA'!$D$9,$I10='[1]TABLE DATA'!$D$9)),'[1]Input-Output Data'!$J10<'[1]Input-Output Data'!$K10),'[1]TABLE DATA'!N$9,"SIGN TOO WIDE")))))))))) -> 0.625 | X10: =IF(I10="Arm Too Long", "Reduce V or W",IF($I10>'[1]TABLE DATA'!$D$9,"SIGN TOO LARGE",IF(AND(OR($I10<'[1]TABLE DATA'!$D$7,$I10='[1]TABLE DATA'!$D$7),OR('[1]Input-Output Data'!$J10<'[1]Input-Output Data'!$K10,'[1]Input-Output Data'!$J10='[1]Input-Output Data'!$K10)),'[1]TABLE DATA'!O$7,IF(AND(OR($I10<'[1]TABLE DATA'!$D$7,$I10='[1]TABLE DATA'!$D$7),AND($J10>$L10),OR('[1]Input-Output Data'!$J10<'[1]Input-Output Data'!$M10,'[1]Input-Output Data'!$J10='[1]Input-Output Data'!$M10)),'[1]TABLE DATA'!O$8,IF(AND(OR($I10<'[1]TABLE DATA'!$D$7,$I10='[1]TABLE DATA'!$D$7),AND($J10>$M10),OR('[1]Input-Output Data'!$J10<'[1]Input-Output Data'!$N10,'[1]Input-Output Data'!$J10='[1]Input-Output Data'!$N10)),'[1]TABLE DATA'!O$9,IF(AND(OR($I10<'[1]TABLE DATA'!$D$7,$I10='[1]TABLE DATA'!$D$7),$J10>$N10),"SIGN TOO WIDE",IF(AND(AND($I10>'[1]TABLE DATA'!$D$7,OR($I10<'[1]TABLE DATA'!$D$8,$I10='[1]TABLE DATA'!$D$8)),'[1]Input-Output Data'!$J10<'[1]Input-Output Data'!$K10),'[1]TABLE DATA'!O$8,IF(AND(AND($I10>'[1]TABLE DATA'!$D$7,OR($I10<'[1]TABLE DATA'!$D$8,$I10='[1]TABLE DATA'!$D$8)),AND('[1]Input-Output Data'!$J10>'[1]Input-Output Data'!$M10,OR('[1]Input-Output Data'!$J10<'[1]Input-Output Data'!$N10,'[1]Input-Output Data'!$J10='[1]Input-Output Data'!$N10))),'[1]TABLE DATA'!O$9,IF(AND(AND($I10>'[1]TABLE DATA'!$D$7,OR($I10<'[1]TABLE DATA'!$D$8,$I10='[1]TABLE DATA'!$D$8)),$J10>'[1]Input-Output Data'!$N10),"SIGN TOO WIDE",IF(AND(AND($I10>'[1]TABLE DATA'!$D$8,OR($I10<'[1]TABLE DATA'!$D$9,$I10='[1]TABLE DATA'!$D$9)),'[1]Input-Output Data'!$J10<'[1]Input-Output Data'!$K10),'[1]TABLE DATA'!O$9,"SIGN TOO WIDE")))))))))) -> 0.625 | Y10: II
D11: 84 | E11: 66 | F11: Square | G11: II | H11: 39 | I11: 38.5 | J11: 44 | K11: =IF(OR(I11<'[1]TABLE DATA'!$D$7,I11='[1]TABLE DATA'!$D$7),717.75/I11,IF(AND('[1]TABLE DATA'!$D$7<I11,OR(I11<'[1]TABLE DATA'!$D$8,I11='[1]TABLE DATA'!$D$8)),1695/I11,IF(AND('[1]TABLE DATA'!$D$8<I11,OR(I11<'[1]TABLE DATA'!$D$9,I11='[1]TABLE DATA'!$D$9)),2268/I11,IF(I11="Arm Too Long", "Reduce V or W","Sign Too Wide")))) -> 44.03 | L11: =717.75/'[1]Input-Output Data'!I11 -> 18.64 | M11: 44.03 | N11: 58.91 | O11: =IF(I11="Arm Too Long", "Reduce V or W",IF($I11>'[1]TABLE DATA'!$D$9,"SIGN TOO LARGE",IF(AND(OR($I11<'[1]TABLE DATA'!$D$7,$I11='[1]TABLE DATA'!$D$7),OR('[1]Input-Output Data'!$J11<'[1]Input-Output Data'!$K11,'[1]Input-Output Data'!$J11='[1]Input-Output Data'!$K11)),'[1]TABLE DATA'!F$7,IF(AND(OR($I11<'[1]TABLE DATA'!$D$7,$I11='[1]TABLE DATA'!$D$7),AND($J11>$L11),OR('[1]Input-Output Data'!$J11<'[1]Input-Output Data'!$M11,'[1]Input-Output Data'!$J11='[1]Input-Output Data'!$M11)),'[1]TABLE DATA'!F$8,IF(AND(OR($I11<'[1]TABLE DATA'!$D$7,$I11='[1]TABLE DATA'!$D$7),AND($J11>$M11),OR('[1]Input-Output Data'!$J11<'[1]Input-Output Data'!$N11,'[1]Input-Output Data'!$J11='[1]Input-Output Data'!$N11)),'[1]TABLE DATA'!F$9,IF(AND(OR($I11<'[1]TABLE DATA'!$D$7,$I11='[1]TABLE DATA'!$D$7),$J11>$N11),"SIGN TOO WIDE",IF(AND(AND($I11>'[1]TABLE DATA'!$D$7,OR($I11<'[1]TABLE DATA'!$D$8,$I11='[1]TABLE DATA'!$D$8)),'[1]Input-Output Data'!$J11<'[1]Input-Output Data'!$K11),'[1]TABLE DATA'!F$8,IF(AND(AND($I11>'[1]TABLE DATA'!$D$7,OR($I11<'[1]TABLE DATA'!$D$8,$I11='[1]TABLE DATA'!$D$8)),AND('[1]Input-Output Data'!$J11>'[1]Input-Output Data'!$M11,OR('[1]Input-Output Data'!$J11<'[1]Input-Output Data'!$N11,'[1]Input-Output Data'!$J11='[1]Input-Output Data'!$N11))),'[1]TABLE DATA'!F$9,IF(AND(AND($I11>'[1]TABLE DATA'!$D$7,OR($I11<'[1]TABLE DATA'!$D$8,$I11='[1]TABLE DATA'!$D$8)),$J11>'[1]Input-Output Data'!$N11),"SIGN TOO WIDE",IF(AND(AND($I11>'[1]TABLE DATA'!$D$8,OR($I11<'[1]TABLE DATA'!$D$9,$I11='[1]TABLE DATA'!$D$9)),'[1]Input-Output Data'!$J11<'[1]Input-Output Data'!$K11),'[1]TABLE DATA'!F$9,"SIGN TOO WIDE")))))))))) -> 5 | P11: =IF(I11="Arm Too Long", "Reduce V or W",IF($I11>'[1]TABLE DATA'!$D$9,"SIGN TOO LARGE",IF(AND(OR($I11<'[1]TABLE DATA'!$D$7,$I11='[1]TABLE DATA'!$D$7),OR('[1]Input-Output Data'!$J11<'[1]Input-Output Data'!$K11,'[1]Input-Output Data'!$J11='[1]Input-Output Data'!$K11)),'[1]TABLE DATA'!G$7,IF(AND(OR($I11<'[1]TABLE DATA'!$D$7,$I11='[1]TABLE DATA'!$D$7),AND($J11>$L11),OR('[1]Input-Output Data'!$J11<'[1]Input-Output Data'!$M11,'[1]Input-Output Data'!$J11='[1]Input-Output Data'!$M11)),'[1]TABLE DATA'!G$8,IF(AND(OR($I11<'[1]TABLE DATA'!$D$7,$I11='[1]TABLE DATA'!$D$7),AND($J11>$M11),OR('[1]Input-Output Data'!$J11<'[1]Input-Output Data'!$N11,'[1]Input-Output Data'!$J11='[1]Input-Output Data'!$N11)),'[1]TABLE DATA'!G$9,IF(AND(OR($I11<'[1]TABLE DATA'!$D$7,$I11='[1]TABLE DATA'!$D$7),$J11>$N11),"SIGN TOO WIDE",IF(AND(AND($I11>'[1]TABLE DATA'!$D$7,OR($I11<'[1]TABLE DATA'!$D$8,$I11='[1]TABLE DATA'!$D$8)),'[1]Input-Output Data'!$J11<'[1]Input-Output Data'!$K11),'[1]TABLE DATA'!G$8,IF(AND(AND($I11>'[1]TABLE DATA'!$D$7,OR($I11<'[1]TABLE DATA'!$D$8,$I11='[1]TABLE DATA'!$D$8)),AND('[1]Input-Output Data'!$J11>'[1]Input-Output Data'!$M11,OR('[1]Input-Output Data'!$J11<'[1]Input-Output Data'!$N11,'[1]Input-Output Data'!$J11='[1]Input-Output Data'!$N11))),'[1]TABLE DATA'!G$9,IF(AND(AND($I11>'[1]TABLE DATA'!$D$7,OR($I11<'[1]TABLE DATA'!$D$8,$I11='[1]TABLE DATA'!$D$8)),$J11>'[1]Input-Output Data'!$N11),"SIGN TOO WIDE",IF(AND(AND($I11>'[1]TABLE DATA'!$D$8,OR($I11<'[1]TABLE DATA'!$D$9,$I11='[1]TABLE DATA'!$D$9)),'[1]Input-Output Data'!$J11<'[1]Input-Output Data'!$K11),'[1]TABLE DATA'!G$9,"SIGN TOO WIDE")))))))))) -> 3 | Q11: =IF(I11="Arm Too Long", "Reduce V or W",IF($I11>'[1]TABLE DATA'!$D$9,"SIGN TOO LARGE",IF(AND(OR($I11<'[1]TABLE DATA'!$D$7,$I11='[1]TABLE DATA'!$D$7),OR('[1]Input-Output Data'!$J11<'[1]Input-Output Data'!$K11,'[1]Input-Output Data'!$J11='[1]Input-Output Data'!$K11)),'[1]TABLE DATA'!H$7,IF(AND(OR($I11<'[1]TABLE DATA'!$D$7,$I11='[1]TABLE DATA'!$D$7),AND($J11>$L11),OR('[1]Input-Output Data'!$J11<'[1]Input-Output Data'!$M11,'[1]Input-Output Data'!$J11='[1]Input-Output Data'!$M11)),'[1]TABLE DATA'!H$8,IF(AND(OR($I11<'[1]TABLE DATA'!$D$7,$I11='[1]TABLE DATA'!$D$7),AND($J11>$M11),OR('[1]Input-Output Data'!$J11<'[1]Input-Output Data'!$N11,'[1]Input-Output Data'!$J11='[1]Input-Output Data'!$N11)),'[1]TABLE DATA'!H$9,IF(AND(OR($I11<'[1]TABLE DATA'!$D$7,$I11='[1]TABLE DATA'!$D$7),$J11>$N11),"SIGN TOO WIDE",IF(AND(AND($I11>'[1]TABLE DATA'!$D$7,OR($I11<'[1]TABLE DATA'!$D$8,$I11='[1]TABLE DATA'!$D$8)),'[1]Input-Output Data'!$J11<'[1]Input-Output Data'!$K11),'[1]TABLE DATA'!H$8,IF(AND(AND($I11>'[1]TABLE DATA'!$D$7,OR($I11<'[1]TABLE DATA'!$D$8,$I11='[1]TABLE DATA'!$D$8)),AND('[1]Input-Output Data'!$J11>'[1]Input-Output Data'!$M11,OR('[1]Input-Output Data'!$J11<'[1]Input-Output Data'!$N11,'[1]Input-Output Data'!$J11='[1]Input-Output Data'!$N11))),'[1]TABLE DATA'!H$9,IF(AND(AND($I11>'[1]TABLE DATA'!$D$7,OR($I11<'[1]TABLE DATA'!$D$8,$I11='[1]TABLE DATA'!$D$8)),$J11>'[1]Input-Output Data'!$N11),"SIGN TOO WIDE",IF(AND(AND($I11>'[1]TABLE DATA'!$D$8,OR($I11<'[1]TABLE DATA'!$D$9,$I11='[1]TABLE DATA'!$D$9)),'[1]Input-Output Data'!$J11<'[1]Input-Output Data'!$K11),'[1]TABLE DATA'!H$9,"SIGN TOO WIDE")))))))))) -> 0.875 | R11: =IF(I11="Arm Too Long", "Reduce V or W",IF($I11>'[1]TABLE DATA'!$D$9,"SIGN TOO LARGE",IF(AND(OR($I11<'[1]TABLE DATA'!$D$7,$I11='[1]TABLE DATA'!$D$7),OR('[1]Input-Output Data'!$J11<'[1]Input-Output Data'!$K11,'[1]Input-Output Data'!$J11='[1]Input-Output Data'!$K11)),'[1]TABLE DATA'!I$7,IF(AND(OR($I11<'[1]TABLE DATA'!$D$7,$I11='[1]TABLE DATA'!$D$7),AND($J11>$L11),OR('[1]Input-Output Data'!$J11<'[1]Input-Output Data'!$M11,'[1]Input-Output Data'!$J11='[1]Input-Output Data'!$M11)),'[1]TABLE DATA'!I$8,IF(AND(OR($I11<'[1]TABLE DATA'!$D$7,$I11='[1]TABLE DATA'!$D$7),AND($J11>$M11),OR('[1]Input-Output Data'!$J11<'[1]Input-Output Data'!$N11,'[1]Input-Output Data'!$J11='[1]Input-Output Data'!$N11)),'[1]TABLE DATA'!I$9,IF(AND(OR($I11<'[1]TABLE DATA'!$D$7,$I11='[1]TABLE DATA'!$D$7),$J11>$N11),"SIGN TOO WIDE",IF(AND(AND($I11>'[1]TABLE DATA'!$D$7,OR($I11<'[1]TABLE DATA'!$D$8,$I11='[1]TABLE DATA'!$D$8)),'[1]Input-Output Data'!$J11<'[1]Input-Output Data'!$K11),'[1]TABLE DATA'!I$8,IF(AND(AND($I11>'[1]TABLE DATA'!$D$7,OR($I11<'[1]TABLE DATA'!$D$8,$I11='[1]TABLE DATA'!$D$8)),AND('[1]Input-Output Data'!$J11>'[1]Input-Output Data'!$M11,OR('[1]Input-Output Data'!$J11<'[1]Input-Output Data'!$N11,'[1]Input-Output Data'!$J11='[1]Input-Output Data'!$N11))),'[1]TABLE DATA'!I$9,IF(AND(AND($I11>'[1]TABLE DATA'!$D$7,OR($I11<'[1]TABLE DATA'!$D$8,$I11='[1]TABLE DATA'!$D$8)),$J11>'[1]Input-Output Data'!$N11),"SIGN TOO WIDE",IF(AND(AND($I11>'[1]TABLE DATA'!$D$8,OR($I11<'[1]TABLE DATA'!$D$9,$I11='[1]TABLE DATA'!$D$9)),'[1]Input-Output Data'!$J11<'[1]Input-Output Data'!$K11),'[1]TABLE DATA'!I$9,"SIGN TOO WIDE")))))))))) -> 8 | S11: =IF(I11="Arm Too Long", "Reduce V or W",IF($I11>'[1]TABLE DATA'!$D$9,"SIGN TOO LARGE",IF(AND(OR($I11<'[1]TABLE DATA'!$D$7,$I11='[1]TABLE DATA'!$D$7),OR('[1]Input-Output Data'!$J11<'[1]Input-Output Data'!$K11,'[1]Input-Output Data'!$J11='[1]Input-Output Data'!$K11)),'[1]TABLE DATA'!J$7,IF(AND(OR($I11<'[1]TABLE DATA'!$D$7,$I11='[1]TABLE DATA'!$D$7),AND($J11>$L11),OR('[1]Input-Output Data'!$J11<'[1]Input-Output Data'!$M11,'[1]Input-Output Data'!$J11='[1]Input-Output Data'!$M11)),'[1]TABLE DATA'!J$8,IF(AND(OR($I11<'[1]TABLE DATA'!$D$7,$I11='[1]TABLE DATA'!$D$7),AND($J11>$M11),OR('[1]Input-Output Data'!$J11<'[1]Input-Output Data'!$N11,'[1]Input-Output Data'!$J11='[1]Input-Output Data'!$N11)),'[1]TABLE DATA'!J$9,IF(AND(OR($I11<'[1]TABLE DATA'!$D$7,$I11='[1]TABLE DATA'!$D$7),$J11>$N11),"SIGN TOO WIDE",IF(AND(AND($I11>'[1]TABLE DATA'!$D$7,OR($I11<'[1]TABLE DATA'!$D$8,$I11='[1]TABLE DATA'!$D$8)),'[1]Input-Output Data'!$J11<'[1]Input-Output Data'!$K11),'[1]TABLE DATA'!J$8,IF(AND(AND($I11>'[1]TABLE DATA'!$D$7,OR($I11<'[1]TABLE DATA'!$D$8,$I11='[1]TABLE DATA'!$D$8)),AND('[1]Input-Output Data'!$J11>'[1]Input-Output Data'!$M11,OR('[1]Input-Output Data'!$J11<'[1]Input-Output Data'!$N11,'[1]Input-Output Data'!$J11='[1]Input-Output Data'!$N11))),'[1]TABLE DATA'!J$9,IF(AND(AND($I11>'[1]TABLE DATA'!$D$7,OR($I11<'[1]TABLE DATA'!$D$8,$I11='[1]TABLE DATA'!$D$8)),$J11>'[1]Input-Output Data'!$N11),"SIGN TOO WIDE",IF(AND(AND($I11>'[1]TABLE DATA'!$D$8,OR($I11<'[1]TABLE DATA'!$D$9,$I11='[1]TABLE DATA'!$D$9)),'[1]Input-Output Data'!$J11<'[1]Input-Output Data'!$K11),'[1]TABLE DATA'!J$9,"SIGN TOO WIDE")))))))))) -> 2 | T11: =IF(I11="Arm Too Long", "Reduce V or W",IF($I11>'[1]TABLE DATA'!$D$9,"SIGN TOO LARGE",IF(AND(OR($I11<'[1]TABLE DATA'!$D$7,$I11='[1]TABLE DATA'!$D$7),OR('[1]Input-Output Data'!$J11<'[1]Input-Output Data'!$K11,'[1]Input-Output Data'!$J11='[1]Input-Output Data'!$K11)),'[1]TABLE DATA'!K$7,IF(AND(OR($I11<'[1]TABLE DATA'!$D$7,$I11='[1]TABLE DATA'!$D$7),AND($J11>$L11),OR('[1]Input-Output Data'!$J11<'[1]Input-Output Data'!$M11,'[1]Input-Output Data'!$J11='[1]Input-Output Data'!$M11)),'[1]TABLE DATA'!K$8,IF(AND(OR($I11<'[1]TABLE DATA'!$D$7,$I11='[1]TABLE DATA'!$D$7),AND($J11>$M11),OR('[1]Input-Output Data'!$J11<'[1]Input-Output Data'!$N11,'[1]Input-Output Data'!$J11='[1]Input-Output Data'!$N11)),'[1]TABLE DATA'!K$9,IF(AND(OR($I11<'[1]TABLE DATA'!$D$7,$I11='[1]TABLE DATA'!$D$7),$J11>$N11),"SIGN TOO WIDE",IF(AND(AND($I11>'[1]TABLE DATA'!$D$7,OR($I11<'[1]TABLE DATA'!$D$8,$I11='[1]TABLE DATA'!$D$8)),'[1]Input-Output Data'!$J11<'[1]Input-Output Data'!$K11),'[1]TABLE DATA'!K$8,IF(AND(AND($I11>'[1]TABLE DATA'!$D$7,OR($I11<'[1]TABLE DATA'!$D$8,$I11='[1]TABLE DATA'!$D$8)),AND('[1]Input-Output Data'!$J11>'[1]Input-Output Data'!$M11,OR('[1]Input-Output Data'!$J11<'[1]Input-Output Data'!$N11,'[1]Input-Output Data'!$J11='[1]Input-Output Data'!$N11))),'[1]TABLE DATA'!K$9,IF(AND(AND($I11>'[1]TABLE DATA'!$D$7,OR($I11<'[1]TABLE DATA'!$D$8,$I11='[1]TABLE DATA'!$D$8)),$J11>'[1]Input-Output Data'!$N11),"SIGN TOO WIDE",IF(AND(AND($I11>'[1]TABLE DATA'!$D$8,OR($I11<'[1]TABLE DATA'!$D$9,$I11='[1]TABLE DATA'!$D$9)),'[1]Input-Output Data'!$J11<'[1]Input-Output Data'!$K11),'[1]TABLE DATA'!K$9,"SIGN TOO WIDE")))))))))) -> 80 | U11: =IF(I11="Arm Too Long", "Reduce V or W",IF($I11>'[1]TABLE DATA'!$D$9,"SIGN TOO LARGE",IF(AND(OR($I11<'[1]TABLE DATA'!$D$7,$I11='[1]TABLE DATA'!$D$7),OR('[1]Input-Output Data'!$J11<'[1]Input-Output Data'!$K11,'[1]Input-Output Data'!$J11='[1]Input-Output Data'!$K11)),'[1]TABLE DATA'!L$7,IF(AND(OR($I11<'[1]TABLE DATA'!$D$7,$I11='[1]TABLE DATA'!$D$7),AND($J11>$L11),OR('[1]Input-Output Data'!$J11<'[1]Input-Output Data'!$M11,'[1]Input-Output Data'!$J11='[1]Input-Output Data'!$M11)),'[1]TABLE DATA'!L$8,IF(AND(OR($I11<'[1]TABLE DATA'!$D$7,$I11='[1]TABLE DATA'!$D$7),AND($J11>$M11),OR('[1]Input-Output Data'!$J11<'[1]Input-Output Data'!$N11,'[1]Input-Output Data'!$J11='[1]Input-Output Data'!$N11)),'[1]TABLE DATA'!L$9,IF(AND(OR($I11<'[1]TABLE DATA'!$D$7,$I11='[1]TABLE DATA'!$D$7),$J11>$N11),"SIGN TOO WIDE",IF(AND(AND($I11>'[1]TABLE DATA'!$D$7,OR($I11<'[1]TABLE DATA'!$D$8,$I11='[1]TABLE DATA'!$D$8)),'[1]Input-Output Data'!$J11<'[1]Input-Output Data'!$K11),'[1]TABLE DATA'!L$8,IF(AND(AND($I11>'[1]TABLE DATA'!$D$7,OR($I11<'[1]TABLE DATA'!$D$8,$I11='[1]TABLE DATA'!$D$8)),AND('[1]Input-Output Data'!$J11>'[1]Input-Output Data'!$M11,OR('[1]Input-Output Data'!$J11<'[1]Input-Output Data'!$N11,'[1]Input-Output Data'!$J11='[1]Input-Output Data'!$N11))),'[1]TABLE DATA'!L$9,IF(AND(AND($I11>'[1]TABLE DATA'!$D$7,OR($I11<'[1]TABLE DATA'!$D$8,$I11='[1]TABLE DATA'!$D$8)),$J11>'[1]Input-Output Data'!$N11),"SIGN TOO WIDE",IF(AND(AND($I11>'[1]TABLE DATA'!$D$8,OR($I11<'[1]TABLE DATA'!$D$9,$I11='[1]TABLE DATA'!$D$9)),'[1]Input-Output Data'!$J11<'[1]Input-Output Data'!$K11),'[1]TABLE DATA'!L$9,"SIGN TOO WIDE")))))))))) -> 14.5 | V11: =IF(I11="Arm Too Long", "Reduce V or W",IF($I11>'[1]TABLE DATA'!$D$9,"SIGN TOO LARGE",IF(AND(OR($I11<'[1]TABLE DATA'!$D$7,$I11='[1]TABLE DATA'!$D$7),OR('[1]Input-Output Data'!$J11<'[1]Input-Output Data'!$K11,'[1]Input-Output Data'!$J11='[1]Input-Output Data'!$K11)),'[1]TABLE DATA'!M$7,IF(AND(OR($I11<'[1]TABLE DATA'!$D$7,$I11='[1]TABLE DATA'!$D$7),AND($J11>$L11),OR('[1]Input-Output Data'!$J11<'[1]Input-Output Data'!$M11,'[1]Input-Output Data'!$J11='[1]Input-Output Data'!$M11)),'[1]TABLE DATA'!M$8,IF(AND(OR($I11<'[1]TABLE DATA'!$D$7,$I11='[1]TABLE DATA'!$D$7),AND($J11>$M11),OR('[1]Input-Output Data'!$J11<'[1]Input-Output Data'!$N11,'[1]Input-Output Data'!$J11='[1]Input-Output Data'!$N11)),'[1]TABLE DATA'!M$9,IF(AND(OR($I11<'[1]TABLE DATA'!$D$7,$I11='[1]TABLE DATA'!$D$7),$J11>$N11),"SIGN TOO WIDE",IF(AND(AND($I11>'[1]TABLE DATA'!$D$7,OR($I11<'[1]TABLE DATA'!$D$8,$I11='[1]TABLE DATA'!$D$8)),'[1]Input-Output Data'!$J11<'[1]Input-Output Data'!$K11),'[1]TABLE DATA'!M$8,IF(AND(AND($I11>'[1]TABLE DATA'!$D$7,OR($I11<'[1]TABLE DATA'!$D$8,$I11='[1]TABLE DATA'!$D$8)),AND('[1]Input-Output Data'!$J11>'[1]Input-Output Data'!$M11,OR('[1]Input-Output Data'!$J11<'[1]Input-Output Data'!$N11,'[1]Input-Output Data'!$J11='[1]Input-Output Data'!$N11))),'[1]TABLE DATA'!M$9,IF(AND(AND($I11>'[1]TABLE DATA'!$D$7,OR($I11<'[1]TABLE DATA'!$D$8,$I11='[1]TABLE DATA'!$D$8)),$J11>'[1]Input-Output Data'!$N11),"SIGN TOO WIDE",IF(AND(AND($I11>'[1]TABLE DATA'!$D$8,OR($I11<'[1]TABLE DATA'!$D$9,$I11='[1]TABLE DATA'!$D$9)),'[1]Input-Output Data'!$J11<'[1]Input-Output Data'!$K11),'[1]TABLE DATA'!M$9,"SIGN TOO WIDE")))))))))) -> 0.625 | W11: =IF(I11="Arm Too Long", "Reduce V or W",IF($I11>'[1]TABLE DATA'!$D$9,"SIGN TOO LARGE",IF(AND(OR($I11<'[1]TABLE DATA'!$D$7,$I11='[1]TABLE DATA'!$D$7),OR('[1]Input-Output Data'!$J11<'[1]Input-Output Data'!$K11,'[1]Input-Output Data'!$J11='[1]Input-Output Data'!$K11)),'[1]TABLE DATA'!N$7,IF(AND(OR($I11<'[1]TABLE DATA'!$D$7,$I11='[1]TABLE DATA'!$D$7),AND($J11>$L11),OR('[1]Input-Output Data'!$J11<'[1]Input-Output Data'!$M11,'[1]Input-Output Data'!$J11='[1]Input-Output Data'!$M11)),'[1]TABLE DATA'!N$8,IF(AND(OR($I11<'[1]TABLE DATA'!$D$7,$I11='[1]TABLE DATA'!$D$7),AND($J11>$M11),OR('[1]Input-Output Data'!$J11<'[1]Input-Output Data'!$N11,'[1]Input-Output Data'!$J11='[1]Input-Output Data'!$N11)),'[1]TABLE DATA'!N$9,IF(AND(OR($I11<'[1]TABLE DATA'!$D$7,$I11='[1]TABLE DATA'!$D$7),$J11>$N11),"SIGN TOO WIDE",IF(AND(AND($I11>'[1]TABLE DATA'!$D$7,OR($I11<'[1]TABLE DATA'!$D$8,$I11='[1]TABLE DATA'!$D$8)),'[1]Input-Output Data'!$J11<'[1]Input-Output Data'!$K11),'[1]TABLE DATA'!N$8,IF(AND(AND($I11>'[1]TABLE DATA'!$D$7,OR($I11<'[1]TABLE DATA'!$D$8,$I11='[1]TABLE DATA'!$D$8)),AND('[1]Input-Output Data'!$J11>'[1]Input-Output Data'!$M11,OR('[1]Input-Output Data'!$J11<'[1]Input-Output Data'!$N11,'[1]Input-Output Data'!$J11='[1]Input-Output Data'!$N11))),'[1]TABLE DATA'!N$9,IF(AND(AND($I11>'[1]TABLE DATA'!$D$7,OR($I11<'[1]TABLE DATA'!$D$8,$I11='[1]TABLE DATA'!$D$8)),$J11>'[1]Input-Output Data'!$N11),"SIGN TOO WIDE",IF(AND(AND($I11>'[1]TABLE DATA'!$D$8,OR($I11<'[1]TABLE DATA'!$D$9,$I11='[1]TABLE DATA'!$D$9)),'[1]Input-Output Data'!$J11<'[1]Input-Output Data'!$K11),'[1]TABLE DATA'!N$9,"SIGN TOO WIDE")))))))))) -> 0.625 | X11: =IF(I11="Arm Too Long", "Reduce V or W",IF($I11>'[1]TABLE DATA'!$D$9,"SIGN TOO LARGE",IF(AND(OR($I11<'[1]TABLE DATA'!$D$7,$I11='[1]TABLE DATA'!$D$7),OR('[1]Input-Output Data'!$J11<'[1]Input-Output Data'!$K11,'[1]Input-Output Data'!$J11='[1]Input-Output Data'!$K11)),'[1]TABLE DATA'!O$7,IF(AND(OR($I11<'[1]TABLE DATA'!$D$7,$I11='[1]TABLE DATA'!$D$7),AND($J11>$L11),OR('[1]Input-Output Data'!$J11<'[1]Input-Output Data'!$M11,'[1]Input-Output Data'!$J11='[1]Input-Output Data'!$M11)),'[1]TABLE DATA'!O$8,IF(AND(OR($I11<'[1]TABLE DATA'!$D$7,$I11='[1]TABLE DATA'!$D$7),AND($J11>$M11),OR('[1]Input-Output Data'!$J11<'[1]Input-Output Data'!$N11,'[1]Input-Output Data'!$J11='[1]Input-Output Data'!$N11)),'[1]TABLE DATA'!O$9,IF(AND(OR($I11<'[1]TABLE DATA'!$D$7,$I11='[1]TABLE DATA'!$D$7),$J11>$N11),"SIGN TOO WIDE",IF(AND(AND($I11>'[1]TABLE DATA'!$D$7,OR($I11<'[1]TABLE DATA'!$D$8,$I11='[1]TABLE DATA'!$D$8)),'[1]Input-Output Data'!$J11<'[1]Input-Output Data'!$K11),'[1]TABLE DATA'!O$8,IF(AND(AND($I11>'[1]TABLE DATA'!$D$7,OR($I11<'[1]TABLE DATA'!$D$8,$I11='[1]TABLE DATA'!$D$8)),AND('[1]Input-Output Data'!$J11>'[1]Input-Output Data'!$M11,OR('[1]Input-Output Data'!$J11<'[1]Input-Output Data'!$N11,'[1]Input-Output Data'!$J11='[1]Input-Output Data'!$N11))),'[1]TABLE DATA'!O$9,IF(AND(AND($I11>'[1]TABLE DATA'!$D$7,OR($I11<'[1]TABLE DATA'!$D$8,$I11='[1]TABLE DATA'!$D$8)),$J11>'[1]Input-Output Data'!$N11),"SIGN TOO WIDE",IF(AND(AND($I11>'[1]TABLE DATA'!$D$8,OR($I11<'[1]TABLE DATA'!$D$9,$I11='[1]TABLE DATA'!$D$9)),'[1]Input-Output Data'!$J11<'[1]Input-Output Data'!$K11),'[1]TABLE DATA'!O$9,"SIGN TOO WIDE")))))))))) -> 0.625 | Y11: II
D12: 36 | E12: 36 | F12: Square | G12: I | H12: 21 | I12: 9 | J12: 20 | K12: =IF(OR(I12<'[1]TABLE DATA'!$D$7,I12='[1]TABLE DATA'!$D$7),717.75/I12,IF(AND('[1]TABLE DATA'!$D$7<I12,OR(I12<'[1]TABLE DATA'!$D$8,I12='[1]TABLE DATA'!$D$8)),1695/I12,IF(AND('[1]TABLE DATA'!$D$8<I12,OR(I12<'[1]TABLE DATA'!$D$9,I12='[1]TABLE DATA'!$D$9)),2268/I12,IF(I12="Arm Too Long", "Reduce V or W","Sign Too Wide")))) -> 79.75 | L12: =717.75/'[1]Input-Output Data'!I12 -> 79.75 | M12: 188.33 | N12: 252 | O12: =IF(I12="Arm Too Long", "Reduce V or W",IF($I12>'[1]TABLE DATA'!$D$9,"SIGN TOO LARGE",IF(AND(OR($I12<'[1]TABLE DATA'!$D$7,$I12='[1]TABLE DATA'!$D$7),OR('[1]Input-Output Data'!$J12<'[1]Input-Output Data'!$K12,'[1]Input-Output Data'!$J12='[1]Input-Output Data'!$K12)),'[1]TABLE DATA'!F$7,IF(AND(OR($I12<'[1]TABLE DATA'!$D$7,$I12='[1]TABLE DATA'!$D$7),AND($J12>$L12),OR('[1]Input-Output Data'!$J12<'[1]Input-Output Data'!$M12,'[1]Input-Output Data'!$J12='[1]Input-Output Data'!$M12)),'[1]TABLE DATA'!F$8,IF(AND(OR($I12<'[1]TABLE DATA'!$D$7,$I12='[1]TABLE DATA'!$D$7),AND($J12>$M12),OR('[1]Input-Output Data'!$J12<'[1]Input-Output Data'!$N12,'[1]Input-Output Data'!$J12='[1]Input-Output Data'!$N12)),'[1]TABLE DATA'!F$9,IF(AND(OR($I12<'[1]TABLE DATA'!$D$7,$I12='[1]TABLE DATA'!$D$7),$J12>$N12),"SIGN TOO WIDE",IF(AND(AND($I12>'[1]TABLE DATA'!$D$7,OR($I12<'[1]TABLE DATA'!$D$8,$I12='[1]TABLE DATA'!$D$8)),'[1]Input-Output Data'!$J12<'[1]Input-Output Data'!$K12),'[1]TABLE DATA'!F$8,IF(AND(AND($I12>'[1]TABLE DATA'!$D$7,OR($I12<'[1]TABLE DATA'!$D$8,$I12='[1]TABLE DATA'!$D$8)),AND('[1]Input-Output Data'!$J12>'[1]Input-Output Data'!$M12,OR('[1]Input-Output Data'!$J12<'[1]Input-Output Data'!$N12,'[1]Input-Output Data'!$J12='[1]Input-Output Data'!$N12))),'[1]TABLE DATA'!F$9,IF(AND(AND($I12>'[1]TABLE DATA'!$D$7,OR($I12<'[1]TABLE DATA'!$D$8,$I12='[1]TABLE DATA'!$D$8)),$J12>'[1]Input-Output Data'!$N12),"SIGN TOO WIDE",IF(AND(AND($I12>'[1]TABLE DATA'!$D$8,OR($I12<'[1]TABLE DATA'!$D$9,$I12='[1]TABLE DATA'!$D$9)),'[1]Input-Output Data'!$J12<'[1]Input-Output Data'!$K12),'[1]TABLE DATA'!F$9,"SIGN TOO WIDE")))))))))) -> 4 | P12: =IF(I12="Arm Too Long", "Reduce V or W",IF($I12>'[1]TABLE DATA'!$D$9,"SIGN TOO LARGE",IF(AND(OR($I12<'[1]TABLE DATA'!$D$7,$I12='[1]TABLE DATA'!$D$7),OR('[1]Input-Output Data'!$J12<'[1]Input-Output Data'!$K12,'[1]Input-Output Data'!$J12='[1]Input-Output Data'!$K12)),'[1]TABLE DATA'!G$7,IF(AND(OR($I12<'[1]TABLE DATA'!$D$7,$I12='[1]TABLE DATA'!$D$7),AND($J12>$L12),OR('[1]Input-Output Data'!$J12<'[1]Input-Output Data'!$M12,'[1]Input-Output Data'!$J12='[1]Input-Output Data'!$M12)),'[1]TABLE DATA'!G$8,IF(AND(OR($I12<'[1]TABLE DATA'!$D$7,$I12='[1]TABLE DATA'!$D$7),AND($J12>$M12),OR('[1]Input-Output Data'!$J12<'[1]Input-Output Data'!$N12,'[1]Input-Output Data'!$J12='[1]Input-Output Data'!$N12)),'[1]TABLE DATA'!G$9,IF(AND(OR($I12<'[1]TABLE DATA'!$D$7,$I12='[1]TABLE DATA'!$D$7),$J12>$N12),"SIGN TOO WIDE",IF(AND(AND($I12>'[1]TABLE DATA'!$D$7,OR($I12<'[1]TABLE DATA'!$D$8,$I12='[1]TABLE DATA'!$D$8)),'[1]Input-Output Data'!$J12<'[1]Input-Output Data'!$K12),'[1]TABLE DATA'!G$8,IF(AND(AND($I12>'[1]TABLE DATA'!$D$7,OR($I12<'[1]TABLE DATA'!$D$8,$I12='[1]TABLE DATA'!$D$8)),AND('[1]Input-Output Data'!$J12>'[1]Input-Output Data'!$M12,OR('[1]Input-Output Data'!$J12<'[1]Input-Output Data'!$N12,'[1]Input-Output Data'!$J12='[1]Input-Output Data'!$N12))),'[1]TABLE DATA'!G$9,IF(AND(AND($I12>'[1]TABLE DATA'!$D$7,OR($I12<'[1]TABLE DATA'!$D$8,$I12='[1]TABLE DATA'!$D$8)),$J12>'[1]Input-Output Data'!$N12),"SIGN TOO WIDE",IF(AND(AND($I12>'[1]TABLE DATA'!$D$8,OR($I12<'[1]TABLE DATA'!$D$9,$I12='[1]TABLE DATA'!$D$9)),'[1]Input-Output Data'!$J12<'[1]Input-Output Data'!$K12),'[1]TABLE DATA'!G$9,"SIGN TOO WIDE")))))))))) -> 2 | Q12: =IF(I12="Arm Too Long", "Reduce V or W",IF($I12>'[1]TABLE DATA'!$D$9,"SIGN TOO LARGE",IF(AND(OR($I12<'[1]TABLE DATA'!$D$7,$I12='[1]TABLE DATA'!$D$7),OR('[1]Input-Output Data'!$J12<'[1]Input-Output Data'!$K12,'[1]Input-Output Data'!$J12='[1]Input-Output Data'!$K12)),'[1]TABLE DATA'!H$7,IF(AND(OR($I12<'[1]TABLE DATA'!$D$7,$I12='[1]TABLE DATA'!$D$7),AND($J12>$L12),OR('[1]Input-Output Data'!$J12<'[1]Input-Output Data'!$M12,'[1]Input-Output Data'!$J12='[1]Input-Output Data'!$M12)),'[1]TABLE DATA'!H$8,IF(AND(OR($I12<'[1]TABLE DATA'!$D$7,$I12='[1]TABLE DATA'!$D$7),AND($J12>$M12),OR('[1]Input-Output Data'!$J12<'[1]Input-Output Data'!$N12,'[1]Input-Output Data'!$J12='[1]Input-Output Data'!$N12)),'[1]TABLE DATA'!H$9,IF(AND(OR($I12<'[1]TABLE DATA'!$D$7,$I12='[1]TABLE DATA'!$D$7),$J12>$N12),"SIGN TOO WIDE",IF(AND(AND($I12>'[1]TABLE DATA'!$D$7,OR($I12<'[1]TABLE DATA'!$D$8,$I12='[1]TABLE DATA'!$D$8)),'[1]Input-Output Data'!$J12<'[1]Input-Output Data'!$K12),'[1]TABLE DATA'!H$8,IF(AND(AND($I12>'[1]TABLE DATA'!$D$7,OR($I12<'[1]TABLE DATA'!$D$8,$I12='[1]TABLE DATA'!$D$8)),AND('[1]Input-Output Data'!$J12>'[1]Input-Output Data'!$M12,OR('[1]Input-Output Data'!$J12<'[1]Input-Output Data'!$N12,'[1]Input-Output Data'!$J12='[1]Input-Output Data'!$N12))),'[1]TABLE DATA'!H$9,IF(AND(AND($I12>'[1]TABLE DATA'!$D$7,OR($I12<'[1]TABLE DATA'!$D$8,$I12='[1]TABLE DATA'!$D$8)),$J12>'[1]Input-Output Data'!$N12),"SIGN TOO WIDE",IF(AND(AND($I12>'[1]TABLE DATA'!$D$8,OR($I12<'[1]TABLE DATA'!$D$9,$I12='[1]TABLE DATA'!$D$9)),'[1]Input-Output Data'!$J12<'[1]Input-Output Data'!$K12),'[1]TABLE DATA'!H$9,"SIGN TOO WIDE")))))))))) -> 0.625 | R12: =IF(I12="Arm Too Long", "Reduce V or W",IF($I12>'[1]TABLE DATA'!$D$9,"SIGN TOO LARGE",IF(AND(OR($I12<'[1]TABLE DATA'!$D$7,$I12='[1]TABLE DATA'!$D$7),OR('[1]Input-Output Data'!$J12<'[1]Input-Output Data'!$K12,'[1]Input-Output Data'!$J12='[1]Input-Output Data'!$K12)),'[1]TABLE DATA'!I$7,IF(AND(OR($I12<'[1]TABLE DATA'!$D$7,$I12='[1]TABLE DATA'!$D$7),AND($J12>$L12),OR('[1]Input-Output Data'!$J12<'[1]Input-Output Data'!$M12,'[1]Input-Output Data'!$J12='[1]Input-Output Data'!$M12)),'[1]TABLE DATA'!I$8,IF(AND(OR($I12<'[1]TABLE DATA'!$D$7,$I12='[1]TABLE DATA'!$D$7),AND($J12>$M12),OR('[1]Input-Output Data'!$J12<'[1]Input-Output Data'!$N12,'[1]Input-Output Data'!$J12='[1]Input-Output Data'!$N12)),'[1]TABLE DATA'!I$9,IF(AND(OR($I12<'[1]TABLE DATA'!$D$7,$I12='[1]TABLE DATA'!$D$7),$J12>$N12),"SIGN TOO WIDE",IF(AND(AND($I12>'[1]TABLE DATA'!$D$7,OR($I12<'[1]TABLE DATA'!$D$8,$I12='[1]TABLE DATA'!$D$8)),'[1]Input-Output Data'!$J12<'[1]Input-Output Data'!$K12),'[1]TABLE DATA'!I$8,IF(AND(AND($I12>'[1]TABLE DATA'!$D$7,OR($I12<'[1]TABLE DATA'!$D$8,$I12='[1]TABLE DATA'!$D$8)),AND('[1]Input-Output Data'!$J12>'[1]Input-Output Data'!$M12,OR('[1]Input-Output Data'!$J12<'[1]Input-Output Data'!$N12,'[1]Input-Output Data'!$J12='[1]Input-Output Data'!$N12))),'[1]TABLE DATA'!I$9,IF(AND(AND($I12>'[1]TABLE DATA'!$D$7,OR($I12<'[1]TABLE DATA'!$D$8,$I12='[1]TABLE DATA'!$D$8)),$J12>'[1]Input-Output Data'!$N12),"SIGN TOO WIDE",IF(AND(AND($I12>'[1]TABLE DATA'!$D$8,OR($I12<'[1]TABLE DATA'!$D$9,$I12='[1]TABLE DATA'!$D$9)),'[1]Input-Output Data'!$J12<'[1]Input-Output Data'!$K12),'[1]TABLE DATA'!I$9,"SIGN TOO WIDE")))))))))) -> 5.625 | S12: =IF(I12="Arm Too Long", "Reduce V or W",IF($I12>'[1]TABLE DATA'!$D$9,"SIGN TOO LARGE",IF(AND(OR($I12<'[1]TABLE DATA'!$D$7,$I12='[1]TABLE DATA'!$D$7),OR('[1]Input-Output Data'!$J12<'[1]Input-Output Data'!$K12,'[1]Input-Output Data'!$J12='[1]Input-Output Data'!$K12)),'[1]TABLE DATA'!J$7,IF(AND(OR($I12<'[1]TABLE DATA'!$D$7,$I12='[1]TABLE DATA'!$D$7),AND($J12>$L12),OR('[1]Input-Output Data'!$J12<'[1]Input-Output Data'!$M12,'[1]Input-Output Data'!$J12='[1]Input-Output Data'!$M12)),'[1]TABLE DATA'!J$8,IF(AND(OR($I12<'[1]TABLE DATA'!$D$7,$I12='[1]TABLE DATA'!$D$7),AND($J12>$M12),OR('[1]Input-Output Data'!$J12<'[1]Input-Output Data'!$N12,'[1]Input-Output Data'!$J12='[1]Input-Output Data'!$N12)),'[1]TABLE DATA'!J$9,IF(AND(OR($I12<'[1]TABLE DATA'!$D$7,$I12='[1]TABLE DATA'!$D$7),$J12>$N12),"SIGN TOO WIDE",IF(AND(AND($I12>'[1]TABLE DATA'!$D$7,OR($I12<'[1]TABLE DATA'!$D$8,$I12='[1]TABLE DATA'!$D$8)),'[1]Input-Output Data'!$J12<'[1]Input-Output Data'!$K12),'[1]TABLE DATA'!J$8,IF(AND(AND($I12>'[1]TABLE DATA'!$D$7,OR($I12<'[1]TABLE DATA'!$D$8,$I12='[1]TABLE DATA'!$D$8)),AND('[1]Input-Output Data'!$J12>'[1]Input-Output Data'!$M12,OR('[1]Input-Output Data'!$J12<'[1]Input-Output Data'!$N12,'[1]Input-Output Data'!$J12='[1]Input-Output Data'!$N12))),'[1]TABLE DATA'!J$9,IF(AND(AND($I12>'[1]TABLE DATA'!$D$7,OR($I12<'[1]TABLE DATA'!$D$8,$I12='[1]TABLE DATA'!$D$8)),$J12>'[1]Input-Output Data'!$N12),"SIGN TOO WIDE",IF(AND(AND($I12>'[1]TABLE DATA'!$D$8,OR($I12<'[1]TABLE DATA'!$D$9,$I12='[1]TABLE DATA'!$D$9)),'[1]Input-Output Data'!$J12<'[1]Input-Output Data'!$K12),'[1]TABLE DATA'!J$9,"SIGN TOO WIDE")))))))))) -> 2 | T12: =IF(I12="Arm Too Long", "Reduce V or W",IF($I12>'[1]TABLE DATA'!$D$9,"SIGN TOO LARGE",IF(AND(OR($I12<'[1]TABLE DATA'!$D$7,$I12='[1]TABLE DATA'!$D$7),OR('[1]Input-Output Data'!$J12<'[1]Input-Output Data'!$K12,'[1]Input-Output Data'!$J12='[1]Input-Output Data'!$K12)),'[1]TABLE DATA'!K$7,IF(AND(OR($I12<'[1]TABLE DATA'!$D$7,$I12='[1]TABLE DATA'!$D$7),AND($J12>$L12),OR('[1]Input-Output Data'!$J12<'[1]Input-Output Data'!$M12,'[1]Input-Output Data'!$J12='[1]Input-Output Data'!$M12)),'[1]TABLE DATA'!K$8,IF(AND(OR($I12<'[1]TABLE DATA'!$D$7,$I12='[1]TABLE DATA'!$D$7),AND($J12>$M12),OR('[1]Input-Output Data'!$J12<'[1]Input-Output Data'!$N12,'[1]Input-Output Data'!$J12='[1]Input-Output Data'!$N12)),'[1]TABLE DATA'!K$9,IF(AND(OR($I12<'[1]TABLE DATA'!$D$7,$I12='[1]TABLE DATA'!$D$7),$J12>$N12),"SIGN TOO WIDE",IF(AND(AND($I12>'[1]TABLE DATA'!$D$7,OR($I12<'[1]TABLE DATA'!$D$8,$I12='[1]TABLE DATA'!$D$8)),'[1]Input-Output Data'!$J12<'[1]Input-Output Data'!$K12),'[1]TABLE DATA'!K$8,IF(AND(AND($I12>'[1]TABLE DATA'!$D$7,OR($I12<'[1]TABLE DATA'!$D$8,$I12='[1]TABLE DATA'!$D$8)),AND('[1]Input-Output Data'!$J12>'[1]Input-Output Data'!$M12,OR('[1]Input-Output Data'!$J12<'[1]Input-Output Data'!$N12,'[1]Input-Output Data'!$J12='[1]Input-Output Data'!$N12))),'[1]TABLE DATA'!K$9,IF(AND(AND($I12>'[1]TABLE DATA'!$D$7,OR($I12<'[1]TABLE DATA'!$D$8,$I12='[1]TABLE DATA'!$D$8)),$J12>'[1]Input-Output Data'!$N12),"SIGN TOO WIDE",IF(AND(AND($I12>'[1]TABLE DATA'!$D$8,OR($I12<'[1]TABLE DATA'!$D$9,$I12='[1]TABLE DATA'!$D$9)),'[1]Input-Output Data'!$J12<'[1]Input-Output Data'!$K12),'[1]TABLE DATA'!K$9,"SIGN TOO WIDE")))))))))) -> 60 | U12: =IF(I12="Arm Too Long", "Reduce V or W",IF($I12>'[1]TABLE DATA'!$D$9,"SIGN TOO LARGE",IF(AND(OR($I12<'[1]TABLE DATA'!$D$7,$I12='[1]TABLE DATA'!$D$7),OR('[1]Input-Output Data'!$J12<'[1]Input-Output Data'!$K12,'[1]Input-Output Data'!$J12='[1]Input-Output Data'!$K12)),'[1]TABLE DATA'!L$7,IF(AND(OR($I12<'[1]TABLE DATA'!$D$7,$I12='[1]TABLE DATA'!$D$7),AND($J12>$L12),OR('[1]Input-Output Data'!$J12<'[1]Input-Output Data'!$M12,'[1]Input-Output Data'!$J12='[1]Input-Output Data'!$M12)),'[1]TABLE DATA'!L$8,IF(AND(OR($I12<'[1]TABLE DATA'!$D$7,$I12='[1]TABLE DATA'!$D$7),AND($J12>$M12),OR('[1]Input-Output Data'!$J12<'[1]Input-Output Data'!$N12,'[1]Input-Output Data'!$J12='[1]Input-Output Data'!$N12)),'[1]TABLE DATA'!L$9,IF(AND(OR($I12<'[1]TABLE DATA'!$D$7,$I12='[1]TABLE DATA'!$D$7),$J12>$N12),"SIGN TOO WIDE",IF(AND(AND($I12>'[1]TABLE DATA'!$D$7,OR($I12<'[1]TABLE DATA'!$D$8,$I12='[1]TABLE DATA'!$D$8)),'[1]Input-Output Data'!$J12<'[1]Input-Output Data'!$K12),'[1]TABLE DATA'!L$8,IF(AND(AND($I12>'[1]TABLE DATA'!$D$7,OR($I12<'[1]TABLE DATA'!$D$8,$I12='[1]TABLE DATA'!$D$8)),AND('[1]Input-Output Data'!$J12>'[1]Input-Output Data'!$M12,OR('[1]Input-Output Data'!$J12<'[1]Input-Output Data'!$N12,'[1]Input-Output Data'!$J12='[1]Input-Output Data'!$N12))),'[1]TABLE DATA'!L$9,IF(AND(AND($I12>'[1]TABLE DATA'!$D$7,OR($I12<'[1]TABLE DATA'!$D$8,$I12='[1]TABLE DATA'!$D$8)),$J12>'[1]Input-Output Data'!$N12),"SIGN TOO WIDE",IF(AND(AND($I12>'[1]TABLE DATA'!$D$8,OR($I12<'[1]TABLE DATA'!$D$9,$I12='[1]TABLE DATA'!$D$9)),'[1]Input-Output Data'!$J12<'[1]Input-Output Data'!$K12),'[1]TABLE DATA'!L$9,"SIGN TOO WIDE")))))))))) -> 7.4 | V12: =IF(I12="Arm Too Long", "Reduce V or W",IF($I12>'[1]TABLE DATA'!$D$9,"SIGN TOO LARGE",IF(AND(OR($I12<'[1]TABLE DATA'!$D$7,$I12='[1]TABLE DATA'!$D$7),OR('[1]Input-Output Data'!$J12<'[1]Input-Output Data'!$K12,'[1]Input-Output Data'!$J12='[1]Input-Output Data'!$K12)),'[1]TABLE DATA'!M$7,IF(AND(OR($I12<'[1]TABLE DATA'!$D$7,$I12='[1]TABLE DATA'!$D$7),AND($J12>$L12),OR('[1]Input-Output Data'!$J12<'[1]Input-Output Data'!$M12,'[1]Input-Output Data'!$J12='[1]Input-Output Data'!$M12)),'[1]TABLE DATA'!M$8,IF(AND(OR($I12<'[1]TABLE DATA'!$D$7,$I12='[1]TABLE DATA'!$D$7),AND($J12>$M12),OR('[1]Input-Output Data'!$J12<'[1]Input-Output Data'!$N12,'[1]Input-Output Data'!$J12='[1]Input-Output Data'!$N12)),'[1]TABLE DATA'!M$9,IF(AND(OR($I12<'[1]TABLE DATA'!$D$7,$I12='[1]TABLE DATA'!$D$7),$J12>$N12),"SIGN TOO WIDE",IF(AND(AND($I12>'[1]TABLE DATA'!$D$7,OR($I12<'[1]TABLE DATA'!$D$8,$I12='[1]TABLE DATA'!$D$8)),'[1]Input-Output Data'!$J12<'[1]Input-Output Data'!$K12),'[1]TABLE DATA'!M$8,IF(AND(AND($I12>'[1]TABLE DATA'!$D$7,OR($I12<'[1]TABLE DATA'!$D$8,$I12='[1]TABLE DATA'!$D$8)),AND('[1]Input-Output Data'!$J12>'[1]Input-Output Data'!$M12,OR('[1]Input-Output Data'!$J12<'[1]Input-Output Data'!$N12,'[1]Input-Output Data'!$J12='[1]Input-Output Data'!$N12))),'[1]TABLE DATA'!M$9,IF(AND(AND($I12>'[1]TABLE DATA'!$D$7,OR($I12<'[1]TABLE DATA'!$D$8,$I12='[1]TABLE DATA'!$D$8)),$J12>'[1]Input-Output Data'!$N12),"SIGN TOO WIDE",IF(AND(AND($I12>'[1]TABLE DATA'!$D$8,OR($I12<'[1]TABLE DATA'!$D$9,$I12='[1]TABLE DATA'!$D$9)),'[1]Input-Output Data'!$J12<'[1]Input-Output Data'!$K12),'[1]TABLE DATA'!M$9,"SIGN TOO WIDE")))))))))) -> 0.5 | W12: =IF(I12="Arm Too Long", "Reduce V or W",IF($I12>'[1]TABLE DATA'!$D$9,"SIGN TOO LARGE",IF(AND(OR($I12<'[1]TABLE DATA'!$D$7,$I12='[1]TABLE DATA'!$D$7),OR('[1]Input-Output Data'!$J12<'[1]Input-Output Data'!$K12,'[1]Input-Output Data'!$J12='[1]Input-Output Data'!$K12)),'[1]TABLE DATA'!N$7,IF(AND(OR($I12<'[1]TABLE DATA'!$D$7,$I12='[1]TABLE DATA'!$D$7),AND($J12>$L12),OR('[1]Input-Output Data'!$J12<'[1]Input-Output Data'!$M12,'[1]Input-Output Data'!$J12='[1]Input-Output Data'!$M12)),'[1]TABLE DATA'!N$8,IF(AND(OR($I12<'[1]TABLE DATA'!$D$7,$I12='[1]TABLE DATA'!$D$7),AND($J12>$M12),OR('[1]Input-Output Data'!$J12<'[1]Input-Output Data'!$N12,'[1]Input-Output Data'!$J12='[1]Input-Output Data'!$N12)),'[1]TABLE DATA'!N$9,IF(AND(OR($I12<'[1]TABLE DATA'!$D$7,$I12='[1]TABLE DATA'!$D$7),$J12>$N12),"SIGN TOO WIDE",IF(AND(AND($I12>'[1]TABLE DATA'!$D$7,OR($I12<'[1]TABLE DATA'!$D$8,$I12='[1]TABLE DATA'!$D$8)),'[1]Input-Output Data'!$J12<'[1]Input-Output Data'!$K12),'[1]TABLE DATA'!N$8,IF(AND(AND($I12>'[1]TABLE DATA'!$D$7,OR($I12<'[1]TABLE DATA'!$D$8,$I12='[1]TABLE DATA'!$D$8)),AND('[1]Input-Output Data'!$J12>'[1]Input-Output Data'!$M12,OR('[1]Input-Output Data'!$J12<'[1]Input-Output Data'!$N12,'[1]Input-Output Data'!$J12='[1]Input-Output Data'!$N12))),'[1]TABLE DATA'!N$9,IF(AND(AND($I12>'[1]TABLE DATA'!$D$7,OR($I12<'[1]TABLE DATA'!$D$8,$I12='[1]TABLE DATA'!$D$8)),$J12>'[1]Input-Output Data'!$N12),"SIGN TOO WIDE",IF(AND(AND($I12>'[1]TABLE DATA'!$D$8,OR($I12<'[1]TABLE DATA'!$D$9,$I12='[1]TABLE DATA'!$D$9)),'[1]Input-Output Data'!$J12<'[1]Input-Output Data'!$K12),'[1]TABLE DATA'!N$9,"SIGN TOO WIDE")))))))))) -> 0.5 | X12: =IF(I12="Arm Too Long", "Reduce V or W",IF($I12>'[1]TABLE DATA'!$D$9,"SIGN TOO LARGE",IF(AND(OR($I12<'[1]TABLE DATA'!$D$7,$I12='[1]TABLE DATA'!$D$7),OR('[1]Input-Output Data'!$J12<'[1]Input-Output Data'!$K12,'[1]Input-Output Data'!$J12='[1]Input-Output Data'!$K12)),'[1]TABLE DATA'!O$7,IF(AND(OR($I12<'[1]TABLE DATA'!$D$7,$I12='[1]TABLE DATA'!$D$7),AND($J12>$L12),OR('[1]Input-Output Data'!$J12<'[1]Input-Output Data'!$M12,'[1]Input-Output Data'!$J12='[1]Input-Output Data'!$M12)),'[1]TABLE DATA'!O$8,IF(AND(OR($I12<'[1]TABLE DATA'!$D$7,$I12='[1]TABLE DATA'!$D$7),AND($J12>$M12),OR('[1]Input-Output Data'!$J12<'[1]Input-Output Data'!$N12,'[1]Input-Output Data'!$J12='[1]Input-Output Data'!$N12)),'[1]TABLE DATA'!O$9,IF(AND(OR($I12<'[1]TABLE DATA'!$D$7,$I12='[1]TABLE DATA'!$D$7),$J12>$N12),"SIGN TOO WIDE",IF(AND(AND($I12>'[1]TABLE DATA'!$D$7,OR($I12<'[1]TABLE DATA'!$D$8,$I12='[1]TABLE DATA'!$D$8)),'[1]Input-Output Data'!$J12<'[1]Input-Output Data'!$K12),'[1]TABLE DATA'!O$8,IF(AND(AND($I12>'[1]TABLE DATA'!$D$7,OR($I12<'[1]TABLE DATA'!$D$8,$I12='[1]TABLE DATA'!$D$8)),AND('[1]Input-Output Data'!$J12>'[1]Input-Output Data'!$M12,OR('[1]Input-Output Data'!$J12<'[1]Input-Output Data'!$N12,'[1]Input-Output Data'!$J12='[1]Input-Output Data'!$N12))),'[1]TABLE DATA'!O$9,IF(AND(AND($I12>'[1]TABLE DATA'!$D$7,OR($I12<'[1]TABLE DATA'!$D$8,$I12='[1]TABLE DATA'!$D$8)),$J12>'[1]Input-Output Data'!$N12),"SIGN TOO WIDE",IF(AND(AND($I12>'[1]TABLE DATA'!$D$8,OR($I12<'[1]TABLE DATA'!$D$9,$I12='[1]TABLE DATA'!$D$9)),'[1]Input-Output Data'!$J12<'[1]Input-Output Data'!$K12),'[1]TABLE DATA'!O$9,"SIGN TOO WIDE")))))))))) -> 0.5 | Y12: =IF(V12=0.5,"I",IF(V12=0.625,"II",IF(V12=0.75,"III","N/A"))) -> I
